Workbook

Sheet TERRAIN
B1: (UNDONE THIS NEEDS A VALUE PASS)
AC2: 0 = none, 1 = some, 2 = a lot | AF2: 0 = none, 1 = crater, 2 = stone crater, 3 = object
B3: NAME | C3: TYPE | D3: Terrain Object Index | E3: Campaign Setting (0 = Tunisia, 1 = Sicily, 2 = Normandy, -1 = ALL) | F3: ICON IDX | G3: MAX SLOPE 0.0-1.0 | H3: SECONDAY TERRAIN TYPE | I3: CONCEALMENT (% vis reduction) | J3: COVER (0 = none, 1 = prone, 2 = crouch, 3 = stand, 4 = total) | K3: PROTECTION (mm RHA equivalent) | L3: Move Push | M3: Move Wheel | N3: Move All Wheel Drive | O3: Move Halftrack | P3: Move Track | Q3: Move Foot | R3: Bog Chance | S3: Immob Chance | T3: Block LOS | U3: Block All LOS | V3: Wall? | W3: Sunken? | X3: Covered? | Y3: Bridge? | Z3: Interior? | AA3: Road? | AB3: Minefield? | AC3: Dustiness | AD3: DAMAGE THRESHOLD | AE3: BURN TIME | AF3: DESTRUCTION TYPE | AG3: EXPLODE TO | AH3: CRUSH TO | AI3: BURN TO | AJ3: ScaleX (float) | AK3: ScaleY | AL3: ScaleZ | AM3: Max Scale Variation (float) | AN3: Alpha Trans? Texture should be rendered alpha transparent | AO3: ASSET COUNT | AP3: ASSET Type (0 = texture, 1 = material, 2 = FBX, 3 = damage texture) | AQ3: Asset Name | AR3: ASSET Type | AS3: Asset Name | AT3: ASSET Type | AU3: Asset Name | AV3: ASSET Type | AW3: Asset Name | AX3: ASSET Type | AY3: Asset Name | AZ3: ASSET Type | BA3: Asset Name | BB3: ASSET Type | BC3: Asset Name
A4: COUNT | B4: 155
A5: 0 | B5: Open Ground | C5: 0 | D5: -1 | E5: -1 | F5: 0 | G5: 1 | H5: -1 | I5: 0 | J5: 0 | K5: 0 | L5: 0.5 | M5: 0.4 | N5: 0.6 | O5: 0.6 | P5: 0.6 | Q5: 0.9 | R5: 0 | S5: 0 | T5: 0 | U5: 0 | V5: 0 | W5: 0 | X5: 0 | Y5: 0 | Z5: 0 | AA5: 0 | AB5: 0 | AC5: 1 | AD5: 0 | AE5: 0 | AF5: 1 | AG5: -1 | AH5: -1 | AI5: -1 | AJ5: 1 | AK5: 1 | AL5: 1 | AM5: 0 | AN5: 0 | AO5: 1 | AP5: 0 | AQ5: Ground_Grass.bmp
A6: 1 | B6: Dirt | C6: 0 | D6: -1 | E6: -1 | F6: 1 | G6: 1 | H6: -1 | I6: 0 | J6: 0 | K6: 0 | L6: 0.5 | M6: 0.4 | N6: 0.6 | O6: 0.6 | P6: 0.6 | Q6: 0.9 | R6: 0 | S6: 0 | T6: 0 | U6: 0 | V6: 0 | W6: 0 | X6: 0 | Y6: 0 | Z6: 0 | AA6: 0 | AB6: 0 | AC6: 2 | AD6: 0 | AE6: 0 | AF6: 1 | AG6: -1 | AH6: -1 | AI6: -1 | AJ6: 1 | AK6: 1 | AL6: 1 | AM6: 0 | AN6: 0 | AO6: 1 | AP6: 0 | AQ6: Ground_Dirt.bmp
A7: 2 | B7: Field | C7: 0 | D7: -1 | E7: -1 | F7: 2 | G7: 1 | H7: -1 | I7: 10 | J7: 1 | K7: 1 | L7: 0.3 | M7: 0.3 | N7: 0.4 | O7: 0.4 | P7: 0.4 | Q7: 0.8 | R7: 2 | S7: 1 | T7: 0 | U7: 0 | V7: 0 | W7: 0 | X7: 0 | Y7: 0 | Z7: 0 | AA7: 0 | AB7: 0 | AC7: 1 | AD7: 0 | AE7: 0 | AF7: 1 | AG7: -1 | AH7: -1 | AI7: -1 | AJ7: 1 | AK7: 1 | AL7: 1 | AM7: 0 | AN7: 0 | AO7: 1 | AP7: 0 | AQ7: Ground_Crops.bmp
A8: 3 | B8: Soft Ground | C8: 0 | D8: -1 | E8: -1 | F8: 3 | G8: 1 | H8: -1 | I8: 0 | J8: 0 | K8: 0 | L8: 0.3 | M8: 0.3 | N8: 0.3 | O8: 0.3 | P8: 0.3 | Q8: 0.8 | R8: 5 | S8: 2 | T8: 0 | U8: 0 | V8: 0 | W8: 0 | X8: 0 | Y8: 0 | Z8: 0 | AA8: 0 | AB8: 0 | AC8: 0 | AD8: 0 | AE8: 0 | AF8: 1 | AG8: -1 | AH8: -1 | AI8: -1 | AJ8: 1 | AK8: 1 | AL8: 1 | AM8: 0 | AN8: 0 | AO8: 1 | AP8: 0 | AQ8: Ground_Soft.bmp
A9: 4 | B9: Marsh | C9: 0 | D9: -1 | E9: -1 | F9: 4 | G9: 1 | H9: -1 | I9: 20 | J9: 1 | K9: 1 | L9: 0 | M9: 0 | N9: 0 | O9: 0 | P9: 0 | Q9: 0.4 | R9: 10 | S9: 3 | T9: 0 | U9: 0 | V9: 0 | W9: 0 | X9: 0 | Y9: 0 | Z9: 0 | AA9: 0 | AB9: 0 | AC9: 0 | AD9: 0 | AE9: 0 | AF9: 1 | AG9: -1 | AH9: -1 | AI9: -1 | AJ9: 1 | AK9: 1 | AL9: 1 | AM9: 0 | AN9: 0 | AO9: 1 | AP9: 0 | AQ9: Ground_Swamp.bmp
A10: 5 | B10: Rocky Ground | C10: 0 | D10: -1 | E10: -1 | F10: 5 | G10: 1 | H10: -1 | I10: 10 | J10: 1 | K10: 3 | L10: 0.2 | M10: 0.2 | N10: 0.3 | O10: 0.3 | P10: 0.3 | Q10: 0.8 | R10: 2 | S10: 1 | T10: 0 | U10: 0 | V10: 0 | W10: 0 | X10: 0 | Y10: 0 | Z10: 0 | AA10: 0 | AB10: 0 | AC10: 1 | AD10: 0 | AE10: 0 | AF10: 1 | AG10: -1 | AH10: -1 | AI10: -1 | AJ10: 1 | AK10: 1 | AL10: 1 | AM10: 0 | AN10: 0 | AO10: 1 | AP10: 0 | AQ10: Ground_rocky.bmp
A11: 6 | B11: Pavement | C11: 0 | D11: -1 | E11: -1 | F11: 6 | G11: 1 | H11: -1 | I11: 0 | J11: 0 | K11: 0 | L11: 1 | M11: 1 | N11: 1 | O11: 1 | P11: 1 | Q11: 1 | R11: 0 | S11: 0 | T11: 0 | U11: 0 | V11: 0 | W11: 0 | X11: 0 | Y11: 0 | Z11: 0 | AA11: 1 | AB11: 0 | AC11: 0 | AD11: 0 | AE11: 0 | AF11: 2 | AG11: -1 | AH11: -1 | AI11: -1 | AJ11: 1 | AK11: 1 | AL11: 1 | AM11: 0 | AN11: 0 | AO11: 1 | AP11: 0 | AQ11: Ground_Pavement.bmp
A12: 7 | B12: Scorched Earth | C12: 0 | D12: -1 | E12: -1 | F12: 7 | G12: 1 | H12: -1 | I12: 0 | J12: 0 | K12: 0 | L12: 0.5 | M12: 0.4 | N12: 0.5 | O12: 0.5 | P12: 0.5 | Q12: 0.8 | R12: 0 | S12: 0 | T12: 0 | U12: 0 | V12: 0 | W12: 0 | X12: 0 | Y12: 0 | Z12: 0 | AA12: 0 | AB12: 0 | AC12: 1 | AD12: 0 | AE12: 0 | AF12: 1 | AG12: -1 | AH12: -1 | AI12: -1 | AJ12: 1 | AK12: 1 | AL12: 1 | AM12: 0 | AN12: 0 | AO12: 1 | AP12: 0 | AQ12: Ground_Scortched.bmp
A13: 8 | B13: Dirt Road | C13: 0 | D13: -1 | E13: -1 | F13: 8 | G13: 1 | H13: -1 | I13: 0 | J13: 0 | K13: 0 | L13: 0.9 | M13: 0.9 | N13: 0.9 | O13: 0.9 | P13: 0.9 | Q13: 1 | R13: 0 | S13: 0 | T13: 0 | U13: 0 | V13: 0 | W13: 0 | X13: 0 | Y13: 0 | Z13: 0 | AA13: 1 | AB13: 0 | AC13: 2 | AD13: 0 | AE13: 0 | AF13: 1 | AG13: -1 | AH13: -1 | AI13: -1 | AJ13: 1 | AK13: 1 | AL13: 1 | AM13: 0 | AN13: 0 | AO13: 1 | AP13: 0 | AQ13: Ground_DirtRoad.bmp
A14: 9 | B14: Minefield | C14: 0 | D14: -1 | E14: -1 | F14: 0 | G14: 1 | H14: -1 | I14: 0 | J14: 0 | K14: 0 | L14: 0.5 | M14: 0.4 | N14: 0.6 | O14: 0.6 | P14: 0.6 | Q14: 0.9 | R14: 0 | S14: 0 | T14: 0 | U14: 0 | V14: 0 | W14: 0 | X14: 0 | Y14: 0 | Z14: 0 | AA14: 0 | AB14: 1 | AC14: 1 | AD14: 0 | AE14: 0 | AF14: 1 | AG14: -1 | AH14: -1 | AI14: -1 | AJ14: 1 | AK14: 1 | AL14: 1 | AM14: 0 | AN14: 0 | AO14: 0
A15: 10 | B15: (reserved) | C15: 0 | D15: -1 | E15: -1 | F15: -1 | G15: 1 | H15: -1 | I15: 0 | J15: 0 | K15: 0 | L15: 0 | M15: 0 | N15: 0 | O15: 0 | P15: 0 | Q15: 0 | R15: 0 | S15: 0 | T15: 0 | U15: 0 | V15: 0 | W15: 0 | X15: 0 | Y15: 0 | Z15: 0 | AA15: 0 | AB15: 0 | AC15: 0 | AD15: 0 | AE15: 0 | AF15: 0 | AG15: -1 | AH15: -1 | AI15: -1 | AJ15: 1 | AK15: 1 | AL15: 1 | AM15: 0 | AN15: 0 | AO15: 0
A16: 11 | B16: (reserved) | C16: 0 | D16: -1 | E16: -1 | F16: -1 | G16: 1 | H16: -1 | I16: 0 | J16: 0 | K16: 0 | L16: 0 | M16: 0 | N16: 0 | O16: 0 | P16: 0 | Q16: 0 | R16: 0 | S16: 0 | T16: 0 | U16: 0 | V16: 0 | W16: 0 | X16: 0 | Y16: 0 | Z16: 0 | AA16: 0 | AB16: 0 | AC16: 0 | AD16: 0 | AE16: 0 | AF16: 0 | AG16: -1 | AH16: -1 | AI16: -1 | AJ16: 1 | AK16: 1 | AL16: 1 | AM16: 0 | AN16: 0 | AO16: 0
A17: 12 | B17: (reserved) | C17: 0 | D17: -1 | E17: -1 | F17: -1 | G17: 1 | H17: -1 | I17: 0 | J17: 0 | K17: 0 | L17: 0 | M17: 0 | N17: 0 | O17: 0 | P17: 0 | Q17: 0 | R17: 0 | S17: 0 | T17: 0 | U17: 0 | V17: 0 | W17: 0 | X17: 0 | Y17: 0 | Z17: 0 | AA17: 0 | AB17: 0 | AC17: 0 | AD17: 0 | AE17: 0 | AF17: 0 | AG17: -1 | AH17: -1 | AI17: -1 | AJ17: 1 | AK17: 1 | AL17: 1 | AM17: 0 | AN17: 0 | AO17: 0
A18: 13 | B18: (reserved) | C18: 0 | D18: -1 | E18: -1 | F18: -1 | G18: 1 | H18: -1 | I18: 0 | J18: 0 | K18: 0 | L18: 0 | M18: 0 | N18: 0 | O18: 0 | P18: 0 | Q18: 0 | R18: 0 | S18: 0 | T18: 0 | U18: 0 | V18: 0 | W18: 0 | X18: 0 | Y18: 0 | Z18: 0 | AA18: 0 | AB18: 0 | AC18: 0 | AD18: 0 | AE18: 0 | AF18: 0 | AG18: -1 | AH18: -1 | AI18: -1 | AJ18: 1 | AK18: 1 | AL18: 1 | AM18: 0 | AN18: 0 | AO18: 0
A19: 14 | B19: (reserved) | C19: 0 | D19: -1 | E19: -1 | F19: -1 | G19: 1 | H19: -1 | I19: 0 | J19: 0 | K19: 0 | L19: 0 | M19: 0 | N19: 0 | O19: 0 | P19: 0 | Q19: 0 | R19: 0 | S19: 0 | T19: 0 | U19: 0 | V19: 0 | W19: 0 | X19: 0 | Y19: 0 | Z19: 0 | AA19: 0 | AB19: 0 | AC19: 0 | AD19: 0 | AE19: 0 | AF19: 0 | AG19: -1 | AH19: -1 | AI19: -1 | AJ19: 1 | AK19: 1 | AL19: 1 | AM19: 0 | AN19: 0 | AO19: 0
A20: 15 | B20: (reserved) | C20: 0 | D20: -1 | E20: -1 | F20: -1 | G20: 1 | H20: -1 | I20: 0 | J20: 0 | K20: 0 | L20: 0 | M20: 0 | N20: 0 | O20: 0 | P20: 0 | Q20: 0 | R20: 0 | S20: 0 | T20: 0 | U20: 0 | V20: 0 | W20: 0 | X20: 0 | Y20: 0 | Z20: 0 | AA20: 0 | AB20: 0 | AC20: 0 | AD20: 0 | AE20: 0 | AF20: 0 | AG20: -1 | AH20: -1 | AI20: -1 | AJ20: 1 | AK20: 1 | AL20: 1 | AM20: 0 | AN20: 0 | AO20: 0
A21: 16 | B21: (reserved) | C21: 0 | D21: -1 | E21: -1 | F21: -1 | G21: 1 | H21: -1 | I21: 0 | J21: 0 | K21: 0 | L21: 0 | M21: 0 | N21: 0 | O21: 0 | P21: 0 | Q21: 0 | R21: 0 | S21: 0 | T21: 0 | U21: 0 | V21: 0 | W21: 0 | X21: 0 | Y21: 0 | Z21: 0 | AA21: 0 | AB21: 0 | AC21: 0 | AD21: 0 | AE21: 0 | AF21: 0 | AG21: -1 | AH21: -1 | AI21: -1 | AJ21: 1 | AK21: 1 | AL21: 1 | AM21: 0 | AN21: 0 | AO21: 0
A22: 17 | B22: (reserved) | C22: 0 | D22: -1 | E22: -1 | F22: -1 | G22: 1 | H22: -1 | I22: 0 | J22: 0 | K22: 0 | L22: 0 | M22: 0 | N22: 0 | O22: 0 | P22: 0 | Q22: 0 | R22: 0 | S22: 0 | T22: 0 | U22: 0 | V22: 0 | W22: 0 | X22: 0 | Y22: 0 | Z22: 0 | AA22: 0 | AB22: 0 | AC22: 0 | AD22: 0 | AE22: 0 | AF22: 0 | AG22: -1 | AH22: -1 | AI22: -1 | AJ22: 1 | AK22: 1 | AL22: 1 | AM22: 0 | AN22: 0 | AO22: 0
A23: 18 | B23: (reserved) | C23: 0 | D23: -1 | E23: -1 | F23: -1 | G23: 1 | H23: -1 | I23: 0 | J23: 0 | K23: 0 | L23: 0 | M23: 0 | N23: 0 | O23: 0 | P23: 0 | Q23: 0 | R23: 0 | S23: 0 | T23: 0 | U23: 0 | V23: 0 | W23: 0 | X23: 0 | Y23: 0 | Z23: 0 | AA23: 0 | AB23: 0 | AC23: 0 | AD23: 0 | AE23: 0 | AF23: 0 | AG23: -1 | AH23: -1 | AI23: -1 | AJ23: 1 | AK23: 1 | AL23: 1 | AM23: 0 | AN23: 0 | AO23: 0
A24: 19 | B24: (reserved) | C24: 0 | D24: -1 | E24: -1 | F24: -1 | G24: 1 | H24: -1 | I24: 0 | J24: 0 | K24: 0 | L24: 0 | M24: 0 | N24: 0 | O24: 0 | P24: 0 | Q24: 0 | R24: 0 | S24: 0 | T24: 0 | U24: 0 | V24: 0 | W24: 0 | X24: 0 | Y24: 0 | Z24: 0 | AA24: 0 | AB24: 0 | AC24: 0 | AD24: 0 | AE24: 0 | AF24: 0 | AG24: -1 | AH24: -1 | AI24: -1 | AJ24: 1 | AK24: 1 | AL24: 1 | AM24: 0 | AN24: 0 | AO24: 0
A25: 20 | B25: (reserved) | C25: 0 | D25: -1 | E25: -1 | F25: -1 | G25: 1 | H25: -1 | I25: 0 | J25: 0 | K25: 0 | L25: 0 | M25: 0 | N25: 0 | O25: 0 | P25: 0 | Q25: 0 | R25: 0 | S25: 0 | T25: 0 | U25: 0 | V25: 0 | W25: 0 | X25: 0 | Y25: 0 | Z25: 0 | AA25: 0 | AB25: 0 | AC25: 0 | AD25: 0 | AE25: 0 | AF25: 0 | AG25: -1 | AH25: -1 | AI25: -1 | AJ25: 1 | AK25: 1 | AL25: 1 | AM25: 0 | AN25: 0 | AO25: 0
A26: 21 | B26: (reserved) | C26: 0 | D26: -1 | E26: -1 | F26: -1 | G26: 1 | H26: -1 | I26: 0 | J26: 0 | K26: 0 | L26: 0 | M26: 0 | N26: 0 | O26: 0 | P26: 0 | Q26: 0 | R26: 0 | S26: 0 | T26: 0 | U26: 0 | V26: 0 | W26: 0 | X26: 0 | Y26: 0 | Z26: 0 | AA26: 0 | AB26: 0 | AC26: 0 | AD26: 0 | AE26: 0 | AF26: 0 | AG26: -1 | AH26: -1 | AI26: -1 | AJ26: 1 | AK26: 1 | AL26: 1 | AM26: 0 | AN26: 0 | AO26: 0
A27: 22 | B27: (reserved) | C27: 0 | D27: -1 | E27: -1 | F27: -1 | G27: 1 | H27: -1 | I27: 0 | J27: 0 | K27: 0 | L27: 0 | M27: 0 | N27: 0 | O27: 0 | P27: 0 | Q27: 0 | R27: 0 | S27: 0 | T27: 0 | U27: 0 | V27: 0 | W27: 0 | X27: 0 | Y27: 0 | Z27: 0 | AA27: 0 | AB27: 0 | AC27: 0 | AD27: 0 | AE27: 0 | AF27: 0 | AG27: -1 | AH27: -1 | AI27: -1 | AJ27: 1 | AK27: 1 | AL27: 1 | AM27: 0 | AN27: 0 | AO27: 0
A28: 23 | B28: (reserved) | C28: 0 | D28: -1 | E28: -1 | F28: -1 | G28: 1 | H28: -1 | I28: 0 | J28: 0 | K28: 0 | L28: 0 | M28: 0 | N28: 0 | O28: 0 | P28: 0 | Q28: 0 | R28: 0 | S28: 0 | T28: 0 | U28: 0 | V28: 0 | W28: 0 | X28: 0 | Y28: 0 | Z28: 0 | AA28: 0 | AB28: 0 | AC28: 0 | AD28: 0 | AE28: 0 | AF28: 0 | AG28: -1 | AH28: -1 | AI28: -1 | AJ28: 1 | AK28: 1 | AL28: 1 | AM28: 0 | AN28: 0 | AO28: 0
A29: 24 | B29: (reserved) | C29: 0 | D29: -1 | E29: -1 | F29: -1 | G29: 1 | H29: -1 | I29: 0 | J29: 0 | K29: 0 | L29: 0 | M29: 0 | N29: 0 | O29: 0 | P29: 0 | Q29: 0 | R29: 0 | S29: 0 | T29: 0 | U29: 0 | V29: 0 | W29: 0 | X29: 0 | Y29: 0 | Z29: 0 | AA29: 0 | AB29: 0 | AC29: 0 | AD29: 0 | AE29: 0 | AF29: 0 | AG29: -1 | AH29: -1 | AI29: -1 | AJ29: 1 | AK29: 1 | AL29: 1 | AM29: 0 | AN29: 0 | AO29: 0
A30: 25 | B30: (reserved) | C30: 0 | D30: -1 | E30: -1 | F30: -1 | G30: 1 | H30: -1 | I30: 0 | J30: 0 | K30: 0 | L30: 0 | M30: 0 | N30: 0 | O30: 0 | P30: 0 | Q30: 0 | R30: 0 | S30: 0 | T30: 0 | U30: 0 | V30: 0 | W30: 0 | X30: 0 | Y30: 0 | Z30: 0 | AA30: 0 | AB30: 0 | AC30: 0 | AD30: 0 | AE30: 0 | AF30: 0 | AG30: -1 | AH30: -1 | AI30: -1 | AJ30: 1 | AK30: 1 | AL30: 1 | AM30: 0 | AN30: 0 | AO30: 0
A31: 26 | B31: (reserved) | C31: 0 | D31: -1 | E31: -1 | F31: -1 | G31: 1 | H31: -1 | I31: 0 | J31: 0 | K31: 0 | L31: 0 | M31: 0 | N31: 0 | O31: 0 | P31: 0 | Q31: 0 | R31: 0 | S31: 0 | T31: 0 | U31: 0 | V31: 0 | W31: 0 | X31: 0 | Y31: 0 | Z31: 0 | AA31: 0 | AB31: 0 | AC31: 0 | AD31: 0 | AE31: 0 | AF31: 0 | AG31: -1 | AH31: -1 | AI31: -1 | AJ31: 1 | AK31: 1 | AL31: 1 | AM31: 0 | AN31: 0 | AO31: 0
A32: 27 | B32: (reserved) | C32: 0 | D32: -1 | E32: -1 | F32: -1 | G32: 1 | H32: -1 | I32: 0 | J32: 0 | K32: 0 | L32: 0 | M32: 0 | N32: 0 | O32: 0 | P32: 0 | Q32: 0 | R32: 0 | S32: 0 | T32: 0 | U32: 0 | V32: 0 | W32: 0 | X32: 0 | Y32: 0 | Z32: 0 | AA32: 0 | AB32: 0 | AC32: 0 | AD32: 0 | AE32: 0 | AF32: 0 | AG32: -1 | AH32: -1 | AI32: -1 | AJ32: 1 | AK32: 1 | AL32: 1 | AM32: 0 | AN32: 0 | AO32: 0
A33: 28 | B33: (reserved) | C33: 0 | D33: -1 | E33: -1 | F33: -1 | G33: 1 | H33: -1 | I33: 50 | J33: 4 | K33: 3 | L33: 0 | M33: 0 | N33: 0 | O33: 0 | P33: 0 | Q33: 0 | R33: 0 | S33: 0 | T33: 0 | U33: 0 | V33: 0 | W33: 0 | X33: 0 | Y33: 0 | Z33: 0 | AA33: 0 | AB33: 0 | AC33: 0 | AD33: 0 | AE33: 0 | AF33: 0 | AG33: -1 | AH33: -1 | AI33: -1 | AJ33: 1 | AK33: 1 | AL33: 1 | AM33: 0 | AN33: 0 | AO33: 0
A34: 29 | B34: Barren Branches | C34: 0 | D34: -1 | E34: -1 | F34: -1 | G34: 1 | H34: -1 | I34: 20 | J34: 4 | K34: 0 | L34: 0.5 | M34: 0.4 | N34: 0.6 | O34: 0.6 | P34: 0.6 | Q34: 0.9 | R34: 5 | S34: 1 | T34: 0 | U34: 0 | V34: 0 | W34: 0 | X34: 0 | Y34: 0 | Z34: 0 | AA34: 0 | AB34: 0 | AC34: 0 | AD34: 0 | AE34: 0 | AF34: 0 | AG34: -1 | AH34: -1 | AI34: -1 | AJ34: 1 | AK34: 1 | AL34: 1 | AM34: 0 | AN34: 0 | AO34: 0
A35: 30 | B35: Foliage Branches | C35: 0 | D35: -1 | E35: -1 | F35: -1 | G35: 1 | H35: -1 | I35: 40 | J35: 4 | K35: 0 | L35: 0.5 | M35: 0.4 | N35: 0.6 | O35: 0.6 | P35: 0.6 | Q35: 0.9 | R35: 5 | S35: 1 | T35: 0 | U35: 0 | V35: 0 | W35: 0 | X35: 0 | Y35: 0 | Z35: 0 | AA35: 0 | AB35: 0 | AC35: 0 | AD35: 0 | AE35: 0 | AF35: 0 | AG35: -1 | AH35: -1 | AI35: -1 | AJ35: 1 | AK35: 1 | AL35: 1 | AM35: 0 | AN35: 0 | AO35: 0
A36: 31 | B36: Door | C36: 0 | D36: -1 | E36: -1 | F36: -1 | G36: 1 | H36: -1 | I36: 50 | J36: 1 | K36: 0 | L36: 0 | M36: 0 | N36: 0 | O36: 0 | P36: 0 | Q36: 0.6 | R36: 0 | S36: 0 | T36: 0 | U36: 0 | V36: 0 | W36: 0 | X36: 1 | Y36: 0 | Z36: 1 | AA36: 0 | AB36: 0 | AC36: 0 | AD36: 0 | AE36: 0 | AF36: 0 | AG36: -1 | AH36: -1 | AI36: -1 | AJ36: 1 | AK36: 1 | AL36: 1 | AM36: 0 | AN36: 0 | AO36: 0
A37: 32 | B37: Window | C37: 0 | D37: -1 | E37: -1 | F37: -1 | G37: 1 | H37: -1 | I37: 20 | J37: 2 | K37: 0 | L37: 0 | M37: 0 | N37: 0 | O37: 0 | P37: 0 | Q37: 0.3 | R37: 0 | S37: 0 | T37: 0 | U37: 0 | V37: 0 | W37: 0 | X37: 1 | Y37: 0 | Z37: 1 | AA37: 0 | AB37: 0 | AC37: 0 | AD37: 0 | AE37: 0 | AF37: 0 | AG37: -1 | AH37: -1 | AI37: -1 | AJ37: 1 | AK37: 1 | AL37: 1 | AM37: 0 | AN37: 0 | AO37: 0
A38: 33 | B38: Stone Wall | C38: 3 | D38: 1 | E38: -1 | F38: -1 | G38: 0.2 | H38: -1 | I38: 30 | J38: 2 | K38: 12 | L38: 0 | M38: 0 | N38: 0 | O38: 0 | P38: 0.3 | Q38: 0.1 | R38: 10 | S38: 5 | T38: 1 | U38: 1 | V38: 1 | W38: 0 | X38: 0 | Y38: 0 | Z38: 0 | AA38: 0 | AB38: 0 | AC38: 1 | AD38: 600 | AE38: 0 | AF38: 3 | AG38: 59 | AH38: 59 | AI38: -1 | AJ38: 1 | AK38: 1 | AL38: 1 | AM38: 0 | AN38: 0 | AO38: 1 | AP38: 2 | AQ38: Stone Fence 01
A39: 34 | B39: Wood Fence | C39: 3 | D39: 2 | E39: -1 | F39: -1 | G39: 0.2 | H39: -1 | I39: 20 | J39: 2 | K39: 3 | L39: 0 | M39: 0 | N39: 0.2 | O39: 0.2 | P39: 0.4 | Q39: 0.1 | R39: 5 | S39: 1 | T39: 0 | U39: 0 | V39: 1 | W39: 0 | X39: 0 | Y39: 0 | Z39: 0 | AA39: 0 | AB39: 0 | AC39: 1 | AD39: 200 | AE39: 0 | AF39: 3 | AG39: 58 | AH39: 58 | AI39: -1 | AJ39: 1 | AK39: 1 | AL39: 1 | AM39: 0 | AN39: 0 | AO39: 1 | AP39: 2 | AQ39: woodFence
A40: 35 | B40: Small Building | C40: 4 | D40: 3 | E40: 1 | F40: -1 | G40: 0.2 | H40: -1 | I40: 50 | J40: 4 | K40: 6 | L40: 0 | M40: 0 | N40: 0 | O40: 0 | P40: 0 | Q40: 0.6 | R40: 0 | S40: 0 | T40: 1 | U40: 1 | V40: 0 | W40: 0 | X40: 1 | Y40: 0 | Z40: 1 | AA40: 0 | AB40: 0 | AC40: 0 | AD40: 500 | AE40: 0 | AF40: 3 | AG40: 58 | AH40: 58 | AI40: -1 | AJ40: 1 | AK40: 1 | AL40: 1 | AM40: 0.025 | AN40: 1 | AO40: 1 | AP40: 2 | AQ40: Ital 1stry Bldg 01
A41: 36 | B41: Small Building | C41: 4 | D41: 4 | E41: 1 | F41: -1 | G41: 0.2 | H41: -1 | I41: 50 | J41: 4 | K41: 6 | L41: 0 | M41: 0 | N41: 0 | O41: 0 | P41: 0 | Q41: 0.6 | R41: 0 | S41: 0 | T41: 1 | U41: 1 | V41: 0 | W41: 0 | X41: 1 | Y41: 0 | Z41: 1 | AA41: 0 | AB41: 0 | AC41: 0 | AD41: 500 | AE41: 0 | AF41: 3 | AG41: 58 | AH41: 58 | AI41: -1 | AJ41: 1 | AK41: 1 | AL41: 1 | AM41: 0.025 | AN41: 1 | AO41: 2 | AP41: 2 | AQ41: Ital 1stry Bldg 01 | AR41: 0 | AS41: Ital_1stryBldg_text_02
A42: 37 | B42: Small Building | C42: 4 | D42: 5 | E42: 1 | F42: -1 | G42: 0.2 | H42: -1 | I42: 50 | J42: 4 | K42: 6 | L42: 0 | M42: 0 | N42: 0 | O42: 0 | P42: 0 | Q42: 0.6 | R42: 0 | S42: 0 | T42: 1 | U42: 1 | V42: 0 | W42: 0 | X42: 1 | Y42: 0 | Z42: 1 | AA42: 0 | AB42: 0 | AC42: 0 | AD42: 500 | AE42: 0 | AF42: 3 | AG42: 58 | AH42: 58 | AI42: -1 | AJ42: 1 | AK42: 1 | AL42: 1 | AM42: 0.025 | AN42: 1 | AO42: 2 | AP42: 2 | AQ42: Ital 1stry Bldg 01 | AR42: 0 | AS42: Ital_1stryBldg_text_03
A43: 38 | B43: Small Building | C43: 4 | D43: 6 | E43: 1 | F43: -1 | G43: 0.2 | H43: -1 | I43: 50 | J43: 4 | K43: 6 | L43: 0 | M43: 0 | N43: 0 | O43: 0 | P43: 0 | Q43: 0.6 | R43: 0 | S43: 0 | T43: 1 | U43: 1 | V43: 0 | W43: 0 | X43: 1 | Y43: 0 | Z43: 1 | AA43: 0 | AB43: 0 | AC43: 0 | AD43: 500 | AE43: 0 | AF43: 3 | AG43: 58 | AH43: 58 | AI43: -1 | AJ43: 1 | AK43: 1 | AL43: 1 | AM43: 0.025 | AN43: 1 | AO43: 2 | AP43: 2 | AQ43: Ital 1stry Bldg 01 | AR43: 0 | AS43: Ital_1stryBldg_text_04
A44: 39 | B44: Small Building | C44: 4 | D44: 7 | E44: 1 | F44: -1 | G44: 0.2 | H44: -1 | I44: 50 | J44: 4 | K44: 6 | L44: 0 | M44: 0 | N44: 0 | O44: 0 | P44: 0 | Q44: 0.6 | R44: 0 | S44: 0 | T44: 1 | U44: 1 | V44: 0 | W44: 0 | X44: 1 | Y44: 0 | Z44: 1 | AA44: 0 | AB44: 0 | AC44: 0 | AD44: 500 | AE44: 0 | AF44: 3 | AG44: 58 | AH44: 58 | AI44: -1 | AJ44: 1 | AK44: 1 | AL44: 1 | AM44: 0.025 | AN44: 1 | AO44: 1 | AP44: 2 | AQ44: Ital 1stry Bldg 02
A45: 40 | B45: Small Building | C45: 4 | D45: 8 | E45: 1 | F45: -1 | G45: 0.2 | H45: -1 | I45: 50 | J45: 4 | K45: 6 | L45: 0 | M45: 0 | N45: 0 | O45: 0 | P45: 0 | Q45: 0.6 | R45: 0 | S45: 0 | T45: 1 | U45: 1 | V45: 0 | W45: 0 | X45: 1 | Y45: 0 | Z45: 1 | AA45: 0 | AB45: 0 | AC45: 0 | AD45: 500 | AE45: 0 | AF45: 3 | AG45: 58 | AH45: 58 | AI45: -1 | AJ45: 1 | AK45: 1 | AL45: 1 | AM45: 0.025 | AN45: 1 | AO45: 2 | AP45: 2 | AQ45: Ital 1stry Bldg 02 | AR45: 0 | AS45: Ital_1stryBldg02_text_02
A46: 41 | B46: Small Building | C46: 4 | D46: 9 | E46: 1 | F46: -1 | G46: 0.2 | H46: -1 | I46: 50 | J46: 4 | K46: 6 | L46: 0 | M46: 0 | N46: 0 | O46: 0 | P46: 0 | Q46: 0.6 | R46: 0 | S46: 0 | T46: 1 | U46: 1 | V46: 0 | W46: 0 | X46: 1 | Y46: 0 | Z46: 1 | AA46: 0 | AB46: 0 | AC46: 0 | AD46: 500 | AE46: 0 | AF46: 3 | AG46: 58 | AH46: 58 | AI46: -1 | AJ46: 1 | AK46: 1 | AL46: 1 | AM46: 0.025 | AN46: 1 | AO46: 2 | AP46: 2 | AQ46: Ital 1stry Bldg 02 | AR46: 0 | AS46: Ital_1stryBldg02_text_03
A47: 42 | B47: Small Building | C47: 4 | D47: 10 | E47: 1 | F47: -1 | G47: 0.2 | H47: -1 | I47: 50 | J47: 4 | K47: 6 | L47: 0 | M47: 0 | N47: 0 | O47: 0 | P47: 0 | Q47: 0.6 | R47: 0 | S47: 0 | T47: 1 | U47: 1 | V47: 0 | W47: 0 | X47: 1 | Y47: 0 | Z47: 1 | AA47: 0 | AB47: 0 | AC47: 0 | AD47: 500 | AE47: 0 | AF47: 3 | AG47: 58 | AH47: 58 | AI47: -1 | AJ47: 1 | AK47: 1 | AL47: 1 | AM47: 0.025 | AN47: 1 | AO47: 2 | AP47: 2 | AQ47: Ital 1stry Bldg 02 | AR47: 0 | AS47: Ital_1stryBldg02_text_04
A48: 43 | B48: Small Building | C48: 4 | D48: 11 | E48: 1 | F48: -1 | G48: 0.2 | H48: -1 | I48: 50 | J48: 4 | K48: 6 | L48: 0 | M48: 0 | N48: 0 | O48: 0 | P48: 0 | Q48: 0.6 | R48: 0 | S48: 0 | T48: 1 | U48: 1 | V48: 0 | W48: 0 | X48: 1 | Y48: 0 | Z48: 1 | AA48: 0 | AB48: 0 | AC48: 0 | AD48: 500 | AE48: 0 | AF48: 3 | AG48: 58 | AH48: 58 | AI48: -1 | AJ48: 1 | AK48: 1 | AL48: 1 | AM48: 0.025 | AN48: 1 | AO48: 1 | AP48: 2 | AQ48: Ital 1stry Bldg 03
A49: 44 | B49: Small Building | C49: 4 | D49: 12 | E49: 1 | F49: -1 | G49: 0.2 | H49: -1 | I49: 50 | J49: 4 | K49: 6 | L49: 0 | M49: 0 | N49: 0 | O49: 0 | P49: 0 | Q49: 0.6 | R49: 0 | S49: 0 | T49: 1 | U49: 1 | V49: 0 | W49: 0 | X49: 1 | Y49: 0 | Z49: 1 | AA49: 0 | AB49: 0 | AC49: 0 | AD49: 500 | AE49: 0 | AF49: 3 | AG49: 58 | AH49: 58 | AI49: -1 | AJ49: 1 | AK49: 1 | AL49: 1 | AM49: 0.025 | AN49: 1 | AO49: 2 | AP49: 2 | AQ49: Ital 1stry Bldg 03 | AR49: 0 | AS49: Ital_1stryBldg03_text_02
A50: 45 | B50: Small Building | C50: 4 | D50: 13 | E50: 1 | F50: -1 | G50: 0.2 | H50: -1 | I50: 50 | J50: 4 | K50: 6 | L50: 0 | M50: 0 | N50: 0 | O50: 0 | P50: 0 | Q50: 0.6 | R50: 0 | S50: 0 | T50: 1 | U50: 1 | V50: 0 | W50: 0 | X50: 1 | Y50: 0 | Z50: 1 | AA50: 0 | AB50: 0 | AC50: 0 | AD50: 500 | AE50: 0 | AF50: 3 | AG50: 58 | AH50: 58 | AI50: -1 | AJ50: 1 | AK50: 1 | AL50: 1 | AM50: 0.025 | AN50: 1 | AO50: 2 | AP50: 2 | AQ50: Ital 1stry Bldg 03 | AR50: 0 | AS50: Ital_1stryBldg03_text_03
A51: 46 | B51: Small Building | C51: 4 | D51: 14 | E51: 1 | F51: -1 | G51: 0.2 | H51: -1 | I51: 50 | J51: 4 | K51: 6 | L51: 0 | M51: 0 | N51: 0 | O51: 0 | P51: 0 | Q51: 0.6 | R51: 0 | S51: 0 | T51: 1 | U51: 1 | V51: 0 | W51: 0 | X51: 1 | Y51: 0 | Z51: 1 | AA51: 0 | AB51: 0 | AC51: 0 | AD51: 500 | AE51: 0 | AF51: 3 | AG51: 58 | AH51: 58 | AI51: -1 | AJ51: 1 | AK51: 1 | AL51: 1 | AM51: 0.025 | AN51: 1 | AO51: 2 | AP51: 2 | AQ51: Ital 1stry Bldg 03 | AR51: 0 | AS51: Ital_1stryBldg03_text_04
A52: 47 | B52: Bush | C52: 2 | D52: 15 | E52: -1 | F52: -1 | G52: 0.6 | H52: -1 | I52: 30 | J52: 2 | K52: 0 | L52: 0.4 | M52: 0.3 | N52: 0.4 | O52: 0.4 | P52: 0.5 | Q52: 0.5 | R52: 0 | S52: 0 | T52: 0 | U52: 0 | V52: 0 | W52: 0 | X52: 0 | Y52: 0 | Z52: 0 | AA52: 0 | AB52: 0 | AC52: 0 | AD52: 0 | AE52: 0 | AF52: 0 | AG52: -1 | AH52: -1 | AI52: -1 | AJ52: 1 | AK52: 0.5 | AL52: 1 | AM52: 0.9 | AN52: 1 | AO52: 3 | AP52: 2 | AQ52: bush_000 | AR52: 2 | AS52: bush_001 | AT52: 2 | AU52: bush_002
A53: 48 | B53: Low Grass | C53: 2 | D53: 16 | E53: -1 | F53: -1 | G53: 0.6 | H53: -1 | I53: 10 | J53: 1 | K53: 0 | L53: 0.5 | M53: 0.4 | N53: 0.5 | O53: 0.5 | P53: 0.6 | Q53: 0.8 | R53: 0 | S53: 0 | T53: 0 | U53: 0 | V53: 0 | W53: 0 | X53: 0 | Y53: 0 | Z53: 0 | AA53: 0 | AB53: 0 | AC53: 0 | AD53: 0 | AE53: 0 | AF53: 0 | AG53: -1 | AH53: -1 | AI53: -1 | AJ53: 1 | AK53: 0.25 | AL53: 1 | AM53: 0.9 | AN53: 1 | AO53: 6 | AP53: 2 | AQ53: Grass_000 | AR53: 2 | AS53: Grass_001 | AT53: 2 | AU53: Grass_002 | AV53: 2 | AW53: Dry_grass_000 | AX53: 2 | AY53: Dry_grass_001 | AZ53: 2 | BA53: Dry_grass_002
A54: 49 | B54: Medium Grass | C54: 2 | D54: 17 | E54: -1 | F54: -1 | G54: 0.6 | H54: -1 | I54: 30 | J54: 1 | K54: 0 | L54: 0.4 | M54: 0.4 | N54: 0.5 | O54: 0.5 | P54: 0.6 | Q54: 0.8 | R54: 0 | S54: 0 | T54: 0 | U54: 0 | V54: 0 | W54: 0 | X54: 0 | Y54: 0 | Z54: 0 | AA54: 0 | AB54: 0 | AC54: 0 | AD54: 0 | AE54: 0 | AF54: 0 | AG54: -1 | AH54: -1 | AI54: -1 | AJ54: 1 | AK54: 0.5 | AL54: 1 | AM54: 0.9 | AN54: 1 | AO54: 6 | AP54: 2 | AQ54: Grass_000 | AR54: 2 | AS54: Grass_001 | AT54: 2 | AU54: Grass_002 | AV54: 2 | AW54: Dry_grass_000 | AX54: 2 | AY54: Dry_grass_001 | AZ54: 2 | BA54: Dry_grass_002
A55: 50 | B55: High Grass | C55: 2 | D55: 18 | E55: -1 | F55: -1 | G55: 0.6 | H55: -1 | I55: 50 | J55: 1 | K55: 0 | L55: 0.3 | M55: 0.3 | N55: 0.4 | O55: 0.5 | P55: 0.6 | Q55: 0.7 | R55: 0 | S55: 0 | T55: 0 | U55: 0 | V55: 0 | W55: 0 | X55: 0 | Y55: 0 | Z55: 0 | AA55: 0 | AB55: 0 | AC55: 0 | AD55: 0 | AE55: 0 | AF55: 0 | AG55: -1 | AH55: -1 | AI55: -1 | AJ55: 1 | AK55: 1 | AL55: 1 | AM55: 0.9 | AN55: 1 | AO55: 6 | AP55: 2 | AQ55: Grass_000 | AR55: 2 | AS55: Grass_001 | AT55: 2 | AU55: Grass_002 | AV55: 2 | AW55: Dry_grass_000 | AX55: 2 | AY55: Dry_grass_001 | AZ55: 2 | BA55: Dry_grass_002
A56: 51 | B56: Grass Cluster | C56: 2 | D56: 19 | E56: -1 | F56: -1 | G56: 0.6 | H56: -1 | I56: 50 | J56: 1 | K56: 0 | L56: 0.3 | M56: 0.3 | N56: 0.5 | O56: 0.5 | P56: 0.6 | Q56: 0.7 | R56: 0 | S56: 0 | T56: 0 | U56: 0 | V56: 0 | W56: 0 | X56: 0 | Y56: 0 | Z56: 0 | AA56: 0 | AB56: 0 | AC56: 0 | AD56: 0 | AE56: 0 | AF56: 0 | AG56: -1 | AH56: -1 | AI56: -1 | AJ56: 1 | AK56: 1 | AL56: 1 | AM56: 0.9 | AN56: 1 | AO56: 6 | AP56: 2 | AQ56: Grass_000 | AR56: 2 | AS56: Grass_001 | AT56: 2 | AU56: Grass_002 | AV56: 2 | AW56: Dry_grass_000 | AX56: 2 | AY56: Dry_grass_001 | AZ56: 2 | BA56: Dry_grass_002
A57: 52 | B57: Small Rocks | C57: 2 | D57: 20 | E57: -1 | F57: -1 | G57: 0.6 | H57: -1 | I57: 0 | J57: 1 | K57: 1 | L57: 0.2 | M57: 0.2 | N57: 0.3 | O57: 0.3 | P57: 0.3 | Q57: 0.8 | R57: 0 | S57: 0 | T57: 0 | U57: 0 | V57: 0 | W57: 0 | X57: 0 | Y57: 0 | Z57: 0 | AA57: 0 | AB57: 0 | AC57: 1 | AD57: 0 | AE57: 0 | AF57: 0 | AG57: -1 | AH57: -1 | AI57: -1 | AJ57: 1 | AK57: 1 | AL57: 1 | AM57: 0.1 | AN57: 1 | AO57: 1 | AP57: 2 | AQ57: rocks_sm
A58: 53 | B58: Medium Rocks | C58: 2 | D58: 21 | E58: -1 | F58: -1 | G58: 0.6 | H58: -1 | I58: 10 | J58: 1 | K58: 3 | L58: 0.2 | M58: 0.1 | N58: 0.3 | O58: 0.3 | P58: 0.3 | Q58: 0.7 | R58: 0 | S58: 0 | T58: 0 | U58: 0 | V58: 0 | W58: 0 | X58: 0 | Y58: 0 | Z58: 0 | AA58: 0 | AB58: 0 | AC58: 1 | AD58: 0 | AE58: 0 | AF58: 0 | AG58: -1 | AH58: -1 | AI58: -1 | AJ58: 1 | AK58: 1 | AL58: 1 | AM58: 0.1 | AN58: 1 | AO58: 1 | AP58: 2 | AQ58: rocks_med
A59: 54 | B59: Large Rocks | C59: 2 | D59: 22 | E59: -1 | F59: -1 | G59: 0.6 | H59: -1 | I59: 20 | J59: 1 | K59: 10 | L59: 0 | M59: 0 | N59: 0.2 | O59: 0.2 | P59: 0.2 | Q59: 0.6 | R59: 0 | S59: 0 | T59: 0 | U59: 0 | V59: 0 | W59: 0 | X59: 0 | Y59: 0 | Z59: 0 | AA59: 0 | AB59: 0 | AC59: 1 | AD59: 0 | AE59: 0 | AF59: 0 | AG59: -1 | AH59: -1 | AI59: -1 | AJ59: 1 | AK59: 1 | AL59: 1 | AM59: 0.1 | AN59: 1 | AO59: 1 | AP59: 2 | AQ59: rocks_lg
A60: 55 | B60: Cart | C60: 1 | D60: 23 | E60: -1 | F60: -1 | G60: 0.33 | H60: -1 | I60: 30 | J60: 2 | K60: 1 | L60: 0 | M60: 0 | N60: 0 | O60: 0 | P60: 0 | Q60: 0 | R60: 0 | S60: 0 | T60: 0 | U60: 0 | V60: 0 | W60: 0 | X60: 0 | Y60: 0 | Z60: 0 | AA60: 0 | AB60: 0 | AC60: 0 | AD60: 0 | AE60: 0 | AF60: 3 | AG60: 58 | AH60: 58 | AI60: -1 | AJ60: 1 | AK60: 1 | AL60: 1 | AM60: 0.1 | AN60: 0 | AO60: 1 | AP60: 2 | AQ60: cart01
A61: 56 | B61: Crate | C61: 1 | D61: 24 | E61: -1 | F61: -1 | G61: 0.33 | H61: -1 | I61: 20 | J61: 2 | K61: 2 | L61: 0 | M61: 0 | N61: 0 | O61: 0 | P61: 0 | Q61: 0 | R61: 0 | S61: 0 | T61: 0 | U61: 0 | V61: 0 | W61: 0 | X61: 0 | Y61: 0 | Z61: 0 | AA61: 0 | AB61: 0 | AC61: 0 | AD61: 0 | AE61: 0 | AF61: 3 | AG61: 58 | AH61: 58 | AI61: -1 | AJ61: 1 | AK61: 1 | AL61: 1 | AM61: 0.1 | AN61: 0 | AO61: 1 | AP61: 2 | AQ61: crate01
A62: 57 | B62: Wagon | C62: 1 | D62: 25 | E62: -1 | F62: -1 | G62: 0.33 | H62: -1 | I62: 30 | J62: 2 | K62: 3 | L62: 0 | M62: 0 | N62: 0 | O62: 0 | P62: 0 | Q62: 0 | R62: 0 | S62: 0 | T62: 1 | U62: 1 | V62: 0 | W62: 0 | X62: 0 | Y62: 0 | Z62: 0 | AA62: 0 | AB62: 0 | AC62: 0 | AD62: 0 | AE62: 0 | AF62: 3 | AG62: 58 | AH62: 58 | AI62: -1 | AJ62: 1 | AK62: 1 | AL62: 1 | AM62: 0.1 | AN62: 0 | AO62: 1 | AP62: 2 | AQ62: horse wagon
A63: 58 | B63: Wood Rubble | C63: 1 | D63: 26 | E63: -1 | F63: -1 | G63: 0.33 | H63: -1 | I63: 50 | J63: 2 | K63: 3 | L63: 0 | M63: 0 | N63: 0.2 | O63: 0.2 | P63: 0.3 | Q63: 0.6 | R63: 0 | S63: 0 | T63: 1 | U63: 1 | V63: 0 | W63: 0 | X63: 0 | Y63: 0 | Z63: 0 | AA63: 0 | AB63: 0 | AC63: 1 | AD63: 0 | AE63: 0 | AF63: 0 | AG63: -1 | AH63: -1 | AI63: -1 | AJ63: 1 | AK63: 1 | AL63: 1 | AM63: 0.1 | AN63: 1 | AO63: 1 | AP63: 2 | AQ63: wood rubble
A64: 59 | B64: Stone Rubble | C64: 1 | D64: 27 | E64: -1 | F64: -1 | G64: 0.33 | H64: -1 | I64: 50 | J64: 2 | K64: 12 | L64: 0 | M64: 0 | N64: 0 | O64: 0 | P64: 0.2 | Q64: 0.5 | R64: 0 | S64: 0 | T64: 1 | U64: 1 | V64: 0 | W64: 0 | X64: 0 | Y64: 0 | Z64: 0 | AA64: 0 | AB64: 0 | AC64: 1 | AD64: 0 | AE64: 0 | AF64: 0 | AG64: -1 | AH64: -1 | AI64: -1 | AJ64: 1 | AK64: 1 | AL64: 1 | AM64: 0.1 | AN64: 1 | AO64: 1 | AP64: 2 | AQ64: stone rubble
A65: 60 | B65: Crater | C65: 9 | D65: 28 | E65: -1 | F65: -1 | G65: 1 | H65: -1 | I65: 50 | J65: 1 | K65: 12 | L65: 0.3 | M65: 0.2 | N65: 0.3 | O65: 0.4 | P65: 0.5 | Q65: 0.5 | R65: 5 | S65: 1 | T65: 0 | U65: 0 | V65: 0 | W65: 1 | X65: 0 | Y65: 0 | Z65: 0 | AA65: 0 | AB65: 0 | AC65: 1 | AD65: 0 | AE65: 0 | AF65: 0 | AG65: -1 | AH65: -1 | AI65: -1 | AJ65: 1 | AK65: 1 | AL65: 1 | AM65: 0.9 | AN65: 1 | AO65: 1 | AP65: 2 | AQ65: CraterMesh
A66: 61 | B66: Barbed Wire | C66: 3 | D66: 30 | E66: 2 | F66: -1 | G66: 0.2 | H66: -1 | I66: 10 | J66: 2 | K66: 0 | L66: 0 | M66: 0 | N66: 0 | O66: 0 | P66: 0.3 | Q66: 0.1 | R66: 0 | S66: 0 | T66: 0 | U66: 0 | V66: 1 | W66: 0 | X66: 0 | Y66: 0 | Z66: 0 | AA66: 0 | AB66: 0 | AC66: 0 | AD66: 0 | AE66: 0 | AF66: 0 | AG66: -1 | AH66: -1 | AI66: -1 | AJ66: 1 | AK66: 1 | AL66: 1 | AM66: 0 | AN66: 1 | AO66: 1 | AP66: 2 | AQ66: Barb Wire Fence 02
A67: 62 | B67: Barbed Wire Fence | C67: 3 | D67: 31 | E67: -1 | F67: -1 | G67: 0.2 | H67: -1 | I67: 10 | J67: 2 | K67: 0 | L67: 0 | M67: 0 | N67: 0 | O67: 0 | P67: 0.3 | Q67: 0.2 | R67: 0 | S67: 0 | T67: 0 | U67: 0 | V67: 1 | W67: 0 | X67: 0 | Y67: 0 | Z67: 0 | AA67: 0 | AB67: 0 | AC67: 0 | AD67: 0 | AE67: 0 | AF67: 3 | AG67: 58 | AH67: 58 | AI67: -1 | AJ67: 1 | AK67: 1 | AL67: 1 | AM67: 0 | AN67: 1 | AO67: 1 | AP67: 2 | AQ67: Barb Wire Fence 01
A68: 63 | B68: MG Bunker | C68: 4 | D68: 32 | E68: 2 | F68: -1 | G68: 0.2 | H68: -1 | I68: 50 | J68: 4 | K68: 400 | L68: 0 | M68: 0 | N68: 0 | O68: 0 | P68: 0 | Q68: 0.6 | R68: 0 | S68: 0 | T68: 1 | U68: 1 | V68: 0 | W68: 0 | X68: 0 | Y68: 0 | Z68: 0 | AA68: 0 | AB68: 0 | AC68: 0 | AD68: 0 | AE68: 0 | AF68: 0 | AG68: -1 | AH68: -1 | AI68: -1 | AJ68: 1 | AK68: 1 | AL68: 1 | AM68: 0 | AN68: 1 | AO68: 1 | AP68: 2 | AQ68: large MG bunker 01
A69: 64 | B69: AT Bunker | C69: 4 | D69: 33 | E69: 2 | F69: -1 | G69: 0.2 | H69: -1 | I69: 50 | J69: 4 | K69: 400 | L69: 0.9 | M69: 0 | N69: 0 | O69: 0 | P69: 0 | Q69: 0.6 | R69: 0 | S69: 0 | T69: 1 | U69: 1 | V69: 0 | W69: 0 | X69: 0 | Y69: 0 | Z69: 0 | AA69: 0 | AB69: 0 | AC69: 0 | AD69: 0 | AE69: 0 | AF69: 0 | AG69: -1 | AH69: -1 | AI69: -1 | AJ69: 1 | AK69: 1 | AL69: 1 | AM69: 0 | AN69: 0 | AO69: 1 | AP69: 2 | AQ69: LG AT bunker 01
A70: 65 | B70: Gravestone | C70: 1 | D70: 34 | E70: -1 | F70: -1 | G70: 0.33 | H70: -1 | I70: 20 | J70: 2 | K70: 16 | L70: 0 | M70: 0 | N70: 0 | O70: 0 | P70: 0 | Q70: 0 | R70: 0 | S70: 0 | T70: 1 | U70: 1 | V70: 0 | W70: 0 | X70: 0 | Y70: 0 | Z70: 0 | AA70: 0 | AB70: 0 | AC70: 0 | AD70: 0 | AE70: 0 | AF70: 3 | AG70: 59 | AH70: 59 | AI70: -1 | AJ70: 1 | AK70: 1 | AL70: 1 | AM70: 0.1 | AN70: 0 | AO70: 1 | AP70: 2 | AQ70: grave marker 01
A71: 66 | B71: Barren Tree | C71: 5 | D71: 35 | E71: -1 | F71: -1 | G71: 0.5 | H71: 29 | I71: 20 | J71: 4 | K71: 8 | L71: 0 | M71: 0 | N71: 0 | O71: 0 | P71: 0 | Q71: 0 | R71: 0 | S71: 0 | T71: 0 | U71: 0 | V71: 0 | W71: 0 | X71: 0 | Y71: 0 | Z71: 0 | AA71: 0 | AB71: 0 | AC71: 0 | AD71: 0 | AE71: 0 | AF71: 0 | AG71: -1 | AH71: -1 | AI71: -1 | AJ71: 1 | AK71: 1 | AL71: 1 | AM71: 0.9 | AN71: 1 | AO71: 1 | AP71: 2 | AQ71: small_tree001
A72: 67 | B72: Sandbag Wall | C72: 3 | D72: 36 | E72: 2 | F72: -1 | G72: 0.33 | H72: -1 | I72: 50 | J72: 2 | K72: 12 | L72: 0 | M72: 0 | N72: 0 | O72: 0.3 | P72: 0.4 | Q72: 0.3 | R72: 0 | S72: 0 | T72: 1 | U72: 1 | V72: 1 | W72: 0 | X72: 0 | Y72: 0 | Z72: 0 | AA72: 0 | AB72: 0 | AC72: 0 | AD72: 0 | AE72: 0 | AF72: 0 | AG72: -1 | AH72: -1 | AI72: -1 | AJ72: 1 | AK72: 1 | AL72: 1 | AM72: 0 | AN72: 0 | AO72: 1 | AP72: 2 | AQ72: CA sandbags 01
A73: 68 | B73: Beach Obstacle | C73: 1 | D73: 37 | E73: 2 | F73: -1 | G73: 0.33 | H73: -1 | I73: 20 | J73: 2 | K73: 8 | L73: 0 | M73: 0 | N73: 0 | O73: 0 | P73: 0 | Q73: 0 | R73: 0 | S73: 0 | T73: 0 | U73: 0 | V73: 0 | W73: 0 | X73: 0 | Y73: 0 | Z73: 0 | AA73: 0 | AB73: 0 | AC73: 0 | AD73: 0 | AE73: 0 | AF73: 0 | AG73: -1 | AH73: -1 | AI73: -1 | AJ73: 1 | AK73: 1 | AL73: 1 | AM73: 0.1 | AN73: 0 | AO73: 1 | AP73: 2 | AQ73: CA hedgehog 01
A74: 69 | B74: Church | C74: 4 | D74: 38 | E74: 1 | F74: -1 | G74: 0.2 | H74: -1 | I74: 50 | J74: 4 | K74: 8 | L74: 0 | M74: 0 | N74: 0 | O74: 0 | P74: 0 | Q74: 0.6 | R74: 0 | S74: 0 | T74: 1 | U74: 1 | V74: 0 | W74: 0 | X74: 0 | Y74: 0 | Z74: 0 | AA74: 0 | AB74: 0 | AC74: 0 | AD74: 0 | AE74: 0 | AF74: 3 | AG74: 59 | AH74: 59 | AI74: -1 | AJ74: 1 | AK74: 1 | AL74: 1 | AM74: 0.025 | AN74: 1 | AO74: 1 | AP74: 2 | AQ74: Ital 1stry church 01
A75: 70 | B75: Oak Tree | C75: 5 | D75: 39 | E75: -1 | F75: -1 | G75: 0.5 | H75: 30 | I75: 30 | J75: 4 | K75: 8 | L75: 0 | M75: 0 | N75: 0 | O75: 0 | P75: 0 | Q75: 0 | R75: 0 | S75: 0 | T75: 0 | U75: 0 | V75: 0 | W75: 0 | X75: 0 | Y75: 0 | Z75: 0 | AA75: 0 | AB75: 0 | AC75: 0 | AD75: 0 | AE75: 0 | AF75: 0 | AG75: -1 | AH75: -1 | AI75: -1 | AJ75: 1 | AK75: 1 | AL75: 1 | AM75: 0.9 | AN75: 1 | AO75: 3 | AP75: 2 | AQ75: oak_tree_000 | AR75: 2 | AS75: oak_tree_001 | AT75: 2 | AU75: oak_tree_002
A76: 71 | B76: Elm Tree | C76: 5 | D76: 40 | E76: -1 | F76: -1 | G76: 0.5 | H76: 30 | I76: 30 | J76: 4 | K76: 8 | L76: 0 | M76: 0 | N76: 0 | O76: 0 | P76: 0 | Q76: 0 | R76: 0 | S76: 0 | T76: 0 | U76: 0 | V76: 0 | W76: 0 | X76: 0 | Y76: 0 | Z76: 0 | AA76: 0 | AB76: 0 | AC76: 0 | AD76: 0 | AE76: 0 | AF76: 0 | AG76: -1 | AH76: -1 | AI76: -1 | AJ76: 1 | AK76: 1 | AL76: 1 | AM76: 0.9 | AN76: 1 | AO76: 3 | AP76: 2 | AQ76: elm_tree_000 | AR76: 2 | AS76: elm_tree_001 | AT76: 2 | AU76: elm_tree_002
A77: 72 | B77: Narrow Tree | C77: 5 | D77: 41 | E77: -1 | F77: -1 | G77: 0.5 | H77: 30 | I77: 30 | J77: 4 | K77: 8 | L77: 0 | M77: 0 | N77: 0 | O77: 0 | P77: 0 | Q77: 0 | R77: 0 | S77: 0 | T77: 0 | U77: 0 | V77: 0 | W77: 0 | X77: 0 | Y77: 0 | Z77: 0 | AA77: 0 | AB77: 0 | AC77: 0 | AD77: 0 | AE77: 0 | AF77: 0 | AG77: -1 | AH77: -1 | AI77: -1 | AJ77: 1 | AK77: 1 | AL77: 1 | AM77: 0.9 | AN77: 1 | AO77: 3 | AP77: 2 | AQ77: small_tree000 | AR77: 2 | AS77: small_tree001 | AT77: 2 | AU77: small_tree002
A78: 73 | B78: Medium Tree | C78: 5 | D78: 42 | E78: -1 | F78: -1 | G78: 0.5 | H78: 30 | I78: 30 | J78: 4 | K78: 8 | L78: 0 | M78: 0 | N78: 0 | O78: 0 | P78: 0 | Q78: 0 | R78: 0 | S78: 0 | T78: 0 | U78: 0 | V78: 0 | W78: 0 | X78: 0 | Y78: 0 | Z78: 0 | AA78: 0 | AB78: 0 | AC78: 0 | AD78: 0 | AE78: 0 | AF78: 0 | AG78: -1 | AH78: -1 | AI78: -1 | AJ78: 1 | AK78: 1 | AL78: 1 | AM78: 0.9 | AN78: 1 | AO78: 3 | AP78: 2 | AQ78: medium_tree_000 | AR78: 2 | AS78: medium_tree_001 | AT78: 2 | AU78: medium_tree_002
A79: 74 | B79: Orchard Tree | C79: 5 | D79: 43 | E79: -1 | F79: -1 | G79: 0.5 | H79: 30 | I79: 30 | J79: 4 | K79: 8 | L79: 0 | M79: 0 | N79: 0 | O79: 0 | P79: 0 | Q79: 0 | R79: 0 | S79: 0 | T79: 0 | U79: 0 | V79: 0 | W79: 0 | X79: 0 | Y79: 0 | Z79: 0 | AA79: 0 | AB79: 0 | AC79: 0 | AD79: 0 | AE79: 0 | AF79: 0 | AG79: -1 | AH79: -1 | AI79: -1 | AJ79: 1 | AK79: 1 | AL79: 1 | AM79: 0.9 | AN79: 1 | AO79: 5 | AP79: 2 | AQ79: olivetree_000 | AR79: 2 | AS79: olivetree_001 | AT79: 2 | AU79: olivetree_002 | AV79: 2 | AW79: olivetree_003 | AX79: 2 | AY79: olivetree_004
A80: 75 | B80: Pine Tree | C80: 5 | D80: 44 | E80: -1 | F80: -1 | G80: 0.5 | H80: 30 | I80: 30 | J80: 4 | K80: 8 | L80: 0 | M80: 0 | N80: 0 | O80: 0 | P80: 0 | Q80: 0 | R80: 0 | S80: 0 | T80: 0 | U80: 0 | V80: 0 | W80: 0 | X80: 0 | Y80: 0 | Z80: 0 | AA80: 0 | AB80: 0 | AC80: 0 | AD80: 0 | AE80: 0 | AF80: 0 | AG80: -1 | AH80: -1 | AI80: -1 | AJ80: 1 | AK80: 1 | AL80: 1 | AM80: 0.9 | AN80: 1 | AO80: 2 | AP80: 2 | AQ80: pine_tree_2_000 | AR80: 2 | AS80: pine_tree_2_001
A81: 76 | B81: Tall Pine | C81: 5 | D81: 45 | E81: -1 | F81: -1 | G81: 0.5 | H81: 30 | I81: 30 | J81: 4 | K81: 8 | L81: 0 | M81: 0 | N81: 0 | O81: 0 | P81: 0 | Q81: 0 | R81: 0 | S81: 0 | T81: 0 | U81: 0 | V81: 0 | W81: 0 | X81: 0 | Y81: 0 | Z81: 0 | AA81: 0 | AB81: 0 | AC81: 0 | AD81: 0 | AE81: 0 | AF81: 0 | AG81: -1 | AH81: -1 | AI81: -1 | AJ81: 1 | AK81: 1 | AL81: 1 | AM81: 0.9 | AN81: 1 | AO81: 3 | AP81: 2 | AQ81: pine_tree_tall_000 | AR81: 2 | AS81: pine_tree_tall_001 | AT81: 2 | AU81: pine_tree_tall_002
A82: 77 | B82: Palm Tree | C82: 5 | D82: 46 | E82: -1 | F82: -1 | G82: 0.5 | H82: 30 | I82: 30 | J82: 4 | K82: 8 | L82: 0 | M82: 0 | N82: 0 | O82: 0 | P82: 0 | Q82: 0 | R82: 0 | S82: 0 | T82: 0 | U82: 0 | V82: 0 | W82: 0 | X82: 0 | Y82: 0 | Z82: 0 | AA82: 0 | AB82: 0 | AC82: 0 | AD82: 0 | AE82: 0 | AF82: 0 | AG82: -1 | AH82: -1 | AI82: -1 | AJ82: 1 | AK82: 1 | AL82: 1 | AM82: 0.9 | AN82: 1 | AO82: 6 | AP82: 2 | AQ82: palm_tree_000 | AR82: 2 | AS82: palm_tree_001 | AT82: 2 | AU82: palm_tree_002 | AV82: 2 | AW82: palm_tree_2_000 | AX82: 2 | AY82: palm_tree_2_001 | AZ82: 2 | BA82: palm_tree_2_002
A83: 78 | B83: Palm Bush | C83: 5 | D83: 47 | E83: -1 | F83: -1 | G83: 0.5 | H83: 30 | I83: 30 | J83: 3 | K83: 8 | L83: 0 | M83: 0 | N83: 0 | O83: 0 | P83: 0 | Q83: 0 | R83: 0 | S83: 0 | T83: 0 | U83: 0 | V83: 0 | W83: 0 | X83: 0 | Y83: 0 | Z83: 0 | AA83: 0 | AB83: 0 | AC83: 0 | AD83: 0 | AE83: 0 | AF83: 0 | AG83: -1 | AH83: -1 | AI83: -1 | AJ83: 1 | AK83: 1 | AL83: 1 | AM83: 0.9 | AN83: 1 | AO83: 1 | AP83: 2 | AQ83: palm_tree_003
A84: 79 | B84: Low Gorse | C84: 2 | D84: 50 | E84: -1 | F84: -1 | G84: 0.6 | H84: -1 | I84: 10 | J84: 1 | K84: 0 | L84: 0.4 | M84: 0.3 | N84: 0.5 | O84: 0.5 | P84: 0.6 | Q84: 0.9 | R84: 0 | S84: 0 | T84: 0 | U84: 0 | V84: 0 | W84: 0 | X84: 0 | Y84: 0 | Z84: 0 | AA84: 0 | AB84: 0 | AC84: 0 | AD84: 0 | AE84: 0 | AF84: 0 | AG84: -1 | AH84: -1 | AI84: -1 | AJ84: 1 | AK84: 0.125 | AL84: 1 | AM84: 0.9 | AN84: 1 | AO84: 6 | AP84: 2 | AQ84: gorse_000 | AR84: 2 | AS84: gorse_001 | AT84: 2 | AU84: gorse_002 | AV84: 2 | AW84: dry_gorse_000 | AX84: 2 | AY84: dry_gorse_001 | AZ84: 2 | BA84: dry_gorse_002
A85: 80 | B85: Medium Gorse | C85: 2 | D85: 51 | E85: -1 | F85: -1 | G85: 0.6 | H85: -1 | I85: 20 | J85: 1 | K85: 0 | L85: 0.4 | M85: 0.3 | N85: 0.5 | O85: 0.5 | P85: 0.6 | Q85: 0.8 | R85: 0 | S85: 0 | T85: 0 | U85: 0 | V85: 0 | W85: 0 | X85: 0 | Y85: 0 | Z85: 0 | AA85: 0 | AB85: 0 | AC85: 0 | AD85: 0 | AE85: 0 | AF85: 0 | AG85: -1 | AH85: -1 | AI85: -1 | AJ85: 1 | AK85: 0.25 | AL85: 1 | AM85: 0.9 | AN85: 1 | AO85: 6 | AP85: 2 | AQ85: gorse_000 | AR85: 2 | AS85: gorse_001 | AT85: 2 | AU85: gorse_002 | AV85: 2 | AW85: dry_gorse_000 | AX85: 2 | AY85: dry_gorse_001 | AZ85: 2 | BA85: dry_gorse_002
A86: 81 | B86: High Gorse | C86: 2 | D86: 52 | E86: -1 | F86: -1 | G86: 0.6 | H86: -1 | I86: 30 | J86: 1 | K86: 0 | L86: 0.4 | M86: 0.3 | N86: 0.5 | O86: 0.5 | P86: 0.6 | Q86: 0.7 | R86: 0 | S86: 0 | T86: 0 | U86: 0 | V86: 0 | W86: 0 | X86: 0 | Y86: 0 | Z86: 0 | AA86: 0 | AB86: 0 | AC86: 0 | AD86: 0 | AE86: 0 | AF86: 0 | AG86: -1 | AH86: -1 | AI86: -1 | AJ86: 1 | AK86: 0.5 | AL86: 1 | AM86: 0.9 | AN86: 1 | AO86: 6 | AP86: 2 | AQ86: gorse_000 | AR86: 2 | AS86: gorse_001 | AT86: 2 | AU86: gorse_002 | AV86: 2 | AW86: dry_gorse_000 | AX86: 2 | AY86: dry_gorse_001 | AZ86: 2 | BA86: dry_gorse_002
A87: 82 | B87: Hedge | C87: 2 | D87: 53 | E87: -1 | F87: -1 | G87: 0.6 | H87: -1 | I87: 30 | J87: 2 | K87: 0 | L87: 0.4 | M87: 0.3 | N87: 0.5 | O87: 0.5 | P87: 0.6 | Q87: 0.5 | R87: 0 | S87: 0 | T87: 0 | U87: 0 | V87: 1 | W87: 0 | X87: 0 | Y87: 0 | Z87: 0 | AA87: 0 | AB87: 0 | AC87: 0 | AD87: 0 | AE87: 0 | AF87: 0 | AG87: -1 | AH87: -1 | AI87: -1 | AJ87: 1 | AK87: 1 | AL87: 1 | AM87: 0.9 | AN87: 1 | AO87: 3 | AP87: 2 | AQ87: hedge_000 | AR87: 2 | AS87: hedge_001 | AT87: 2 | AU87: hedge_002
A88: 83 | B88: Bocage | C88: 2 | D88: 54 | E88: -1 | F88: -1 | G88: 0.6 | H88: -1 | I88: 50 | J88: 2 | K88: 3 | L88: 0 | M88: 0 | N88: 0 | O88: 0 | P88: 0 | Q88: 0.2 | R88: 0 | S88: 0 | T88: 0 | U88: 0 | V88: 1 | W88: 0 | X88: 0 | Y88: 0 | Z88: 0 | AA88: 0 | AB88: 0 | AC88: 0 | AD88: 0 | AE88: 0 | AF88: 0 | AG88: -1 | AH88: -1 | AI88: -1 | AJ88: 1 | AK88: 1 | AL88: 1 | AM88: 0.9 | AN88: 1 | AO88: 1 | AP88: 2 | AQ88: bocage_000
A89: 84 | B89: Awning | C89: 1 | D89: 56 | E89: -1 | F89: -1 | G89: 0.33 | H89: -1 | I89: 0 | J89: 0 | K89: 3 | L89: 0 | M89: 0 | N89: 0 | O89: 0 | P89: 0 | Q89: 0.6 | R89: 0 | S89: 0 | T89: 0 | U89: 0 | V89: 0 | W89: 0 | X89: 0 | Y89: 0 | Z89: 0 | AA89: 0 | AB89: 0 | AC89: 0 | AD89: 0 | AE89: 0 | AF89: 0 | AG89: -1 | AH89: -1 | AI89: -1 | AJ89: 1 | AK89: 1 | AL89: 1 | AM89: 0.1 | AN89: 0 | AO89: 5 | AP89: 2 | AQ89: Ital 1stry awning 01 | AR89: 2 | AS89: Ital 1stry awning 02 | AT89: 2 | AU89: Ital 1stry awning 03 | AV89: 2 | AW89: Ital 1stry awning 04 | AX89: 2 | AY89: Ital 1stry awning 05
A90: 85 | B90: Rough Stone Wall | C90: 3 | D90: 57 | E90: -1 | F90: -1 | G90: 0.33 | H90: -1 | I90: 30 | J90: 2 | K90: 12 | L90: 0 | M90: 0 | N90: 0 | O90: 0 | P90: 0.3 | Q90: 0.3 | R90: 0 | S90: 0 | T90: 1 | U90: 1 | V90: 1 | W90: 0 | X90: 0 | Y90: 0 | Z90: 0 | AA90: 0 | AB90: 0 | AC90: 0 | AD90: 0 | AE90: 0 | AF90: 3 | AG90: 59 | AH90: 59 | AI90: -1 | AJ90: 1 | AK90: 1 | AL90: 1 | AM90: 0 | AN90: 0 | AO90: 1 | AP90: 2 | AQ90: Stone Fence 02
A91: 86 | B91: Small Building | C91: 4 | D91: 58 | E91: 1 | F91: -1 | G91: 0.2 | H91: -1 | I91: 50 | J91: 4 | K91: 6 | L91: 0 | M91: 0 | N91: 0 | O91: 0 | P91: 0 | Q91: 0.6 | R91: 0 | S91: 0 | T91: 1 | U91: 1 | V91: 0 | W91: 0 | X91: 1 | Y91: 0 | Z91: 1 | AA91: 0 | AB91: 0 | AC91: 0 | AD91: 500 | AE91: 0 | AF91: 3 | AG91: 58 | AH91: 58 | AI91: -1 | AJ91: 1 | AK91: 1 | AL91: 1 | AM91: 0.025 | AN91: 1 | AO91: 1 | AP91: 2 | AQ91: Ital 1stry bldg 04 | AR91: 0 | AS91: Ital_1stryBldg04_text_01 | AT91: 0 | AU91: Ital_1stryBldg04_text_02 | AV91: 0 | AW91: Ital_1stryBldg04_text_03 | AX91: 0 | AY91: Ital_1stryBldg04_text_04 | AZ91: 0 | BA91: Ital_1stryBldg04_text_05
A92: 87 | B92: Small Building | C92: 4 | D92: 59 | E92: 1 | F92: -1 | G92: 0.2 | H92: -1 | I92: 50 | J92: 4 | K92: 6 | L92: 0 | M92: 0 | N92: 0 | O92: 0 | P92: 0 | Q92: 0.6 | R92: 0 | S92: 0 | T92: 1 | U92: 1 | V92: 0 | W92: 0 | X92: 1 | Y92: 0 | Z92: 1 | AA92: 0 | AB92: 0 | AC92: 0 | AD92: 500 | AE92: 0 | AF92: 3 | AG92: 58 | AH92: 58 | AI92: -1 | AJ92: 1 | AK92: 1 | AL92: 1 | AM92: 0.025 | AN92: 1 | AO92: 1 | AP92: 2 | AQ92: Ital 1stry bldg 05 | AR92: 0 | AS92: Ital_1stryBldg05_text_01 | AT92: 0 | AU92: Ital_1stryBldg05_text_02 | AV92: 0 | AW92: Ital_1stryBldg05_text_03 | AX92: 0 | AY92: Ital_1stryBldg05_text_04 | AZ92: 0 | BA92: Ital_1stryBldg05_text_05
A93: 88 | B93: Small Building | C93: 4 | D93: 60 | E93: 1 | F93: -1 | G93: 0.2 | H93: -1 | I93: 50 | J93: 4 | K93: 6 | L93: 0 | M93: 0 | N93: 0 | O93: 0 | P93: 0 | Q93: 0.6 | R93: 0 | S93: 0 | T93: 1 | U93: 1 | V93: 0 | W93: 0 | X93: 1 | Y93: 0 | Z93: 1 | AA93: 0 | AB93: 0 | AC93: 0 | AD93: 500 | AE93: 0 | AF93: 3 | AG93: 58 | AH93: 58 | AI93: -1 | AJ93: 1 | AK93: 1 | AL93: 1 | AM93: 0.025 | AN93: 1 | AO93: 1 | AP93: 2 | AQ93: Ital 1stry bldg 06a | AR93: 0 | AS93: Ital_1stryBldg04_text_06a | AT93: 0 | AU93: Ital_1stryBldg06a_text_02 | AV93: 0 | AW93: Ital_1stryBldg06a_text_03 | AX93: 0 | AY93: Ital_1stryBldg06a_text_04 | AZ93: 0 | BA93: Ital_1stryBldg06a_text_05
A94: 89 | B94: Small Building | C94: 4 | D94: 61 | E94: 1 | F94: -1 | G94: 0.2 | H94: -1 | I94: 50 | J94: 4 | K94: 6 | L94: 0 | M94: 0 | N94: 0 | O94: 0 | P94: 0 | Q94: 0.6 | R94: 0 | S94: 0 | T94: 1 | U94: 1 | V94: 0 | W94: 0 | X94: 1 | Y94: 0 | Z94: 1 | AA94: 0 | AB94: 0 | AC94: 0 | AD94: 500 | AE94: 0 | AF94: 3 | AG94: 58 | AH94: 58 | AI94: -1 | AJ94: 1 | AK94: 1 | AL94: 1 | AM94: 0.025 | AN94: 1 | AO94: 1 | AP94: 2 | AQ94: Ital 1stry bldg 07 | AR94: 0 | AS94: Ital_1stryBldg07_text_01 | AT94: 0 | AU94: Ital_1stryBldg07_text_02 | AV94: 0 | AW94: Ital_1stryBldg07_text_03 | AX94: 0 | AY94: Ital_1stryBldg07_text_04 | AZ94: 0 | BA94: Ital_1stryBldg07_text_05
A95: 90 | B95: Small Building | C95: 4 | D95: 62 | E95: 1 | F95: -1 | G95: 0.2 | H95: -1 | I95: 50 | J95: 4 | K95: 6 | L95: 0 | M95: 0 | N95: 0 | O95: 0 | P95: 0 | Q95: 0.6 | R95: 0 | S95: 0 | T95: 1 | U95: 1 | V95: 0 | W95: 0 | X95: 1 | Y95: 0 | Z95: 1 | AA95: 0 | AB95: 0 | AC95: 0 | AD95: 500 | AE95: 0 | AF95: 3 | AG95: 58 | AH95: 58 | AI95: -1 | AJ95: 1 | AK95: 1 | AL95: 1 | AM95: 0.025 | AN95: 1 | AO95: 1 | AP95: 2 | AQ95: Ital 1stry bldg 08 | AR95: 0 | AS95: Ital_1stryBldg08_text_01 | AT95: 0 | AU95: Ital_1stryBldg08_text_02 | AV95: 0 | AW95: Ital_1stryBldg08_text_03 | AX95: 0 | AY95: Ital_1stryBldg08_text_04 | AZ95: 0 | BA95: Ital_1stryBldg08_text_05
A96: 91 | B96: Barn | C96: 4 | D96: 100 | E96: 0 | F96: -1 | G96: 0.2 | H96: -1 | I96: 50 | J96: 4 | K96: 3 | L96: 0 | M96: 0 | N96: 0 | O96: 0 | P96: 0 | Q96: 0.6 | R96: 0 | S96: 0 | T96: 1 | U96: 1 | V96: 0 | W96: 0 | X96: 0 | Y96: 0 | Z96: 0 | AA96: 0 | AB96: 0 | AC96: 0 | AD96: 0 | AE96: 0 | AF96: 0 | AG96: -1 | AH96: -1 | AI96: -1 | AJ96: 1 | AK96: 1 | AL96: 1 | AM96: 0.025 | AN96: 1 | AO96: 1 | AP96: 2 | AQ96: AFR barn 01
A97: 92 | B97: Small Building | C97: 4 | D97: 101 | E97: 0 | F97: -1 | G97: 0.2 | H97: -1 | I97: 50 | J97: 4 | K97: 6 | L97: 0 | M97: 0 | N97: 0 | O97: 0 | P97: 0 | Q97: 0.6 | R97: 0 | S97: 0 | T97: 1 | U97: 1 | V97: 0 | W97: 0 | X97: 1 | Y97: 0 | Z97: 1 | AA97: 0 | AB97: 0 | AC97: 0 | AD97: 500 | AE97: 0 | AF97: 3 | AG97: 58 | AH97: 58 | AI97: -1 | AJ97: 1 | AK97: 1 | AL97: 1 | AM97: 0.025 | AN97: 1 | AO97: 1 | AP97: 2 | AQ97: AFR 1stry bldg 01
A98: 93 | B98: Small Building | C98: 4 | D98: 102 | E98: 0 | F98: -1 | G98: 0.2 | H98: -1 | I98: 50 | J98: 4 | K98: 6 | L98: 0 | M98: 0 | N98: 0 | O98: 0 | P98: 0 | Q98: 0.6 | R98: 0 | S98: 0 | T98: 1 | U98: 1 | V98: 0 | W98: 0 | X98: 1 | Y98: 0 | Z98: 1 | AA98: 0 | AB98: 0 | AC98: 0 | AD98: 500 | AE98: 0 | AF98: 3 | AG98: 58 | AH98: 58 | AI98: -1 | AJ98: 1 | AK98: 1 | AL98: 1 | AM98: 0.025 | AN98: 1 | AO98: 2 | AP98: 2 | AQ98: AFR 1stry bldg 01 | AR98: 0 | AS98: Afr_1stryBldg_text_02
A99: 94 | B99: Small Building | C99: 4 | D99: 103 | E99: 0 | F99: -1 | G99: 0.2 | H99: -1 | I99: 50 | J99: 4 | K99: 6 | L99: 0 | M99: 0 | N99: 0 | O99: 0 | P99: 0 | Q99: 0.6 | R99: 0 | S99: 0 | T99: 1 | U99: 1 | V99: 0 | W99: 0 | X99: 1 | Y99: 0 | Z99: 1 | AA99: 0 | AB99: 0 | AC99: 0 | AD99: 500 | AE99: 0 | AF99: 3 | AG99: 58 | AH99: 58 | AI99: -1 | AJ99: 1 | AK99: 1 | AL99: 1 | AM99: 0.025 | AN99: 1 | AO99: 2 | AP99: 2 | AQ99: AFR 1stry bldg 01 | AR99: 0 | AS99: Afr_1stryBldg_text_03
A100: 95 | B100: Small Building | C100: 4 | D100: 104 | E100: 0 | F100: -1 | G100: 0.2 | H100: -1 | I100: 50 | J100: 4 | K100: 6 | L100: 0 | M100: 0 | N100: 0 | O100: 0 | P100: 0 | Q100: 0.6 | R100: 0 | S100: 0 | T100: 1 | U100: 1 | V100: 0 | W100: 0 | X100: 1 | Y100: 0 | Z100: 1 | AA100: 0 | AB100: 0 | AC100: 0 | AD100: 500 | AE100: 0 | AF100: 3 | AG100: 58 | AH100: 58 | AI100: -1 | AJ100: 1 | AK100: 1 | AL100: 1 | AM100: 0.025 | AN100: 1 | AO100: 2 | AP100: 2 | AQ100: AFR 1stry bldg 01 | AR100: 0 | AS100: Afr_1stryBldg_text_04
A101: 96 | B101: Small Building | C101: 4 | D101: 105 | E101: 0 | F101: -1 | G101: 0.2 | H101: -1 | I101: 50 | J101: 4 | K101: 6 | L101: 0 | M101: 0 | N101: 0 | O101: 0 | P101: 0 | Q101: 0.6 | R101: 0 | S101: 0 | T101: 1 | U101: 1 | V101: 0 | W101: 0 | X101: 1 | Y101: 0 | Z101: 1 | AA101: 0 | AB101: 0 | AC101: 0 | AD101: 500 | AE101: 0 | AF101: 3 | AG101: 58 | AH101: 58 | AI101: -1 | AJ101: 1 | AK101: 1 | AL101: 1 | AM101: 0.025 | AN101: 1 | AO101: 2 | AP101: 2 | AQ101: AFR 1stry bldg 01 | AR101: 0 | AS101: Afr_1stryBldg_text_05
A102: 97 | B102: Small Building | C102: 4 | D102: 106 | E102: 0 | F102: -1 | G102: 0.2 | H102: -1 | I102: 50 | J102: 4 | K102: 6 | L102: 0 | M102: 0 | N102: 0 | O102: 0 | P102: 0 | Q102: 0.6 | R102: 0 | S102: 0 | T102: 1 | U102: 1 | V102: 0 | W102: 0 | X102: 1 | Y102: 0 | Z102: 1 | AA102: 0 | AB102: 0 | AC102: 0 | AD102: 500 | AE102: 0 | AF102: 3 | AG102: 58 | AH102: 58 | AI102: -1 | AJ102: 1 | AK102: 1 | AL102: 1 | AM102: 0.025 | AN102: 1 | AO102: 1 | AP102: 2 | AQ102: AFR 1stry bldg 02
A103: 98 | B103: Small Building | C103: 4 | D103: 107 | E103: 0 | F103: -1 | G103: 0.2 | H103: -1 | I103: 50 | J103: 4 | K103: 6 | L103: 0 | M103: 0 | N103: 0 | O103: 0 | P103: 0 | Q103: 0.6 | R103: 0 | S103: 0 | T103: 1 | U103: 1 | V103: 0 | W103: 0 | X103: 1 | Y103: 0 | Z103: 1 | AA103: 0 | AB103: 0 | AC103: 0 | AD103: 500 | AE103: 0 | AF103: 3 | AG103: 58 | AH103: 58 | AI103: -1 | AJ103: 1 | AK103: 1 | AL103: 1 | AM103: 0.025 | AN103: 1 | AO103: 2 | AP103: 2 | AQ103: AFR 1stry bldg 02 | AR103: 0 | AS103: Afr_1stryBldg02_text_02
A104: 99 | B104: Small Building | C104: 4 | D104: 108 | E104: 0 | F104: -1 | G104: 0.2 | H104: -1 | I104: 50 | J104: 4 | K104: 6 | L104: 0 | M104: 0 | N104: 0 | O104: 0 | P104: 0 | Q104: 0.6 | R104: 0 | S104: 0 | T104: 1 | U104: 1 | V104: 0 | W104: 0 | X104: 1 | Y104: 0 | Z104: 1 | AA104: 0 | AB104: 0 | AC104: 0 | AD104: 500 | AE104: 0 | AF104: 3 | AG104: 58 | AH104: 58 | AI104: -1 | AJ104: 1 | AK104: 1 | AL104: 1 | AM104: 0.025 | AN104: 1 | AO104: 2 | AP104: 2 | AQ104: AFR 1stry bldg 02 | AR104: 0 | AS104: Afr_1stryBldg02_text_03
A105: 100 | B105: Small Building | C105: 4 | D105: 109 | E105: 0 | F105: -1 | G105: 0.2 | H105: -1 | I105: 50 | J105: 4 | K105: 6 | L105: 0 | M105: 0 | N105: 0 | O105: 0 | P105: 0 | Q105: 0.6 | R105: 0 | S105: 0 | T105: 1 | U105: 1 | V105: 0 | W105: 0 | X105: 1 | Y105: 0 | Z105: 1 | AA105: 0 | AB105: 0 | AC105: 0 | AD105: 500 | AE105: 0 | AF105: 3 | AG105: 58 | AH105: 58 | AI105: -1 | AJ105: 1 | AK105: 1 | AL105: 1 | AM105: 0.025 | AN105: 1 | AO105: 2 | AP105: 2 | AQ105: AFR 1stry bldg 02 | AR105: 0 | AS105: Afr_1stryBldg02_text_04
A106: 101 | B106: Small Building | C106: 4 | D106: 110 | E106: 0 | F106: -1 | G106: 0.2 | H106: -1 | I106: 50 | J106: 4 | K106: 6 | L106: 0 | M106: 0 | N106: 0 | O106: 0 | P106: 0 | Q106: 0.6 | R106: 0 | S106: 0 | T106: 1 | U106: 1 | V106: 0 | W106: 0 | X106: 1 | Y106: 0 | Z106: 1 | AA106: 0 | AB106: 0 | AC106: 0 | AD106: 500 | AE106: 0 | AF106: 3 | AG106: 58 | AH106: 58 | AI106: -1 | AJ106: 1 | AK106: 1 | AL106: 1 | AM106: 0.025 | AN106: 1 | AO106: 2 | AP106: 2 | AQ106: AFR 1stry bldg 02 | AR106: 0 | AS106: Afr_1stryBldg02_text_05
A107: 102 | B107: Small Building | C107: 4 | D107: 111 | E107: 0 | F107: -1 | G107: 0.2 | H107: -1 | I107: 50 | J107: 4 | K107: 6 | L107: 0 | M107: 0 | N107: 0 | O107: 0 | P107: 0 | Q107: 0.6 | R107: 0 | S107: 0 | T107: 1 | U107: 1 | V107: 0 | W107: 0 | X107: 1 | Y107: 0 | Z107: 1 | AA107: 0 | AB107: 0 | AC107: 0 | AD107: 500 | AE107: 0 | AF107: 3 | AG107: 58 | AH107: 58 | AI107: -1 | AJ107: 1 | AK107: 1 | AL107: 1 | AM107: 0.025 | AN107: 1 | AO107: 1 | AP107: 2 | AQ107: AFR 1stry bldg 03
A108: 103 | B108: Small Building | C108: 4 | D108: 112 | E108: 0 | F108: -1 | G108: 0.2 | H108: -1 | I108: 50 | J108: 4 | K108: 6 | L108: 0 | M108: 0 | N108: 0 | O108: 0 | P108: 0 | Q108: 0.6 | R108: 0 | S108: 0 | T108: 1 | U108: 1 | V108: 0 | W108: 0 | X108: 1 | Y108: 0 | Z108: 1 | AA108: 0 | AB108: 0 | AC108: 0 | AD108: 500 | AE108: 0 | AF108: 3 | AG108: 58 | AH108: 58 | AI108: -1 | AJ108: 1 | AK108: 1 | AL108: 1 | AM108: 0.025 | AN108: 1 | AO108: 2 | AP108: 2 | AQ108: AFR 1stry bldg 03 | AR108: 0 | AS108: Afr_1stryBldg03_text_02
A109: 104 | B109: Small Building | C109: 4 | D109: 113 | E109: 0 | F109: -1 | G109: 0.2 | H109: -1 | I109: 50 | J109: 4 | K109: 6 | L109: 0 | M109: 0 | N109: 0 | O109: 0 | P109: 0 | Q109: 0.6 | R109: 0 | S109: 0 | T109: 1 | U109: 1 | V109: 0 | W109: 0 | X109: 1 | Y109: 0 | Z109: 1 | AA109: 0 | AB109: 0 | AC109: 0 | AD109: 500 | AE109: 0 | AF109: 3 | AG109: 58 | AH109: 58 | AI109: -1 | AJ109: 1 | AK109: 1 | AL109: 1 | AM109: 0.025 | AN109: 1 | AO109: 2 | AP109: 2 | AQ109: AFR 1stry bldg 03 | AR109: 0 | AS109: Afr_1stryBldg03_text_03
A110: 105 | B110: Small Building | C110: 4 | D110: 114 | E110: 0 | F110: -1 | G110: 0.2 | H110: -1 | I110: 50 | J110: 4 | K110: 6 | L110: 0 | M110: 0 | N110: 0 | O110: 0 | P110: 0 | Q110: 0.6 | R110: 0 | S110: 0 | T110: 1 | U110: 1 | V110: 0 | W110: 0 | X110: 1 | Y110: 0 | Z110: 1 | AA110: 0 | AB110: 0 | AC110: 0 | AD110: 500 | AE110: 0 | AF110: 3 | AG110: 58 | AH110: 58 | AI110: -1 | AJ110: 1 | AK110: 1 | AL110: 1 | AM110: 0.025 | AN110: 1 | AO110: 2 | AP110: 2 | AQ110: AFR 1stry bldg 03 | AR110: 0 | AS110: Afr_1stryBldg03_text_04
A111: 106 | B111: Small Building | C111: 4 | D111: 115 | E111: 0 | F111: -1 | G111: 0.2 | H111: -1 | I111: 50 | J111: 4 | K111: 6 | L111: 0 | M111: 0 | N111: 0 | O111: 0 | P111: 0 | Q111: 0.6 | R111: 0 | S111: 0 | T111: 1 | U111: 1 | V111: 0 | W111: 0 | X111: 1 | Y111: 0 | Z111: 1 | AA111: 0 | AB111: 0 | AC111: 0 | AD111: 500 | AE111: 0 | AF111: 3 | AG111: 58 | AH111: 58 | AI111: -1 | AJ111: 1 | AK111: 1 | AL111: 1 | AM111: 0.025 | AN111: 1 | AO111: 2 | AP111: 2 | AQ111: AFR 1stry bldg 03 | AR111: 0 | AS111: Afr_1stryBldg03_text_05
A112: 107 | B112: Low Stone Wall | C112: 3 | D112: 116 | E112: 0 | F112: -1 | G112: 0.2 | H112: -1 | I112: 30 | J112: 2 | K112: 12 | L112: 0 | M112: 0 | N112: 0 | O112: 0 | P112: 0.3 | Q112: 0.3 | R112: 0 | S112: 0 | T112: 1 | U112: 1 | V112: 1 | W112: 0 | X112: 0 | Y112: 0 | Z112: 0 | AA112: 0 | AB112: 0 | AC112: 0 | AD112: 0 | AE112: 0 | AF112: 3 | AG112: 59 | AH112: 59 | AI112: -1 | AJ112: 1 | AK112: 1 | AL112: 1 | AM112: 0 | AN112: 0 | AO112: 2 | AP112: 2 | AQ112: Stone fence 01 | AR112: 0 | AS112: AFR Stone_Fence_Text
A113: 108 | B113: Mosque | C113: 4 | D113: 118 | E113: 0 | F113: -1 | G113: 0.2 | H113: -1 | I113: 50 | J113: 4 | K113: 8 | L113: 0 | M113: 0 | N113: 0 | O113: 0 | P113: 0 | Q113: 0.6 | R113: 0 | S113: 0 | T113: 1 | U113: 1 | V113: 0 | W113: 0 | X113: 0 | Y113: 0 | Z113: 0 | AA113: 0 | AB113: 0 | AC113: 0 | AD113: 0 | AE113: 0 | AF113: 3 | AG113: 59 | AH113: 59 | AI113: -1 | AJ113: 1 | AK113: 1 | AL113: 1 | AM113: 0.025 | AN113: 1 | AO113: 1 | AP113: 2 | AQ113: AFR mosque 02
A114: 109 | B114: Low Mud Wall | C114: 3 | D114: 119 | E114: 0 | F114: -1 | G114: 0.2 | H114: -1 | I114: 30 | J114: 2 | K114: 6 | L114: 0 | M114: 0 | N114: 0 | O114: 0 | P114: 0.3 | Q114: 0.3 | R114: 0 | S114: 0 | T114: 1 | U114: 1 | V114: 1 | W114: 0 | X114: 0 | Y114: 0 | Z114: 0 | AA114: 0 | AB114: 0 | AC114: 0 | AD114: 0 | AE114: 0 | AF114: 3 | AG114: 59 | AH114: 59 | AI114: -1 | AJ114: 1 | AK114: 1 | AL114: 1 | AM114: 0 | AN114: 0 | AO114: 7 | AP114: 2 | AQ114: Stucco wall 01 | AR114: 0 | AS114: Stucco_HighWall01a_text | AT114: 0 | AU114: Stucco_Wall01a_text | AV114: 0 | AW114: Stucco_Wall01b_text | AX114: 0 | AY114: Stucco_Wall01c_text | AZ114: 0 | BA114: Stucco_Wall01d_text | BB114: 0 | BC114: Stucco_Wall01e_text
A115: 110 | B115: High Mud Wall | C115: 3 | D115: 120 | E115: 0 | F115: -1 | G115: 0.2 | H115: -1 | I115: 80 | J115: 4 | K115: 6 | L115: 0 | M115: 0 | N115: 0 | O115: 0 | P115: 0 | Q115: 0 | R115: 0 | S115: 0 | T115: 1 | U115: 1 | V115: 1 | W115: 0 | X115: 0 | Y115: 0 | Z115: 0 | AA115: 0 | AB115: 0 | AC115: 0 | AD115: 0 | AE115: 0 | AF115: 3 | AG115: 59 | AH115: 59 | AI115: -1 | AJ115: 1 | AK115: 1 | AL115: 1 | AM115: 0 | AN115: 0 | AO115: 7 | AP115: 2 | AQ115: Stucco high wall 01 | AR115: 0 | AS115: Stucco_HighWall01a_text | AT115: 0 | AU115: Stucco_Wall01a_text | AV115: 0 | AW115: Stucco_Wall01b_text | AX115: 0 | AY115: Stucco_Wall01c_text | AZ115: 0 | BA115: Stucco_Wall01d_text | BB115: 0 | BC115: Stucco_Wall01e_text
A116: 111 | B116: Small Building | C116: 4 | D116: 121 | E116: 0 | F116: -1 | G116: 0.2 | H116: -1 | I116: 50 | J116: 4 | K116: 6 | L116: 0 | M116: 0 | N116: 0 | O116: 0 | P116: 0 | Q116: 0.6 | R116: 0 | S116: 0 | T116: 1 | U116: 1 | V116: 0 | W116: 0 | X116: 1 | Y116: 0 | Z116: 1 | AA116: 0 | AB116: 0 | AC116: 0 | AD116: 500 | AE116: 0 | AF116: 3 | AG116: 58 | AH116: 58 | AI116: -1 | AJ116: 1 | AK116: 1 | AL116: 1 | AM116: 0.025 | AN116: 1 | AO116: 1 | AP116: 2 | AQ116: AFR 1stry bldg 04 | AR116: 0 | AS116: Afr_1stryBldg04_text_01 | AT116: 0 | AU116: Afr_1stryBldg04_text_02 | AV116: 0 | AW116: Afr_1stryBldg04_text_03 | AX116: 0 | AY116: Afr_1stryBldg04_text_04 | AZ116: 0 | BA116: Afr_1stryBldg04_text_05
A117: 112 | B117: Small Building | C117: 4 | D117: 122 | E117: 0 | F117: -1 | G117: 0.2 | H117: -1 | I117: 50 | J117: 4 | K117: 6 | L117: 0 | M117: 0 | N117: 0 | O117: 0 | P117: 0 | Q117: 0.6 | R117: 0 | S117: 0 | T117: 1 | U117: 1 | V117: 0 | W117: 0 | X117: 1 | Y117: 0 | Z117: 1 | AA117: 0 | AB117: 0 | AC117: 0 | AD117: 500 | AE117: 0 | AF117: 3 | AG117: 58 | AH117: 58 | AI117: -1 | AJ117: 1 | AK117: 1 | AL117: 1 | AM117: 0.025 | AN117: 1 | AO117: 1 | AP117: 2 | AQ117: AFR 1stry bldg 05 | AR117: 0 | AS117: Afr_1stryBldg05_text_01 | AT117: 0 | AU117: Afr_1stryBldg05_text_02 | AV117: 0 | AW117: Afr_1stryBldg05_text_03 | AX117: 0 | AY117: Afr_1stryBldg05_text_04 | AZ117: 0 | BA117: Afr_1stryBldg05_text_05
A118: 113 | B118: Small Building | C118: 4 | D118: 123 | E118: 0 | F118: -1 | G118: 0.2 | H118: -1 | I118: 50 | J118: 4 | K118: 6 | L118: 0 | M118: 0 | N118: 0 | O118: 0 | P118: 0 | Q118: 0.6 | R118: 0 | S118: 0 | T118: 1 | U118: 1 | V118: 0 | W118: 0 | X118: 1 | Y118: 0 | Z118: 1 | AA118: 0 | AB118: 0 | AC118: 0 | AD118: 500 | AE118: 0 | AF118: 3 | AG118: 58 | AH118: 58 | AI118: -1 | AJ118: 1 | AK118: 1 | AL118: 1 | AM118: 0.025 | AN118: 1 | AO118: 1 | AP118: 2 | AQ118: AFR 1stry bldg 06 | AR118: 0 | AS118: Afr_1stryBldg06_text_01 | AT118: 0 | AU118: Afr_1stryBldg06_text_02 | AV118: 0 | AW118: Afr_1stryBldg06_text_03 | AX118: 0 | AY118: Afr_1stryBldg06_text_04 | AZ118: 0 | BA118: Afr_1stryBldg06_text_05
A119: 114 | B119: Small Building | C119: 4 | D119: 200 | E119: 2 | F119: -1 | G119: 0.2 | H119: -1 | I119: 50 | J119: 4 | K119: 6 | L119: 0 | M119: 0 | N119: 0 | O119: 0 | P119: 0 | Q119: 0.6 | R119: 0 | S119: 0 | T119: 1 | U119: 1 | V119: 0 | W119: 0 | X119: 1 | Y119: 0 | Z119: 1 | AA119: 0 | AB119: 0 | AC119: 0 | AD119: 500 | AE119: 0 | AF119: 3 | AG119: 58 | AH119: 58 | AI119: -1 | AJ119: 1 | AK119: 1 | AL119: 1 | AM119: 0.025 | AN119: 1 | AO119: 1 | AP119: 2 | AQ119: Norm 1stry bldg 02
A120: 115 | B120: Small Building | C120: 4 | D120: 201 | E120: 2 | F120: -1 | G120: 0.2 | H120: -1 | I120: 50 | J120: 4 | K120: 6 | L120: 0 | M120: 0 | N120: 0 | O120: 0 | P120: 0 | Q120: 0.6 | R120: 0 | S120: 0 | T120: 1 | U120: 1 | V120: 0 | W120: 0 | X120: 1 | Y120: 0 | Z120: 1 | AA120: 0 | AB120: 0 | AC120: 0 | AD120: 500 | AE120: 0 | AF120: 3 | AG120: 58 | AH120: 58 | AI120: -1 | AJ120: 1 | AK120: 1 | AL120: 1 | AM120: 0.025 | AN120: 1 | AO120: 2 | AP120: 2 | AQ120: Norm 1stry bldg 02 | AR120: 0 | AS120: Norm_1stryBldg02_text_02
A121: 116 | B121: Small Building | C121: 4 | D121: 202 | E121: 2 | F121: -1 | G121: 0.2 | H121: -1 | I121: 50 | J121: 4 | K121: 6 | L121: 0 | M121: 0 | N121: 0 | O121: 0 | P121: 0 | Q121: 0.6 | R121: 0 | S121: 0 | T121: 1 | U121: 1 | V121: 0 | W121: 0 | X121: 1 | Y121: 0 | Z121: 1 | AA121: 0 | AB121: 0 | AC121: 0 | AD121: 500 | AE121: 0 | AF121: 3 | AG121: 58 | AH121: 58 | AI121: -1 | AJ121: 1 | AK121: 1 | AL121: 1 | AM121: 0.025 | AN121: 1 | AO121: 2 | AP121: 2 | AQ121: Norm 1stry bldg 02 | AR121: 0 | AS121: Norm_1stryBldg02_text_03
A122: 117 | B122: Small Building | C122: 4 | D122: 203 | E122: 2 | F122: -1 | G122: 0.2 | H122: -1 | I122: 50 | J122: 4 | K122: 6 | L122: 0 | M122: 0 | N122: 0 | O122: 0 | P122: 0 | Q122: 0.6 | R122: 0 | S122: 0 | T122: 1 | U122: 1 | V122: 0 | W122: 0 | X122: 1 | Y122: 0 | Z122: 1 | AA122: 0 | AB122: 0 | AC122: 0 | AD122: 500 | AE122: 0 | AF122: 3 | AG122: 58 | AH122: 58 | AI122: -1 | AJ122: 1 | AK122: 1 | AL122: 1 | AM122: 0.025 | AN122: 1 | AO122: 2 | AP122: 2 | AQ122: Norm 1stry bldg 02 | AR122: 0 | AS122: Norm_1stryBldg02_text_04
A123: 118 | B123: Small Building | C123: 4 | D123: 204 | E123: 2 | F123: -1 | G123: 0.2 | H123: -1 | I123: 50 | J123: 4 | K123: 6 | L123: 0 | M123: 0 | N123: 0 | O123: 0 | P123: 0 | Q123: 0.6 | R123: 0 | S123: 0 | T123: 1 | U123: 1 | V123: 0 | W123: 0 | X123: 1 | Y123: 0 | Z123: 1 | AA123: 0 | AB123: 0 | AC123: 0 | AD123: 500 | AE123: 0 | AF123: 3 | AG123: 58 | AH123: 58 | AI123: -1 | AJ123: 1 | AK123: 1 | AL123: 1 | AM123: 0.025 | AN123: 1 | AO123: 2 | AP123: 2 | AQ123: Norm 1stry bldg 02 | AR123: 0 | AS123: Norm_1stryBldg02_text_05
A124: 119 | B124: Small Building | C124: 4 | D124: 205 | E124: 2 | F124: -1 | G124: 0.2 | H124: -1 | I124: 50 | J124: 4 | K124: 6 | L124: 0 | M124: 0 | N124: 0 | O124: 0 | P124: 0 | Q124: 0.6 | R124: 0 | S124: 0 | T124: 1 | U124: 1 | V124: 0 | W124: 0 | X124: 1 | Y124: 0 | Z124: 1 | AA124: 0 | AB124: 0 | AC124: 0 | AD124: 500 | AE124: 0 | AF124: 3 | AG124: 58 | AH124: 58 | AI124: -1 | AJ124: 1 | AK124: 1 | AL124: 1 | AM124: 0.025 | AN124: 1 | AO124: 1 | AP124: 2 | AQ124: Norm 1stry bldg 03
A125: 120 | B125: Small Building | C125: 4 | D125: 206 | E125: 2 | F125: -1 | G125: 0.2 | H125: -1 | I125: 50 | J125: 4 | K125: 6 | L125: 0 | M125: 0 | N125: 0 | O125: 0 | P125: 0 | Q125: 0.6 | R125: 0 | S125: 0 | T125: 1 | U125: 1 | V125: 0 | W125: 0 | X125: 1 | Y125: 0 | Z125: 1 | AA125: 0 | AB125: 0 | AC125: 0 | AD125: 500 | AE125: 0 | AF125: 3 | AG125: 58 | AH125: 58 | AI125: -1 | AJ125: 1 | AK125: 1 | AL125: 1 | AM125: 0.025 | AN125: 1 | AO125: 2 | AP125: 2 | AQ125: Norm 1stry bldg 03 | AR125: 0 | AS125: Norm_1stryBldg03_text_02
A126: 121 | B126: Small Building | C126: 4 | D126: 207 | E126: 2 | F126: -1 | G126: 0.2 | H126: -1 | I126: 50 | J126: 4 | K126: 6 | L126: 0 | M126: 0 | N126: 0 | O126: 0 | P126: 0 | Q126: 0.6 | R126: 0 | S126: 0 | T126: 1 | U126: 1 | V126: 0 | W126: 0 | X126: 1 | Y126: 0 | Z126: 1 | AA126: 0 | AB126: 0 | AC126: 0 | AD126: 500 | AE126: 0 | AF126: 3 | AG126: 58 | AH126: 58 | AI126: -1 | AJ126: 1 | AK126: 1 | AL126: 1 | AM126: 0.025 | AN126: 1 | AO126: 2 | AP126: 2 | AQ126: Norm 1stry bldg 03 | AR126: 0 | AS126: Norm_1stryBldg03_text_03
A127: 122 | B127: Small Building | C127: 4 | D127: 208 | E127: 2 | F127: -1 | G127: 0.2 | H127: -1 | I127: 50 | J127: 4 | K127: 6 | L127: 0 | M127: 0 | N127: 0 | O127: 0 | P127: 0 | Q127: 0.6 | R127: 0 | S127: 0 | T127: 1 | U127: 1 | V127: 0 | W127: 0 | X127: 1 | Y127: 0 | Z127: 1 | AA127: 0 | AB127: 0 | AC127: 0 | AD127: 500 | AE127: 0 | AF127: 3 | AG127: 58 | AH127: 58 | AI127: -1 | AJ127: 1 | AK127: 1 | AL127: 1 | AM127: 0.025 | AN127: 1 | AO127: 2 | AP127: 2 | AQ127: Norm 1stry bldg 03 | AR127: 0 | AS127: Norm_1stryBldg03_text_04
A128: 123 | B128: Small Building | C128: 4 | D128: 209 | E128: 2 | F128: -1 | G128: 0.2 | H128: -1 | I128: 50 | J128: 4 | K128: 6 | L128: 0 | M128: 0 | N128: 0 | O128: 0 | P128: 0 | Q128: 0.6 | R128: 0 | S128: 0 | T128: 1 | U128: 1 | V128: 0 | W128: 0 | X128: 1 | Y128: 0 | Z128: 1 | AA128: 0 | AB128: 0 | AC128: 0 | AD128: 500 | AE128: 0 | AF128: 3 | AG128: 58 | AH128: 58 | AI128: -1 | AJ128: 1 | AK128: 1 | AL128: 1 | AM128: 0.025 | AN128: 1 | AO128: 2 | AP128: 2 | AQ128: Norm 1stry bldg 03 | AR128: 0 | AS128: Norm_1stryBldg03_text_05
A129: 124 | B129: Small Building | C129: 4 | D129: 210 | E129: 2 | F129: -1 | G129: 0.2 | H129: -1 | I129: 50 | J129: 4 | K129: 6 | L129: 0 | M129: 0 | N129: 0 | O129: 0 | P129: 0 | Q129: 0.6 | R129: 0 | S129: 0 | T129: 1 | U129: 1 | V129: 0 | W129: 0 | X129: 1 | Y129: 0 | Z129: 1 | AA129: 0 | AB129: 0 | AC129: 0 | AD129: 500 | AE129: 0 | AF129: 3 | AG129: 58 | AH129: 58 | AI129: -1 | AJ129: 1 | AK129: 1 | AL129: 1 | AM129: 0.025 | AN129: 1 | AO129: 1 | AP129: 2 | AQ129: Norm 1stry bldg 04
A130: 125 | B130: Small Building | C130: 4 | D130: 211 | E130: 2 | F130: -1 | G130: 0.2 | H130: -1 | I130: 50 | J130: 4 | K130: 6 | L130: 0 | M130: 0 | N130: 0 | O130: 0 | P130: 0 | Q130: 0.6 | R130: 0 | S130: 0 | T130: 1 | U130: 1 | V130: 0 | W130: 0 | X130: 1 | Y130: 0 | Z130: 1 | AA130: 0 | AB130: 0 | AC130: 0 | AD130: 500 | AE130: 0 | AF130: 3 | AG130: 58 | AH130: 58 | AI130: -1 | AJ130: 1 | AK130: 1 | AL130: 1 | AM130: 0.025 | AN130: 1 | AO130: 2 | AP130: 2 | AQ130: Norm 1stry bldg 04 | AR130: 0 | AS130: Norm_1stryBldg04_text_02
A131: 126 | B131: Small Building | C131: 4 | D131: 212 | E131: 2 | F131: -1 | G131: 0.2 | H131: -1 | I131: 50 | J131: 4 | K131: 6 | L131: 0 | M131: 0 | N131: 0 | O131: 0 | P131: 0 | Q131: 0.6 | R131: 0 | S131: 0 | T131: 1 | U131: 1 | V131: 0 | W131: 0 | X131: 1 | Y131: 0 | Z131: 1 | AA131: 0 | AB131: 0 | AC131: 0 | AD131: 500 | AE131: 0 | AF131: 3 | AG131: 58 | AH131: 58 | AI131: -1 | AJ131: 1 | AK131: 1 | AL131: 1 | AM131: 0.025 | AN131: 1 | AO131: 2 | AP131: 2 | AQ131: Norm 1stry bldg 04 | AR131: 0 | AS131: Norm_1stryBldg04_text_03
A132: 127 | B132: Small Building | C132: 4 | D132: 213 | E132: 2 | F132: -1 | G132: 0.2 | H132: -1 | I132: 50 | J132: 4 | K132: 6 | L132: 0 | M132: 0 | N132: 0 | O132: 0 | P132: 0 | Q132: 0.6 | R132: 0 | S132: 0 | T132: 1 | U132: 1 | V132: 0 | W132: 0 | X132: 1 | Y132: 0 | Z132: 1 | AA132: 0 | AB132: 0 | AC132: 0 | AD132: 500 | AE132: 0 | AF132: 3 | AG132: 58 | AH132: 58 | AI132: -1 | AJ132: 1 | AK132: 1 | AL132: 1 | AM132: 0.025 | AN132: 1 | AO132: 2 | AP132: 2 | AQ132: Norm 1stry bldg 04 | AR132: 0 | AS132: Norm_1stryBldg04_text_04
A133: 128 | B133: Small Building | C133: 4 | D133: 214 | E133: 2 | F133: -1 | G133: 0.2 | H133: -1 | I133: 50 | J133: 4 | K133: 6 | L133: 0 | M133: 0 | N133: 0 | O133: 0 | P133: 0 | Q133: 0.6 | R133: 0 | S133: 0 | T133: 1 | U133: 1 | V133: 0 | W133: 0 | X133: 1 | Y133: 0 | Z133: 1 | AA133: 0 | AB133: 0 | AC133: 0 | AD133: 500 | AE133: 0 | AF133: 3 | AG133: 58 | AH133: 58 | AI133: -1 | AJ133: 1 | AK133: 1 | AL133: 1 | AM133: 0.025 | AN133: 1 | AO133: 2 | AP133: 2 | AQ133: Norm 1stry bldg 04 | AR133: 0 | AS133: Norm_1stryBldg04_text_05
A134: 129 | B134: Church | C134: 4 | D134: 215 | E134: 2 | F134: -1 | G134: 0.2 | H134: -1 | I134: 50 | J134: 4 | K134: 10 | L134: 0 | M134: 0 | N134: 0 | O134: 0 | P134: 0 | Q134: 0.6 | R134: 0 | S134: 0 | T134: 1 | U134: 1 | V134: 0 | W134: 0 | X134: 0 | Y134: 0 | Z134: 0 | AA134: 0 | AB134: 0 | AC134: 0 | AD134: 0 | AE134: 0 | AF134: 3 | AG134: 58 | AH134: 58 | AI134: -1 | AJ134: 1 | AK134: 1 | AL134: 1 | AM134: 0.025 | AN134: 1 | AO134: 1 | AP134: 2 | AQ134: Norm 1stry church 01
A135: 130 | B135: Barn | C135: 4 | D135: 216 | E135: 2 | F135: -1 | G135: 0.2 | H135: -1 | I135: 50 | J135: 4 | K135: 8 | L135: 0 | M135: 0 | N135: 0 | O135: 0 | P135: 0 | Q135: 0.6 | R135: 0 | S135: 0 | T135: 1 | U135: 1 | V135: 0 | W135: 0 | X135: 0 | Y135: 0 | Z135: 0 | AA135: 0 | AB135: 0 | AC135: 0 | AD135: 0 | AE135: 0 | AF135: 3 | AG135: 58 | AH135: 58 | AI135: -1 | AJ135: 1 | AK135: 1 | AL135: 1 | AM135: 0.025 | AN135: 1 | AO135: 1 | AP135: 2 | AQ135: Norm LG barn 01
A136: 131 | B136: Normandy Bldg No.5 | C136: 4 | D136: 217 | E136: 2 | F136: -1 | G136: 0.2 | H136: -1 | I136: 50 | J136: 4 | K136: 6 | L136: 0 | M136: 0 | N136: 0 | O136: 0 | P136: 0 | Q136: 0.6 | R136: 0 | S136: 0 | T136: 1 | U136: 1 | V136: 0 | W136: 0 | X136: 1 | Y136: 0 | Z136: 1 | AA136: 0 | AB136: 0 | AC136: 0 | AD136: 500 | AE136: 0 | AF136: 3 | AG136: 59 | AH136: 59 | AI136: -1 | AJ136: 1 | AK136: 1 | AL136: 1 | AM136: 0.025 | AN136: 1 | AO136: 6 | AP136: 2 | AQ136: Norm 1stry bldg 05 | AR136: 0 | AS136: Norm_1stryBldg05_text_01 | AT136: 0 | AU136: Norm_1stryBldg05_text_02 | AV136: 0 | AW136: Norm_1stryBldg05_text_03 | AX136: 0 | AY136: Norm_1stryBldg05_text_04 | AZ136: 0 | BA136: Norm_1stryBldg05_text_05
A137: 132 | B137: Normandy Bldg No.6 | C137: 4 | D137: 218 | E137: 2 | F137: -1 | G137: 0.2 | H137: -1 | I137: 50 | J137: 4 | K137: 6 | L137: 0 | M137: 0 | N137: 0 | O137: 0 | P137: 0 | Q137: 0.6 | R137: 0 | S137: 0 | T137: 1 | U137: 1 | V137: 0 | W137: 0 | X137: 1 | Y137: 0 | Z137: 1 | AA137: 0 | AB137: 0 | AC137: 0 | AD137: 500 | AE137: 0 | AF137: 3 | AG137: 59 | AH137: 59 | AI137: -1 | AJ137: 1 | AK137: 1 | AL137: 1 | AM137: 0.025 | AN137: 1 | AO137: 6 | AP137: 2 | AQ137: Norm 1stry bldg 06 | AR137: 0 | AS137: Norm_1stryBldg06_text_01 | AT137: 0 | AU137: Norm_1stryBldg06_text_02 | AV137: 0 | AW137: Norm_1stryBldg06_text_03 | AX137: 0 | AY137: Norm_1stryBldg06_text_04 | AZ137: 0 | BA137: Norm_1stryBldg06_text_05
A138: 133 | B138: Normandy Bldg No.7 | C138: 4 | D138: 219 | E138: 2 | F138: -1 | G138: 0.2 | H138: -1 | I138: 50 | J138: 4 | K138: 6 | L138: 0 | M138: 0 | N138: 0 | O138: 0 | P138: 0 | Q138: 0.6 | R138: 0 | S138: 0 | T138: 1 | U138: 1 | V138: 0 | W138: 0 | X138: 1 | Y138: 0 | Z138: 1 | AA138: 0 | AB138: 0 | AC138: 0 | AD138: 500 | AE138: 0 | AF138: 3 | AG138: 59 | AH138: 59 | AI138: -1 | AJ138: 1 | AK138: 1 | AL138: 1 | AM138: 0.025 | AN138: 1 | AO138: 6 | AP138: 2 | AQ138: Norm 1stry bldg 07 | AR138: 0 | AS138: Norm_1stryBldg07_text_01 | AT138: 0 | AU138: Norm_1stryBldg07_text_02 | AV138: 0 | AW138: Norm_1stryBldg07_text_03 | AX138: 0 | AY138: Norm_1stryBldg07_text_04 | AZ138: 0 | BA138: Norm_1stryBldg07_text_05
A139: 134 | B139: Normandy Bldg No.8 | C139: 4 | D139: 220 | E139: 2 | F139: -1 | G139: 0.2 | H139: -1 | I139: 50 | J139: 4 | K139: 6 | L139: 0 | M139: 0 | N139: 0 | O139: 0 | P139: 0 | Q139: 0.6 | R139: 0 | S139: 0 | T139: 1 | U139: 1 | V139: 0 | W139: 0 | X139: 1 | Y139: 0 | Z139: 1 | AA139: 0 | AB139: 0 | AC139: 0 | AD139: 500 | AE139: 0 | AF139: 3 | AG139: 59 | AH139: 59 | AI139: -1 | AJ139: 1 | AK139: 1 | AL139: 1 | AM139: 0.025 | AN139: 1 | AO139: 6 | AP139: 2 | AQ139: Norm 1stry bldg 08 | AR139: 0 | AS139: Norm_1stryBldg08_text_01 | AT139: 0 | AU139: Norm_1stryBldg08_text_02 | AV139: 0 | AW139: Norm_1stryBldg08_text_03 | AX139: 0 | AY139: Norm_1stryBldg08_text_04 | AZ139: 0 | BA139: Norm_1stryBldg08_text_05
A140: 135 | B140: Stone Bridge | C140: 6 | D140: 300 | E140: -1 | F140: -1 | G140: 0.2 | H140: -1 | I140: 30 | J140: 2 | K140: 12 | L140: 0.9 | M140: 0.9 | N140: 0.9 | O140: 0.9 | P140: 0.9 | Q140: 1 | R140: 0 | S140: 0 | T140: 0 | U140: 0 | V140: 0 | W140: 0 | X140: 0 | Y140: 0 | Z140: 0 | AA140: 0 | AB140: 0 | AC140: 0 | AD140: 0 | AE140: 0 | AF140: 2 | AG140: -1 | AH140: -1 | AI140: -1 | AJ140: 1 | AK140: 1 | AL140: 1 | AM140: 0 | AN140: 0 | AO140: 1 | AP140: 2 | AQ140: stone bridge 01 | AR140: 2 | AS140: stone bridge 01 transition
A141: 136 | B141: Wooden Bridge | C141: 6 | D141: 301 | E141: -1 | F141: -1 | G141: 0.2 | H141: -1 | I141: 20 | J141: 2 | K141: 3 | L141: 0.9 | M141: 0.9 | N141: 0.9 | O141: 0.9 | P141: 0.9 | Q141: 1 | R141: 0 | S141: 0 | T141: 0 | U141: 0 | V141: 0 | W141: 0 | X141: 0 | Y141: 0 | Z141: 0 | AA141: 0 | AB141: 0 | AC141: 0 | AD141: 0 | AE141: 0 | AF141: 0 | AG141: -1 | AH141: -1 | AI141: -1 | AJ141: 1 | AK141: 1 | AL141: 1 | AM141: 0 | AN141: 0 | AO141: 1 | AP141: 2 | AQ141: sm wood bridge 01 | AR141: 2 | AS141: sm wood bridge 01 transition
A142: 137 | B142: Steel Bridge | C142: 6 | D142: 302 | E142: -1 | F142: -1 | G142: 0.2 | H142: -1 | I142: 20 | J142: 2 | K142: 16 | L142: 0.9 | M142: 0.9 | N142: 0.9 | O142: 0.9 | P142: 0.9 | Q142: 1 | R142: 0 | S142: 0 | T142: 0 | U142: 0 | V142: 0 | W142: 0 | X142: 0 | Y142: 0 | Z142: 0 | AA142: 0 | AB142: 0 | AC142: 0 | AD142: 0 | AE142: 0 | AF142: 0 | AG142: -1 | AH142: -1 | AI142: -1 | AJ142: 1 | AK142: 1 | AL142: 1 | AM142: 0 | AN142: 0 | AO142: 1 | AP142: 2 | AQ142: steel bridge 01 | AR142: 2 | AS142: steel bridge 01 transition
A143: 138 | B143: Gun Pit | C143: 7 | D143: 305 | E143: -1 | F143: -1 | G143: 0.2 | H143: -1 | I143: 50 | J143: 2 | K143: 12 | L143: 0.7 | M143: 0 | N143: 0 | O143: 0 | P143: 0 | Q143: 0.5 | R143: 0 | S143: 0 | T143: 0 | U143: 0 | V143: 0 | W143: 1 | X143: 0 | Y143: 0 | Z143: 0 | AA143: 0 | AB143: 0 | AC143: 0 | AD143: 0 | AE143: 0 | AF143: 0 | AG143: -1 | AH143: -1 | AI143: -1 | AJ143: 1 | AK143: 1 | AL143: 1 | AM143: 0.025 | AN143: 1 | AO143: 1 | AP143: 2 | AQ143: AT gun foxhole
A144: 139 | B144: MG Position | C144: 7 | D144: 306 | E144: -1 | F144: -1 | G144: 0.2 | H144: -1 | I144: 50 | J144: 3 | K144: 12 | L144: 0 | M144: 0 | N144: 0 | O144: 0 | P144: 0 | Q144: 0.5 | R144: 0 | S144: 0 | T144: 0 | U144: 0 | V144: 0 | W144: 1 | X144: 0 | Y144: 0 | Z144: 0 | AA144: 0 | AB144: 0 | AC144: 0 | AD144: 0 | AE144: 0 | AF144: 0 | AG144: -1 | AH144: -1 | AI144: -1 | AJ144: 1 | AK144: 1 | AL144: 1 | AM144: 0.025 | AN144: 1 | AO144: 1 | AP144: 2 | AQ144: US MG foxhole
A145: 140 | B145: MG Position | C145: 7 | D145: 307 | E145: -1 | F145: -1 | G145: 0.2 | H145: -1 | I145: 50 | J145: 3 | K145: 12 | L145: 0 | M145: 0 | N145: 0 | O145: 0 | P145: 0 | Q145: 0.5 | R145: 0 | S145: 0 | T145: 0 | U145: 0 | V145: 0 | W145: 1 | X145: 0 | Y145: 0 | Z145: 0 | AA145: 0 | AB145: 0 | AC145: 0 | AD145: 0 | AE145: 0 | AF145: 0 | AG145: -1 | AH145: -1 | AI145: -1 | AJ145: 1 | AK145: 1 | AL145: 1 | AM145: 0.025 | AN145: 1 | AO145: 1 | AP145: 2 | AQ145: GE MG foxhole
A146: 141 | B146: Foxhole | C146: 7 | D146: 308 | E146: -1 | F146: -1 | G146: 0.2 | H146: -1 | I146: 50 | J146: 3 | K146: 12 | L146: 0 | M146: 0 | N146: 0 | O146: 0 | P146: 0 | Q146: 0.5 | R146: 0 | S146: 0 | T146: 0 | U146: 0 | V146: 0 | W146: 1 | X146: 0 | Y146: 0 | Z146: 0 | AA146: 0 | AB146: 0 | AC146: 0 | AD146: 0 | AE146: 0 | AF146: 0 | AG146: -1 | AH146: -1 | AI146: -1 | AJ146: 1 | AK146: 1 | AL146: 1 | AM146: 0.025 | AN146: 1 | AO146: 1 | AP146: 2 | AQ146: slitTrench01
A147: 142 | B147: Ammo Crate | C147: 1 | D147: 310 | E147: -1 | F147: -1 | G147: 0.33 | H147: -1 | I147: 20 | J147: 2 | K147: 3 | L147: 0 | M147: 0 | N147: 0 | O147: 0 | P147: 0 | Q147: 0 | R147: 0 | S147: 0 | T147: 0 | U147: 0 | V147: 0 | W147: 0 | X147: 0 | Y147: 0 | Z147: 0 | AA147: 0 | AB147: 0 | AC147: 0 | AD147: 0 | AE147: 0 | AF147: 3 | AG147: 58 | AH147: 58 | AI147: -1 | AJ147: 1 | AK147: 1 | AL147: 1 | AM147: 0.1 | AN147: 0 | AO147: 3 | AP147: 2 | AQ147: crate02 | AR147: 0 | AS147: woodCrate02_text 01 | AT147: 0 | AU147: woodCrate02_text 02
A148: 143 | B148: Dead Camel | C148: 1 | D148: 311 | E148: 0 | F148: -1 | G148: 0.2 | H148: -1 | I148: 20 | J148: 1 | K148: 8 | L148: 0 | M148: 0 | N148: 0 | O148: 0 | P148: 0 | Q148: 0 | R148: 0 | S148: 0 | T148: 0 | U148: 0 | V148: 0 | W148: 0 | X148: 0 | Y148: 0 | Z148: 0 | AA148: 0 | AB148: 0 | AC148: 0 | AD148: 0 | AE148: 0 | AF148: 0 | AG148: -1 | AH148: -1 | AI148: -1 | AJ148: 1 | AK148: 1 | AL148: 1 | AM148: 0.1 | AN148: 1 | AO148: 6 | AP148: 2 | AQ148: camel | AR148: 0 | AS148: camel_text_01 | AT148: 0 | AU148: camel_text_02 | AV148: 0 | AW148: camel_text_03 | AX148: 0 | AY148: camel_text_04 | AZ148: 0 | BA148: camel_text_05
A149: 144 | B149: Dead Cow | C149: 1 | D149: 312 | E149: -1 | F149: -1 | G149: 0.2 | H149: -1 | I149: 20 | J149: 1 | K149: 8 | L149: 0 | M149: 0 | N149: 0 | O149: 0 | P149: 0 | Q149: 0 | R149: 0 | S149: 0 | T149: 0 | U149: 0 | V149: 0 | W149: 0 | X149: 0 | Y149: 0 | Z149: 0 | AA149: 0 | AB149: 0 | AC149: 0 | AD149: 0 | AE149: 0 | AF149: 0 | AG149: -1 | AH149: -1 | AI149: -1 | AJ149: 1 | AK149: 1 | AL149: 1 | AM149: 0.1 | AN149: 1 | AO149: 6 | AP149: 2 | AQ149: cow | AR149: 0 | AS149: cow_text_01 | AT149: 0 | AU149: cow_text_02 | AV149: 0 | AW149: cow_text_04 | AX149: 0 | AY149: cow_text_05 | AZ149: 0 | BA149: cow_text_07
A150: 145 | B150: Dead Horse | C150: 1 | D150: 313 | E150: -1 | F150: -1 | G150: 0.2 | H150: -1 | I150: 20 | J150: 1 | K150: 8 | L150: 0 | M150: 0 | N150: 0 | O150: 0 | P150: 0 | Q150: 0 | R150: 0 | S150: 0 | T150: 0 | U150: 0 | V150: 0 | W150: 0 | X150: 0 | Y150: 0 | Z150: 0 | AA150: 0 | AB150: 0 | AC150: 0 | AD150: 0 | AE150: 0 | AF150: 0 | AG150: -1 | AH150: -1 | AI150: -1 | AJ150: 1 | AK150: 1 | AL150: 1 | AM150: 0.1 | AN150: 1 | AO150: 6 | AP150: 2 | AQ150: horse | AR150: 0 | AS150: horse_text_01 | AT150: 0 | AU150: horse_text_03 | AV150: 0 | AW150: horse_text_04 | AX150: 0 | AY150: horse_text_05 | AZ150: 0 | BA150: horse_text_06
A151: 146 | B151: Fuel Drum | C151: 1 | D151: 314 | E151: -1 | F151: -1 | G151: 0.33 | H151: -1 | I151: 20 | J151: 2 | K151: 3 | L151: 0 | M151: 0 | N151: 0 | O151: 0 | P151: 0 | Q151: 0 | R151: 0 | S151: 0 | T151: 0 | U151: 0 | V151: 0 | W151: 0 | X151: 0 | Y151: 0 | Z151: 0 | AA151: 0 | AB151: 0 | AC151: 0 | AD151: 0 | AE151: 0 | AF151: 0 | AG151: -1 | AH151: -1 | AI151: -1 | AJ151: 1 | AK151: 1 | AL151: 1 | AM151: 0.1 | AN151: 0 | AO151: 7 | AP151: 2 | AQ151: fuel drum | AR151: 0 | AS151: fuel_drum_US_text_01 | AT151: 0 | AU151: fuel_drum_US_text_02 | AV151: 0 | AW151: fuel_drum_US_text_03 | AX151: 0 | AY151: fuel_drum_GE_text_01 | AZ151: 0 | BA151: fuel_drum_GE_text_02 | BB151: 0 | BC151: fuel_drum_GE_text_03
A152: 147 | B152: Haystack | C152: 1 | D152: 315 | E152: -1 | F152: -1 | G152: 0.33 | H152: -1 | I152: 30 | J152: 3 | K152: 1 | L152: 0 | M152: 0 | N152: 0 | O152: 0 | P152: 0 | Q152: 0 | R152: 0 | S152: 0 | T152: 1 | U152: 1 | V152: 0 | W152: 0 | X152: 0 | Y152: 0 | Z152: 0 | AA152: 0 | AB152: 0 | AC152: 0 | AD152: 0 | AE152: 0 | AF152: 0 | AG152: -1 | AH152: -1 | AI152: -1 | AJ152: 1 | AK152: 1 | AL152: 1 | AM152: 0.1 | AN152: 1 | AO152: 5 | AP152: 2 | AQ152: haystack | AR152: 0 | AS152: Haystack text01 | AT152: 0 | AU152: Haystack text02 | AV152: 0 | AW152: Haystack text03 | AX152: 0 | AY152: Haystack text04
A153: 148 | B153: Tractor | C153: 1 | D153: 316 | E153: -1 | F153: -1 | G153: 0.33 | H153: -1 | I153: 50 | J153: 3 | K153: 8 | L153: 0 | M153: 0 | N153: 0 | O153: 0 | P153: 0 | Q153: 0 | R153: 0 | S153: 0 | T153: 1 | U153: 1 | V153: 0 | W153: 0 | X153: 0 | Y153: 0 | Z153: 0 | AA153: 0 | AB153: 0 | AC153: 0 | AD153: 0 | AE153: 0 | AF153: 0 | AG153: -1 | AH153: -1 | AI153: -1 | AJ153: 1 | AK153: 1 | AL153: 1 | AM153: 0 | AN153: 0 | AO153: 6 | AP153: 2 | AQ153: tractor | AR153: 0 | AS153: tractor_text_01 | AT153: 0 | AU153: tractor_text_02 | AV153: 0 | AW153: tractor_text_03 | AX153: 0 | AY153: tractor_text_04 | AZ153: 0 | BA153: tractor_text_05
A154: 149 | B154: Utility Pole T | C154: 1 | D154: 317 | E154: 0 | F154: -1 | G154: 0.33 | H154: -1 | I154: 10 | J154: 4 | K154: 8 | L154: 0 | M154: 0 | N154: 0 | O154: 0 | P154: 0 | Q154: 0 | R154: 0 | S154: 0 | T154: 0 | U154: 0 | V154: 0 | W154: 0 | X154: 0 | Y154: 0 | Z154: 0 | AA154: 0 | AB154: 0 | AC154: 0 | AD154: 0 | AE154: 0 | AF154: 0 | AG154: -1 | AH154: -1 | AI154: -1 | AJ154: 1 | AK154: 1 | AL154: 1 | AM154: 0.1 | AN154: 0 | AO154: 1 | AP154: 2 | AQ154: phone poles AFR
A155: 150 | B155: Utility Pole S | C155: 1 | D155: 318 | E155: 1 | F155: -1 | G155: 0.33 | H155: -1 | I155: 10 | J155: 4 | K155: 8 | L155: 0 | M155: 0 | N155: 0 | O155: 0 | P155: 0 | Q155: 0 | R155: 0 | S155: 0 | T155: 0 | U155: 0 | V155: 0 | W155: 0 | X155: 0 | Y155: 0 | Z155: 0 | AA155: 0 | AB155: 0 | AC155: 0 | AD155: 0 | AE155: 0 | AF155: 0 | AG155: -1 | AH155: -1 | AI155: -1 | AJ155: 1 | AK155: 1 | AL155: 1 | AM155: 0.1 | AN155: 0 | AO155: 1 | AP155: 2 | AQ155: phone poles ITAL
A156: 151 | B156: Utility Pole N | C156: 1 | D156: 319 | E156: 2 | F156: -1 | G156: 0.33 | H156: -1 | I156: 10 | J156: 4 | K156: 8 | L156: 0 | M156: 0 | N156: 0 | O156: 0 | P156: 0 | Q156: 0 | R156: 0 | S156: 0 | T156: 0 | U156: 0 | V156: 0 | W156: 0 | X156: 0 | Y156: 0 | Z156: 0 | AA156: 0 | AB156: 0 | AC156: 0 | AD156: 0 | AE156: 0 | AF156: 0 | AG156: -1 | AH156: -1 | AI156: -1 | AJ156: 1 | AK156: 1 | AL156: 1 | AM156: 0.1 | AN156: 0 | AO156: 1 | AP156: 2 | AQ156: phone pole NORM
A157: 152 | B157: Camo Net | C157: 1 | D157: 320 | E157: -1 | F157: -1 | G157: 0.2 | H157: -1 | I157: 50 | J157: 4 | K157: 0 | L157: 0.6 | M157: 0 | N157: 0 | O157: 0 | P157: 0 | Q157: 0.6 | R157: 0 | S157: 0 | T157: 0 | U157: 0 | V157: 0 | W157: 0 | X157: 0 | Y157: 0 | Z157: 0 | AA157: 0 | AB157: 0 | AC157: 0 | AD157: 0 | AE157: 0 | AF157: 0 | AG157: -1 | AH157: -1 | AI157: -1 | AJ157: 1 | AK157: 1 | AL157: 1 | AM157: 0.1 | AN157: 1 | AO157: 7 | AP157: 2 | AQ157: camo net | AR157: 0 | AS157: camo net text 01 | AT157: 0 | AU157: camo net text 02 | AV157: 0 | AW157: camo net text 03 | AX157: 0 | AY157: camo net text 04 | AZ157: 0 | BA157: camo net text 05 | BB157: 0 | BC157: camo net text 06
A158: 153 | B158: Boulder | C158: 1 | D158: 321 | E158: -1 | F158: -1 | G158: 0.6 | H158: -1 | I158: 30 | J158: 2 | K158: 500 | L158: 0 | M158: 0 | N158: 0 | O158: 0 | P158: 0 | Q158: 0 | R158: 0 | S158: 0 | T158: 1 | U158: 1 | V158: 0 | W158: 0 | X158: 0 | Y158: 0 | Z158: 0 | AA158: 0 | AB158: 0 | AC158: 0 | AD158: 0 | AE158: 0 | AF158: 0 | AG158: -1 | AH158: -1 | AI158: -1 | AJ158: 1 | AK158: 1 | AL158: 1 | AM158: 0.1 | AN158: 0 | AO158: 9 | AP158: 2 | AQ158: boulder 01 | AR158: 2 | AS158: boulder 02 | AT158: 2 | AU158: boulder 03 | AV158: 2 | AW158: boulder 04 | AX158: 2 | AY158: boulder 05 | AZ158: 2 | BA158: boulder 06 | BB158: 2 | BC158: boulder 07 | BD158: 2 | BE158: boulder 08 | BF158: 2 | BG158: boulder 09 | BH158: 2 | BI158: boulder 10
A159: 154 | B159: Wreck | C159: 1 | D159: 400 | E159: -1 | F159: -1 | G159: 0.33 | H159: -1 | I159: 50 | J159: 3 | K159: 500 | L159: 0 | M159: 0 | N159: 0 | O159: 0 | P159: 0 | Q159: 0 | R159: 0 | S159: 0 | T159: 1 | U159: 1 | V159: 0 | W159: 0 | X159: 0 | Y159: 0 | Z159: 0 | AA159: 0 | AB159: 0 | AC159: 0 | AD159: 0 | AE159: 0 | AF159: 0 | AG159: -1 | AH159: -1 | AI159: -1 | AJ159: 1 | AK159: 1 | AL159: 1 | AM159: 0 | AN159: 0 | AO159: 2 | AP159: 2 | AQ159: M4 Sherman | AR159: 0 | AS159: M4_sherman_wreck

Sheet NATIONS
F1: Service Names
B2: Name | C2: Tag | D2: Army | E2: Navy | F2: Airforce | G2: Marines | H2: Political | I2: Security | J2: Militia | K2: Other
A3: COUNT | B3: 3
A4: 0 | B4: United States | C4: US | D4: Army | E4: Navy | F4: Air Corps | G4: Marine
A5: 1 | B5: Germany | C5: GE | D5: Heer | E5: KM | F5: LW | H5: SS | J5: VSt
A6: 2 | B6: Italy | C6: IT | D6: RE | H6: CNN
A7: UNIT NAME | B7: 0 | C7: 1 | D7: 2 | E7: 3 | F7: 4 | G7: 5 | H7: 6 | I7: 7 | J7: 8
A8: 0 | B8: Squad | C8: Section | D8: Platoon | E8: Company | F8: Battalion | G8: Regiment | H8: Divison | I8: Corps | J8: Army
A9: 1 | B9: Gruppe | C9: Gruppe | D9: Zug | E9: Kompanie | F9: Bataillon | G9: Regiment | H9: Division | I9: Korps | J9: Armee
A10: 2 | B10: Squadra | C10: Sezione | D10: Plotone | E10: Compagnia | F10: Battaglione | G10: Reggimento | H10: Divisione | I10: Corpo | J10: Armata
A11: PLATOON NUMBERING
A12: 0 | B12: 1st | C12: 2nd | D12: 3rd | E12: 4th | F12: 5th | G12: 6th | H12: 7th | I12: 8th | J12: 9th | K12: 10th
A13: 1 | B13: 1. | C13: 2. | D13: 3. | E13: 4. | F13: 5. | G13: 6. | H13: 7. | I13: 8. | J13: 9. | K13: 10.
A14: 2 | B14: 1º | C14: 2º | D14: 3º | E14: 4º | F14: 5º | G14: 6º | H14: 7º | I14: 8º | J14: 9º | K14: 10º
A15: REPLACEMENT SOLDIERS
A16: 0 | B16: 141
A17: 1 | B17: 334
A18: 2 | B18: 357

Sheet RANKS
J1: Rank Full
B2: NATION | C2: SERVICE | D2: E0 | E2: E1 | F2: E2 | G2: E3 | H2: E4 | I2: E5 | J2: E6 | K2: E7 | L2: E8 | M2: O1 | N2: O2 | O2: O3 | P2: O4 | Q2: O5 | R2: O6
A3: COUNT: | B3: 5
A4: FULL RANKS | B4: 0 | C4: 0 | D4: Private | E4: Private First Class | F4: Technician Fifth Grade | G4: Corporal | H4: Sergeant | I4: Staff Sergeant | J4: Technical Sergeant | K4: First Sergeant | L4: Master Sergeant | M4: Second Lieutenant | N4: First Lieutenant | O4: Captain | P4: Major | Q4: Lieutenant Colonel | R4: Colonel
B5: 1 | C5: 0 | D5: Schütze | E5: Oberschütze | F5: Gefreiter | G5: Obergefreiter | H5: Unteroffizier | I5: Unterfeldwebel | J5: Feldwebel | K5: Oberfeldwebel | L5: Stabsfeldwebel | M5: Leutnant | N5: Oberleutnant | O5: Hauptmann | P5: Major | Q5: Oberstleutnant | R5: Oberst
B6: 2 | C6: 0 | D6: Soldato | E6: Soldato Scelto | F6: Caporale | G6: Caporale maggiore | H6: Sergente | I6: Sergente maggiore | J6: Maresciallo | K6: Maresciallo capo | L6: Maresciallo maggiore | M6: Sottotenente | N6: Tenente | O6: Capitano | P6: Maggiore | Q6: Tenente Colonello | R6: Colonello
B7: 1 | C7: 4 | D7: Schütze | E7: Oberschütze | F7: Sturmmann | G7: Rottenführer | H7: Unterscharführer | I7: Scharführer | J7: Oberscharführer | K7: Hauptscharführer | L7: Sturmscharführer | M7: Untersturmführer | N7: Obersturmführer | O7: Hauptsturmführer | P7: Sturmbannführer | Q7: Obersturmbannführer | R7: Standartenführer
B8: 1 | C8: 2 | D8: Jäger | E8: Oberjäger | F8: Gefreiter | G8: Obergefreiter | H8: Unteroffizier | I8: Unterfeldwebel | J8: Feldwebel | K8: Oberfeldwebel | L8: Stabsfeldwebel | M8: Leutnant | N8: Oberleutnant | O8: Hauptmann | P8: Major | Q8: Oberstleutnant | R8: Oberst
A9: ABBREVIATIONS | B9: 0 | C9: 0 | D9: Pvt | E9: Pfc | F9: T/5 | G9: Cpl | H9: Sgt | I9: S/Sgt | J9: T/Sgt | K9: 1st Sgt | L9: M/Sgt | M9: 2d Lt | N9: 1st Lt | O9: Capt | P9: Maj | Q9: Lt Col | R9: Col
B10: 1 | C10: 0 | D10: Stze | E10: Ostz | F10: Gefr | G10: Ogefr | H10: Uffz | I10: Ufw | J10: Fw | K10: Obfw | L10: Stabsfw | M10: Lt | N10: Oblt | O10: Hptm | P10: Maj | Q10: Obstlt | R10: Obst
B11: 2 | C11: 0 | D11: Sold | E11: Sold.Sc | F11: C.le | G11: C.le.Magg | H11: Serg | I11: Serg.Magg | J11: Mar | K11: Mar.Ca | L11: Mar.Magg | M11: S.Ten | N11: Ten | O11: Cap | P11: Magg | Q11: Ten.Col | R11: Col
B12: 1 | C12: 4 | D12: Stze | E12: Ostz | F12: Strm | G12: Rttf | H12: Uscha | I12: Scha | J12: Oscha | K12: Hscha | L12: Stuscha | M12: Ustf | N12: Ostf | O12: Hstf | P12: Stubaf | Q12: Ostubaf | R12: Staf
B13: 1 | C13: 2 | D13: Jg | E13: Ojg | F13: Gefr | G13: Ogefr | H13: Uffz | I13: Ufw | J13: Fw | K13: Obfw | L13: Stabsfw | M13: Lt | N13: Oblt | O13: Hptm | P13: Maj | Q13: Obstlt | R13: Obst
A14: PROMOTION TRACK | B14: 0 | C14: 0 | D14: 1 | E14: 3 | F14: 3 | G14: 4 | H14: 5 | I14: -1 | J14: -1 | K14: -1 | L14: -1 | M14: 10 | N14: 11 | O14: 12 | P14: 13 | Q14: 14 | R14: -1
B15: 1 | C15: 0 | D15: 2 | E15: 3 | F15: 3 | G15: 4 | H15: 6 | I15: 6 | J15: 7 | K15: -1 | L15: -1 | M15: 10 | N15: 11 | O15: 12 | P15: 13 | Q15: 14 | R15: -1
B16: 2 | C16: 0 | D16: 1 | E16: 2 | F16: 3 | G16: 4 | H16: 5 | I16: -1 | J16: -1 | K16: -1 | L16: -1 | M16: 10 | N16: 11 | O16: 12 | P16: 13 | Q16: 14 | R16: -1
B17: 1 | C17: 4 | D17: 2 | E17: 3 | F17: 3 | G17: 4 | H17: 6 | I17: 6 | J17: 7 | K17: -1 | L17: -1 | M17: 10 | N17: 11 | O17: 12 | P17: 13 | Q17: 14 | R17: -1
B18: 1 | C18: 2 | D18: 2 | E18: 3 | F18: 3 | G18: 4 | H18: 6 | I18: 6 | J18: 7 | K18: -1 | L18: -1 | M18: 10 | N18: 11 | O18: 12 | P18: 13 | Q18: 14 | R18: -1

Sheet MEDALS
E1: MEDAL NAME
B2: NATION | C2: WOUND | D2: COMBAT | E2: VALOR0 | F2: VALOR1 | G2: VALOR2 | H2: VALOR3
B3: COUNT | C3: 3
B4: 0 | C4: Purple Heart | D4: Combat Infantry Badge | E4: Bronze Star | F4: Silver Star | G4: Distinguished Service Cross | H4: Medal of Honor
B5: 1 | C5: Wound Badge | D5: Infantry Assault Badge | E5: Iron Cross 2nd Class | F5: Iron Cross 1st Class | G5: German Cross | H5: Knight's Cross
B6: 2 | C6: Badge of Honor | D6: War Merit Cross | E6: War Cross for Valor | F6: Bronze Medal of Valor | G6: Silver Medal of Valor | H6: Gold Medal of Valor
C8: http://en.ww2awards.com/award/457 | D8: http://en.ww2awards.com/award/1647 | E8: http://en.ww2awards.com/award/451 | F8: http://en.ww2awards.com/award/450

Sheet UNIFORMS
A1: 19
A2: index | B2: Name | C2: Uniform Count | D2: Texture0 | E2: Date1 | F2: Texture1 | G2: Date2 | H2: Texture2
A3: [COUNT] | B3: 77
A4: 0 | B4: US Infantry | C4: 1 | D4: US Army Infantry soldier text
A5: 1 | B5: US Armor Crew | C5: 1 | D5: US Army tank crew text
A6: 2 | B6: US Airborne | C6: 1 | D6: US Airborne Infantry text
A7: 3 | B7: US Infantry FT | C7: 1 | D7: US Army Infantry FT text
A8: 4 | B8: US Airborne FT | C8: 1 | D8: US Airborne Infantry FT text
A9: 5 | B9: (Reserved) | C9: 0
A10: 6 | B10: (Reserved) | C10: 0
A11: 7 | B11: (Reserved) | C11: 0
A12: 8 | B12: GE Infantry | C12: 2 | D12: GE heer Tunisia text | E12: 1943 05 31 | F12: GE heer text
A13: 9 | B13: GE Armor Crew | C13: 1 | D13: GE tank crew text
A14: 10 | B14: GE FJ | C14: 1 | D14: GE FJ text
A15: 11 | B15: GE SS | C15: 1 | D15: GE SS text
A16: 12 | B16: GE Infantry FT | C16: 2 | D16: GE heer FT Tunisia text | E16: 1943 05 31 | F16: GE heer FT text
A17: 13 | B17: GE FJ flamethrower | C17: 1 | D17: GE FJ FT text
A18: 14 | B18: GE SS flamethrower | C18: 1 | D18: GE SS FT text
A19: 15 | B19: (Reserved) | C19: 0
A20: 16 | B20: IT Infantry | C20: 1 | D20: GE heer Tunisia text
A21: 17 | B21: IT Bels. | C21: 1 | D21: GE heer Tunisia text
A22: 18 | B22: IT Armor Crew | C22: 1 | D22: GE tank crew text
A23: =A22+1 -> 19 | B23: IT Infantry FT | C23: 1 | D23: GE heer FT Tunisia text
A24: 20 | B24: (Reserved) | C24: 0
A25: 21 | B25: (Reserved) | C25: 0
A26: 22 | B26: (Reserved) | C26: 0
A27: 23 | B27: (Reserved) | C27: 0
A28: 24 | B28: (Reserved) | C28: 0
A29: 25 | B29: (Reserved) | C29: 0
A30: 26 | B30: (Reserved) | C30: 0
A31: 27 | B31: (Reserved) | C31: 0
A32: 28 | B32: (Reserved) | C32: 0
A33: 29 | B33: (Reserved) | C33: 0
A34: 30 | B34: M3 Light Tank | C34: 1 | D34: M3_Stuart_text
A35: 31 | B35: M3 Medium Tank | C35: 1 | D35: M3 Lee text
A36: 32 | B36: M4 Medium Tank | C36: 2 | D36: M4_sherman | E36: 1944 06 05 | F36: M4_Sherman_camo
A37: 33 | B37: M4A1 Medium Tank | C37: 2 | D37: M4A1_75mm_text | E37: 1944 06 05 | F37: M4A1_75mm_camo_text
A38: 34 | B38: M3 75mm GMC | C38: 1 | D38: T12_75mmM3ht_text
A39: 35 | B39: M10 3-Inch GMC | C39: 2 | D39: M10_wolverine_OD_text | E39: 1944 06 05 | F39: M10_wolverine_camo_text
A40: 36 | B40: M2 Halftrack | C40: 1 | D40: M3A1halftrack_text
A41: 37 | B41: M2A1 Halftrack | C41: 1 | D41: M3A1halftrack_text
A42: 38 | B42: M3 Halftrack | C42: 1 | D42: M3A1halftrack_text
A43: 39 | B43: M3A1 Halftrack | C43: 1 | D43: M3A1halftrack_text
A44: 40 | B44: T19 105mm HMC | C44: 1 | D44: T19_105mmHT_text
A45: 41 | B45: T30 75mm HMC | C45: 1 | D45: T30_75mmM3ht_text
A46: 42 | B46: 3/4 Ton Weapons Carrier | C46: 1 | D46: 075t_wpncarrier_text
A47: 43 | B47: 2 1/2 Ton Truck | C47: 1 | D47: Dodge_truck_text
A48: 44 | B48: Jeep | C48: 1 | D48: Jeep_text
A49: 45 | B49: M3 Scout Car | C49: 1 | D49: White Scout M3A1 text
A50: 46 | B50: M20 Armored Utility Car | C50: 1 | D50: M20AC text
A51: 47 | B51: M8 Armored Car | C51: 1 | D51: M8 Greyhound text
A52: 48 | B52: T12 75mm HMC | C52: 1 | D52: T12_75mmM3ht_text
A53: 49 | B53: Jeep w/ 30cal | C53: 1 | D53: Jeep_text
A54: 50 | B54: JgPz IV | C54: 3 | D54: JgpzIV_dunkelgelb_text | E54: 1943 05 31 | F54: JgpzIV_tiger_text | G54: 1944 06 05 | H54: JgpzIV_woodland_text
A55: =A54+1 -> 51 | B55: Pz VIE Tiger | C55: 3 | D55: tiger I dunkelgelb | E55: 1943 05 31 | F55: tiger I tiger stripe camo | G55: 1944 06 05 | H55: tiger I woodlands camo
A56: 52 | B56: Pz VA Panther | C56: 3 | D56: panther_dunkelgelb_text | E56: 1943 05 31 | F56: panther_tiger_text | G56: 1944 06 05 | H56: panther_woodland_text
A57: 53 | B57: Panzer IIF | C57: 2 | D57: Panzer II Dunkelgelb text | E57: 1943 05 31 | F57: Panzer II Grey text
A58: 54 | B58: Panzer IVF1 | C58: 3 | D58: Panzer IVF1 dunkelgelb text | E58: 1943 05 31 | F58: Panzer IVF1 tigerstripe text | G58: 1944 06 05 | H58: Panzer IVF1 woodland text
A59: 55 | B59: Panzer IVG | C59: 3 | D59: Panzer IVG dunkelgelb text | E59: 1943 05 31 | F59: Panzer IVG tigerstripe text | G59: 1944 06 05 | H59: Panzer IVG woodland text
A60: 56 | B60: SdKfz 251/1 | C60: 1 | D60: sdkfz 251 text
A61: 57 | B61: SdKfz 251/9 | C61: 1 | D61: sdkfz 251_9 text
A62: 58 | B62: SdKfz 251/10 | C62: 1 | D62: sdkfz 251_10 text
A63: 59 | B63: StuG IIIF | C63: 3 | D63: StuG_IIIG_dunkelgelb_text | E63: 1943 05 31 | F63: StuG_IIIG_tiger_text | G63: 1944 06 05 | H63: StuG_IIIG_woodland_text
A64: 60 | B64: StuG IIIG | C64: 3 | D64: StuG_IIIG_dunkelgelb_text | E64: 1943 05 31 | F64: StuG_IIIG_tiger_text | G64: 1944 06 05 | H64: StuG_IIIG_woodland_text
A65: 61 | B65: Kubelwagon | C65: 1 | D65: Kubelwagen text
A66: 62 | B66: Opel Blitz | C66: 1 | D66: opel_blitz_text
A67: 63 | B67: PSW 222 | C67: 2 | D67: PSW222_text_dunkelgelb | E67: 1943 05 31 | F67: PSW222_text_grey
A68: 64 | B68: PSW 232 | C68: 2 | D68: PSW 232 dunkelgelb text | E68: 1943 05 31 | F68: PSW 232 grey text
A69: 65 | B69: SdKfz 250/1 | C69: 1 | D69: SdKfz 250 text
A70: 66 | B70: SdKfz 250/8 | C70: 1 | D70: SdKfz 250_8 text
A71: 67 | B71: SdKfz 250/10 | C71: 1 | D71: SdKfz 250_10 text
A72: 68 | B72: Panzer III | C72: 3 | D72: Pz Kpfw III dunkelgelb text | E72: 1943 05 31 | F72: Pz Kpfw III tiger text | G72: 1944 06 05 | H72: Pz Kpfw III wood text
A73: 69 | B73: Marder IIIH | C73: 3 | D73: Marder IIIH SdKfz138 dunkelgelb text | E73: 1943 05 31 | F73: Marder IIIH SdKfz138 text | G73: 1944 06 05 | H73: Marder IIIH SdKfz138 tiger text
A74: 70 | B74: M14/41 | C74: 2 | D74: M14_41_text | E74: 1943 05 31 | F74: M14_41_text02
A75: 71 | B75: M5 Light Tank | C75: 1 | D75: M5 Stuart text
A76: 72 | B76: M4A1 (76) Medium Tank | C76: 2 | D76: M4A1 76mm Sherman text | E76: 1944 06 05 | F76: M4A1 76mm Sherman CAMO text
A77: 73 | B77: M4(105) Medium Tank | C77: 2 | D77: M4A3 105mm Sherman text | E77: 1944 06 05 | F77: M4A3 105mm Sherman CAMO text
A78: 74 | B78: 88mm Flak | C78: 2 | D78: 88mm flak 36 Dunkelgelb text | E78: 1943 05 31 | F78: 88mm flak 36 text
A79: 75 | B79: Semovente | C79: 2 | D79: Semovente M41 dunkelgelb text | E79: 1943 05 31 | F79: Semovente M41 OD text
A80: 76 | B80: Fiat SPA 38 | C80: 1 | D80: opel_blitz_ITAL_text

Sheet POSITIONS
A3: 0 | B3: Driver
A4: =A3+1 -> 1 | B4: Gunner
A5: 2 | B5: Commander
A6: 3 | B6: Loader
A7: 4 | B7: Radioman
A8: 5 | B8: Asst. Gunner
A9: 6 | B9: Asst. Loader
A10: 7 | B10: Asst. Driver
A11: 8 | B11: Ammo Bearer
A12: 9 | B12: Passenger
A13: 10 | B13: Rider
A14: 11 | B14: Company Cmdr
A15: 12 | B15: Platoon Cmdr
A16: 13 | B16: Section Leader
A17: 14 | B17: Squad Leader
A18: 15 | B18: Asst. Leader
A19: 16 | B19: Team Leader
A20: 17 | B20: Platoon Sgt
A21: 18 | B21: Platoon Guide
A22: 19 | B22: Messenger
A23: 20 | B23: Rifleman
A24: 21 | B24: Pioneer
A25: 22 | B25: Engineer
A26: 23 | B26: Demo Man
A27: 24 | B27: Scout
A28: 25 | B28: Crewman
A29: 26 | B29: Auto Rifleman
A30: 27 | B30: Basic
A31: 28 | B31: Sniper
A32: 29 | B32: Rifle Grenadier
A33: 30 | B33: Comms Sgt.
A34: 31 | B34: First Sgt.

Sheet FATIGUE
D1: > 1/3 = Winded, > 2/3 = Fatigued | H1: 10% after 30 seconds, 50% after 160 seconds
A2: COUNT | B2: 28 | D2: 170 | F2: 340 | H2: 51 | J2: 256
A3: ACTION_NONE | B3: 0
A4: ACTION_REST | B4: 0 | D4: Val accumulates every 0.033 seconds
A5: ACTION_MOVE_CRAWL | B5: 8 | C5: =B5*33 -> 264 | D5: Fatigue add = value / 100? | H5: new_add = (short) ((add * (CCTrait::MAX - trait)) >> CCTrait::SHIFT);
A6: ACTION_MOVE_WALK | B6: 4 | C6: 132 | F6: TIMES | G6: Prev | H6: New
A7: ACTION_MOVE_RUN | B7: 16 | C7: 528 | G7: 0 | H7: 1 | I7: =((H7*(512-G7))/512) -> 1
A8: ACTION_COWER | B8: 1 | C8: 33 | F8: 1 | G8: =G7+INT(I7) -> 1 | H8: 1 | I8: =((H8*INT((512-G8))/512+0.5)) -> 1.498046875
A9: ACTION_TURN | B9: 1 | C9: 33 | F9: =F8+1 -> 2 | G9: 2 | H9: 1 | I9: 1.49609375
A10: ACTION_PRONE | B10: 1 | C10: 33 | F10: 3 | G10: 3 | H10: 1 | I10: 1.494140625
A11: ACTION_CROUCH | B11: 1 | C11: 33 | F11: 4 | G11: 4 | H11: 1 | I11: 1.4921875
A12: ACTION_STAND | B12: 1 | C12: 33 | F12: 5 | G12: 5 | H12: 1 | I12: 1.490234375
A13: ACTION_LOADER | B13: 1 | C13: 33 | F13: 6 | G13: 6 | H13: 1 | I13: 1.48828125
A14: ACTION_SPOTTER | B14: 1 | C14: 33 | F14: 7 | G14: 7 | H14: 1 | I14: 1.486328125
A15: ACTION_AMMO | B15: 2 | C15: 66 | F15: 8 | G15: 8 | H15: 1 | I15: 1.484375
A16: ACTION_SETUP | B16: 2 | C16: 66 | F16: 9 | G16: 9 | H16: 1 | I16: 1.482421875
A17: ACTION_LOAD | B17: 1 | C17: 33 | F17: 10 | G17: 10 | H17: 1 | I17: 1.48046875
A18: ACTION_RELOAD | B18: 2 | C18: 66 | F18: 11 | G18: 11 | H18: 1 | I18: 1.478515625
A19: ACTION_REPAIR | B19: 2 | C19: 66 | F19: 12 | G19: 12 | H19: 1 | I19: 1.4765625
A20: ACTION_AIM | B20: 1 | C20: 33 | F20: 13 | G20: 13 | H20: 1 | I20: 1.474609375
A21: ACTION_FIRE | B21: 2 | C21: 66 | F21: 14 | G21: 14 | H21: 1 | I21: 1.47265625
A22: ACTION_SURRENDER | B22: 0 | C22: 0 | F22: 15 | G22: 15 | H22: 1 | I22: 1.470703125
A23: ACTION_DRIVE | B23: 2 | C23: 66 | F23: 16 | G23: 16 | H23: 1 | I23: 1.46875
A24: ACTION_ROTATE | B24: 2 | C24: 66 | F24: 17 | G24: 17 | H24: 1 | I24: 1.466796875
A25: ACTION_PLOT | B25: 4 | C25: 132 | F25: 18 | G25: 18 | H25: 1 | I25: 1.46484375
A26: ACTION_SCAVENGE | B26: 4 | C26: 132 | F26: 19 | G26: 19 | H26: 1 | I26: 1.462890625
A27: ACTION_PUSH | B27: 25 | C27: 825 | F27: 20 | G27: 20 | H27: 1 | I27: 1.4609375
A28: ACTION_SPRINT | B28: 20 | C28: 660 | F28: 21 | G28: 21 | H28: 1 | I28: 1.458984375
A29: ACTION_MOUNT | B29: 8 | C29: 264 | F29: 22 | G29: 22 | H29: 1 | I29: 1.45703125
A30: ACTION_DISMOUNT | B30: 8 | C30: 264 | F30: 23 | G30: 23 | H30: 1 | I30: 1.455078125
A31: ACTION_LEAP | B31: 8 | C31: 264 | F31: 24 | G31: 24 | H31: 1 | I31: 1.453125
A32: ACTION_VAULT | B32: 8 | C32: 264 | F32: 25 | G32: 25 | H32: 1 | I32: 1.451171875
F33: 26 | G33: 26 | H33: 1 | I33: 1.44921875
F34: 27 | G34: 27 | H34: 1 | I34: 1.447265625
F35: 28 | G35: 28 | H35: 1 | I35: 1.4453125
F36: 29 | G36: 29 | H36: 1 | I36: 1.443359375
F37: 30 | G37: 30 | H37: 1 | I37: 1.44140625
F38: 31 | G38: 31 | H38: 1 | I38: 1.439453125
F39: 32 | G39: 32 | H39: 1 | I39: 1.4375
F40: 33 | G40: 33 | H40: 1 | I40: 1.435546875
F41: 34 | G41: 34 | H41: 1 | I41: 1.43359375
F42: 35 | G42: 35 | H42: 1 | I42: 1.431640625
F43: 36 | G43: 36 | H43: 1 | I43: 1.4296875
F44: 37 | G44: 37 | H44: 1 | I44: 1.427734375
F45: 38 | G45: 38 | H45: 1 | I45: 1.42578125
F46: 39 | G46: 39 | H46: 1 | I46: 1.423828125
F47: 40 | G47: 40 | H47: 1 | I47: 1.421875
F48: 41 | G48: 41 | H48: 1 | I48: 1.419921875
F49: 42 | G49: 42 | H49: 1 | I49: 1.41796875
F50: 43 | G50: 43 | H50: 1 | I50: 1.416015625
F51: 44 | G51: 44 | H51: 1 | I51: 1.4140625
F52: 45 | G52: 45 | H52: 1 | I52: 1.412109375
F53: 46 | G53: 46 | H53: 1 | I53: 1.41015625
F54: 47 | G54: 47 | H54: 1 | I54: 1.408203125
F55: 48 | G55: 48 | H55: 1 | I55: 1.40625
F56: 49 | G56: 49 | H56: 1 | I56: 1.404296875
F57: 50 | G57: 50 | H57: 1 | I57: 1.40234375
F58: 51 | G58: 51 | H58: 1 | I58: 1.400390625
F59: 52 | G59: 52 | H59: 1 | I59: 1.3984375
F60: 53 | G60: 53 | H60: 1 | I60: 1.396484375
F61: 54 | G61: 54 | H61: 1 | I61: 1.39453125
F62: 55 | G62: 55 | H62: 1 | I62: 1.392578125
F63: 56 | G63: 56 | H63: 1 | I63: 1.390625
F64: 57 | G64: 57 | H64: 1 | I64: 1.388671875
F65: 58 | G65: 58 | H65: 1 | I65: 1.38671875
F66: 59 | G66: 59 | H66: 1 | I66: 1.384765625
F67: 60 | G67: 60 | H67: 1 | I67: 1.3828125
F68: 61 | G68: 61 | H68: 1 | I68: 1.380859375
F69: 62 | G69: 62 | H69: 1 | I69: 1.37890625
F70: 63 | G70: 63 | H70: 1 | I70: 1.376953125
F71: 64 | G71: 64 | H71: 1 | I71: 1.375
F72: 65 | G72: =G71+INT(I71) -> 65 | H72: 1 | I72: =((H72*INT((512-G72))/512+0.5)) -> 1.373046875
F73: =F72+1 -> 66 | G73: 66 | H73: 1 | I73: 1.37109375
F74: 67 | G74: 67 | H74: 1 | I74: 1.369140625
F75: 68 | G75: 68 | H75: 1 | I75: 1.3671875
F76: 69 | G76: 69 | H76: 1 | I76: 1.365234375
F77: 70 | G77: 70 | H77: 1 | I77: 1.36328125
F78: 71 | G78: 71 | H78: 1 | I78: 1.361328125
F79: 72 | G79: 72 | H79: 1 | I79: 1.359375
F80: 73 | G80: 73 | H80: 1 | I80: 1.357421875
F81: 74 | G81: 74 | H81: 1 | I81: 1.35546875
F82: 75 | G82: 75 | H82: 1 | I82: 1.353515625
F83: 76 | G83: 76 | H83: 1 | I83: 1.3515625
F84: 77 | G84: 77 | H84: 1 | I84: 1.349609375
F85: 78 | G85: 78 | H85: 1 | I85: 1.34765625
F86: 79 | G86: 79 | H86: 1 | I86: 1.345703125
F87: 80 | G87: 80 | H87: 1 | I87: 1.34375
F88: 81 | G88: 81 | H88: 1 | I88: 1.341796875
F89: 82 | G89: 82 | H89: 1 | I89: 1.33984375
F90: 83 | G90: 83 | H90: 1 | I90: 1.337890625
F91: 84 | G91: 84 | H91: 1 | I91: 1.3359375
F92: 85 | G92: 85 | H92: 1 | I92: 1.333984375
F93: 86 | G93: 86 | H93: 1 | I93: 1.33203125
F94: 87 | G94: 87 | H94: 1 | I94: 1.330078125
F95: 88 | G95: 88 | H95: 1 | I95: 1.328125
F96: 89 | G96: 89 | H96: 1 | I96: 1.326171875
F97: 90 | G97: 90 | H97: 1 | I97: 1.32421875
F98: 91 | G98: 91 | H98: 1 | I98: 1.322265625
F99: 92 | G99: 92 | H99: 1 | I99: 1.3203125
F100: 93 | G100: 93 | H100: 1 | I100: 1.318359375
F101: 94 | G101: 94 | H101: 1 | I101: 1.31640625
F102: 95 | G102: 95 | H102: 1 | I102: 1.314453125
F103: 96 | G103: 96 | H103: 1 | I103: 1.3125
F104: 97 | G104: 97 | H104: 1 | I104: 1.310546875
F105: 98 | G105: 98 | H105: 1 | I105: 1.30859375
F106: 99 | G106: 99 | H106: 1 | I106: 1.306640625
F107: 100 | G107: 100 | H107: 1 | I107: 1.3046875
F108: 101 | G108: 101 | H108: 1 | I108: 1.302734375
F109: 102 | G109: 102 | H109: 1 | I109: 1.30078125
F110: 103 | G110: 103 | H110: 1 | I110: 1.298828125
F111: 104 | G111: 104 | H111: 1 | I111: 1.296875
F112: 105 | G112: 105 | H112: 1 | I112: 1.294921875
F113: 106 | G113: 106 | H113: 1 | I113: 1.29296875
F114: 107 | G114: 107 | H114: 1 | I114: 1.291015625
F115: 108 | G115: 108 | H115: 1 | I115: 1.2890625
F116: 109 | G116: 109 | H116: 1 | I116: 1.287109375
F117: 110 | G117: 110 | H117: 1 | I117: 1.28515625
F118: 111 | G118: 111 | H118: 1 | I118: 1.283203125
F119: 112 | G119: 112 | H119: 1 | I119: 1.28125
F120: 113 | G120: 113 | H120: 1 | I120: 1.279296875
F121: 114 | G121: 114 | H121: 1 | I121: 1.27734375
F122: 115 | G122: 115 | H122: 1 | I122: 1.275390625
F123: 116 | G123: 116 | H123: 1 | I123: 1.2734375
F124: 117 | G124: 117 | H124: 1 | I124: 1.271484375
F125: 118 | G125: 118 | H125: 1 | I125: 1.26953125
F126: 119 | G126: 119 | H126: 1 | I126: 1.267578125
F127: 120 | G127: 120 | H127: 1 | I127: 1.265625
F128: 121 | G128: 121 | H128: 1 | I128: 1.263671875
F129: 122 | G129: 122 | H129: 1 | I129: 1.26171875
F130: 123 | G130: 123 | H130: 1 | I130: 1.259765625
F131: 124 | G131: 124 | H131: 1 | I131: 1.2578125
F132: 125 | G132: 125 | H132: 1 | I132: 1.255859375
F133: 126 | G133: 126 | H133: 1 | I133: 1.25390625
F134: 127 | G134: 127 | H134: 1 | I134: 1.251953125
F135: 128 | G135: 128 | H135: 1 | I135: 1.25
F136: 129 | G136: =G135+INT(I135) -> 129 | H136: 1 | I136: =((H136*INT((512-G136))/512+0.5)) -> 1.248046875
F137: =F136+1 -> 130 | G137: 130 | H137: 1 | I137: 1.24609375
F138: 131 | G138: 131 | H138: 1 | I138: 1.244140625
F139: 132 | G139: 132 | H139: 1 | I139: 1.2421875
F140: 133 | G140: 133 | H140: 1 | I140: 1.240234375
F141: 134 | G141: 134 | H141: 1 | I141: 1.23828125
F142: 135 | G142: 135 | H142: 1 | I142: 1.236328125
F143: 136 | G143: 136 | H143: 1 | I143: 1.234375
F144: 137 | G144: 137 | H144: 1 | I144: 1.232421875
F145: 138 | G145: 138 | H145: 1 | I145: 1.23046875
F146: 139 | G146: 139 | H146: 1 | I146: 1.228515625
F147: 140 | G147: 140 | H147: 1 | I147: 1.2265625
F148: 141 | G148: 141 | H148: 1 | I148: 1.224609375
F149: 142 | G149: 142 | H149: 1 | I149: 1.22265625
F150: 143 | G150: 143 | H150: 1 | I150: 1.220703125
F151: 144 | G151: 144 | H151: 1 | I151: 1.21875
F152: 145 | G152: 145 | H152: 1 | I152: 1.216796875
F153: 146 | G153: 146 | H153: 1 | I153: 1.21484375
F154: 147 | G154: 147 | H154: 1 | I154: 1.212890625
F155: 148 | G155: 148 | H155: 1 | I155: 1.2109375
F156: 149 | G156: 149 | H156: 1 | I156: 1.208984375
F157: 150 | G157: 150 | H157: 1 | I157: 1.20703125
F158: 151 | G158: 151 | H158: 1 | I158: 1.205078125
F159: 152 | G159: 152 | H159: 1 | I159: 1.203125
F160: 153 | G160: 153 | H160: 1 | I160: 1.201171875
F161: 154 | G161: 154 | H161: 1 | I161: 1.19921875
F162: 155 | G162: 155 | H162: 1 | I162: 1.197265625
F163: 156 | G163: 156 | H163: 1 | I163: 1.1953125
F164: 157 | G164: 157 | H164: 1 | I164: 1.193359375
F165: 158 | G165: 158 | H165: 1 | I165: 1.19140625
F166: 159 | G166: 159 | H166: 1 | I166: 1.189453125
F167: 160 | G167: 160 | H167: 1 | I167: 1.1875
F168: 161 | G168: 161 | H168: 1 | I168: 1.185546875
F169: 162 | G169: 162 | H169: 1 | I169: 1.18359375
F170: 163 | G170: 163 | H170: 1 | I170: 1.181640625
F171: 164 | G171: 164 | H171: 1 | I171: 1.1796875
F172: 165 | G172: 165 | H172: 1 | I172: 1.177734375
F173: 166 | G173: 166 | H173: 1 | I173: 1.17578125
F174: 167 | G174: 167 | H174: 1 | I174: 1.173828125
F175: 168 | G175: 168 | H175: 1 | I175: 1.171875
F176: 169 | G176: 169 | H176: 1 | I176: 1.169921875
F177: 170 | G177: 170 | H177: 1 | I177: 1.16796875
F178: 171 | G178: 171 | H178: 1 | I178: 1.166015625
F179: 172 | G179: 172 | H179: 1 | I179: 1.1640625
F180: 173 | G180: 173 | H180: 1 | I180: 1.162109375
F181: 174 | G181: 174 | H181: 1 | I181: 1.16015625
F182: 175 | G182: 175 | H182: 1 | I182: 1.158203125
F183: 176 | G183: 176 | H183: 1 | I183: 1.15625
F184: 177 | G184: 177 | H184: 1 | I184: 1.154296875
F185: 178 | G185: 178 | H185: 1 | I185: 1.15234375
F186: 179 | G186: 179 | H186: 1 | I186: 1.150390625
F187: 180 | G187: 180 | H187: 1 | I187: 1.1484375
F188: 181 | G188: 181 | H188: 1 | I188: 1.146484375
F189: 182 | G189: 182 | H189: 1 | I189: 1.14453125
F190: 183 | G190: 183 | H190: 1 | I190: 1.142578125
F191: 184 | G191: 184 | H191: 1 | I191: 1.140625
F192: 185 | G192: 185 | H192: 1 | I192: 1.138671875
F193: 186 | G193: 186 | H193: 1 | I193: 1.13671875
F194: 187 | G194: 187 | H194: 1 | I194: 1.134765625
F195: 188 | G195: 188 | H195: 1 | I195: 1.1328125
F196: 189 | G196: 189 | H196: 1 | I196: 1.130859375
F197: 190 | G197: 190 | H197: 1 | I197: 1.12890625
F198: 191 | G198: 191 | H198: 1 | I198: 1.126953125
F199: 192 | G199: 192 | H199: 1 | I199: 1.125
F200: 193 | G200: =G199+INT(I199) -> 193 | H200: 1 | I200: =((H200*INT((512-G200))/512+0.5)) -> 1.123046875
... 66 more rows

Sheet UNIT STRUCT
D1: 0=Allies, 1=Axis | F1: 0=Squad, 1=Section, 2=Platoon, 3=Company, 4=Battlion, 5=Regiment, 6=Division, 7=Corps, 8=Army | G1: 0=Infantry, 1=Recon, 2=Armor, 3=Anti-tank, 4=Engineer, 5 = UNUSED, 6=Support | H1: 0=Foot, 1=Partly Motorized, 2=Motorized
C2: NAME | D2: SIDE | E2: NATION | F2: ECHELON | G2: TYPE | H2: SPEED | I2: HQ TEAM (index in teams data) | J2: Team Count | K2: SubUnit Count | L2: Team1-N (indexes into team data) followed by SubUnit 1-N (index into unit structure data)
B3: COUNT | C3: 314
A4: Rifle Company 1942 | B4: 0 | C4: Rifle Company | D4: 0 | E4: 0 | F4: 3 | G4: 0 | H4: 1 | I4: 0 | J4: 0 | K4: 5 | L4: 143 | M4: 146 | N4: 146 | O4: 146 | P4: 149
A5: Rifle Company 1943 | B5: =B4+1 -> 1 | C5: Rifle Company | D5: 0 | E5: 0 | F5: 3 | G5: 0 | H5: 1 | I5: 21 | J5: 0 | K5: 5 | L5: 144 | M5: 147 | N5: 147 | O5: 147 | P5: 150
A6: Rifle Company 1944 | B6: 2 | C6: Rifle Company | D6: 0 | E6: 0 | F6: 3 | G6: 0 | H6: 1 | I6: 44 | J6: 0 | K6: 5 | L6: 145 | M6: 148 | N6: 148 | O6: 148 | P6: 151
A7: Parachute Rifle Company 1942 | B7: 3 | C7: Parachute Rifle Company | D7: 0 | E7: 0 | F7: 3 | G7: 0 | H7: 0 | I7: 75 | J7: 3 | K7: 3 | L7: 81 | M7: 81 | N7: 81 | O7: 152 | P7: 152 | Q7: 152
A8: Parachute Rifle Company 1944 | B8: 4 | C8: Parachute Rifle Company | D8: 0 | E8: 0 | F8: 3 | G8: 0 | H8: 0 | I8: 67 | J8: 4 | K8: 3 | L8: 73 | M8: 73 | N8: 73 | O8: 73 | P8: 153 | Q8: 153 | R8: 153
A9: Armored Infantry Company 1942 | B9: 5 | C9: Armored Infantry Company | D9: 0 | E9: 0 | F9: 3 | G9: 0 | H9: 2 | I9: 109 | J9: 0 | K9: 4 | L9: 155 | M9: 154 | N9: 154 | O9: 154
A10: Armored Infantry Company 1944 | B10: 6 | C10: Armored Infantry Company | D10: 0 | E10: 0 | F10: 3 | G10: 0 | H10: 2 | I10: 96 | J10: 0 | K10: 5 | L10: 156 | M10: 157 | N10: 157 | O10: 157 | P10: 158
A11: Armored Recon Company 1942 | B11: 7 | C11: Armored Recon Company | D11: 0 | E11: 0 | F11: 3 | G11: 1 | H11: 2 | I11: 83 | J11: 0 | K11: 4 | L11: 159 | M11: 160 | N11: 160 | O11: 160
A12: Cavalry Recon Troop 1942 | B12: 8 | C12: Cavalry Recon Troop | D12: 0 | E12: 0 | F12: 3 | G12: 1 | H12: 2 | I12: 83 | J12: 0 | K12: 4 | L12: 161 | M12: 162 | N12: 162 | O12: 162
A13: Mechanized Cavalry Troop 1944 | B13: 9 | C13: Mechanized Cavalry Troop | D13: 0 | E13: 0 | F13: 3 | G13: 1 | H13: 2 | I13: 90 | J13: 0 | K13: 4 | L13: 163 | M13: 164 | N13: 164 | O13: 164
A14: Combat Engineer Company 1942 | B14: 10 | C14: Combat Engineer Company | D14: 0 | E14: 0 | F14: 3 | G14: 4 | H14: 2 | I14: 20 | J14: 0 | K14: 4 | L14: 165 | M14: 166 | N14: 166 | O14: 166
A15: Combat Engineer Company 1944 | B15: 11 | C15: Combat Engineer Company | D15: 0 | E15: 0 | F15: 3 | G15: 4 | H15: 2 | I15: 64 | J15: 0 | K15: 4 | L15: 167 | M15: 168 | N15: 168 | O15: 168
B16: 12 | C16: (Reserved) | D16: 0 | E16: 0 | F16: 0 | G16: 0 | H16: 0 | I16: -1 | J16: 0 | K16: 0
B17: 13 | C17: (Reserved) | D17: 0 | E17: 0 | F17: 0 | G17: 0 | H17: 0 | I17: -1 | J17: 0 | K17: 0
B18: 14 | C18: (Reserved) | D18: 0 | E18: 0 | F18: 0 | G18: 0 | H18: 0 | I18: -1 | J18: 0 | K18: 0
A19: Schützenkompanie 334.ID | B19: 15 | C19: Schützenkompanie | D19: 1 | E19: 1 | F19: 3 | G19: 0 | H19: 0 | I19: 210 | J19: 0 | K19: 4 | L19: 195 | M19: 195 | N19: 195 | O19: 196 | AK19: ** 12 leMG, 2 sMG, 2 mGW | AQ19: ** = Jim added these notes from Steve's info
A20: Feldkompanie Tunis (Type 1) | B20: 16 | C20: Feldkompanie Tunis | D20: 1 | E20: 1 | F20: 3 | G20: 0 | H20: 0 | I20: 200 | J20: 0 | K20: 4 | L20: 197 | M20: 197 | N20: 197 | O20: 198 | AK20: 9 leMG, 4 sMG, 2 mGW
A21: Feldkompanie Tunis (Type 2) | B21: 17 | C21: Feldkompanie Tunis | D21: 1 | E21: 1 | F21: 3 | G21: 0 | H21: 0 | I21: 200 | J21: 0 | K21: 4 | L21: 197 | M21: 197 | N21: 197 | O21: 199 | AK21: 9 leMG, 6 sMG, 4 mGW
A22: Feldkompanie Tunis (Type 3) | B22: 18 | C22: Feldkompanie Tunis (Mot.) | D22: 1 | E22: 1 | F22: 3 | G22: 0 | H22: 0 | I22: 227 | J22: 0 | K22: 4 | L22: 202 | M22: 202 | N22: 202 | O22: 203 | AK22: 18 leMG, 2 sMG, 2 mGW, 2 mPaK
A23: Marschkomapnie Afrika (Type 1) | B23: 19 | C23: Marschkomapnie Afrika | D23: 1 | E23: 1 | F23: 3 | G23: 0 | H23: 0 | I23: 200 | J23: 0 | K23: 4 | L23: 197 | M23: 197 | N23: 197 | O23: 200 | AK23: 9 leMG, 8 sMG, 4 mGW, 2 mPak
A24: Marschkomapnie Afrika (Type 2) | B24: 20 | C24: Marschkomapnie Afrika | D24: 1 | E24: 1 | F24: 3 | G24: 0 | H24: 0 | I24: 200 | J24: 0 | K24: 4 | L24: 197 | M24: 197 | N24: 197 | O24: 201 | AK24: 9 leMG, 6 sMG, 2 mGW, 2 leGW
A25: Marschkomapnie Afrika (Type 3) | B25: 21 | C25: Marschkomapnie Afrika (Mot.) | D25: 1 | E25: 1 | F25: 3 | G25: 0 | H25: 0 | I25: 227 | J25: 0 | K25: 4 | L25: 202 | M25: 202 | N25: 202 | O25: 204 | AK25: 18 leMG, 4 sMG, 4 mGW
A26: Grenadierkompanie 44 | B26: 22 | C26: Grenadierkompanie | D26: 1 | E26: 1 | F26: 3 | G26: 0 | H26: 0 | I26: 290 | J26: 0 | K26: 4 | L26: 205 | M26: 206 | N26: 206 | O26: 276 | AK26: ** 12 leMG, 2 sMG
A27: Radfahr-Schützenkompanie 42 | B27: 23 | C27: Radfahr-Schützenkompanie | D27: 1 | E27: 1 | F27: 3 | G27: 1 | H27: 1 | I27: 210 | J27: 0 | K27: 4 | L27: 207 | M27: 207 | N27: 207 | O27: 196 | AK27: ** 12 leMG, 2 sMG, 2 mGW
A28: Fusilier Komapnie 44 | B28: 24 | C28: Fusilierkompanie | D28: 1 | E28: 1 | F28: 3 | G28: 0 | H28: 1 | I28: 290 | J28: 0 | K28: 4 | L28: 205 | M28: 206 | N28: 206 | O28: 276
A29: Gebirgsjägerkompanie 334.ID | B29: 25 | C29: Gebirgsjägerkompanie | D29: 1 | E29: 1 | F29: 3 | G29: 0 | H29: 0 | I29: 268 | J29: 0 | K29: 5 | L29: 209 | M29: 209 | N29: 209 | O29: 210 | P29: 281 | AK29: http://www.wwiidaybyday.com/kstn/kstn132d1nov41.htm | AL29: 12 leMG (1 leMG per squad, x4 squads, x3 platoons), 3 leGW, 1 mGW section (x2 mortars/section)
A30: Fallschirmjäger Kompanie 42 A | B30: 26 | C30: Fallschirmjägerkompanie | D30: 1 | E30: 1 | F30: 3 | G30: 0 | H30: 0 | I30: 259 | J30: 0 | K30: 4 | L30: 211 | M30: 211 | N30: 211 | O30: 212 | AK30: 18 leMG, 2 sMG, 3 leGW
A31: Fallschirmjäger Kompanie 42 B | B31: 27 | C31: Fallschirmjägerkompanie | D31: 1 | E31: 1 | F31: 3 | G31: 0 | H31: 0 | I31: 259 | J31: 0 | K31: 4 | L31: 213 | M31: 213 | N31: 213 | O31: 212 | AK31: 18 leMG, 2 sMG
A32: FJ Kompanie 43 | B32: 28 | C32: Fallschirmjägerkompanie | D32: 1 | E32: 1 | F32: 3 | G32: 0 | H32: 0 | I32: 259 | J32: 0 | K32: 4 | L32: 214 | M32: 214 | N32: 214 | O32: 212 | AK32: ** 18 leMG, 2 mGW
A33: FJ Kompanie 44 | B33: 29 | C33: Fallschirmjägerkompanie | D33: 1 | E33: 1 | F33: 3 | G33: 0 | H33: 0 | I33: 298 | J33: 0 | K33: 5 | L33: 216 | M33: 216 | N33: 216 | O33: 215 | P33: 217
A34: PzGr Kp (gp) 42 | B34: 30 | C34: Panzergrenadierkompanie (gp) | D34: 1 | E34: 1 | F34: 3 | G34: 0 | H34: 2 | I34: 242 | J34: 0 | K34: 5 | L34: =$B$222 -> 218 | M34: =$B$223 -> 219 | N34: =$B$223 -> 219 | O34: =$B$223 -> 219 | P34: =$B$224 -> 220 | AK34: http://www.wwiidaybyday.com/kstn/kstn1114gp1nov41.htm | AP34: PzGr. A | AQ34: ** 18 leMG, 2sMG, 2 mGW
A35: PzGr Kp 42 | B35: 31 | C35: Panzergrenadierkompanie | D35: 1 | E35: 1 | F35: 3 | G35: 0 | H35: 2 | I35: 251 | J35: 0 | K35: 4 | L35: =$B$225 -> 221 | M35: =$B$225 -> 221 | N35: =$B$225 -> 221 | O35: =$B$226 -> 222 | AK35: http://www.wwiidaybyday.com/kstn/kstn11141nov41.htm | AP35: PzGr. B
A36: PzGr Kp (gp) DAK | B36: 32 | C36: Panzergrenadierkompanie (gp) | D36: 1 | E36: 1 | F36: 3 | G36: 0 | H36: 2 | I36: 235 | J36: 0 | K36: 4 | L36: =$B$227 -> 223 | M36: 223 | N36: 223 | O36: =$B$228 -> 224 | AK36: ** 18 leMG, 4 sMG, 1 mGW
A37: PzGr Kp DAK | B37: =B36+1 -> 33 | C37: Panzergrenadierkompanie | D37: 1 | E37: 1 | F37: 3 | G37: 0 | H37: 2 | I37: 235 | J37: 0 | K37: 5 | L37: 223 | M37: 223 | N37: 223 | O37: =$B$228 -> 224 | P37: 310 | AK37: ** 18 leMG, 4 sMG, 1 mGW
A38: PzGr (gp) 43 Sicily | B38: 34 | C38: Panzergrenadierkompanie (gp) | D38: 1 | E38: 1 | F38: 3 | G38: 0 | H38: 2 | I38: 242 | J38: 0 | K38: 5 | L38: =$B$222 -> 218 | M38: 225 | N38: 225 | O38: 225 | P38: =$B$224 -> 220 | AK38: 15 PzGren Sicily | AM38: **PzGr42 + 2 sMG, 2 mGW, 2 Pak 40, 1 Pzbu41
A39: PzGr 43 Sicily | B39: 35 | C39: Panzergrenadierkompanie | D39: 1 | E39: 1 | F39: 3 | G39: 0 | H39: 2 | I39: 251 | J39: 0 | K39: 4 | L39: 226 | M39: 226 | N39: 226 | O39: =$B$226 -> 222 | AK39: 15 PzGren Sicily
A40: HG Sicily | B40: 36 | C40: Panzergrenadierkompanie (gp) | D40: 1 | E40: 1 | F40: 3 | G40: 0 | H40: 2 | I40: 242 | J40: 0 | K40: 5 | L40: =$B$222 -> 218 | M40: 225 | N40: 225 | O40: 225 | P40: =$B$224 -> 220 | AK40: HG Sicily
A41: HG Sicily | B41: 37 | C41: Panzergrenadierkompanie | D41: 1 | E41: 1 | F41: 3 | G41: 0 | H41: 2 | I41: 251 | J41: 0 | K41: 4 | L41: 226 | M41: 226 | N41: 226 | O41: =$B$226 -> 222 | AK41: HG Sicily
A42: PzGr gp 44 | B42: 38 | C42: Panzergrenadierkompanie (gp) | D42: 1 | E42: 1 | F42: 3 | G42: 0 | H42: 2 | I42: 324 | J42: 0 | K42: 5 | L42: =$B$231 -> 227 | M42: 228 | N42: 228 | O42: 312 | P42: 229 | AK42: http://www.wwiidaybyday.com/kstn/kstn1114cgp1nov43.htm
A43: PzGr 44 | B43: 39 | C43: Panzergrenadierkompanie | D43: 1 | E43: 1 | F43: 3 | G43: 0 | H43: 2 | I43: 333 | J43: 0 | K43: 5 | L43: 230 | M43: 231 | N43: 231 | O43: 313 | P43: 232 | AK43: http://www.wwiidaybyday.com/kstn/kstn11141nov43.htm
A44: Krad 42 | B44: 40 | C44: Kraftradschützenkompanie | D44: 1 | E44: 1 | F44: 3 | G44: 1 | H44: 2 | I44: 218 | J44: 0 | K44: 4 | L44: =$B$237 -> 233 | M44: =$B$237 -> 233 | N44: =$B$237 -> 233 | O44: =$B$238 -> 234 | AK44: http://www.wwiidaybyday.com/kstn/kstn1112b1nov41.htm
A45: PzAufkl (gp) 42 | B45: 41 | C45: Panzeraufklärungskompanie (gp) | D45: 1 | E45: 1 | F45: 3 | G45: 1 | H45: 2 | I45: 277 | J45: 0 | K45: 5 | L45: 235 | M45: =$B$240 -> 236 | N45: =$B$240 -> 236 | O45: 236 | P45: =$B$241 -> 237 | AK45: http://www.wwiidaybyday.com/kstn/kstn1113gp1nov41.htm
A46: PzAufkl 44 | B46: 42 | C46: Panzeraufklärungskompanie | D46: 1 | E46: 1 | F46: 3 | G46: 1 | H46: 2 | I46: 305 | J46: 0 | K46: 5 | L46: 296 | M46: =$B$242 -> 238 | N46: 295 | O46: 295 | P46: =$B$243 -> 239
A47: PzAufkl (gp) 44 | B47: 43 | C47: Panzeraufklärungskompanie (gp) | D47: 1 | E47: 1 | F47: 3 | G47: 1 | H47: 2 | I47: 342 | J47: 0 | K47: 5 | L47: 235 | M47: =$B$244 -> 240 | N47: =$B$244 -> 240 | O47: 240 | P47: 237
A48: Pio 42 | B48: 44 | C48: Pionierkompanie | D48: 1 | E48: 1 | F48: 3 | G48: 4 | H48: 2 | I48: 284 | J48: 0 | K48: 4 | L48: =$B$245 -> 241 | M48: =$B$245 -> 241 | N48: 241 | O48: =$B$246 -> 242 | AK48: 6 leMG, 2 sMG
A49: Pio 44 | B49: 45 | C49: Pionierkompanie | D49: 1 | E49: 1 | F49: 3 | G49: 4 | H49: 2 | I49: 315 | J49: 0 | K49: 5 | L49: =$B$247 -> 243 | M49: =$B$247 -> 243 | N49: =$B$247 -> 243 | O49: =$B$248 -> 244 | P49: =$B$249 -> 245
A50: SS PzGr 44 | B50: 46 | C50: Panzergrenadierkompanie | D50: 1 | E50: 1 | F50: 3 | G50: 3 | H50: 2 | I50: 350 | J50: 3 | K50: 4 | L50: 353 | M50: 353 | N50: 353 | O50: =$B$250 -> 246 | P50: =$B$250 -> 246 | Q50: =$B$250 -> 246 | R50: =$B$251 -> 247
B51: 47 | C51: (Reserved) | D51: 0 | E51: 0 | F51: 0 | G51: 0 | H51: 0 | I51: -1 | J51: 0 | K51: 0
B52: 48 | C52: (Reserved) | D52: 0 | E52: 0 | F52: 0 | G52: 0 | H52: 0 | I52: -1 | J52: 0 | K52: 0
A53: AS41 | B53: 49 | C53: Compagnia Fanteria | D53: 1 | E53: 2 | F53: 3 | G53: 0 | H53: 0 | I53: 374 | J53: 0 | K53: 3 | L53: =$B$252 -> 248 | M53: =$B$252 -> 248 | N53: =$B$252 -> 248 | AK53: 3 x Inf Plt w/ 2 x section (old, large unit org w/ 2 leMG per section)
A54: AS42 | B54: 50 | C54: Compagnia Fanteria AS42 | D54: 1 | E54: 2 | F54: 3 | G54: 0 | H54: 0 | I54: 374 | J54: 0 | K54: 4 | L54: 249 | M54: 250 | N54: 251 | O54: 252 | AK54: Inf Plt w/ 6 leMG, MG plt 3 MMG, ATR Plt 3 x 20mm ATR, AT plt 3 x 47/35 ATG
A55: Superga | B55: 51 | C55: Compagnia Fanteria | D55: 1 | E55: 2 | F55: 3 | G55: 0 | H55: 0 | I55: 374 | J55: 0 | K55: 5 | L55: 253 | M55: 253 | N55: 253 | O55: 254 | P55: 255 | AK55: 3 x Inf Plt w/ 3 squad = 9 leMG, MG plt w/ 4 sMG, Mortar plt w/ 3 45mm Mortar
A56: Bers. AS41 | B56: 52 | C56: Compagnia Bersaglieri | D56: 1 | E56: 2 | F56: 3 | G56: 0 | H56: 2 | I56: 397 | J56: 0 | K56: 4 | L56: 256 | M56: 256 | N56: 256 | O56: 258 | AK56: 3 x Inf Plt w/ 2 squads = 6 leMG, MG plt w/ 4 x HMG, AT section 3 x 47/35 ATG
A57: Bers. AS42 | B57: 53 | C57: Compagnia Bersaglieri AS42 | D57: 1 | E57: 2 | F57: 3 | G57: 0 | H57: 2 | I57: 397 | J57: 0 | K57: 4 | L57: =$B$261 -> 257 | M57: 258 | N57: 259 | O57: 260 | AK57: (As Inf?)
A58: Coastal coy | B58: 54 | C58: Compagnia Costiero | D58: 1 | E58: 2 | F58: 3 | G58: 0 | H58: 0 | I58: 409 | J58: 0 | K58: 4 | L58: 261 | M58: 261 | N58: 261 | O58: 307 | AK58: ????
B59: 55 | C59: (Reserved) | D59: 0 | E59: 0 | F59: 0 | G59: 0 | H59: 0 | I59: -1 | J59: 0 | K59: 0
B60: 56 | C60: (Reserved) | D60: 0 | E60: 0 | F60: 0 | G60: 0 | H60: 0 | I60: -1 | J60: 0 | K60: 0
B61: 57 | C61: (Reserved) | D61: 0 | E61: 0 | F61: 0 | G61: 0 | H61: 0 | I61: -1 | J61: 0 | K61: 0
A62: Individual | B62: 58 | C62: M1917A1 Machine Gun Squad | D62: 0 | E62: 0 | F62: 0 | G62: 6 | H62: 0 | I62: -1 | J62: 1 | K62: 0 | L62: 31
A63: Support | B63: 59 | C63: 81mm Mortar | D63: 0 | E63: 0 | F63: 0 | G63: 6 | H63: 0 | I63: -1 | J63: 1 | K63: 0 | L63: 32
A64: Units | B64: 60 | C64: M3 Light Tank | D64: 0 | E64: 0 | F64: 0 | G64: 6 | H64: 2 | I64: -1 | J64: 1 | K64: 0 | L64: 121
B65: 61 | C65: M5 Light Tank | D65: 0 | E65: 0 | F65: 0 | G65: 6 | H65: 2 | I65: -1 | J65: 1 | K65: 0 | L65: 122
B66: 62 | C66: M3 Medium Tank | D66: 0 | E66: 0 | F66: 0 | G66: 6 | H66: 2 | I66: -1 | J66: 1 | K66: 0 | L66: 123
B67: 63 | C67: M4 Medium Tank | D67: 0 | E67: 0 | F67: 0 | G67: 6 | H67: 2 | I67: -1 | J67: 1 | K67: 0 | L67: 124
B68: 64 | C68: M4A1 Medium Tank | D68: 0 | E68: 0 | F68: 0 | G68: 6 | H68: 2 | I68: -1 | J68: 1 | K68: 0 | L68: 125
B69: =B68+1 -> 65 | C69: M4A1(76) Medium Tank | D69: 0 | E69: 0 | F69: 0 | G69: 6 | H69: 2 | I69: -1 | J69: 1 | K69: 0 | L69: 126
B70: 66 | C70: M4(105) Medium Tank | D70: 0 | E70: 0 | F70: 0 | G70: 6 | H70: 2 | I70: -1 | J70: 1 | K70: 0 | L70: 127
B71: 67 | C71: M3 75mm GMC | D71: 0 | E71: 0 | F71: 0 | G71: 6 | H71: 2 | I71: -1 | J71: 1 | K71: 0 | L71: 128
B72: 68 | C72: M10 3-Inch GMC | D72: 0 | E72: 0 | F72: 0 | G72: 6 | H72: 2 | I72: -1 | J72: 1 | K72: 0 | L72: 129
B73: 69 | C73: M2 Halftrack | D73: 0 | E73: 0 | F73: 0 | G73: 6 | H73: 2 | I73: -1 | J73: 1 | K73: 0 | L73: 130
B74: 70 | C74: M2A1 Halftrack | D74: 0 | E74: 0 | F74: 0 | G74: 6 | H74: 2 | I74: -1 | J74: 1 | K74: 0 | L74: 131
B75: 71 | C75: M3 Halftrack | D75: 0 | E75: 0 | F75: 0 | G75: 6 | H75: 2 | I75: -1 | J75: 1 | K75: 0 | L75: 132
B76: 72 | C76: M3A1 Halftrack | D76: 0 | E76: 0 | F76: 0 | G76: 6 | H76: 2 | I76: -1 | J76: 1 | K76: 0 | L76: 133
B77: 73 | C77: T19 105mm HMC | D77: 0 | E77: 0 | F77: 0 | G77: 6 | H77: 2 | I77: -1 | J77: 1 | K77: 0 | L77: 138
B78: 74 | C78: T30 75mm HMC | D78: 0 | E78: 0 | F78: 0 | G78: 6 | H78: 2 | I78: -1 | J78: 1 | K78: 0 | L78: 139
B79: 75 | C79: 3/4 Ton Weapons Carrier | D79: 0 | E79: 0 | F79: 0 | G79: 6 | H79: 2 | I79: -1 | J79: 1 | K79: 0 | L79: 140
B80: 76 | C80: 2 1/2 Ton Truck | D80: 0 | E80: 0 | F80: 0 | G80: 6 | H80: 2 | I80: -1 | J80: 1 | K80: 0 | L80: 141
B81: 77 | C81: Jeep | D81: 0 | E81: 0 | F81: 0 | G81: 6 | H81: 2 | I81: -1 | J81: 1 | K81: 0 | L81: 142
B82: 78 | C82: Jeep w/ .30 cal MG | D82: 0 | E82: 0 | F82: 0 | G82: 6 | H82: 2 | I82: -1 | J82: 1 | K82: 0 | L82: 143
B83: 79 | C83: M3 Scout Car | D83: 0 | E83: 0 | F83: 0 | G83: 6 | H83: 2 | I83: -1 | J83: 1 | K83: 0 | L83: 145
B84: 80 | C84: M20 Armored Utility Car | D84: 0 | E84: 0 | F84: 0 | G84: 6 | H84: 2 | I84: -1 | J84: 1 | K84: 0 | L84: 146
B85: 81 | C85: M8 Armored Car | D85: 0 | E85: 0 | F85: 0 | G85: 6 | H85: 2 | I85: -1 | J85: 1 | K85: 0 | L85: 147
B86: 82 | C86: 37mm Gun M3 | D86: 0 | E86: 0 | F86: 0 | G86: 6 | H86: 0 | I86: -1 | J86: 1 | K86: 0 | L86: 12
B87: 83 | C87: 57mm Gun M1 | D87: 0 | E87: 0 | F87: 0 | G87: 6 | H87: 0 | I87: -1 | J87: 1 | K87: 0 | L87: 58
B88: 84 | C88: 3-Inch Gun M5 | D88: 0 | E88: 0 | F88: 0 | G88: 6 | H88: 0 | I88: -1 | J88: 1 | K88: 0 | L88: 148
B89: 85 | C89: 105mm Howitzer M2A1 | D89: 0 | E89: 0 | F89: 0 | G89: 6 | H89: 0 | I89: -1 | J89: 1 | K89: 0 | L89: 149
B90: 86 | C90: (Reserved) | D90: 0 | E90: 0 | F90: 0 | G90: 0 | H90: 0 | I90: -1 | J90: 0 | K90: 0
B91: 87 | C91: (Reserved) | D91: 0 | E91: 0 | F91: 0 | G91: 0 | H91: 0 | I91: -1 | J91: 0 | K91: 0
B92: 88 | C92: (Reserved) | D92: 0 | E92: 0 | F92: 0 | G92: 0 | H92: 0 | I92: -1 | J92: 0 | K92: 0
B93: 89 | C93: (Reserved) | D93: 0 | E93: 0 | F93: 0 | G93: 0 | H93: 0 | I93: -1 | J93: 0 | K93: 0
B94: 90 | C94: (Reserved) | D94: 0 | E94: 0 | F94: 0 | G94: 0 | H94: 0 | I94: -1 | J94: 0 | K94: 0
B95: 91 | C95: sMG 34 | D95: 1 | E95: 1 | F95: 0 | G95: 6 | H95: 0 | I95: -1 | J95: 1 | K95: 0 | L95: 217
B96: 92 | C96: sMG 42 | D96: 1 | E96: 1 | F96: 0 | G96: 6 | H96: 0 | I96: -1 | J96: 1 | K96: 0 | L96: 297
B97: 93 | C97: 7.92mm PzB 39 AT Rifle | D97: 1 | E97: 1 | F97: 0 | G97: 6 | H97: 0 | I97: -1 | J97: 1 | K97: 0 | L97: 209
B98: 94 | C98: 5cm Mortar | D98: 1 | E98: 1 | F98: 0 | G98: 6 | H98: 0 | I98: -1 | J98: 1 | K98: 0 | L98: 368
B99: 95 | C99: 8cm Mortar | D99: 1 | E99: 1 | F99: 0 | G99: 6 | H99: 0 | I99: -1 | J99: 1 | K99: 0 | L99: 226
B100: 96 | C100: Panzerschreck | D100: 1 | E100: 1 | F100: 0 | G100: 6 | H100: 0 | I100: -1 | J100: 1 | K100: 0 | L100: 330
B101: =B100+1 -> 97 | C101: JgPz IV | D101: 1 | E101: 1 | F101: 0 | G101: 6 | H101: 2 | I101: -1 | J101: 1 | K101: 0 | L101: 432
B102: 98 | C102: Pz VIE Tiger | D102: 1 | E102: 1 | F102: 0 | G102: 6 | H102: 2 | I102: -1 | J102: 1 | K102: 0 | L102: 433
B103: 99 | C103: Pz VA Panther | D103: 1 | E103: 1 | F103: 0 | G103: 6 | H103: 2 | I103: -1 | J103: 1 | K103: 0 | L103: 434
B104: 100 | C104: Panzer IIF | D104: 1 | E104: 1 | F104: 0 | G104: 6 | H104: 2 | I104: -1 | J104: 1 | K104: 0 | L104: 435
B105: 101 | C105: Panzer IVF1 | D105: 1 | E105: 1 | F105: 0 | G105: 6 | H105: 2 | I105: -1 | J105: 1 | K105: 0 | L105: 436
B106: 102 | C106: Panzer IVG | D106: 1 | E106: 1 | F106: 0 | G106: 6 | H106: 2 | I106: -1 | J106: 1 | K106: 0 | L106: 437
B107: 103 | C107: Panzer IVH | D107: 1 | E107: 1 | F107: 0 | G107: 6 | H107: 2 | I107: -1 | J107: 1 | K107: 0 | L107: 438
B108: 104 | C108: SdKfz 251/1 | D108: 1 | E108: 1 | F108: 0 | G108: 6 | H108: 2 | I108: -1 | J108: 1 | K108: 0 | L108: 248
B109: 105 | C109: SdKfz 251/9 | D109: 1 | E109: 1 | F109: 0 | G109: 6 | H109: 2 | I109: -1 | J109: 1 | K109: 0 | L109: 332
B110: 106 | C110: SdKfz 251/10 | D110: 1 | E110: 1 | F110: 0 | G110: 6 | H110: 2 | I110: -1 | J110: 1 | K110: 0 | L110: 250
B111: 107 | C111: StuG IIIF | D111: 1 | E111: 1 | F111: 0 | G111: 6 | H111: 2 | I111: -1 | J111: 1 | K111: 0 | L111: 439
B112: 108 | C112: StuG IIIG | D112: 1 | E112: 1 | F112: 0 | G112: 6 | H112: 2 | I112: -1 | J112: 1 | K112: 0 | L112: 440
B113: 109 | C113: Kubelwagon | D113: 1 | E113: 1 | F113: 0 | G113: 6 | H113: 2 | I113: -1 | J113: 1 | K113: 0 | L113: 441
B114: 110 | C114: Opel Blitz | D114: 1 | E114: 1 | F114: 0 | G114: 6 | H114: 2 | I114: -1 | J114: 1 | K114: 0 | L114: 442
B115: 111 | C115: PSW 222 | D115: 1 | E115: 1 | F115: 0 | G115: 6 | H115: 2 | I115: -1 | J115: 1 | K115: 0 | L115: 443
B116: 112 | C116: PSW 232 | D116: 1 | E116: 1 | F116: 0 | G116: 6 | H116: 2 | I116: -1 | J116: 1 | K116: 0 | L116: 444
B117: 113 | C117: SdKfz 250/1 | D117: 1 | E117: 1 | F117: 0 | G117: 6 | H117: 2 | I117: -1 | J117: 1 | K117: 0 | L117: 281
B118: 114 | C118: SdKfz 250/8 | D118: 1 | E118: 1 | F118: 0 | G118: 6 | H118: 2 | I118: -1 | J118: 1 | K118: 0 | L118: 283
B119: 115 | C119: SdKfz 250/10 | D119: 1 | E119: 1 | F119: 0 | G119: 6 | H119: 2 | I119: -1 | J119: 1 | K119: 0 | L119: 431
B120: 116 | C120: 2cm Flak 38 | D120: 1 | E120: 1 | F120: 0 | G120: 6 | H120: 0 | I120: -1 | J120: 1 | K120: 0 | L120: 445
B121: 117 | C121: 3.7cm Pak 36 | D121: 1 | E121: 1 | F121: 0 | G121: 6 | H121: 0 | I121: -1 | J121: 1 | K121: 0 | L121: 446
B122: 118 | C122: 5cm Pak 38 | D122: 1 | E122: 1 | F122: 0 | G122: 6 | H122: 0 | I122: -1 | J122: 1 | K122: 0 | L122: 447
B123: 119 | C123: 7.5cm Pak 40 | D123: 1 | E123: 1 | F123: 0 | G123: 6 | H123: 0 | I123: -1 | J123: 1 | K123: 0 | L123: 448
B124: 120 | C124: 8.8cm Flak | D124: 1 | E124: 1 | F124: 0 | G124: 6 | H124: 0 | I124: -1 | J124: 1 | K124: 0 | L124: 449
B125: 121 | C125: 7.5cm IG | D125: 1 | E125: 1 | F125: 0 | G125: 6 | H125: 0 | I125: -1 | J125: 1 | K125: 0 | L125: 450
B126: 122 | C126: PanzerIII kz | D126: 1 | E126: 1 | F126: 0 | G126: 6 | H126: 2 | I126: -1 | J126: 1 | K126: 0 | L126: 452
B127: 123 | C127: Panzer IIIJ | D127: 1 | E127: 1 | F127: 0 | G127: 6 | H127: 2 | I127: -1 | J127: 1 | K127: 0 | L127: 451
B128: 124 | C128: Panzer IIIN | D128: 1 | E128: 1 | F128: 0 | G128: 6 | H128: 2 | I128: -1 | J128: 1 | K128: 0 | L128: 453
B129: 125 | C129: Marder IIIH | D129: 1 | E129: 1 | F129: 0 | G129: 6 | H129: 2 | I129: -1 | J129: 1 | K129: 0 | L129: 454
B130: 126 | C130: 76.2cm Pak36(r) | D130: 1 | E130: 1 | F130: 0 | G130: 6 | H130: 0 | I130: -1 | J130: 1 | K130: 0 | L130: 369
B131: 127 | C131: 2.8cm sPzB 41 | D131: 1 | E131: 1 | F131: 0 | G131: 6 | H131: 0 | I131: -1 | J131: 1 | K131: 0 | L131: 455
B132: 128 | C132: (Reserved) | D132: 0 | E132: 0 | F132: 0 | G132: 0 | H132: 0 | I132: -1 | J132: 0 | K132: 0
B133: =B132+1 -> 129 | C133: (Reserved) | D133: 0 | E133: 0 | F133: 0 | G133: 0 | H133: 0 | I133: -1 | J133: 0 | K133: 0
B134: 130 | C134: Fiat 35 MMG | D134: 1 | E134: 2 | F134: 0 | G134: 6 | H134: 0 | I134: -1 | J134: 1 | K134: 0 | L134: 413
B135: 131 | C135: Breda 37 MMG | D135: 1 | E135: 2 | F135: 0 | G135: 6 | H135: 0 | I135: -1 | J135: 1 | K135: 0 | L135: 383
B136: 132 | C136: 45mm Brixa Mortar | D136: 1 | E136: 2 | F136: 0 | G136: 6 | H136: 0 | I136: -1 | J136: 1 | K136: 0 | L136: 387
B137: 133 | C137: 81mm Mortar | D137: 1 | E137: 2 | F137: 0 | G137: 6 | H137: 0 | I137: -1 | J137: 1 | K137: 0 | L137: 388
B138: 134 | C138: 20mm AT Rifle S | D138: 1 | E138: 2 | F138: 0 | G138: 6 | H138: 0 | I138: -1 | J138: 1 | K138: 0 | L138: 395
B139: 135 | C139: 20mm Breda AA Gun | D139: 1 | E139: 2 | F139: 0 | G139: 6 | H139: 0 | I139: -1 | J139: 1 | K139: 0 | L139: 415
B140: 136 | C140: Cannone da 47/32 M35 | D140: 1 | E140: 2 | F140: 0 | G140: 6 | H140: 2 | I140: -1 | J140: 1 | K140: 0 | L140: 396
B141: 137 | C141: M14/41 Tank | D141: 1 | E141: 2 | F141: 0 | G141: 6 | H141: 2 | I141: -1 | J141: 1 | K141: 0 | L141: 416
B142: 138 | C142: Semovente 75/18 | D142: 1 | E142: 2 | F142: 0 | G142: 6 | H142: 2 | I142: -1 | J142: 1 | K142: 0 | L142: 417
B143: 139 | C143: Renault MR-35 | D143: 1 | E143: 2 | F143: 0 | G143: 6 | H143: 2 | I143: -1 | J143: 1 | K143: 0 | L143: 418
B144: 140 | C144: Italian Truck | D144: 1 | E144: 2 | F144: 0 | G144: 6 | H144: 2 | I144: -1 | J144: 1 | K144: 0 | L144: 419
B145: 141 | C145: (Reserved) | D145: 0 | E145: 0 | F145: 0 | G145: 0 | H145: 0 | I145: -1 | J145: 0 | K145: 0
B146: 142 | C146: (Reserved) | D146: 0 | E146: 0 | F146: 0 | G146: 0 | H146: 0 | I146: -1 | J146: 0 | K146: 0
B147: 143 | C147: Company HQ, Rifle Company 42 | D147: 0 | E147: 0 | F147: 3 | G147: 6 | H147: 1 | I147: -1 | J147: 2 | K147: 0 | L147: 140 | M147: 142
B148: 144 | C148: Company HQ, Rifle Company 43 | D148: 0 | E148: 0 | F148: 3 | G148: 6 | H148: 1 | I148: -1 | J148: 10 | K148: 0 | L148: 22 | M148: 42 | N148: 42 | O148: 42 | P148: 191 | Q148: 43 | R148: 43 | S148: 43 | T148: 142 | U148: 142
B149: 145 | C149: Company HQ, Rifle Company 44 | D149: 0 | E149: 0 | F149: 3 | G149: 6 | H149: 1 | I149: -1 | J149: 12 | K149: 0 | L149: 45 | M149: 65 | N149: 65 | O149: 65 | P149: 65 | Q149: 65 | R149: 191 | S149: 66 | T149: 66 | U149: 66 | V149: 142 | W149: 142
A150: US Platoon Org | B150: 146 | C150: Rifle Platoon 42 | D150: 0 | E150: 0 | F150: 2 | G150: 0 | H150: 1 | I150: 1 | J150: 1 | K150: 3 | L150: 2 | M150: =$B$173 -> 169 | N150: =$B$173 -> 169 | O150: =$B$173 -> 169
A151: Starts Here | B151: 147 | C151: Rifle Platoon 43 | D151: 0 | E151: 0 | F151: 2 | G151: 0 | H151: 1 | I151: 23 | J151: 0 | K151: 3 | L151: =$B$174 -> 170 | M151: =$B$174 -> 170 | N151: =$B$174 -> 170
B152: 148 | C152: Rifle Platoon 44 | D152: 0 | E152: 0 | F152: 2 | G152: 0 | H152: 1 | I152: 46 | J152: 0 | K152: 3 | L152: =$B$175 -> 171 | M152: =$B$175 -> 171 | N152: =$B$175 -> 171
B153: 149 | C153: Heavy Weapons Platoon 42 | D153: 0 | E153: 0 | F153: 2 | G153: 6 | H153: 1 | I153: 5 | J153: 7 | K153: 0 | L153: 6 | M153: 7 | N153: 7 | O153: 8 | P153: 9 | Q153: 9 | R153: 9
B154: 150 | C154: Heavy Weapons Platoon 43 | D154: 0 | E154: 0 | F154: 2 | G154: 6 | H154: 1 | I154: 26 | J154: 7 | K154: 0 | L154: 27 | M154: 28 | N154: 28 | O154: 29 | P154: 30 | Q154: 30 | R154: 30
B155: 151 | C155: Heavy Weapons Platoon 44 | D155: 0 | E155: 0 | F155: 2 | G155: 6 | H155: 1 | I155: 49 | J155: 7 | K155: 0 | L155: 50 | M155: 51 | N155: 51 | O155: 52 | P155: 53 | Q155: 53 | R155: 53
B156: 152 | C156: Parachute Rifle Platoon 42 | D156: 0 | E156: 0 | F156: 2 | G156: 0 | H156: 0 | I156: 76 | J156: 0 | K156: 3 | L156: =$B$176 -> 172 | M156: =$B$176 -> 172 | N156: 308
B157: 153 | C157: Parachute Rifle Platoon 44 | D157: 0 | E157: 0 | F157: 2 | G157: 0 | H157: 0 | I157: 68 | J157: 0 | K157: 4 | L157: =$B$177 -> 173 | M157: =$B$177 -> 173 | N157: =$B$177 -> 173 | O157: 309
B158: 154 | C158: Armored Rifle Platoon 42 | D158: 0 | E158: 0 | F158: 2 | G158: 0 | H158: 2 | I158: 110 | J158: 1 | K158: 4 | L158: 111 | M158: =$B$178 -> 174 | N158: =$B$178 -> 174 | O158: 175 | P158: 176
B159: 155 | C159: Armd Inf Company Weapons 42 | D159: 0 | E159: 0 | F159: 2 | G159: 6 | H159: 2 | I159: -1 | J159: 10 | K159: 0 | L159: 132 | M159: 132 | N159: 132 | O159: 132 | P159: 130 | Q159: 130 | R159: 142 | S159: 117 | T159: 117 | U159: 117
B160: 156 | C160: Armd Inf Company Weapons 44 | D160: 0 | E160: 0 | F160: 2 | G160: 6 | H160: 1 | I160: -1 | J160: 11 | K160: 0 | L160: 137 | M160: 137 | N160: 137 | O160: 137 | P160: 137 | Q160: 133 | R160: 133 | S160: 133 | T160: 133 | U160: 142 | V160: 142
B161: 157 | C161: Armored Infantry Platoon 44 | D161: 0 | E161: 0 | F161: 2 | G161: 0 | H161: 1 | I161: 97 | J161: 1 | K161: 4 | L161: 98 | M161: =$B$181 -> 177 | N161: 177 | O161: =$B$183 -> 179 | P161: 178
B162: 158 | C162: Armd. Inf. Anti-Tank Platoon 44 | D162: 0 | E162: 0 | F162: 2 | G162: 3 | H162: 2 | I162: 104 | J162: 7 | K162: 0 | L162: 105 | M162: 105 | N162: 105 | O162: 137 | P162: 133 | Q162: 133 | R162: 142
B163: 159 | C163: Company HQ, Armored Recon 42 | D163: 0 | E163: 0 | F163: 2 | G163: 1 | H163: 2 | I163: -1 | J163: 12 | K163: 0 | L163: 117 | M163: 117 | N163: 117 | O163: 117 | P163: 117 | Q163: 117 | R163: 132 | S163: 142 | T163: 142 | U163: 142 | V163: 142 | W163: 142
B164: 160 | C164: Armored Recon Platoon 42 | D164: 0 | E164: 0 | F164: 2 | G164: 1 | H164: 2 | I164: 84 | J164: 0 | K164: 3 | L164: 181 | M164: 182 | N164: 183
B165: 161 | C165: Troop HQ, Cavalry Recon 42 | D165: 0 | E165: 0 | F165: 2 | G165: 6 | H165: 2 | I165: -1 | J165: 7 | K165: 0 | L165: 140 | M165: 142 | N165: 142 | O165: 142 | P165: 142 | Q165: 142 | R165: 142
B166: 162 | C166: Cavalry Recon Platoon 42 | D166: 0 | E166: 0 | F166: 2 | G166: 1 | H166: 2 | I166: 84 | J166: 0 | K166: 4 | L166: =$B$188 -> 184 | M166: =$B$189 -> 185 | N166: =$B$190 -> 186 | O166: =$B$191 -> 187
B167: 163 | C167: Troop HQ, Mechanized Cavalry 44 | D167: 0 | E167: 0 | F167: 2 | G167: 6 | H167: 2 | I167: -1 | J167: 8 | K167: 0 | L167: 147 | M167: 95 | N167: 142 | O167: 142 | P167: 142 | Q167: 142 | R167: 142 | S167: 142
B168: 164 | C168: Mechanized Cavalry Platoon 44 | D168: 0 | E168: 0 | F168: 2 | G168: 1 | H168: 2 | I168: 91 | J168: 0 | K168: 3 | L168: 189 | M168: 190 | N168: 188
B169: 165 | C169: Company HQ, Combat Engineer 42 | D169: 0 | E169: 0 | F169: 2 | G169: 6 | H169: 1 | I169: -1 | J169: 15 | K169: 0 | L169: 134 | M169: 192 | N169: 192 | O169: 192 | P169: 190 | Q169: 190 | R169: 190 | S169: 190 | T169: 190 | U169: 190 | V169: 142 | W169: 141 | X169: 141 | Y169: 141 | Z169: 141
B170: 166 | C170: Combat Engineer Rifle Platoon 42 | D170: 0 | E170: 0 | F170: 2 | G170: 4 | H170: 1 | I170: 19 | J170: 0 | K170: 3 | L170: 192 | M170: 192 | N170: 192
B171: 167 | C171: Company HQ, Combat Engineer 44 | D171: 0 | E171: 0 | F171: 2 | G171: 6 | H171: 1 | I171: -1 | J171: 19 | K171: 0 | L171: 65 | M171: 65 | N171: 65 | O171: 191 | P171: 191 | Q171: 191 | R171: 190 | S171: 190 | T171: 190 | U171: 190 | V171: 190 | W171: 190 | X171: 140 | Y171: 142 | Z171: 142 | AA171: 141 | AB171: 141 | AC171: 141 | AD171: 141
B172: 168 | C172: Combat Engineer Rifle Platoon 44 | D172: 0 | E172: 0 | F172: 2 | G172: 4 | H172: 1 | I172: 63 | J172: 0 | K172: 3 | L172: =$B$198 -> 194 | M172: =$B$198 -> 194 | N172: =$B$198 -> 194
A173: US Squad org | B173: 169 | C173: Rifle Squad 42 | D173: 0 | E173: 0 | F173: 0 | G173: 0 | H173: 0 | I173: -1 | J173: 2 | K173: 0 | L173: 3 | M173: 4
A174: Starts Here | B174: 170 | C174: Rifle Squad 43 | D174: 0 | E174: 0 | F174: 0 | G174: 0 | H174: 0 | I174: -1 | J174: 2 | K174: 0 | L174: 24 | M174: 25
B175: 171 | C175: Rifle Squad 44 | D175: 0 | E175: 0 | F175: 0 | G175: 0 | H175: 0 | I175: -1 | J175: 2 | K175: 0 | L175: 47 | M175: 48
B176: 172 | C176: Parachute Rifle Squad 42 | D176: 0 | E176: 0 | F176: 0 | G176: 0 | H176: 0 | I176: -1 | J176: 2 | K176: 0 | L176: 77 | M176: 78
B177: 173 | C177: Parachute Rifle Squad 44 | D177: 0 | E177: 0 | F177: 0 | G177: 0 | H177: 0 | I177: -1 | J177: 2 | K177: 0 | L177: 69 | M177: 70
B178: 174 | C178: Armored Rifle Squads 42 | D178: 0 | E178: 0 | F178: 0 | G178: 0 | H178: 0 | I178: -1 | J178: 2 | K178: 0 | L178: 112 | M178: 113
B179: 175 | C179: Armored Rifle MG Squad 42 | D179: 0 | E179: 0 | F179: 0 | G179: 6 | H179: 0 | I179: -1 | J179: 2 | K179: 0 | L179: 115 | M179: 116
B180: 176 | C180: Armored Rifle Mortar Squad 42 | D180: 0 | E180: 0 | F180: 0 | G180: 6 | H180: 1 | I180: -1 | J180: 1 | K180: 0 | L180: 114
B181: 177 | C181: Armored Rifle Squad 44 | D181: 0 | E181: 0 | F181: 0 | G181: 0 | H181: 1 | I181: -1 | J181: 2 | K181: 0 | L181: 99 | M181: 100
B182: 178 | C182: Armored Rifle Mortar Squad 44 | D182: 0 | E182: 0 | F182: 0 | G182: 6 | H182: 1 | I182: -1 | J182: 1 | K182: 0 | L182: 101
B183: 179 | C183: Armored Rifle MG Squad 44 | D183: 0 | E183: 0 | F183: 0 | G183: 6 | H183: 1 | I183: -1 | J183: 2 | K183: 0 | L183: 102 | M183: 103
B184: 180 | C184: (Reserved) | D184: 0 | E184: 0 | F184: 0 | G184: 3 | H184: 2 | I184: -1 | J184: 0 | K184: 0
B185: 181 | C185: Armored Recon Squad 42 1 | D185: 0 | E185: 0 | F185: 0 | G185: 3 | H185: 2 | I185: -1 | J185: 4 | K185: 0 | L185: 145 | M185: 145 | N185: 92 | O185: 94
B186: 182 | C186: Armored Recon Squad 42 2 | D186: 0 | E186: 0 | F186: 0 | G186: 1 | H186: 2 | I186: -1 | J186: 4 | K186: 0 | L186: 145 | M186: 145 | N186: 93 | O186: 94
B187: 183 | C187: Armored Recon Assault Gun Sect 42 | D187: 0 | E187: 0 | F187: 0 | G187: 1 | H187: 2 | I187: -1 | J187: 1 | K187: 0 | L187: 139
B188: 184 | C188: Cavalry Recon Squad 42 (Dismount) | D188: 0 | E188: 0 | F188: 0 | G188: 1 | H188: 2 | I188: -1 | J188: 4 | K188: 0 | L188: 145 | M188: 154 | N188: 155 | O188: 156
B189: 185 | C189: Cavalry Recon Squad 42 | D189: 0 | E189: 0 | F189: 0 | G189: 1 | H189: 2 | I189: -1 | J189: 4 | K189: 0 | L189: 145 | M189: 143 | N189: 143 | O189: 144
B190: 186 | C190: Cavalry Recon Mortar Squad 42 | D190: 0 | E190: 0 | F190: 0 | G190: 6 | H190: 2 | I190: -1 | J190: 1 | K190: 0 | L190: 89
B191: 187 | C191: Cavalry Recon Pioneer Squad 42 | D191: 0 | E191: 0 | F191: 0 | G191: 6 | H191: 2 | I191: -1 | J191: 1 | K191: 0 | L191: 88
B192: 188 | C192: Mech Recon Squad 44 | D192: 0 | E192: 0 | F192: 0 | G192: 1 | H192: 2 | I192: -1 | J192: 3 | K192: 0 | L192: 147 | M192: 143 | N192: 94
B193: 189 | C193: Mech Recon Squad 44 (Dismount 1) | D193: 0 | E193: 0 | F193: 0 | G193: 1 | H193: 2 | I193: -1 | J193: 3 | K193: 0 | L193: 147 | M193: 92 | N193: 94
B194: 190 | C194: Mech Recon Squad 44 (Dismount 2) | D194: 0 | E194: 0 | F194: 1 | G194: 1 | H194: 2 | I194: -1 | J194: 3 | K194: 0 | L194: 147 | M194: 93 | N194: 94
B195: 191 | C195: (RESERVED) | D195: 0 | E195: 0 | F195: 0 | G195: 4 | H195: 1 | I195: -1 | J195: 0 | K195: 0
B196: 192 | C196: Combat Engineer Squad 42 | D196: 0 | E196: 0 | F196: 0 | G196: 4 | H196: 1 | I196: -1 | J196: 2 | K196: 0 | L196: 17 | M196: 18
B197: 193 | C197: (RESERVED) | D197: 0 | E197: 0 | F197: 1 | G197: 4 | H197: 1 | I197: -1 | J197: 0 | K197: 0
B198: 194 | C198: Combat Engineer Squad 44 | D198: 0 | E198: 0 | F198: 1 | G198: 4 | H198: 1 | I198: -1 | J198: 2 | K198: 0 | L198: 61 | M198: 62
A199: German Platoon | B199: 195 | C199: Schützenzug 42 | D199: 1 | E199: 1 | F199: 2 | G199: 0 | H199: 0 | I199: 211 | J199: 0 | K199: 4 | L199: =$B$266 -> 262 | M199: =$B$266 -> 262 | N199: 262 | O199: 262
A200: org starts here | B200: 196 | C200: Granatwerfer Gruppe 42 | D200: 1 | E200: 1 | F200: 1 | G200: 0 | H200: 0 | I200: -1 | J200: 2 | K200: 0 | L200: 214 | M200: 215
... 154 more rows

Sheet TEAMS
B1: index | C1: Name | D1: Description | E1: Nation | F1: Unit Type (See TEAM TYPES) | G1: Echelon 0=Squad, 1=Section, 2=Platoon, 3=Company, 4=Battlion, 5=Regiment, 6=Division, 7=Corps, 8=Army Echelon (0-11) | H1: Icon Index | I1: (0=Conscript, 1 = Green, 2 = Regular, 3 = Experienced, 4 = Veteran, 5 = Elite) Experience (0-5) | J1: (0=Shaken, 1=Weak, 2=Average, 3=Confident, 4=Determined, 5=Fanatic) Morale (0-5) | K1: Proper Equip? | L1: Mine Clear? | M1: Soldier Count | N1: Vehicle Count
B2: count: | C2: 456
A3: // 1942 // | B3: 0 | C3: Company HQ | D3: Company HQ 1942 | E3: 0 | F3: 0 | G3: 3 | H3: 22 | I3: 1 | J3: 2 | K3: 1 | L3: 0 | M3: 6 | N3: 0 | O3: 53 | P3: 48 | Q3: 23 | R3: 23 | S3: 23 | T3: 23
B4: =B3+1 -> 1 | C4: Platoon HQ | D4: Platoon HQ – Command Team | E4: 0 | F4: 0 | G4: 2 | H4: 22 | I4: 1 | J4: 2 | K4: 1 | L4: 0 | M4: 4 | N4: 0 | O4: 47 | P4: 21 | Q4: 22 | R4: 22
B5: =B4+1 -> 2 | C5: Platoon Reserves | D5: Platoon HQ – Rifle Team | E5: 0 | F5: 1 | G5: 2 | H5: 1 | I5: 1 | J5: 2 | K5: 1 | L5: 0 | M5: 6 | N5: 0 | O5: 46 | P5: 1 | Q5: 1 | R5: 1 | S5: 1 | T5: 1
B6: 3 | C6: BAR Team | D6: Rifle Squad – Browning Automatic Rifle Team | E6: 0 | F6: 2 | G6: 0 | H6: 1 | I6: 1 | J6: 2 | K6: 1 | L6: 0 | M6: 6 | N6: 0 | O6: 36 | P6: 5 | Q6: 6 | R6: 18 | S6: 0 | T6: 0
B7: 4 | C7: Rifle Team | D7: Rifle Squad – Rifle Team | E7: 0 | F7: 1 | G7: 0 | H7: 1 | I7: 1 | J7: 2 | K7: 1 | L7: 0 | M7: 6 | N7: 0 | O7: 30 | P7: 0 | Q7: 0 | R7: 0 | S7: 0 | T7: 0
B8: 5 | C8: Wpns Platoon HQ | D8: Platoon HQ, Weapons Platoon 1942 | E8: 0 | F8: 0 | G8: 2 | H8: 22 | I8: 1 | J8: 2 | K8: 1 | L8: 0 | M8: 4 | N8: 0 | O8: 47 | P8: 44 | Q8: 23 | R8: 23
B9: 6 | C9: MG Section HQ | D9: Machinegun Section HQ, Weapons Platoon 1942 | E9: 0 | F9: 0 | G9: 1 | H9: 42 | I9: 1 | J9: 2 | K9: 1 | L9: 0 | M9: 3 | N9: 0 | O9: 41 | P9: 23 | Q9: 1
B10: 7 | C10: .30 MMG | D10: Machinegun Squad, Weapons Platoon 1942 | E10: 0 | F10: 5 | G10: 0 | H10: 3 | I10: 1 | J10: 2 | K10: 1 | L10: 0 | M10: 5 | N10: 0 | O10: 32 | P10: 10 | Q10: 15 | R10: 19 | S10: 19
B11: 8 | C11: Mortar Section HQ | D11: Mortar Section HQ, Weapons Platoon 1942 | E11: 0 | F11: 0 | G11: 1 | H11: 42 | I11: 1 | J11: 2 | K11: 1 | L11: 0 | M11: 4 | N11: 0 | O11: 41 | P11: 23 | Q11: 1 | R11: 1
B12: 9 | C12: 60mm Mortar | D12: 60mm Mortar Squad, Weapons Platoon 1942 | E12: 0 | F12: 8 | G12: 0 | H12: 7 | I12: 1 | J12: 2 | K12: 1 | L12: 0 | M12: 5 | N12: 0 | O12: 32 | P12: 12 | Q12: 15 | R12: 19 | S12: 19
B13: 10 | C13: .30cal HMG | D13: MG Squad, Heavy Weapons Company 1942 | E13: 0 | F13: 6 | G13: 4 | H13: 2 | I13: 1 | J13: 2 | K13: 1 | L13: 0 | M13: 7 | N13: 0 | O13: 62 | P13: 63 | Q13: 15 | R13: 19 | S13: 19 | T13: 19 | U13: 19
B14: 11 | C14: 81mm Mortar | D14: Mortar Squad, Heavy Weapons Company 1942 | E14: 0 | F14: 9 | G14: 4 | H14: 7 | I14: 1 | J14: 2 | K14: 1 | L14: 0 | M14: 7 | N14: 0 | O14: 62 | P14: 68 | Q14: 15 | R14: 19 | S14: 19 | T14: 19 | U14: 19
B15: 12 | C15: 37mm AT gun | D15: Anti-Tank Squad, Battalion AT Platoon 1942 | E15: 0 | F15: 13 | G15: 4 | H15: 4 | I15: 1 | J15: 2 | K15: 1 | L15: 0 | M15: 5 | N15: 1 | O15: 32 | P15: 14 | Q15: 16 | R15: 19 | S15: 1 | T15: 18
B16: 13 | C16: A&P Squad | D16: Ammunition & Pioneer Squad, Battalion A&P Platoon 1942 | E16: 0 | F16: 4 | G16: 4 | H16: 23 | I16: 1 | J16: 2 | K16: 1 | L16: 1 | M16: 8 | N16: 0 | O16: 8 | P16: 120 | Q16: 7 | R16: 7 | S16: 7 | T16: 7 | U16: 7 | V16: 7
B17: 14 | C17: 37mm AT gun | D17: Anti-Tank Squad, Rgt AT Company 1942 | E17: 0 | F17: 13 | G17: 4 | H17: 4 | I17: 1 | J17: 2 | K17: 1 | L17: 0 | M17: 5 | N17: 1 | O17: 32 | P17: 14 | Q17: 16 | R17: 19 | S17: 1 | T17: 18
B18: 15 | C18: Pioneer Squad | D18: Anti-Tank Mine Squad, Rgt. AT Company 1942 | E18: 0 | F18: 4 | G18: 5 | H18: 23 | I18: 1 | J18: 2 | K18: 1 | L18: 1 | M18: 8 | N18: 0 | O18: 118 | P18: 87 | Q18: 87 | R18: 87 | S18: 87 | T18: 87 | U18: 87 | V18: 87
B19: 16 | C19: I&R Section | D19: Intel & Recon Section, Rgt. HQ Company 1942 | E19: 0 | F19: 3 | G19: 5 | H19: 48 | I19: 1 | J19: 2 | K19: 1 | L19: 1 | M19: 3 | N19: 0 | O19: 134 | P19: 134 | Q19: 1
B20: 17 | C20: Engineer Team | D20: Combat Engineer Squad – Team 1 1942 | E20: 0 | F20: 4 | G20: 6 | H20: 23 | I20: 1 | J20: 2 | K20: 1 | L20: 1 | M20: 5 | N20: 0 | O20: 126 | P20: 117 | Q20: 67 | R20: 67 | S20: 67
B21: 18 | C21: Engineer Team | D21: Combat Engineer Squad – Team 2 1942 | E21: 0 | F21: 4 | G21: 6 | H21: 23 | I21: 1 | J21: 2 | K21: 1 | L21: 1 | M21: 5 | N21: 0 | O21: 127 | P21: 67 | Q21: 67 | R21: 67 | S21: 67
B22: 19 | C22: Platoon HQ | D22: Platoon HQ - Combat Engineer Platoon | E22: 0 | F22: 0 | G22: 6 | H22: 22 | I22: 1 | J22: 1 | K22: 1 | L22: 1 | M22: 3 | N22: 0 | O22: 47 | P22: 46 | Q22: 1
B23: 20 | C23: Company HQ | D23: Company HQ - Combat Engineer Company | E23: 0 | F23: 0 | G23: 6 | H23: 22 | I23: 1 | J23: 2 | K23: 1 | L23: 1 | M23: 5 | N23: 0 | O23: 53 | P23: 51 | Q23: 1 | R23: 1 | S23: 1
A24: // 1943 // | B24: 21 | C24: Company HQ | D24: Company HQ – Command Team 1943 | E24: 0 | F24: 0 | G24: 3 | H24: 22 | I24: 2 | J24: 2 | K24: 1 | L24: 0 | M24: 5 | N24: 0 | O24: 53 | P24: 48 | Q24: 23 | R24: 23 | S24: 23
B25: 22 | C25: Company Reserves | D25: Company HQ – Rifle Team 1943 | E25: 0 | F25: 1 | G25: 3 | H25: 22 | I25: 2 | J25: 2 | K25: 1 | L25: 0 | M25: 6 | N25: 0 | O25: 51 | P25: 1 | Q25: 1 | R25: 1 | S25: 1 | T25: 1
B26: 23 | C26: Platoon HQ | D26: Platoon HQ 1943 | E26: 0 | F26: 0 | G26: 2 | H26: 22 | I26: 2 | J26: 2 | K26: 1 | L26: 1 | M26: 5 | N26: 0 | O26: 47 | P26: 46 | Q26: 21 | R26: 22 | S26: 22
B27: 24 | C27: BAR Team | D27: Rifle Squad – Browning Automatic Rifle Team | E27: 0 | F27: 2 | G27: 0 | H27: 1 | I27: 2 | J27: 2 | K27: 1 | L27: 0 | M27: 6 | N27: 0 | O27: 33 | P27: 5 | Q27: 6 | R27: 18 | S27: 0 | T27: 0
B28: 25 | C28: Rifle Team | D28: Rifle Squad – Rifle Team | E28: 0 | F28: 1 | G28: 0 | H28: 1 | I28: 2 | J28: 2 | K28: 1 | L28: 0 | M28: 6 | N28: 0 | O28: 75 | P28: 0 | Q28: 0 | R28: 0 | S28: 0 | T28: 0
B29: 26 | C29: Wpns Platoon HQ | D29: Platoon HQ, Weapons Platoon 1943 | E29: 0 | F29: 0 | G29: 2 | H29: 22 | I29: 2 | J29: 2 | K29: 1 | L29: 0 | M29: 4 | N29: 0 | O29: 47 | P29: 44 | Q29: 23 | R29: 23
B30: 27 | C30: MG Section HQ | D30: Machinegun Section HQ, Weapons Platoon 1943 | E30: 0 | F30: 0 | G30: 0 | H30: 22 | I30: 2 | J30: 2 | K30: 1 | L30: 0 | M30: 2 | N30: 0 | O30: 41 | P30: 23
B31: 28 | C31: .30 MMG | D31: Machinegun Squad, Weapons Platoon 1943 | E31: 0 | F31: 4 | G31: 0 | H31: 3 | I31: 2 | J31: 2 | K31: 1 | L31: 0 | M31: 5 | N31: 0 | O31: 32 | P31: 10 | Q31: 15 | R31: 19 | S31: 19
B32: 29 | C32: Mortar HQ | D32: Mortar Section HQ, Weapons Platoon 1943 | E32: 0 | F32: 0 | G32: 0 | H32: 22 | I32: 2 | J32: 2 | K32: 1 | L32: 0 | M32: 2 | N32: 0 | O32: 41 | P32: 23
B33: 30 | C33: 60mm Mortar | D33: 60mm Mortar Squad, Weapons Platoon 1943 | E33: 0 | F33: 8 | G33: 0 | H33: 7 | I33: 2 | J33: 2 | K33: 1 | L33: 0 | M33: 5 | N33: 0 | O33: 32 | P33: 12 | Q33: 15 | R33: 19 | S33: 19
B34: 31 | C34: .30cal HMG | D34: MG Squad, Heavy Weapons Company 1943 | E34: 0 | F34: 5 | G34: 0 | H34: 2 | I34: 2 | J34: 2 | K34: 1 | L34: 0 | M34: 7 | N34: 0 | O34: 62 | P34: 63 | Q34: 15 | R34: 19 | S34: 19 | T34: 19 | U34: 19
B35: 32 | C35: 81mm Mortar | D35: Mortar Squad, Heavy Weapons Company 1943 | E35: 0 | F35: 9 | G35: 4 | H35: 7 | I35: 2 | J35: 2 | K35: 1 | L35: 0 | M35: 7 | N35: 0 | O35: 62 | P35: 68 | Q35: 15 | R35: 19 | S35: 19 | T35: 19 | U35: 19
B36: 33 | C36: 37mm AT gun | D36: Anti-Tank Squad, Battalion AT Platoon 1943 | E36: 0 | F36: 13 | G36: 4 | H36: 4 | I36: 2 | J36: 2 | K36: 1 | L36: 0 | M36: 4 | N36: 1 | O36: 32 | P36: 14 | Q36: 16 | R36: 19 | S36: 18
B37: 34 | C37: A&P Squad | D37: Ammunition & Pioneer Squad, Battalion A&P Platoon 1943 | E37: 0 | F37: 4 | G37: 4 | H37: 23 | I37: 2 | J37: 2 | K37: 1 | L37: 1 | M37: 8 | N37: 0 | O37: 8 | P37: 120 | Q37: 7 | R37: 7 | S37: 7 | T37: 7 | U37: 7 | V37: 7
B38: 35 | C38: 37mm AT gun | D38: Anti-Tank Squad, Rgt AT Company 1943 | E38: 0 | F38: 13 | G38: 4 | H38: 4 | I38: 2 | J38: 2 | K38: 1 | L38: 0 | M38: 4 | N38: 1 | O38: 32 | P38: 14 | Q38: 16 | R38: 19 | S38: 18
B39: 36 | C39: Pioneer Squad | D39: Anti-Tank Mine Squad, Rgt. AT Company 1943 | E39: 0 | F39: 4 | G39: 5 | H39: 23 | I39: 2 | J39: 2 | K39: 1 | L39: 1 | M39: 8 | N39: 0 | O39: 118 | P39: 87 | Q39: 87 | R39: 87 | S39: 87 | T39: 87 | U39: 87 | V39: 87
B40: 37 | C40: I&R Section | D40: Intel & Recon Section, Rgt. HQ Company 1943 | E40: 0 | F40: 3 | G40: 5 | H40: 48 | I40: 2 | J40: 2 | K40: 1 | L40: 1 | M40: 3 | N40: 0 | O40: 135 | P40: 134 | Q40: 134
B41: 38 | C41: Engineer Team | D41: Combat Engineer Squad – Team 1 1943 | E41: 0 | F41: 4 | G41: 6 | H41: 23 | I41: 2 | J41: 2 | K41: 1 | L41: 1 | M41: 5 | N41: 0 | O41: 126 | P41: 117 | Q41: 67 | R41: 67 | S41: 67
B42: 39 | C42: Engineer Team | D42: Combat Engineer Squad – Team 2 1943 | E42: 0 | F42: 4 | G42: 6 | H42: 23 | I42: 2 | J42: 2 | K42: 1 | L42: 1 | M42: 5 | N42: 0 | O42: 127 | P42: 67 | Q42: 67 | R42: 67 | S42: 67
B43: 40 | C43: Engineer Platoon HQ | D43: Platoon HQ - Combat Engineer Platoon 1943 | E43: 0 | F43: 0 | G43: 6 | H43: 22 | I43: 2 | J43: 2 | K43: 1 | L43: 1 | M43: 3 | N43: 0 | O43: 47 | P43: 46 | Q43: 1
B44: 41 | C44: Engineer Combat HQ | D44: Company HQ - Combat Engineer Company 1943 | E44: 0 | F44: 0 | G44: 6 | H44: 22 | I44: 2 | J44: 2 | K44: 1 | L44: 1 | M44: 5 | N44: 0 | O44: 53 | P44: 48 | Q44: 1 | R44: 1 | S44: 1
B45: 42 | C45: Bazooka | D45: Bazooka Team 1943 | E45: 0 | F45: 7 | G45: 0 | H45: 9 | I45: 2 | J45: 2 | K45: 1 | L45: 0 | M45: 2 | N45: 0 | O45: 76 | P45: 128
B46: 43 | C46: Sharpshooter | D46: Sniper 1943 | E46: 0 | F46: 11 | G46: 0 | H46: 52 | I46: 2 | J46: 2 | K46: 1 | L46: 0 | M46: 1 | N46: 0 | O46: 9
A47: // 1944 // | B47: 44 | C47: Company HQ | D47: Company HQ – Command Team 1944 | E47: 0 | F47: 0 | G47: 3 | H47: 22 | I47: 3 | J47: 3 | K47: 1 | L47: 0 | M47: 5 | N47: 0 | O47: 53 | P47: 82 | Q47: 23 | R47: 23 | S47: 23
B48: 45 | C48: Company Reserves | D48: Company HQ – Rifle Team 1944 | E48: 0 | F48: 1 | G48: 3 | H48: 22 | I48: 3 | J48: 3 | K48: 1 | L48: 0 | M48: 6 | N48: 0 | O48: 51 | P48: 83 | Q48: 1 | R48: 1 | S48: 1 | T48: 1
B49: 46 | C49: Platoon HQ | D49: Platoon HQ 1944 | E49: 0 | F49: 0 | G49: 2 | H49: 22 | I49: 3 | J49: 3 | K49: 1 | L49: 0 | M49: 5 | N49: 0 | O49: 47 | P49: 78 | Q49: 21 | R49: 22 | S49: 22
B50: 47 | C50: BAR Team | D50: Rifle Squad – Browning Automatic Rifle Team | E50: 0 | F50: 2 | G50: 0 | H50: 1 | I50: 3 | J50: 3 | K50: 1 | L50: 0 | M50: 6 | N50: 0 | O50: 40 | P50: 5 | Q50: 6 | R50: 18 | S50: 4 | T50: 0
B51: 48 | C51: Rifle Team | D51: Rifle Squad – Rifle Team | E51: 0 | F51: 1 | G51: 0 | H51: 1 | I51: 3 | J51: 3 | K51: 1 | L51: 0 | M51: 6 | N51: 0 | O51: 77 | P51: 0 | Q51: 0 | R51: 0 | S51: 0 | T51: 0
B52: 49 | C52: Wpns Platoon HQ | D52: Platoon HQ, Weapons Platoon 1944 | E52: 0 | F52: 0 | G52: 2 | H52: 22 | I52: 3 | J52: 3 | K52: 1 | L52: 0 | M52: 4 | N52: 0 | O52: 47 | P52: 44 | Q52: 23 | R52: 23
B53: 50 | C53: MG Section HQ | D53: Machinegun Section HQ, Weapons Platoon 1944 | E53: 0 | F53: 0 | G53: 0 | H53: 22 | I53: 3 | J53: 3 | K53: 1 | L53: 0 | M53: 2 | N53: 0 | O53: 80 | P53: 23
B54: 51 | C54: .30 MMG | D54: Machinegun Squad, Weapons Platoon 1944 | E54: 0 | F54: 5 | G54: 0 | H54: 3 | I54: 3 | J54: 3 | K54: 1 | L54: 0 | M54: 5 | N54: 0 | O54: 79 | P54: 10 | Q54: 15 | R54: 19 | S54: 19
B55: 52 | C55: Mortar Section HQ | D55: Mortar Section HQ, Weapons Platoon 1944 | E55: 0 | F55: 0 | G55: 0 | H55: 22 | I55: 3 | J55: 3 | K55: 1 | L55: 0 | M55: 2 | N55: 0 | O55: 81 | P55: 23
B56: 53 | C56: 60mm Mortar | D56: 60mm Mortar Squad, Weapons Platoon 1944 | E56: 0 | F56: 8 | G56: 0 | H56: 7 | I56: 3 | J56: 3 | K56: 1 | L56: 0 | M56: 5 | N56: 0 | O56: 33 | P56: 12 | Q56: 15 | R56: 19 | S56: 19
B57: 54 | C57: .30cal HMG | D57: MG Squad, Heavy Weapons Company 1944 | E57: 0 | F57: 6 | G57: 0 | H57: 2 | I57: 3 | J57: 3 | K57: 1 | L57: 0 | M57: 6 | N57: 0 | O57: 79 | P57: 63 | Q57: 15 | R57: 19 | S57: 19 | T57: 19
B58: 55 | C58: 81mm Mortar | D58: Mortar Squad, Heavy Weapons Company 1944 | E58: 0 | F58: 9 | G58: 4 | H58: 7 | I58: 3 | J58: 3 | K58: 1 | L58: 0 | M58: 7 | N58: 0 | O58: 40 | P58: 68 | Q58: 15 | R58: 17 | S58: 19 | T58: 19 | U58: 19
B59: 56 | C59: 57mm AT Gun | D59: Anti-Tank Squad, Battalion AT Platoon 1944 | E59: 0 | F59: 13 | G59: 0 | H59: 6 | I59: 3 | J59: 3 | K59: 1 | L59: 0 | M59: 6 | N59: 1 | O59: 40 | P59: 84 | Q59: 15 | R59: 17 | S59: 19 | T59: 19 | U59: 19
B60: 57 | C60: A&P Squad | D60: A&P Squad, Battalion A&P Platoon 1944 | E60: 0 | F60: 4 | G60: 0 | H60: 23 | I60: 3 | J60: 3 | K60: 1 | L60: 1 | M60: 8 | N60: 0 | O60: 123 | P60: 87 | Q60: 87 | R60: 87 | S60: 87 | T60: 87 | U60: 87 | V60: 87
B61: 58 | C61: 57mm AT gun | D61: Anti-Tank Squad, Rgt AT Company 1944 | E61: 0 | F61: 13 | G61: 4 | H61: 4 | I61: 3 | J61: 3 | K61: 1 | L61: 0 | M61: 6 | N61: 1 | O61: 40 | P61: 84 | Q61: 15 | R61: 17 | S61: 19 | T61: 19 | U61: 19
B62: 59 | C62: Pioneer Squad | D62: Anti-Tank Mine Squad, Rgt. AT Company 1944 | E62: 0 | F62: 4 | G62: 5 | H62: 23 | I62: 3 | J62: 3 | K62: 1 | L62: 1 | M62: 8 | N62: 0 | O62: 123 | P62: 131 | Q62: 130 | R62: 130 | S62: 130 | T62: 130 | U62: 130 | V62: 130
B63: 60 | C63: I&R Section | D63: Intel & Recon Section, Rgt. HQ Company 1944 | E63: 0 | F63: 3 | G63: 5 | H63: 48 | I63: 3 | J63: 3 | K63: 1 | L63: 1 | M63: 3 | N63: 0 | O63: 135 | P63: 135 | Q63: 135
B64: 61 | C64: Engineer Team | D64: Combat Engineer Squad – Team 1 1944 | E64: 0 | F64: 4 | G64: 6 | H64: 23 | I64: 3 | J64: 3 | K64: 1 | L64: 1 | M64: 5 | N64: 0 | O64: 132 | P64: 117 | Q64: 119 | R64: 67 | S64: 67
B65: 62 | C65: Engineer Team | D65: Combat Engineer Squad – Team 2 1944 | E65: 0 | F65: 4 | G65: 6 | H65: 23 | I65: 3 | J65: 3 | K65: 1 | L65: 1 | M65: 5 | N65: 0 | O65: 127 | P65: 119 | Q65: 67 | R65: 67 | S65: 67
B66: 63 | C66: Platoon HQ | D66: Platoon HQ - Combat Engineer Platoon 1944 | E66: 0 | F66: 0 | G66: 6 | H66: 22 | I66: 3 | J66: 3 | K66: 1 | L66: 1 | M66: 3 | N66: 0 | O66: 47 | P66: 44 | Q66: 1
B67: 64 | C67: Company HQ | D67: Company HQ - Combat Engineer Company 1944 | E67: 0 | F67: 0 | G67: 6 | H67: 22 | I67: 3 | J67: 3 | K67: 1 | L67: 1 | M67: 5 | N67: 0 | O67: 53 | P67: 48 | Q67: 133 | R67: 1 | S67: 1
B68: 65 | C68: Bazooka | D68: Bazooka Team 1944 | E68: 0 | F68: 7 | G68: 0 | H68: 9 | I68: 3 | J68: 3 | K68: 1 | L68: 0 | M68: 2 | N68: 0 | O68: 129 | P68: 128
B69: =B68+1 -> 66 | C69: Sharpshooter | D69: Sniper 1944 | E69: 0 | F69: 11 | G69: 0 | H69: 52 | I69: 3 | J69: 3 | K69: 1 | L69: 0 | M69: 1 | N69: 0 | O69: 9
A70: AB 1944 | B70: 67 | C70: Company HQ | D70: Airborne Company Headquarters 1944 | E70: 0 | F70: 0 | G70: 3 | H70: 10 | I70: 3 | J70: 3 | K70: 1 | L70: 0 | M70: 6 | N70: 0 | O70: 90 | P70: 91 | Q70: 111 | R70: 93 | S70: 93 | T70: 89
B71: 68 | C71: Platoon HQ | D71: Airborne Platoon Headquarters | E71: 0 | F71: 0 | G71: 2 | H71: 12 | I71: 3 | J71: 3 | K71: 1 | L71: 0 | M71: 5 | N71: 0 | O71: 94 | P71: 112 | Q71: 93 | R71: 93 | S71: 89
B72: 69 | C72: Machine Gun Team | D72: Airborne Rifle team w/ .30 cal MMG | E72: 0 | F72: 2 | G72: 0 | H72: 11 | I72: 3 | J72: 3 | K72: 1 | L72: 0 | M72: 5 | N72: 0 | O72: 100 | P72: 106 | Q72: 113 | R72: 114 | S72: 99
B73: 70 | C73: BAR Team | D73: Airborne Rifle team w/BAR | E73: 0 | F73: 2 | G73: 0 | H73: 11 | I73: 3 | J73: 3 | K73: 1 | L73: 0 | M73: 5 | N73: 0 | O73: 101 | P73: 99 | Q73: 99 | R73: 99 | S73: 99
B74: 71 | C74: .30 cal. MMG | D74: Airborne .30 cal. MMG squad | E74: 0 | F74: 5 | G74: 0 | H74: 15 | I74: 3 | J74: 3 | K74: 1 | L74: 0 | M74: 4 | N74: 0 | O74: 95 | P74: 98 | Q74: 107 | R74: 107
B75: 72 | C75: 60mm Mortar | D75: Airborne 60mm Mortar Squad | E75: 0 | F75: 8 | G75: 0 | H75: 8 | I75: 3 | J75: 3 | K75: 1 | L75: 0 | M75: 6 | N75: 0 | O75: 110 | P75: 108 | Q75: 98 | R75: 107 | S75: 107 | T75: 107
B76: 73 | C76: Bazooka | D76: Airborne Bazooka Squad | E76: 0 | F76: 7 | G76: 0 | H76: 9 | I76: 3 | J76: 3 | K76: 1 | L76: 0 | M76: 2 | N76: 0 | O76: 97 | P76: 99
B77: 74 | C77: Sniper | D77: Airborne Sniper Team | E77: 0 | F77: 11 | G77: 0 | H77: 52 | I77: 3 | J77: 3 | K77: 1 | L77: 0 | M77: 1 | N77: 0 | O77: 115
A78: AB 1942 | B78: 75 | C78: Company HQ | D78: Airborne Company Headquarters 1942 | E78: 0 | F78: 0 | G78: 3 | H78: 10 | I78: 3 | J78: 3 | K78: 1 | L78: 0 | M78: 6 | N78: 0 | O78: 90 | P78: 91 | Q78: 92 | R78: 93 | S78: 93 | T78: 109
B79: 76 | C79: Platoon HQ | D79: Airborne Platoon Headquarters | E79: 0 | F79: 0 | G79: 2 | H79: 12 | I79: 3 | J79: 3 | K79: 1 | L79: 0 | M79: 5 | N79: 0 | O79: 94 | P79: 112 | Q79: 93 | R79: 93 | S79: 109
B80: 77 | C80: Machine Gun Team | D80: Airborne Rifle Team w/ .30 cal MMG | E80: 0 | F80: 2 | G80: 0 | H80: 11 | I80: 3 | J80: 3 | K80: 1 | L80: 0 | M80: 6 | N80: 0 | O80: 102 | P80: 106 | Q80: 113 | R80: 114 | S80: 114 | T80: 114
B81: 78 | C81: Rifle Team | D81: Airborne Rifle Team | E81: 0 | F81: 1 | G81: 0 | H81: 11 | I81: 3 | J81: 3 | K81: 1 | L81: 0 | M81: 6 | N81: 0 | O81: 105 | P81: 99 | Q81: 99 | R81: 99 | S81: 99 | T81: 99
B82: 79 | C82: .30 cal. MMG | D82: Airborne .30 cal. MMG squad | E82: 0 | F82: 5 | G82: 0 | H82: 15 | I82: 3 | J82: 3 | K82: 1 | L82: 0 | M82: 4 | N82: 0 | O82: 95 | P82: 113 | Q82: 114 | R82: 114
B83: 80 | C83: 60mm Mortar | D83: Airborne 60mm Mortar Squad | E83: 0 | F83: 8 | G83: 0 | H83: 8 | I83: 3 | J83: 3 | K83: 1 | L83: 0 | M83: 6 | N83: 0 | O83: 110 | P83: 108 | Q83: 98 | R83: 107 | S83: 107 | T83: 107
B84: 81 | C84: Bazooka | D84: Airborne Bazooka Squad | E84: 0 | F84: 7 | G84: 0 | H84: 9 | I84: 3 | J84: 3 | K84: 1 | L84: 0 | M84: 2 | N84: 0 | O84: 97 | P84: 99
B85: 82 | C85: Sniper | D85: Airborne Sniper Team | E85: 0 | F85: 11 | G85: 0 | H85: 52 | I85: 3 | J85: 3 | K85: 1 | L85: 0 | M85: 1 | N85: 0 | O85: 115
A86: Mech Rcn 42 | B86: 83 | C86: Recon Troop HQ | D86: Troop Cmdr, Mech Cav 1942 | E86: 0 | F86: 0 | G86: 3 | H86: 47 | I86: 1 | J86: 2 | K86: 1 | L86: 0 | M86: 3 | N86: 0 | O86: 53 | P86: 22 | Q86: 1
B87: 84 | C87: Recon Platoon HQ | D87: Platoon Leader, Mech Cav 1942 | E87: 0 | F87: 0 | G87: 2 | H87: 47 | I87: 1 | J87: 2 | K87: 1 | L87: 0 | M87: 3 | N87: 0 | O87: 47 | P87: 71 | Q87: 1
B88: 85 | C88: Recon Section HQ | D88: Scout Section Leader, Mech Cav 1942 | E88: 0 | F88: 0 | G88: 1 | H88: 47 | I88: 1 | J88: 2 | K88: 1 | L88: 0 | M88: 3 | N88: 0 | O88: 137 | P88: 22 | Q88: 134
B89: 86 | C89: Recon Team | D89: Recon Team - Squad Leader, Mech Cav 1942 | E89: 0 | F89: 3 | G89: 0 | H89: 48 | I89: 1 | J89: 2 | K89: 1 | L89: 0 | M89: 3 | N89: 0 | O89: 136 | P89: 135 | Q89: 135
B90: 87 | C90: Recon Team | D90: Recon Team, Mech Cav 1942 | E90: 0 | F90: 3 | G90: 0 | H90: 48 | I90: 1 | J90: 2 | K90: 1 | L90: 0 | M90: 3 | N90: 0 | O90: 134 | P90: 135 | Q90: 135
B91: 88 | C91: Recon Pioneer Team | D91: Pioneer Squad, Mechanized Cavalry Troop 1942 | E91: 0 | F91: 4 | G91: 0 | H91: 23 | I91: 1 | J91: 2 | K91: 1 | L91: 1 | M91: 3 | N91: 0 | O91: 118 | P91: 131 | Q91: 130
B92: 89 | C92: Recon 81mm Mortar | D92: Mortar Squad, Mechanized Cavalry Troop 1942 | E92: 0 | F92: 9 | G92: 0 | H92: 46 | I92: 1 | J92: 2 | K92: 1 | L92: 0 | M92: 3 | N92: 0 | O92: 8 | P92: 68 | Q92: 87
A93: Mech Rcn 44 | B93: 90 | C93: Recon Troop HQ | D93: Troop Cmdr, Mech Cav 1944 | E93: 0 | F93: 9 | G93: 0 | H93: 47 | I93: 2 | J93: 2 | K93: 1 | L93: 0 | M93: 4 | N93: 0 | O93: 53 | P93: 51 | Q93: 2 | R93: 2
B94: 91 | C94: Recon Platoon HQ | D94: Recon Platoon HQ 1944 | E94: 0 | F94: 9 | G94: 0 | H94: 47 | I94: 2 | J94: 2 | K94: 1 | L94: 0 | M94: 3 | N94: 0 | O94: 47 | P94: 2 | Q94: 2
B95: 92 | C95: Recon Section HQ | D95: Recon Section Leader | E95: 0 | F95: 3 | G95: 0 | H95: 48 | I95: 2 | J95: 2 | K95: 1 | L95: 0 | M95: 2 | N95: 0 | O95: 42 | P95: 139
B96: 93 | C96: Recon Team | D96: Recon Team with Squad Leader | E96: 0 | F96: 3 | G96: 0 | H96: 48 | I96: 2 | J96: 2 | K96: 1 | L96: 0 | M96: 3 | N96: 0 | O96: 35 | P96: 139 | Q96: 2
B97: 94 | C97: 60mm Mortar | D97: Recon Light Mortar Team | E97: 0 | F97: 9 | G97: 0 | H97: 45 | I97: 2 | J97: 2 | K97: 1 | L97: 0 | M97: 3 | N97: 0 | O97: 138 | P97: 12 | Q97: 16
B98: 95 | C98: Bazooka | D98: Recon Bazooka Team | E98: 0 | F98: 21 | G98: 0 | H98: 45 | I98: 2 | J98: 2 | K98: 1 | L98: 0 | M98: 2 | N98: 0 | O98: 129 | P98: 2
A99: Armd Inf 44 | B99: 96 | C99: Company HQ | D99: Armored Infantry Company HQ 1944 | E99: 0 | F99: 0 | G99: 0 | H99: 17 | I99: 2 | J99: 2 | K99: 1 | L99: 0 | M99: 5 | N99: 0 | O99: 53 | P99: 51 | Q99: 0 | R99: 0 | S99: 0
B100: 97 | C100: Platoon HQ | D100: Armored Infantry Platoon HQ Squad - Command Team | E100: 0 | F100: 0 | G100: 0 | H100: 19 | I100: 2 | J100: 2 | K100: 1 | L100: 0 | M100: 5 | N100: 0 | O100: 47 | P100: 51 | Q100: 4 | R100: 0 | S100: 0
B101: 98 | C101: Rifle Team | D101: Armored Infantry Platoon HQ Squad - Rifle Team | E101: 0 | F101: 1 | G101: 0 | H101: 18 | I101: 2 | J101: 2 | K101: 1 | L101: 0 | M101: 5 | N101: 0 | O101: 77 | P101: 0 | Q101: 0 | R101: 0 | S101: 0
B102: 99 | C102: Rifle Team | D102: Armored Infantry Squad - Rifle Team with Squad Leader | E102: 0 | F102: 1 | G102: 0 | H102: 18 | I102: 2 | J102: 2 | K102: 1 | L102: 0 | M102: 5 | N102: 0 | O102: 40 | P102: 4 | Q102: 0 | R102: 0 | S102: 0
A103: 5xM3A1 .50 | B103: 100 | C103: Rifle Team | D103: Armored Infantry Squad - Rifle Team | E103: 0 | F103: 1 | G103: 0 | H103: 18 | I103: 2 | J103: 2 | K103: 1 | L103: 0 | M103: 5 | N103: 0 | O103: 77 | P103: 0 | Q103: 0 | R103: 0 | S103: 0
A104: 4xM3A1 .30 | B104: 101 | C104: 60mm Mortar | D104: Armored Infantry Light Mortar Team | E104: 0 | F104: 9 | G104: 0 | H104: 18 | I104: 2 | J104: 2 | K104: 1 | L104: 0 | M104: 5 | N104: 0 | O104: 40 | P104: 12 | Q104: 16 | R104: 20 | S104: 20
A105: 2xJeep | B105: 102 | C105: .30 cal MMG | D105: Armored Infantry Medium Machine Gun Team with Squad Leader | E105: 0 | F105: 5 | G105: 0 | H105: 18 | I105: 2 | J105: 2 | K105: 1 | L105: 0 | M105: 5 | N105: 0 | O105: 40 | P105: 10 | Q105: 16 | R105: 18 | S105: 18
B106: 103 | C106: .30 cal MMG | D106: Armored Infantry Medium Machine Gun Team | E106: 0 | F106: 5 | G106: 0 | H106: 18 | I106: 2 | J106: 2 | K106: 1 | L106: 0 | M106: 5 | N106: 0 | O106: 33 | P106: 10 | Q106: 16 | R106: 18 | S106: 18
B107: 104 | C107: Platoon HQ | D107: Armored Infantry Anti-Tank Platoon HQ | E107: 0 | F107: 0 | G107: 0 | H107: 19 | I107: 2 | J107: 2 | K107: 1 | L107: 0 | M107: 2 | N107: 0 | O107: 47 | P107: 51
B108: 105 | C108: 57mm AT Gun | D108: Armored Infantry Light Anti-Tank Gun | E108: 0 | F108: 13 | G108: 0 | H108: 6 | I108: 2 | J108: 2 | K108: 1 | L108: 0 | M108: 5 | N108: 1 | O108: 40 | P108: 13 | Q108: 16 | R108: 19 | S108: 19 | T108: 19
B109: 106 | C109: Recon Team | D109: Armored Infantry Battalion Recon Squad - Recon Team with Squad Leader | E109: 0 | F109: 3 | G109: 0 | H109: 49 | I109: 2 | J109: 2 | K109: 1 | L109: 0 | M109: 3 | N109: 0 | O109: 40 | P109: 0 | Q109: 0
B110: 107 | C110: Recon Team | D110: Armored Infantry Battalion Recon Squad - Recon Team | E110: 0 | F110: 3 | G110: 0 | H110: 49 | I110: 2 | J110: 2 | K110: 1 | L110: 0 | M110: 3 | N110: 0 | O110: 33 | P110: 0 | Q110: 0
B111: 108 | C111: .30 cal HMG | D111: Armored Infantry Heavy Machine Gun Team | E111: 0 | F111: 5 | G111: 0 | H111: 14 | I111: 2 | J111: 2 | K111: 1 | L111: 0 | M111: 5 | N111: 0 | O111: 33 | P111: 63 | Q111: 16 | R111: 20 | S111: 20
A112: Armd Inf 42 | B112: 109 | C112: Company HQ | D112: Armored Infantry Company HQ 1942 | E112: 0 | F112: 0 | G112: 0 | H112: 17 | I112: 1 | J112: 2 | K112: 1 | L112: 0 | M112: 5 | N112: 0 | O112: 53 | P112: 51 | Q112: 23 | R112: 23 | S112: 1
B113: 110 | C113: Platoon HQ | D113: Armored Infantry Platoon HQ Squad - Command Team | E113: 0 | F113: 0 | G113: 0 | H113: 19 | I113: 1 | J113: 2 | K113: 1 | L113: 0 | M113: 4 | N113: 0 | O113: 47 | P113: 44 | Q113: 0 | R113: 0
B114: 111 | C114: Rifle Team | D114: Armored Infantry Platoon HQ Squad - Rifle Team | E114: 0 | F114: 1 | G114: 0 | H114: 18 | I114: 1 | J114: 2 | K114: 1 | L114: 0 | M114: 4 | N114: 0 | O114: 36 | P114: 0 | Q114: 0 | R114: 0
B115: 112 | C115: Rifle Team | D115: Armored Infantry Squad - Rifle Team with Squad Leader | E115: 0 | F115: 1 | G115: 0 | H115: 18 | I115: 1 | J115: 2 | K115: 1 | L115: 0 | M115: 5 | N115: 0 | O115: 36 | P115: 0 | Q115: 0 | R115: 0 | S115: 0
A116: (Spt Unit:) | B116: 113 | C116: Rifle Team | D116: Armored Infantry Squad - Rifle Team | E116: 0 | F116: 1 | G116: 0 | H116: 18 | I116: 1 | J116: 2 | K116: 1 | L116: 0 | M116: 4 | N116: 0 | O116: 52 | P116: 0 | Q116: 0 | R116: 0
A117: (4 x M3 HT) | B117: 114 | C117: 60mm Mortar | D117: Armored Infantry Light Mortar Team | E117: 0 | F117: 9 | G117: 0 | H117: 18 | I117: 1 | J117: 2 | K117: 1 | L117: 0 | M117: 5 | N117: 0 | O117: 39 | P117: 12 | Q117: 17 | R117: 20 | S117: 20
A118: (2 x M2 HT) | B118: 115 | C118: .30 cal MMG | D118: Armored Infantry Medium Machine Gun Team with Squad Leader | E118: 0 | F118: 5 | G118: 0 | H118: 18 | I118: 1 | J118: 2 | K118: 1 | L118: 0 | M118: 4 | N118: 0 | O118: 39 | P118: 10 | Q118: 16 | R118: 20
A119: (1 x jeep) | B119: 116 | C119: .30 cal MMG | D119: Armored Infantry Medium Machine Gun Team | E119: 0 | F119: 5 | G119: 0 | H119: 18 | I119: 1 | J119: 2 | K119: 1 | L119: 0 | M119: 4 | N119: 0 | O119: 32 | P119: 10 | Q119: 16 | R119: 20
A120: (3 x AT Gun) | B120: 117 | C120: 37mm AT Gun | D120: Armored Infantry Light Anti-Tank Gun Team | E120: 0 | F120: 13 | G120: 0 | H120: 6 | I120: 1 | J120: 2 | K120: 1 | L120: 0 | M120: 3 | N120: 1 | O120: 14 | P120: 16 | Q120: 1 | R120: 18
B121: 118 | C121: Recon Team | D121: Armored Infantry Recon Squad - Recon Team with Squad Leader | E121: 0 | F121: 3 | G121: 0 | H121: 49 | I121: 1 | J121: 2 | K121: 1 | L121: 0 | M121: 3 | N121: 0 | O121: 137 | P121: 135 | Q121: 135
B122: 119 | C122: Recon Team | D122: Armored Infantry Recon Squad - Recon Team | E122: 0 | F122: 3 | G122: 0 | H122: 49 | I122: 1 | J122: 2 | K122: 1 | L122: 0 | M122: 3 | N122: 0 | O122: 136 | P122: 135 | Q122: 135
B123: 120 | C123: .30 cal HMG | D123: Armored Infantry Battalion MG Platoon - Heavy Machine Gun Team | E123: 0 | F123: 5 | G123: 0 | H123: 14 | I123: 1 | J123: 2 | K123: 1 | L123: 0 | M123: 4 | N123: 0 | O123: 140 | P123: 63 | Q123: 17 | R123: 20
A124: Spt Units | B124: 121 | C124: M3 Light Tank | D124: M3 "Stuart" Light Tank | E124: 0 | F124: 22 | G124: 0 | H124: 34 | I124: 1 | J124: 2 | K124: 1 | L124: 0 | M124: 4 | N124: 1 | O124: 60 | P124: 56 | Q124: 55 | R124: 116 | S124: 0
B125: 122 | C125: M5A1 Light Tank | D125: M5A1 "Stuart" Light Tank | E125: 0 | F125: 22 | G125: 0 | H125: 39 | I125: 1 | J125: 2 | K125: 1 | L125: 0 | M125: 4 | N125: 1 | O125: 60 | P125: 56 | Q125: 55 | R125: 116 | S125: 26
B126: 123 | C126: M3 Medium Tank | D126: M3 "Lee" Medium Tank | E126: 0 | F126: 23 | G126: 0 | H126: 32 | I126: 1 | J126: 2 | K126: 1 | L126: 0 | M126: 7 | N126: 1 | O126: 60 | P126: 59 | Q126: 58 | R126: 57 | S126: 56 | T126: 55 | U126: 54 | V126: 1
B127: 124 | C127: M4 Medium Tank | D127: M4 "Sherman" Medium Tank | E127: 0 | F127: 23 | G127: 0 | H127: 35 | I127: 1 | J127: 2 | K127: 1 | L127: 0 | M127: 5 | N127: 1 | O127: 60 | P127: 56 | Q127: 58 | R127: 55 | S127: 116 | T127: 2
B128: 125 | C128: M4A1 Medium Tank | D128: M4A1 "Sherman" Medium Tank | E128: 0 | F128: 23 | G128: 0 | H128: 38 | I128: 1 | J128: 2 | K128: 1 | L128: 0 | M128: 5 | N128: 1 | O128: 60 | P128: 56 | Q128: 58 | R128: 55 | S128: 116 | T128: 3
B129: 126 | C129: M4A1(76) Medium Tank | D129: M4A1(76) "Sherman" Medium Tank | E129: 0 | F129: 23 | G129: 0 | H129: 37 | I129: 1 | J129: 2 | K129: 1 | L129: 0 | M129: 5 | N129: 1 | O129: 60 | P129: 56 | Q129: 58 | R129: 55 | S129: 116 | T129: 27
B130: 127 | C130: M4(105) Medium Tank | D130: M4(105) "Sherman" Medium Tank | E130: 0 | F130: 25 | G130: 0 | H130: 36 | I130: 1 | J130: 2 | K130: 1 | L130: 0 | M130: 5 | N130: 1 | O130: 60 | P130: 56 | Q130: 58 | R130: 55 | S130: 116 | T130: 28
B131: 128 | C131: M3 Tank Destroyer | D131: M3 75mm Gun Motor Carriage | E131: 0 | F131: 32 | G131: 0 | H131: 30 | I131: 1 | J131: 2 | K131: 1 | L131: 0 | M131: 5 | N131: 1 | O131: 60 | P131: 56 | Q131: 58 | R131: 58 | S131: 55 | T131: 4
B132: 129 | C132: M10 Tank Destroyer | D132: M10 3-Inch Gun Motor Carriage | E132: 0 | F132: 26 | G132: 0 | H132: 26 | I132: 1 | J132: 2 | K132: 1 | L132: 0 | M132: 5 | N132: 1 | O132: 60 | P132: 56 | Q132: 58 | R132: 58 | S132: 55 | T132: 5
B133: =B132+1 -> 130 | C133: M2 Halftrack (.30 cal) | D133: M2 Halftrack with .30 cal Machine Gun | E133: 0 | F133: 28 | G133: 0 | H133: 28 | I133: 1 | J133: 2 | K133: 1 | L133: 0 | M133: 2 | N133: 1 | O133: 55 | P133: 56 | Q133: 6
B134: 131 | C134: M2A1 Halftrack (.30 cal MG) | D134: M2A1 Halftrack with .30 cal Machine Gun | E134: 0 | F134: 28 | G134: 0 | H134: 31 | I134: 1 | J134: 2 | K134: 1 | L134: 0 | M134: 2 | N134: 1 | O134: 55 | P134: 56 | Q134: 7
B135: 132 | C135: M3 Halftrack (.30 cal MG) | D135: M3 Halftrack with .30 cal Machine Gun | E135: 0 | F135: 28 | G135: 0 | H135: 28 | I135: 1 | J135: 2 | K135: 1 | L135: 0 | M135: 2 | N135: 1 | O135: 55 | P135: 56 | Q135: 8
B136: 133 | C136: M3A1 Halftrack (.30 cal MG) | D136: M3A1 Halftrack with .30 cal Machine Gun | E136: 0 | F136: 28 | G136: 0 | H136: 31 | I136: 1 | J136: 2 | K136: 1 | L136: 0 | M136: 2 | N136: 1 | O136: 55 | P136: 56 | Q136: 9
B137: 134 | C137: M2 Halftrack (.50 cal MG) | D137: M2 Halftrack with .50 cal Machine Gun | E137: 0 | F137: 28 | G137: 0 | H137: 28 | I137: 1 | J137: 2 | K137: 1 | L137: 0 | M137: 2 | N137: 1 | O137: 55 | P137: 56 | Q137: 6
B138: 135 | C138: M2A1 Halftrack (.50 cal MG) | D138: M2A1 Halftrack with .50 cal Machine Gun | E138: 0 | F138: 28 | G138: 0 | H138: 31 | I138: 1 | J138: 2 | K138: 1 | L138: 0 | M138: 2 | N138: 1 | O138: 55 | P138: 56 | Q138: 7
B139: 136 | C139: M3 Halftrack (.50 cal MG) | D139: M3 Halftrack with .50 cal Machine Gun | E139: 0 | F139: 28 | G139: 0 | H139: 28 | I139: 1 | J139: 2 | K139: 1 | L139: 0 | M139: 2 | N139: 1 | O139: 55 | P139: 56 | Q139: 8
B140: 137 | C140: M3A1 Halftrack (.50 cal MG) | D140: M3A1 Halftrack with .50 cal Machine Gun | E140: 0 | F140: 28 | G140: 0 | H140: 31 | I140: 1 | J140: 2 | K140: 1 | L140: 0 | M140: 2 | N140: 1 | O140: 55 | P140: 56 | Q140: 9
B141: 138 | C141: T19 105mm HMC | D141: T19 105mm Howitzer Motor Carriage | E141: 0 | F141: 31 | G141: 0 | H141: 53 | I141: 1 | J141: 2 | K141: 1 | L141: 0 | M141: 6 | N141: 1 | O141: 60 | P141: 56 | Q141: 58 | R141: 55 | S141: 116 | T141: 59 | U141: 10
B142: 139 | C142: T30 75mm HMC | D142: T30 75mm Howitzer Motor Carriage | E142: 0 | F142: 31 | G142: 0 | H142: 54 | I142: 1 | J142: 2 | K142: 1 | L142: 0 | M142: 5 | N142: 1 | O142: 60 | P142: 56 | Q142: 58 | R142: 55 | S142: 59 | T142: 11
B143: 140 | C143: 3/4 Ton Truck | D143: 3/4 Ton Weapons Carrier | E143: 0 | F143: 27 | G143: 0 | H143: 56 | I143: 1 | J143: 2 | K143: 1 | L143: 0 | M143: 1 | N143: 1 | O143: 24 | P143: 12
B144: 141 | C144: 2 1/2 Ton Truck | D144: 2 1/2 Ton Truck | E144: 0 | F144: 27 | G144: 0 | H144: 55 | I144: 1 | J144: 2 | K144: 1 | L144: 0 | M144: 1 | N144: 1 | O144: 24 | P144: 13
B145: 142 | C145: Jeep | D145: The 1/4 ton "Jeep" is the standard US Army light transport vehicle. It can carry up to 5 men and tow a light gun. | E145: 0 | F145: 27 | G145: 0 | H145: 25 | I145: 1 | J145: 2 | K145: 1 | L145: 0 | M145: 1 | N145: 1 | O145: 24 | P145: 14
B146: 143 | C146: Jeep (.30 cal MG) | D146: An unarmored recon jeep mounting an M1919A4 .30 cal machine gun for emergency self-defense. | E146: 0 | F146: 29 | G146: 0 | H146: 43 | I146: 1 | J146: 2 | K146: 1 | L146: 0 | M146: 2 | N146: 1 | O146: 24 | P146: 14 | Q146: 24
B147: 144 | C147: Jeep (.50 cal MG) | D147: An unarmored recon jeep mounting an M2 .50 cal machine gun. This is an improvised vehicle intended to give recon units some additional anit-aircraft defense. The .50 cal machine gun was found to be too heavy for the small vehicle and they were phased out later in the war as the M8 Armored Car became available. | E147: 0 | F147: 29 | G147: 0 | H147: 44 | I147: 1 | J147: 2 | K147: 1 | L147: 0 | M147: 2 | N147: 1 | O147: 24 | P147: 14 | Q147: 25
B148: 145 | C148: M3A1 Scout Car | D148: M3A1 Scout Car | E148: 0 | F148: 29 | G148: 0 | H148: 33 | I148: 1 | J148: 2 | K148: 1 | L148: 0 | M148: 3 | N148: 1 | O148: 24 | P148: 14 | Q148: 14 | R148: 15
B149: 146 | C149: M20 Scout Car | D149: M20 Armored Utility Car is an M8 armored car without the turret, mounting an M2 .50 caliber machine gun. It is primarily used in Tank Destroyer units for recon and transportion. | E149: 0 | F149: 29 | G149: 0 | H149: 27 | I149: 1 | J149: 2 | K149: 1 | L149: 0 | M149: 2 | N149: 1 | O149: 55 | P149: 56 | Q149: 16
B150: 147 | C150: M8 Armored Car | D150: M8 "Greyhound" Armored Car | E150: 0 | F150: 30 | G150: 0 | H150: 40 | I150: 1 | J150: 2 | K150: 1 | L150: 0 | M150: 4 | N150: 1 | O150: 60 | P150: 56 | Q150: 58 | R150: 55 | S150: 17
B151: 148 | C151: 3-Inch AT Gun | D151: 3-Inch Gun M5 | E151: 0 | F151: 14 | G151: 0 | H151: 29 | I151: 1 | J151: 2 | K151: 1 | L151: 0 | M151: 5 | N151: 1 | O151: 32 | P151: 14 | Q151: 16 | R151: 19 | S151: 19 | T151: 20
B152: 149 | C152: 105mm Howitzer | D152: 105mm Howitzer, Divisional Artillery Battalion | E152: 0 | F152: 17 | G152: 0 | H152: 29 | I152: 1 | J152: 2 | K152: 1 | L152: 0 | M152: 6 | N152: 1 | O152: 41 | P152: 14 | Q152: 16 | R152: 16 | S152: 19 | T152: 19 | U152: 21
B153: 150 | C153: T12 75mm HMC | D153: T12 75mm Howitzer Motor Carriage | E153: 0 | F153: 31 | G153: 0 | H153: 30 | I153: 1 | J153: 2 | K153: 1 | L153: 0 | M153: 4 | N153: 1 | O153: 60 | P153: 56 | Q153: 58 | R153: 55 | S153: 22
B154: 151 | C154: 3/4 Ton Truck (.50cal MG) | D154: 3/4 Ton Weapons Carrier w/ .50cal HMG | E154: 0 | F154: 27 | G154: 0 | H154: 56 | I154: 1 | J154: 2 | K154: 1 | L154: 0 | M154: 1 | N154: 1 | O154: 24 | P154: 14 | Q154: 23
A155: Mech Rcn 42 | B155: 152 | C155: Recon Troop HQ | D155: Troop Cmdr, Mech Cav 1942 | E155: 0 | F155: 0 | G155: 3 | H155: 47 | I155: 1 | J155: 2 | K155: 1 | L155: 0 | M155: 3 | N155: 0 | O155: 53 | P155: 22 | Q155: 1
B156: 153 | C156: Recon Platoon HQ | D156: Platoon Leader, Mech Cav 1942 | E156: 0 | F156: 0 | G156: 2 | H156: 47 | I156: 1 | J156: 2 | K156: 1 | L156: 0 | M156: 3 | N156: 0 | O156: 47 | P156: 71 | Q156: 1
B157: 154 | C157: Recon Section HQ | D157: Scout Section Leader, Mech Cav 1942 | E157: 0 | F157: 0 | G157: 1 | H157: 47 | I157: 1 | J157: 2 | K157: 1 | L157: 0 | M157: 3 | N157: 0 | O157: 137 | P157: 22 | Q157: 134
B158: 155 | C158: Recon Team | D158: Recon Team - Squad Leader, Mech Cav 1942 | E158: 0 | F158: 3 | G158: 0 | H158: 48 | I158: 1 | J158: 2 | K158: 1 | L158: 0 | M158: 3 | N158: 0 | O158: 136 | P158: 135 | Q158: 135
B159: 156 | C159: Recon Team | D159: Recon Team, Mech Cav 1942 | E159: 0 | F159: 3 | G159: 0 | H159: 48 | I159: 1 | J159: 2 | K159: 1 | L159: 0 | M159: 3 | N159: 0 | O159: 134 | P159: 135 | Q159: 135
B160: 157 | C160: Recon Pioneer Team | D160: Pioneer Squad, Mechanized Cavalry Troop 1942 | E160: 0 | F160: 4 | G160: 0 | H160: 23 | I160: 1 | J160: 2 | K160: 1 | L160: 1 | M160: 3 | N160: 0 | O160: 118 | P160: 131 | Q160: 130
B161: 158 | C161: Recon 81mm Mortar | D161: Mortar Squad, Mechanized Cavalry Troop 1942 | E161: 0 | F161: 9 | G161: 0 | H161: 46 | I161: 1 | J161: 2 | K161: 1 | L161: 0 | M161: 3 | N161: 0 | O161: 8 | P161: 68 | Q161: 87
A162: Mech Rcn 44 | B162: 159 | C162: Recon Troop HQ | D162: Troop Cmdr, Mech Cav 1944 | E162: 0 | F162: 9 | G162: 0 | H162: 47 | I162: 2 | J162: 2 | K162: 1 | L162: 0 | M162: 4 | N162: 0 | O162: 53 | P162: 51 | Q162: 2 | R162: 2
B163: 160 | C163: Recon Platoon HQ | D163: Recon Platoon HQ 1944 | E163: 0 | F163: 9 | G163: 0 | H163: 47 | I163: 2 | J163: 2 | K163: 1 | L163: 0 | M163: 3 | N163: 0 | O163: 47 | P163: 2 | Q163: 2
B164: 161 | C164: Recon Section HQ | D164: Recon Section Leader | E164: 0 | F164: 3 | G164: 0 | H164: 48 | I164: 2 | J164: 2 | K164: 1 | L164: 0 | M164: 2 | N164: 0 | O164: 42 | P164: 139
B165: 162 | C165: Recon Team | D165: Recon Team with Squad Leader | E165: 0 | F165: 3 | G165: 0 | H165: 48 | I165: 2 | J165: 2 | K165: 1 | L165: 0 | M165: 3 | N165: 0 | O165: 35 | P165: 139 | Q165: 2
B166: 163 | C166: 60mm Mortar | D166: Recon Light Mortar Team | E166: 0 | F166: 9 | G166: 0 | H166: 45 | I166: 2 | J166: 2 | K166: 1 | L166: 0 | M166: 3 | N166: 0 | O166: 138 | P166: 12 | Q166: 16
B167: 164 | C167: Bazooka | D167: Recon Bazooka Team | E167: 0 | F167: 21 | G167: 0 | H167: 45 | I167: 2 | J167: 2 | K167: 1 | L167: 0 | M167: 2 | N167: 0 | O167: 129 | P167: 2
A168: Armd Inf 44 | B168: 165 | C168: Company HQ | D168: Armored Infantry Company HQ 1944 | E168: 0 | F168: 0 | G168: 0 | H168: 17 | I168: 2 | J168: 2 | K168: 1 | L168: 0 | M168: 5 | N168: 0 | O168: 53 | P168: 51 | Q168: 0 | R168: 0 | S168: 0
B169: 166 | C169: Platoon HQ | D169: Armored Infantry Platoon HQ Squad - Command Team | E169: 0 | F169: 0 | G169: 0 | H169: 19 | I169: 2 | J169: 2 | K169: 1 | L169: 0 | M169: 5 | N169: 0 | O169: 47 | P169: 51 | Q169: 4 | R169: 0 | S169: 0
B170: 167 | C170: Rifle Team | D170: Armored Infantry Platoon HQ Squad - Rifle Team | E170: 0 | F170: 1 | G170: 0 | H170: 18 | I170: 2 | J170: 2 | K170: 1 | L170: 0 | M170: 5 | N170: 0 | O170: 77 | P170: 0 | Q170: 0 | R170: 0 | S170: 0
B171: 168 | C171: Rifle Team | D171: Armored Infantry Squad - Rifle Team with Squad Leader | E171: 0 | F171: 1 | G171: 0 | H171: 18 | I171: 2 | J171: 2 | K171: 1 | L171: 0 | M171: 5 | N171: 0 | O171: 40 | P171: 4 | Q171: 0 | R171: 0 | S171: 0
A172: 5xM3A1 .50 | B172: 169 | C172: Rifle Team | D172: Armored Infantry Squad - Rifle Team | E172: 0 | F172: 1 | G172: 0 | H172: 18 | I172: 2 | J172: 2 | K172: 1 | L172: 0 | M172: 5 | N172: 0 | O172: 77 | P172: 0 | Q172: 0 | R172: 0 | S172: 0
A173: 4xM3A1 .30 | B173: 170 | C173: 60mm Mortar | D173: Armored Infantry Light Mortar Team | E173: 0 | F173: 9 | G173: 0 | H173: 18 | I173: 2 | J173: 2 | K173: 1 | L173: 0 | M173: 5 | N173: 0 | O173: 40 | P173: 12 | Q173: 16 | R173: 20 | S173: 20
A174: 2xJeep | B174: 171 | C174: .30 cal MMG | D174: Armored Infantry Medium Machine Gun Team with Squad Leader | E174: 0 | F174: 5 | G174: 0 | H174: 18 | I174: 2 | J174: 2 | K174: 1 | L174: 0 | M174: 5 | N174: 0 | O174: 40 | P174: 10 | Q174: 16 | R174: 18 | S174: 18
B175: 172 | C175: .30 cal MMG | D175: Armored Infantry Medium Machine Gun Team | E175: 0 | F175: 5 | G175: 0 | H175: 18 | I175: 2 | J175: 2 | K175: 1 | L175: 0 | M175: 5 | N175: 0 | O175: 33 | P175: 10 | Q175: 16 | R175: 18 | S175: 18
B176: 173 | C176: Platoon HQ | D176: Armored Infantry Anti-Tank Platoon HQ | E176: 0 | F176: 0 | G176: 0 | H176: 19 | I176: 2 | J176: 2 | K176: 1 | L176: 0 | M176: 2 | N176: 0 | O176: 47 | P176: 51
B177: 174 | C177: 57mm AT Gun | D177: Armored Infantry Light Anti-Tank Gun | E177: 0 | F177: 13 | G177: 0 | H177: 6 | I177: 2 | J177: 2 | K177: 1 | L177: 0 | M177: 5 | N177: 1 | O177: 40 | P177: 13 | Q177: 16 | R177: 19 | S177: 19 | T177: 19
B178: 175 | C178: Recon Team | D178: Armored Infantry Battalion Recon Squad - Recon Team with Squad Leader | E178: 0 | F178: 3 | G178: 0 | H178: 49 | I178: 2 | J178: 2 | K178: 1 | L178: 0 | M178: 3 | N178: 0 | O178: 40 | P178: 0 | Q178: 0
B179: 176 | C179: Recon Team | D179: Armored Infantry Battalion Recon Squad - Recon Team | E179: 0 | F179: 3 | G179: 0 | H179: 49 | I179: 2 | J179: 2 | K179: 1 | L179: 0 | M179: 3 | N179: 0 | O179: 33 | P179: 0 | Q179: 0
B180: 177 | C180: .30 cal HMG | D180: Armored Infantry Heavy Machine Gun Team | E180: 0 | F180: 5 | G180: 0 | H180: 14 | I180: 2 | J180: 2 | K180: 1 | L180: 0 | M180: 5 | N180: 0 | O180: 33 | P180: 63 | Q180: 16 | R180: 20 | S180: 20
A181: Armd Inf 42 | B181: 178 | C181: Company HQ | D181: Armored Infantry Company HQ 1942 | E181: 0 | F181: 0 | G181: 0 | H181: 17 | I181: 1 | J181: 2 | K181: 1 | L181: 0 | M181: 5 | N181: 0 | O181: 53 | P181: 51 | Q181: 23 | R181: 23 | S181: 1
B182: 179 | C182: Platoon HQ | D182: Armored Infantry Platoon HQ Squad - Command Team | E182: 0 | F182: 0 | G182: 0 | H182: 19 | I182: 1 | J182: 2 | K182: 1 | L182: 0 | M182: 4 | N182: 0 | O182: 47 | P182: 44 | Q182: 0 | R182: 0
B183: 180 | C183: Rifle Team | D183: Armored Infantry Platoon HQ Squad - Rifle Team | E183: 0 | F183: 1 | G183: 0 | H183: 18 | I183: 1 | J183: 2 | K183: 1 | L183: 0 | M183: 4 | N183: 0 | O183: 36 | P183: 0 | Q183: 0 | R183: 0
B184: 181 | C184: Rifle Team | D184: Armored Infantry Squad - Rifle Team with Squad Leader | E184: 0 | F184: 1 | G184: 0 | H184: 18 | I184: 1 | J184: 2 | K184: 1 | L184: 0 | M184: 5 | N184: 0 | O184: 36 | P184: 0 | Q184: 0 | R184: 0 | S184: 0
A185: (Spt Unit:) | B185: 182 | C185: Rifle Team | D185: Armored Infantry Squad - Rifle Team | E185: 0 | F185: 1 | G185: 0 | H185: 18 | I185: 1 | J185: 2 | K185: 1 | L185: 0 | M185: 4 | N185: 0 | O185: 52 | P185: 0 | Q185: 0 | R185: 0
A186: (4 x M3 HT) | B186: 183 | C186: 60mm Mortar | D186: Armored Infantry Light Mortar Team | E186: 0 | F186: 9 | G186: 0 | H186: 18 | I186: 1 | J186: 2 | K186: 1 | L186: 0 | M186: 5 | N186: 0 | O186: 39 | P186: 12 | Q186: 17 | R186: 20 | S186: 20
A187: (2 x M2 HT) | B187: 184 | C187: .30 cal MMG | D187: Armored Infantry Medium Machine Gun Team with Squad Leader | E187: 0 | F187: 5 | G187: 0 | H187: 18 | I187: 1 | J187: 2 | K187: 1 | L187: 0 | M187: 4 | N187: 0 | O187: 39 | P187: 10 | Q187: 16 | R187: 20
A188: (1 x jeep) | B188: 185 | C188: .30 cal MMG | D188: Armored Infantry Medium Machine Gun Team | E188: 0 | F188: 5 | G188: 0 | H188: 18 | I188: 1 | J188: 2 | K188: 1 | L188: 0 | M188: 4 | N188: 0 | O188: 32 | P188: 10 | Q188: 16 | R188: 20
A189: (3 x AT Gun) | B189: 186 | C189: 37mm AT Gun | D189: Armored Infantry Light Anti-Tank Gun Team | E189: 0 | F189: 13 | G189: 0 | H189: 6 | I189: 1 | J189: 2 | K189: 1 | L189: 0 | M189: 3 | N189: 1 | O189: 14 | P189: 16 | Q189: 1 | R189: 18
B190: 187 | C190: Recon Team | D190: Armored Infantry Recon Squad - Recon Team with Squad Leader | E190: 0 | F190: 3 | G190: 0 | H190: 49 | I190: 1 | J190: 2 | K190: 1 | L190: 0 | M190: 3 | N190: 0 | O190: 137 | P190: 135 | Q190: 135
B191: 188 | C191: Recon Team | D191: Armored Infantry Recon Squad - Recon Team | E191: 0 | F191: 3 | G191: 0 | H191: 49 | I191: 1 | J191: 2 | K191: 1 | L191: 0 | M191: 3 | N191: 0 | O191: 136 | P191: 135 | Q191: 135
B192: 189 | C192: .30 cal HMG | D192: Armored Infantry Battalion MG Platoon - Heavy Machine Gun Team | E192: 0 | F192: 5 | G192: 0 | H192: 14 | I192: 1 | J192: 2 | K192: 1 | L192: 0 | M192: 4 | N192: 0 | O192: 140 | P192: 63 | Q192: 17 | R192: 20
B193: 190 | C193: .30 cal HMG | D193: Heavy Machine Gun Team | E193: 0 | F193: 6 | G193: 0 | H193: 14 | I193: 1 | J193: 2 | K193: 1 | L193: 0 | M193: 4 | N193: 0 | O193: 140 | P193: 63 | Q193: 17 | R193: 20
B194: 191 | C194: .50 cal HMG | D194: Heavy Machine Gun Team | E194: 0 | F194: 6 | G194: 0 | H194: 14 | I194: 1 | J194: 2 | K194: 1 | L194: 0 | M194: 4 | N194: 0 | O194: 140 | P194: 11 | Q194: 17 | R194: 20
B195: 192 | C195: 37mm AT Gun | D195: Light Anti-Tank Gun | E195: 0 | F195: 13 | G195: 0 | H195: 6 | I195: 1 | J195: 2 | K195: 1 | L195: 0 | M195: 3 | N195: 1 | O195: 14 | P195: 16 | Q195: 20 | R195: 18
B196: 193 | C196: RESERVED | D196: RESERVED | E196: 0 | F196: 0 | G196: 0 | H196: 0 | I196: 0 | J196: 0 | K196: 0 | L196: 0 | M196: 0 | N196: 0
B197: =B196+1 -> 194 | C197: RESERVED | D197: RESERVED | E197: 0 | F197: 0 | G197: 0 | H197: 0 | I197: 0 | J197: 0 | K197: 0 | L197: 0 | M197: 0 | N197: 0
B198: 195 | C198: RESERVED | D198: RESERVED | E198: 0 | F198: 0 | G198: 0 | H198: 0 | I198: 0 | J198: 0 | K198: 0 | L198: 0 | M198: 0 | N198: 0
B199: 196 | C199: RESERVED | D199: RESERVED | E199: 0 | F199: 0 | G199: 0 | H199: 0 | I199: 0 | J199: 0 | K199: 0 | L199: 0 | M199: 0 | N199: 0
B200: 197 | C200: RESERVED | D200: RESERVED | E200: 0 | F200: 0 | G200: 0 | H200: 0 | I200: 0 | J200: 0 | K200: 0 | L200: 0 | M200: 0 | N200: 0
... 258 more rows

Sheet TEAM TYPES
B1: Type | C1: Generic Type | D1: Team Use (0 = None, 1 = sniper, 2 = crew, 3 = command, 4 = infantry, 5 = machine gun, 6 = mortar, 7 = anti-tank, 8 = anti-aircraft, 9 = artillery, 10 = armor, 11 = recon, 12 = transport, 13 = flamethrower TeamType_Sniper, TeamType_Crew, TeamType_Command, TeamType_Infantry, TeamType_MachineGun, TeamType_Mortar, TeamType_AntiTank, TeamType_AntiAircraft, TeamType_Artillery, TeamType_Armor, TeamType_Recon, TeamType_Transport, TeamType_Flamethrower,
A2: Count: | B2: 33
A3: 0 | B3: Command Team | C3: 0 | D3: 3
A4: 1 | B4: Rifle Team | C4: 0 | D4: 4
A5: 2 | B5: Heavy Rifle Team | C5: 0 | D5: 4
A6: 3 | B6: Recon Team | C6: 0 | D6: 11
A7: 4 | B7: Engineer Team | C7: 0 | D7: 4
A8: 5 | B8: Machine Gun | C8: 0 | D8: 5
A9: 6 | B9: Heavy Machine Gun | C9: 0 | D9: 5
A10: 7 | B10: Anti-Tank Team | C10: 0 | D10: 7
A11: 8 | B11: Light Mortar | C11: 0 | D11: 6
A12: 9 | B12: Mortar | C12: 0 | D12: 6
A13: 10 | B13: Heavy Mortar | C13: 0 | D13: 6
A14: 11 | B14: Sniper | C14: 0 | D14: 1
A15: 12 | B15: Flamethrower | C15: 0 | D15: 13
A16: 13 | B16: Light Anti-Tank Gun | C16: 1 | D16: 7
A17: 14 | B17: Anti-Tank Gun | C17: 1 | D17: 7
A18: 15 | B18: Heavy Anti-Tank Gun | C18: 1 | D18: 7
A19: 16 | B19: Light Artillery | C19: 1 | D19: 9
A20: 17 | B20: Artillery | C20: 1 | D20: 9
A21: 18 | B21: Heavy Artillery | C21: 1 | D21: 9
A22: 19 | B22: Light Anti-Aircraft Gun | C22: 1 | D22: 5
A23: 20 | B23: Anti-Aircraft Gun | C23: 1 | D23: 7
A24: 21 | B24: Heavy Anti-Aircraft Gun | C24: 1 | D24: 7
A25: 22 | B25: Light Tank | C25: 2 | D25: 11
A26: 23 | B26: Medium Tank | C26: 2 | D26: 10
A27: 24 | B27: Heavy Tank | C27: 2 | D27: 10
A28: 25 | B28: Assault Gun | C28: 2 | D28: 10
A29: 26 | B29: Tank Destroyer | C29: 2 | D29: 7
A30: 27 | B30: Transport | C30: 3 | D30: 12
A31: 28 | B31: Halftrack | C31: 3 | D31: 12
A32: 29 | B32: Scout Car | C32: 3 | D32: 11
A33: 30 | B33: Armored Car | C33: 3 | D33: 11
A34: 31 | B34: Artillery | C34: 3 | D34: 9
A35: 32 | B35: Tank Destroyer | C35: 3 | D35: 7
A36: Count: | B36: 4
A37: 0 | B37: Infantry
A38: 1 | B38: Gun
A39: 2 | B39: Armor
A40: 3 | B40: Vehicle

Sheet SOLDIERS
A1: (notes) | C1: Position Name | D1: Nation | E1: Branch | F1: Uniform | G1: Min Rank | H1: Max Rank | I1: Loc0 Chance | J1: Loc1 Chance | K1: Loc0 Armor | L1: Loc1 Armor | M1: Weapon0 | N1: Weapon1 | O1: Weapon2 | P1: Weapon3 | Q1: Weapon4 | R1: Weapon5 | S1: Num Ammo Pools | T1: Ammo0 Type | U1: Ammo0 Rounds | V1: Ammo1 Type | W1: Ammo1 Rounds | X1: Ammo2 Type | Y1: Ammo2 Rounds | Z1: Ammo3 Type | AA1: Ammo3 Rounds | AB1: Ammo4 Type | AC1: Ammo4 Rounds | AD1: etc
B2: count: | C2: 413
A3: US Rifleman / M1 Garand | B3: 0 | C3: 20 | D3: 0 | E3: 0 | F3: 0 | G3: 0 | H3: 1 | I3: 28 | J3: 100 | K3: 3 | L3: 0 | M3: 0 | N3: 24 | O3: -1 | P3: -1 | Q3: -1 | R3: -1 | S3: 2 | T3: 9 | U3: 96 | V3: 5 | W3: 2
A4: US Basic | B4: =B3+1 -> 1 | C4: 27 | D4: 0 | E4: 0 | F4: 0 | G4: 0 | H4: 0 | I4: 28 | J4: 100 | K4: 3 | L4: 0 | M4: 0 | N4: -1 | O4: -1 | P4: -1 | Q4: -1 | R4: -1 | S4: 1 | T4: 9 | U4: 96
A5: US Rifleman / Carbine | B5: =B4+1 -> 2 | C5: 20 | D5: 0 | E5: 0 | F5: 0 | G5: 0 | H5: 1 | I5: 28 | J5: 100 | K5: 3 | L5: 0 | M5: 30 | N5: 24 | O5: -1 | P5: -1 | Q5: -1 | R5: -1 | S5: 2 | T5: 11 | U5: 75 | V5: 5 | W5: 2
A6: US Rifleman / M1903A1 w/GL | B6: 3 | C6: 29 | D6: 0 | E6: 0 | F6: 0 | G6: 0 | H6: 1 | I6: 28 | J6: 100 | K6: 3 | L6: 0 | M6: 31 | N6: 32 | O6: 24 | P6: -1 | Q6: -1 | R6: -1 | S6: 4 | T6: 9 | U6: 60 | V6: 7 | W6: 3 | X6: 8 | Y6: 2 | Z6: 5 | AA6: 2
A7: US Rifleman / M1 Garand w/GL | B7: 4 | C7: 29 | D7: 0 | E7: 0 | F7: 0 | G7: 0 | H7: 1 | I7: 28 | J7: 100 | K7: 3 | L7: 0 | M7: 0 | N7: 24 | O7: -1 | P7: -1 | Q7: -1 | R7: -1 | S7: 4 | T7: 9 | U7: 96 | V7: 7 | W7: 3 | X7: 8 | Y7: 2 | Z7: 5 | AA7: 2
A8: US Automatic Rifleman | B8: 5 | C8: 26 | D8: 0 | E8: 0 | F8: 0 | G8: 0 | H8: 1 | I8: 28 | J8: 100 | K8: 3 | L8: 0 | M8: 1 | N8: 24 | O8: -1 | P8: -1 | Q8: -1 | R8: -1 | S8: 2 | T8: 9 | U8: 320 | V8: 5 | W8: 2
A9: US Asst. Auto Rifleman | B9: 6 | C9: 26 | D9: 0 | E9: 0 | F9: 0 | G9: 0 | H9: 1 | I9: 28 | J9: 100 | K9: 3 | L9: 0 | M9: 0 | N9: 24 | O9: -1 | P9: -1 | Q9: -1 | R9: -1 | S9: 2 | T9: 9 | U9: 96 | V9: 5 | W9: 2
A10: US Pioneer / M1 Carbine | B10: 7 | C10: 21 | D10: 0 | E10: 0 | F10: 0 | G10: 0 | H10: 1 | I10: 28 | J10: 100 | K10: 3 | L10: 0 | M10: 30 | N10: 24 | O10: -1 | P10: -1 | Q10: -1 | R10: -1 | S10: 2 | T10: 11 | U10: 75 | V10: 5 | W10: 2
A11: US Cpl Pioneer Sqd. Ldr. / Carbine | B11: 8 | C11: 14 | D11: 0 | E11: 0 | F11: 0 | G11: 3 | H11: 3 | I11: 28 | J11: 100 | K11: 3 | L11: 0 | M11: 30 | N11: 24 | O11: -1 | P11: -1 | Q11: -1 | R11: -1 | S11: 2 | T11: 11 | U11: 75 | V11: 5 | W11: 2
A12: US Sniper | B12: 9 | C12: 28 | D12: 0 | E12: 0 | F12: 0 | G12: 1 | H12: 1 | I12: 28 | J12: 100 | K12: 3 | L12: 0 | M12: 51 | N12: -1 | O12: -1 | P12: -1 | Q12: -1 | R12: -1 | S12: 1 | T12: 9 | U12: 60
A13: US .30 MMG Gunner | B13: 10 | C13: 1 | D13: 0 | E13: 0 | F13: 0 | G13: 0 | H13: 1 | I13: 28 | J13: 100 | K13: 3 | L13: 0 | M13: 29 | N13: 26 | O13: -1 | P13: -1 | Q13: -1 | R13: -1 | S13: 2 | T13: 9 | U13: 2500 | V13: 12 | W13: 21
A14: US .50 HMG Gunner | B14: 11 | C14: 1 | D14: 0 | E14: 0 | F14: 0 | G14: 0 | H14: 1 | I14: 28 | J14: 100 | K14: 3 | L14: 0 | M14: 90 | N14: 26 | O14: -1 | P14: -1 | Q14: -1 | R14: -1 | S14: 3 | T14: 13 | U14: 200 | V14: 14 | W14: 100 | X14: 12 | Y14: 21
A15: US 60mm Mrtr. Gunner | B15: 12 | C15: 1 | D15: 0 | E15: 0 | F15: 0 | G15: 0 | H15: 1 | I15: 28 | J15: 100 | K15: 3 | L15: 0 | M15: 28 | N15: 26 | O15: -1 | P15: -1 | Q15: -1 | R15: -1 | S15: 2 | T15: 23 | U15: 24 | V15: 12 | W15: 21
A16: US Cpl Gunner / Pistol | B16: 13 | C16: 1 | D16: 0 | E16: 0 | F16: 0 | G16: 3 | H16: 3 | I16: 28 | J16: 100 | K16: 3 | L16: 0 | M16: 26 | N16: -1 | O16: -1 | P16: -1 | Q16: -1 | R16: -1 | S16: 1 | T16: 12 | U16: 21
A17: US Gunner / Carbine | B17: 14 | C17: 1 | D17: 0 | E17: 0 | F17: 0 | G17: 0 | H17: 1 | I17: 28 | J17: 100 | K17: 3 | L17: 0 | M17: 30 | N17: -1 | O17: -1 | P17: -1 | Q17: -1 | R17: -1 | S17: 1 | T17: 11 | U17: 60
A18: US Asst. Gunner / Pistol | B18: 15 | C18: 5 | D18: 0 | E18: 0 | F18: 0 | G18: 0 | H18: 1 | I18: 28 | J18: 100 | K18: 3 | L18: 0 | M18: 26 | N18: -1 | O18: -1 | P18: -1 | Q18: -1 | R18: -1 | S18: 1 | T18: 12 | U18: 21
A19: US Asst. Gunner / Carbine | B19: 16 | C19: 5 | D19: 0 | E19: 0 | F19: 0 | G19: 0 | H19: 1 | I19: 28 | J19: 100 | K19: 3 | L19: 0 | M19: 30 | N19: -1 | O19: -1 | P19: -1 | Q19: -1 | R19: -1 | S19: 1 | T19: 11 | U19: 60
A20: US Loader / Pistol | B20: 17 | C20: 3 | D20: 0 | E20: 0 | F20: 0 | G20: 0 | H20: 1 | I20: 28 | J20: 100 | K20: 3 | L20: 0 | M20: 26 | N20: -1 | O20: -1 | P20: -1 | Q20: -1 | R20: -1 | S20: 1 | T20: 12 | U20: 21
A21: US Ammo Bearer / M1 Garand | B21: 18 | C21: 8 | D21: 0 | E21: 0 | F21: 0 | G21: 0 | H21: 1 | I21: 28 | J21: 100 | K21: 3 | L21: 0 | M21: 0 | N21: 24 | O21: -1 | P21: -1 | Q21: -1 | R21: -1 | S21: 2 | T21: 9 | U21: 96 | V21: 5 | W21: 2
A22: US Ammo Bearer / Carbine - | B22: 19 | C22: 8 | D22: 0 | E22: 0 | F22: 0 | G22: 0 | H22: 1 | I22: 28 | J22: 100 | K22: 3 | L22: 0 | M22: 30 | N22: -1 | O22: -1 | P22: -1 | Q22: -1 | R22: -1 | S22: 1 | T22: 11 | U22: 75
A23: US Ammo Bearer / Carbine | B23: 20 | C23: 8 | D23: 0 | E23: 0 | F23: 0 | G23: 0 | H23: 1 | I23: 28 | J23: 100 | K23: 3 | L23: 0 | M23: 30 | N23: 24 | O23: -1 | P23: -1 | Q23: -1 | R23: -1 | S23: 2 | T23: 11 | U23: 75 | V23: 5 | W23: 2
A24: US Plt Guide Sgt / M1 Garand | B24: 21 | C24: 18 | D24: 0 | E24: 0 | F24: 0 | G24: 4 | H24: 4 | I24: 28 | J24: 100 | K24: 3 | L24: 0 | M24: 0 | N24: 24 | O24: -1 | P24: -1 | Q24: -1 | R24: -1 | S24: 2 | T24: 9 | U24: 96 | V24: 5 | W24: 2
A25: US Messenger / M1 Garand | B25: 22 | C25: 19 | D25: 0 | E25: 0 | F25: 0 | G25: 0 | H25: 1 | I25: 28 | J25: 100 | K25: 3 | L25: 0 | M25: 0 | N25: 24 | O25: -1 | P25: -1 | Q25: -1 | R25: -1 | S25: 2 | T25: 9 | U25: 96 | V25: 5 | W25: 2
A26: US Messenger / Carbine | B26: 23 | C26: 19 | D26: 0 | E26: 0 | F26: 0 | G26: 0 | H26: 1 | I26: 28 | J26: 100 | K26: 3 | L26: 0 | M26: 30 | N26: 24 | O26: -1 | P26: -1 | Q26: -1 | R26: -1 | S26: 2 | T26: 11 | U26: 75 | V26: 5 | W26: 2
A27: US Driver / Carbine | B27: 24 | C27: 0 | D27: 0 | E27: 0 | F27: 0 | G27: 0 | H27: 1 | I27: 28 | J27: 100 | K27: 3 | L27: 0 | M27: 30 | N27: -1 | O27: -1 | P27: -1 | Q27: -1 | R27: -1 | S27: 1 | T27: 11 | U27: 75
A28: US Driver / Carbine w/GL | B28: 25 | C28: 0 | D28: 0 | E28: 0 | F28: 0 | G28: 0 | H28: 1 | I28: 28 | J28: 100 | K28: 3 | L28: 0 | M28: 98 | N28: 99 | O28: -1 | P28: -1 | Q28: -1 | R28: -1 | S28: 2 | T28: 11 | U28: 75 | V28: 7 | W28: 5
A29: US Driver / M1 Garand | B29: 26 | C29: 0 | D29: 0 | E29: 0 | F29: 0 | G29: 0 | H29: 1 | I29: 28 | J29: 100 | K29: 3 | L29: 0 | M29: 0 | N29: -1 | O29: -1 | P29: -1 | Q29: -1 | R29: -1 | S29: 1 | T29: 9 | U29: 96
A30: US Driver / M1 Garand w/GL | B30: 27 | C30: 0 | D30: 0 | E30: 0 | F30: 0 | G30: 0 | H30: 1 | I30: 28 | J30: 100 | K30: 3 | L30: 0 | M30: 21 | N30: 97 | O30: -1 | P30: -1 | Q30: -1 | R30: -1 | S30: 2 | T30: 9 | U30: 80 | V30: 7 | W30: 5
A31: US Driver / BAR | B31: 28 | C31: 0 | D31: 0 | E31: 0 | F31: 0 | G31: 0 | H31: 1 | I31: 28 | J31: 100 | K31: 3 | L31: 0 | M31: 1 | N31: -1 | O31: -1 | P31: -1 | Q31: -1 | R31: -1 | S31: 2 | T31: 9 | U31: 60 | V31: 10 | W31: 60
A32: US Driver / BAR + | B32: 29 | C32: 26 | D32: 0 | E32: 0 | F32: 0 | G32: 0 | H32: 1 | I32: 28 | J32: 100 | K32: 3 | L32: 0 | M32: 1 | N32: 24 | O32: -1 | P32: -1 | Q32: -1 | R32: -1 | S32: 2 | T32: 9 | U32: 320 | V32: 5 | W32: 2
A33: US Cpl Asst. Ldr. / M1903 w/GL | B33: 30 | C33: 15 | D33: 0 | E33: 0 | F33: 0 | G33: 3 | H33: 3 | I33: 28 | J33: 100 | K33: 3 | L33: 0 | M33: 31 | N33: 32 | O33: 24 | P33: -1 | Q33: -1 | R33: -1 | S33: 4 | T33: 9 | U33: 60 | V33: 7 | W33: 3 | X33: 8 | Y33: 2 | Z33: 5 | AA33: 2
A34: US Cpl Asst. Ldr. / M1 Garand w/GL | B34: 31 | C34: 15 | D34: 0 | E34: 0 | F34: 0 | G34: 3 | H34: 3 | I34: 28 | J34: 100 | K34: 3 | L34: 0 | M34: 21 | N34: 97 | O34: 24 | P34: -1 | Q34: -1 | R34: -1 | S34: 4 | T34: 9 | U34: 96 | V34: 7 | W34: 3 | X34: 8 | Y34: 2 | Z34: 5 | AA34: 2
A35: US Cpl Team Ldr. / Carbine | B35: 32 | C35: 16 | D35: 0 | E35: 0 | F35: 0 | G35: 3 | H35: 3 | I35: 28 | J35: 100 | K35: 3 | L35: 0 | M35: 30 | N35: 48 | O35: -1 | P35: -1 | Q35: -1 | R35: -1 | S35: 2 | T35: 11 | U35: 75 | V35: 6 | W35: 1
A36: US Sgt Team Ldr. / M1 Garand | B36: 33 | C36: 14 | D36: 0 | E36: 0 | F36: 0 | G36: 4 | H36: 4 | I36: 28 | J36: 100 | K36: 3 | L36: 0 | M36: 0 | N36: 24 | O36: -1 | P36: -1 | Q36: -1 | R36: -1 | S36: 2 | T36: 9 | U36: 96 | V36: 5 | W36: 2
A37: US Cpl Sqd. Ldr. / M1903A1 w/GL | B37: 34 | C37: 14 | D37: 0 | E37: 0 | F37: 0 | G37: 3 | H37: 3 | I37: 28 | J37: 100 | K37: 3 | L37: 0 | M37: 31 | N37: 32 | O37: 24 | P37: -1 | Q37: -1 | R37: -1 | S37: 4 | T37: 9 | U37: 60 | V37: 7 | W37: 3 | X37: 8 | Y37: 2 | Z37: 5 | AA37: 2
A38: US Cpl Sqd. Ldr. / M1 Garand - | B38: 35 | C38: 14 | D38: 0 | E38: 0 | F38: 0 | G38: 3 | H38: 3 | I38: 28 | J38: 100 | K38: 3 | L38: 0 | M38: 0 | N38: -1 | O38: -1 | P38: -1 | Q38: -1 | R38: -1 | S38: 1 | T38: 9 | U38: 96
A39: US Sgt Sqd. Ldr. / M1 Garand | B39: 36 | C39: 14 | D39: 0 | E39: 0 | F39: 0 | G39: 4 | H39: 4 | I39: 28 | J39: 100 | K39: 3 | L39: 0 | M39: 0 | N39: 24 | O39: 48 | P39: -1 | Q39: -1 | R39: -1 | S39: 3 | T39: 9 | U39: 96 | V39: 5 | W39: 2 | X39: 6 | Y39: 1
A40: US Cpl Sqd. Ldr. / M1 Garand + | B40: 37 | C40: 14 | D40: 0 | E40: 0 | F40: 0 | G40: 3 | H40: 3 | I40: 28 | J40: 100 | K40: 3 | L40: 0 | M40: 21 | N40: 24 | O40: -1 | P40: -1 | Q40: -1 | R40: -1 | S40: 3 | T40: 9 | U40: 96 | V40: 5 | W40: 2 | X40: 6 | Y40: 1
A41: US Cpl Sqd. Ldr. / M1 Garand w/GL | B41: 38 | C41: 14 | D41: 0 | E41: 0 | F41: 0 | G41: 3 | H41: 3 | I41: 28 | J41: 100 | K41: 3 | L41: 0 | M41: 21 | N41: 97 | O41: 24 | P41: -1 | Q41: -1 | R41: -1 | S41: 4 | T41: 9 | U41: 96 | V41: 7 | W41: 3 | X41: 8 | Y41: 2 | Z41: 5 | AA41: 2
A42: US Sgt Sqd. Ldr. / Carbine | B42: 39 | C42: 14 | D42: 0 | E42: 0 | F42: 0 | G42: 4 | H42: 4 | I42: 28 | J42: 100 | K42: 3 | L42: 0 | M42: 30 | N42: 24 | O42: 48 | P42: -1 | Q42: -1 | R42: -1 | S42: 3 | T42: 11 | U42: 75 | V42: 5 | W42: 2 | X42: 6 | Y42: 1
A43: US SSgt Sqd Ldr / Garand | B43: 40 | C43: 14 | D43: 0 | E43: 0 | F43: 0 | G43: 5 | H43: 5 | I43: 28 | J43: 100 | K43: 3 | L43: 0 | M43: 0 | N43: 24 | O43: 48 | P43: -1 | Q43: -1 | R43: -1 | S43: 3 | T43: 9 | U43: 96 | V43: 5 | W43: 2 | X43: 6 | Y43: 1
A44: US Sgt Sct. Ldr. / Carbine | B44: 41 | C44: 13 | D44: 0 | E44: 0 | F44: 0 | G44: 4 | H44: 4 | I44: 28 | J44: 100 | K44: 3 | L44: 0 | M44: 30 | N44: 24 | O44: 48 | P44: -1 | Q44: -1 | R44: -1 | S44: 3 | T44: 11 | U44: 75 | V44: 5 | W44: 2 | X44: 6 | Y44: 1
A45: US Sgt Sct. Ldr. / M1 Garand | B45: 42 | C45: 13 | D45: 0 | E45: 0 | F45: 0 | G45: 4 | H45: 4 | I45: 28 | J45: 100 | K45: 3 | L45: 0 | M45: 0 | N45: 24 | O45: 48 | P45: -1 | Q45: -1 | R45: -1 | S45: 3 | T45: 9 | U45: 96 | V45: 5 | W45: 2 | X45: 6 | Y45: 1
A46: US Sgt Sct. Ldr. / M1 Garand w/GL | B46: 43 | C46: 13 | D46: 0 | E46: 0 | F46: 0 | G46: 4 | H46: 4 | I46: 28 | J46: 100 | K46: 3 | L46: 0 | M46: 21 | N46: 97 | O46: 24 | P46: 48 | Q46: -1 | R46: -1 | S46: 5 | T46: 9 | U46: 96 | V46: 7 | W46: 3 | X46: 8 | Y46: 2 | Z46: 5 | AA46: 2 | AB46: 6 | AC46: 1
A47: US Platoon Sgt. / Carbine | B47: 44 | C47: 17 | D47: 0 | E47: 0 | F47: 0 | G47: 5 | H47: 5 | I47: 28 | J47: 100 | K47: 3 | L47: 0 | M47: 30 | N47: 24 | O47: -1 | P47: -1 | Q47: -1 | R47: -1 | S47: 2 | T47: 11 | U47: 75 | V47: 5 | W47: 2
A48: US Platoon Sgt. / Carbine, Pistol | B48: 45 | C48: 17 | D48: 0 | E48: 0 | F48: 0 | G48: 5 | H48: 5 | I48: 28 | J48: 100 | K48: 3 | L48: 0 | M48: 30 | N48: 26 | O48: 24 | P48: -1 | Q48: -1 | R48: -1 | S48: 3 | T48: 11 | U48: 75 | V48: 12 | W48: 21 | X48: 5 | Y48: 2
A49: US Platoon Sgt. / M1 Garand | B49: 46 | C49: 17 | D49: 0 | E49: 0 | F49: 0 | G49: 5 | H49: 5 | I49: 28 | J49: 100 | K49: 3 | L49: 0 | M49: 0 | N49: 24 | O49: -1 | P49: -1 | Q49: -1 | R49: -1 | S49: 2 | T49: 9 | U49: 96 | V49: 5 | W49: 2
A50: US Platoon Cdr. / Carbine | B50: 47 | C50: 12 | D50: 0 | E50: 0 | F50: 0 | G50: 9 | H50: 10 | I50: 28 | J50: 100 | K50: 3 | L50: 0 | M50: 30 | N50: 26 | O50: 24 | P50: 48 | Q50: -1 | R50: -1 | S50: 4 | T50: 11 | U50: 75 | V50: 12 | W50: 21 | X50: 5 | Y50: 2 | Z50: 6 | AA50: 1
A51: US Co HQ Comms. Sgt. / M1 Garand | B51: 48 | C51: 30 | D51: 0 | E51: 0 | F51: 0 | G51: 4 | H51: 4 | I51: 28 | J51: 100 | K51: 3 | L51: 0 | M51: 0 | N51: 24 | O51: -1 | P51: -1 | Q51: -1 | R51: -1 | S51: 2 | T51: 9 | U51: 96 | V51: 5 | W51: 2
A52: US Co HQ Comms. SSG / M1 Garand | B52: 49 | C52: 30 | D52: 0 | E52: 0 | F52: 0 | G52: 5 | H52: 5 | I52: 28 | J52: 100 | K52: 3 | L52: 0 | M52: 0 | N52: 24 | O52: -1 | P52: -1 | Q52: -1 | R52: -1 | S52: 2 | T52: 9 | U52: 96 | V52: 5 | W52: 2
A53: US Co HQ First Sgt. / Carbine | B53: 50 | C53: 31 | D53: 0 | E53: 0 | F53: 0 | G53: 5 | H53: 5 | I53: 28 | J53: 100 | K53: 3 | L53: 0 | M53: 30 | N53: 24 | O53: -1 | P53: -1 | Q53: -1 | R53: -1 | S53: 2 | T53: 11 | U53: 75 | V53: 5 | W53: 2
A54: US Co HQ SSgt. / Carbine | B54: 51 | C54: 31 | D54: 0 | E54: 0 | F54: 0 | G54: 5 | H54: 5 | I54: 28 | J54: 100 | K54: 3 | L54: 0 | M54: 30 | N54: 24 | O54: -1 | P54: -1 | Q54: -1 | R54: -1 | S54: 2 | T54: 11 | U54: 75 | V54: 5 | W54: 2
A55: US Cpl Asst. Ldr / Garand | B55: 52 | C55: 15 | D55: 0 | E55: 0 | F55: 0 | G55: 3 | H55: 3 | I55: 28 | J55: 100 | K55: 3 | L55: 0 | M55: 0 | N55: 24 | O55: -1 | P55: -1 | Q55: -1 | R55: -1 | S55: 2 | T55: 9 | U55: 96 | V55: 5 | W55: 2
A56: US Co HQ Commander / Carbine | B56: 53 | C56: 11 | D56: 0 | E56: 0 | F56: 0 | G56: 11 | H56: 11 | I56: 28 | J56: 100 | K56: 3 | L56: 0 | M56: 30 | N56: 26 | O56: 24 | P56: 48 | Q56: -1 | R56: -1 | S56: 4 | T56: 11 | U56: 75 | V56: 12 | W56: 21 | X56: 5 | Y56: 2 | Z56: 6 | AA56: 1
A57: US Tank Crew | B57: 54 | C57: 25 | D57: 0 | E57: 0 | F57: 1 | G57: 0 | H57: 1 | I57: 28 | J57: 100 | K57: 1 | L57: 0 | M57: 26 | N57: -1 | O57: -1 | P57: -1 | Q57: -1 | R57: -1 | S57: 1 | T57: 12 | U57: 21
A58: US Tank Crew Driver | B58: 55 | C58: 25 | D58: 0 | E58: 0 | F58: 1 | G58: 0 | H58: 1 | I58: 28 | J58: 100 | K58: 1 | L58: 0 | M58: 26 | N58: -1 | O58: -1 | P58: -1 | Q58: -1 | R58: -1 | S58: 1 | T58: 12 | U58: 21
A59: US Tank Crew Gunner | B59: 56 | C59: 1 | D59: 0 | E59: 0 | F59: 1 | G59: 3 | H59: 3 | I59: 28 | J59: 100 | K59: 1 | L59: 0 | M59: 26 | N59: -1 | O59: -1 | P59: -1 | Q59: -1 | R59: -1 | S59: 1 | T59: 12 | U59: 21
A60: US Tank Crew Asst. Gunner | B60: 57 | C60: 25 | D60: 0 | E60: 0 | F60: 1 | G60: 0 | H60: 1 | I60: 28 | J60: 100 | K60: 1 | L60: 0 | M60: 26 | N60: -1 | O60: -1 | P60: -1 | Q60: -1 | R60: -1 | S60: 1 | T60: 12 | U60: 21
A61: US Tank Crew Loader | B61: 58 | C61: 25 | D61: 0 | E61: 0 | F61: 1 | G61: 0 | H61: 1 | I61: 28 | J61: 100 | K61: 1 | L61: 0 | M61: 26 | N61: -1 | O61: -1 | P61: -1 | Q61: -1 | R61: -1 | S61: 1 | T61: 12 | U61: 21
A62: US Tank Crew Asst. Loader | B62: 59 | C62: 25 | D62: 0 | E62: 0 | F62: 1 | G62: 0 | H62: 1 | I62: 28 | J62: 100 | K62: 1 | L62: 0 | M62: 26 | N62: -1 | O62: -1 | P62: -1 | Q62: -1 | R62: -1 | S62: 1 | T62: 12 | U62: 21
A63: US Tank Commander | B63: 60 | C63: 2 | D63: 0 | E63: 0 | F63: 1 | G63: 4 | H63: 4 | I63: 28 | J63: 100 | K63: 1 | L63: 0 | M63: 26 | N63: -1 | O63: -1 | P63: -1 | Q63: -1 | R63: -1 | S63: 1 | T63: 12 | U63: 21
A64: US Sgt Sqd. Ldr. / Carbine | B64: 61 | C64: 14 | D64: 0 | E64: 0 | F64: 0 | G64: 4 | H64: 4 | I64: 28 | J64: 100 | K64: 3 | L64: 0 | M64: 30 | N64: 24 | O64: 48 | P64: -1 | Q64: -1 | R64: -1 | S64: 3 | T64: 11 | U64: 75 | V64: 5 | W64: 2 | X64: 6 | Y64: 1
A65: US Cpl Team Ldr. / M1903A1 w/GL | B65: 62 | C65: 16 | D65: 0 | E65: 0 | F65: 0 | G65: 3 | H65: 3 | I65: 28 | J65: 100 | K65: 3 | L65: 0 | M65: 31 | N65: 32 | O65: 24 | P65: -1 | Q65: -1 | R65: -1 | S65: 4 | T65: 9 | U65: 60 | V65: 7 | W65: 3 | X65: 8 | Y65: 2 | Z65: 5 | AA65: 2
A66: US .30 HMG Gunner | B66: 63 | C66: 1 | D66: 0 | E66: 0 | F66: 0 | G66: 0 | H66: 1 | I66: 28 | J66: 100 | K66: 3 | L66: 0 | M66: 64 | N66: 26 | O66: -1 | P66: -1 | Q66: -1 | R66: -1 | S66: 2 | T66: 9 | U66: 2500 | V66: 12 | W66: 21
A67: US Sgt Sct. Ldr. / M1903A1 w/GL | B67: 64 | C67: 13 | D67: 0 | E67: 0 | F67: 0 | G67: 4 | H67: 4 | I67: 28 | J67: 100 | K67: 3 | L67: 0 | M67: 31 | N67: 32 | O67: 24 | P67: 48 | Q67: -1 | R67: -1 | S67: 5 | T67: 9 | U67: 60 | V67: 7 | W67: 3 | X67: 8 | Y67: 2 | Z67: 5 | AA67: 2 | AB67: 6 | AC67: 1
A68: US Cpl Asst. Ldr. / Carbine | B68: 65 | C68: 15 | D68: 0 | E68: 0 | F68: 0 | G68: 3 | H68: 3 | I68: 28 | J68: 100 | K68: 3 | L68: 0 | M68: 30 | N68: 48 | O68: -1 | P68: -1 | Q68: -1 | R68: -1 | S68: 2 | T68: 11 | U68: 75 | V68: 5 | W68: 2
A69: US Driver / M1903A1 w/GL | B69: =B68+1 -> 66 | C69: 0 | D69: 0 | E69: 0 | F69: 0 | G69: 0 | H69: 1 | I69: 28 | J69: 100 | K69: 3 | L69: 0 | M69: 31 | N69: 32 | O69: 24 | P69: -1 | Q69: -1 | R69: -1 | S69: 3 | T69: 9 | U69: 96 | V69: 7 | W69: 5 | X69: 5 | Y69: 2
A70: US Engineer / M1 Garand | B70: 67 | C70: 22 | D70: 0 | E70: 0 | F70: 0 | G70: 0 | H70: 1 | I70: 28 | J70: 100 | K70: 3 | L70: 0 | M70: 0 | N70: 24 | O70: -1 | P70: -1 | Q70: -1 | R70: -1 | S70: 2 | T70: 9 | U70: 96 | V70: 5 | W70: 2
A71: US 81mm Mrtr. Gunner | B71: 68 | C71: 1 | D71: 0 | E71: 0 | F71: 0 | G71: 0 | H71: 1 | I71: 28 | J71: 100 | K71: 3 | L71: 0 | M71: 41 | N71: 26 | O71: -1 | P71: -1 | Q71: -1 | R71: -1 | S71: 3 | T71: 12 | U71: 21 | V71: 36 | W71: 21 | X71: 38 | Y71: 3
A72: US Driver / Pistol | B72: 69 | C72: 0 | D72: 0 | E72: 0 | F72: 0 | G72: 1 | H72: 2 | I72: 28 | J72: 100 | K72: 3 | L72: 0 | M72: 26 | N72: -1 | O72: -1 | P72: -1 | Q72: -1 | R72: -1 | S72: 1 | T72: 12 | U72: 21
A73: US Platoon Sgt. / Pistol | B73: 70 | C73: 17 | D73: 0 | E73: 0 | F73: 0 | G73: 5 | H73: 5 | I73: 28 | J73: 100 | K73: 3 | L73: 0 | M73: 26 | N73: -1 | O73: -1 | P73: -1 | Q73: -1 | R73: -1 | S73: 1 | T73: 12 | U73: 21
A74: US Platoon Sgt. / SMG | B74: 71 | C74: 17 | D74: 0 | E74: 0 | F74: 1 | G74: 5 | H74: 5 | I74: 28 | J74: 100 | K74: 3 | L74: 0 | M74: 65 | N74: 24 | O74: -1 | P74: -1 | Q74: -1 | R74: -1 | S74: 2 | T74: 12 | U74: 100 | V74: 5 | W74: 2
A75: US Driver / SMG | B75: 72 | C75: 0 | D75: 0 | E75: 0 | F75: 0 | G75: 0 | H75: 1 | I75: 28 | J75: 100 | K75: 3 | L75: 0 | M75: 65 | N75: -1 | O75: -1 | P75: -1 | Q75: -1 | R75: -1 | S75: 1 | T75: 12 | U75: 100
A76: US Sgt Tank Cmdr / Carbine | B76: 73 | C76: 14 | D76: 0 | E76: 0 | F76: 1 | G76: 4 | H76: 4 | I76: 28 | J76: 100 | K76: 3 | L76: 0 | M76: 30 | N76: 24 | O76: 48 | P76: -1 | Q76: -1 | R76: -1 | S76: 3 | T76: 11 | U76: 75 | V76: 5 | W76: 2 | X76: 6 | Y76: 1
A77: US Sgt Tank Cmdr / Pistol | B77: 74 | C77: 2 | D77: 0 | E77: 0 | F77: 1 | G77: 4 | H77: 4 | I77: 28 | J77: 100 | K77: 1 | L77: 0 | M77: 26 | N77: -1 | O77: -1 | P77: -1 | Q77: -1 | R77: -1 | S77: 1 | T77: 12 | U77: 21
A78: US Cpl Asst. Ldr. / M1 Garand w/GL | B78: 75 | C78: 15 | D78: 0 | E78: 0 | F78: 0 | G78: 3 | H78: 3 | I78: 28 | J78: 100 | K78: 3 | L78: 0 | M78: 21 | N78: 97 | O78: 24 | P78: -1 | Q78: -1 | R78: -1 | S78: 4 | T78: 9 | U78: 96 | V78: 7 | W78: 3 | X78: 8 | Y78: 2 | Z78: 5 | AA78: 2
A79: US M1A1 Bazooka Gunner | B79: 76 | C79: 1 | D79: 0 | E79: 0 | F79: 0 | G79: 0 | H79: 1 | I79: 28 | J79: 100 | K79: 3 | L79: 0 | M79: 66 | N79: 0 | O79: -1 | P79: -1 | Q79: -1 | R79: -1 | S79: 2 | T79: 21 | U79: 5 | V79: 9 | W79: 96
A80: US Sgt Asst. Ldr. / M1 Garand w/GL | B80: 77 | C80: 15 | D80: 0 | E80: 0 | F80: 0 | G80: 4 | H80: 4 | I80: 28 | J80: 100 | K80: 3 | L80: 0 | M80: 21 | N80: 97 | O80: 24 | P80: -1 | Q80: -1 | R80: -1 | S80: 4 | T80: 9 | U80: 96 | V80: 7 | W80: 3 | X80: 8 | Y80: 2 | Z80: 5 | AA80: 2
A81: US Platoon Sgt. / M1 Garand w/GL | B81: 78 | C81: 17 | D81: 0 | E81: 0 | F81: 0 | G81: 5 | H81: 5 | I81: 28 | J81: 100 | K81: 3 | L81: 0 | M81: 21 | N81: 97 | O81: 24 | P81: -1 | Q81: -1 | R81: -1 | S81: 4 | T81: 9 | U81: 96 | V81: 7 | W81: 3 | X81: 8 | Y81: 2 | Z81: 5 | AA81: 2
A82: US Sgt Team Ldr / M1 Garand w/GL | B82: 79 | C82: 16 | D82: 0 | E82: 0 | F82: 0 | G82: 4 | H82: 4 | I82: 28 | J82: 100 | K82: 3 | L82: 0 | M82: 21 | N82: 97 | O82: 24 | P82: -1 | Q82: -1 | R82: -1 | S82: 4 | T82: 9 | U82: 96 | V82: 7 | W82: 3 | X82: 8 | Y82: 2 | Z82: 5 | AA82: 2
A83: US SSgt Sct. Leader / M1 Garand w/GL | B83: 80 | C83: 13 | D83: 0 | E83: 0 | F83: 0 | G83: 5 | H83: 5 | I83: 28 | J83: 100 | K83: 3 | L83: 0 | M83: 21 | N83: 97 | O83: 24 | P83: 48 | Q83: -1 | R83: -1 | S83: 5 | T83: 9 | U83: 96 | V83: 7 | W83: 3 | X83: 8 | Y83: 2 | Z83: 5 | AA83: 2 | AB83: 6 | AC83: 1
A84: US SSgt Sct. Ldr. / M1 Garand | B84: 81 | C84: 13 | D84: 0 | E84: 0 | F84: 0 | G84: 5 | H84: 5 | I84: 28 | J84: 100 | K84: 3 | L84: 0 | M84: 0 | N84: 24 | O84: 48 | P84: -1 | Q84: -1 | R84: -1 | S84: 3 | T84: 9 | U84: 96 | V84: 5 | W84: 2 | X84: 6 | Y84: 1
A85: US Co HQ Comms. Sgt. / M1 Garand w/GL | B85: 82 | C85: 30 | D85: 0 | E85: 0 | F85: 0 | G85: 4 | H85: 4 | I85: 28 | J85: 100 | K85: 3 | L85: 0 | M85: 21 | N85: 97 | O85: 24 | P85: -1 | Q85: -1 | R85: -1 | S85: 4 | T85: 9 | U85: 96 | V85: 7 | W85: 3 | X85: 8 | Y85: 2 | Z85: 5 | AA85: 2
A86: US Rifleman / Carbine w/GL | B86: 83 | C86: 20 | D86: 0 | E86: 0 | F86: 0 | G86: 0 | H86: 1 | I86: 28 | J86: 100 | K86: 3 | L86: 0 | M86: 98 | N86: 99 | O86: 24 | P86: -1 | Q86: -1 | R86: -1 | S86: 4 | T86: 11 | U86: 75 | V86: 7 | W86: 3 | X86: 8 | Y86: 2 | Z86: 5 | AA86: 2
A87: US Cpl Gunner / Pistol | B87: 84 | C87: 1 | D87: 0 | E87: 0 | F87: 0 | G87: 3 | H87: 3 | I87: 28 | J87: 100 | K87: 3 | L87: 0 | M87: 26 | N87: -1 | O87: -1 | P87: -1 | Q87: -1 | R87: -1 | S87: 1 | T87: 12 | U87: 21
A88: US Messenger / Carbine w/GL | B88: 85 | C88: 19 | D88: 0 | E88: 0 | F88: 0 | G88: 0 | H88: 1 | I88: 28 | J88: 100 | K88: 3 | L88: 0 | M88: 98 | N88: 99 | O88: 24 | P88: -1 | Q88: -1 | R88: -1 | S88: 4 | T88: 11 | U88: 75 | V88: 7 | W88: 3 | X88: 8 | Y88: 2 | Z88: 5 | AA88: 2
A89: US Sgt Sqd. Ldr. / M1 Garand | B89: 86 | C89: 14 | D89: 0 | E89: 0 | F89: 0 | G89: 4 | H89: 4 | I89: 28 | J89: 100 | K89: 3 | L89: 0 | M89: 0 | N89: 24 | O89: 48 | P89: -1 | Q89: -1 | R89: -1 | S89: 3 | T89: 9 | U89: 96 | V89: 5 | W89: 2 | X89: 6 | Y89: 1
A90: US Pioneer / Carbine | B90: 87 | C90: 21 | D90: 0 | E90: 0 | F90: 0 | G90: 0 | H90: 1 | I90: 28 | J90: 100 | K90: 3 | L90: 0 | M90: 30 | N90: 24 | O90: -1 | P90: -1 | Q90: -1 | R90: -1 | S90: 2 | T90: 11 | U90: 75 | V90: 5 | W90: 2
A91: US .50 HMG Gunner | B91: 88 | C91: 1 | D91: 0 | E91: 0 | F91: 0 | G91: 0 | H91: 1 | I91: 28 | J91: 100 | K91: 3 | L91: 0 | M91: 90 | N91: 26 | O91: -1 | P91: -1 | Q91: -1 | R91: -1 | S91: 3 | T91: 12 | U91: 21 | V91: 13 | W91: 200 | X91: 14 | Y91: 100
A92: US AB Radioman / Carbine | B92: 89 | C92: 4 | D92: 0 | E92: 0 | F92: 2 | G92: 3 | H92: 3 | I92: 28 | J92: 100 | K92: 3 | L92: 0 | M92: 30 | N92: 24 | O92: -1 | P92: -1 | Q92: -1 | R92: -1 | S92: 2 | T92: 11 | U92: 75 | V92: 5 | W92: 2
A93: US AB Co HQ Cmdr. / Carbine | B93: 90 | C93: 11 | D93: 0 | E93: 0 | F93: 2 | G93: 11 | H93: 11 | I93: 28 | J93: 100 | K93: 3 | L93: 0 | M93: 30 | N93: 26 | O93: 24 | P93: 48 | Q93: -1 | R93: -1 | S93: 4 | T93: 11 | U93: 75 | V93: 12 | W93: 21 | X93: 5 | Y93: 2 | Z93: 6 | AA93: 1
A94: US AB Co HQ 1st Sgt. / Thompson | B94: 91 | C94: 31 | D94: 0 | E94: 0 | F94: 2 | G94: 5 | H94: 5 | I94: 28 | J94: 100 | K94: 3 | L94: 0 | M94: 65 | N94: 24 | O94: -1 | P94: -1 | Q94: -1 | R94: -1 | S94: 2 | T94: 12 | U94: 300 | V94: 5 | W94: 2
A95: US AB Co HQ Comms. Sgt / M1 Garand | B95: 92 | C95: 30 | D95: 0 | E95: 0 | F95: 2 | G95: 4 | H95: 4 | I95: 28 | J95: 100 | K95: 3 | L95: 0 | M95: 0 | N95: 24 | O95: -1 | P95: -1 | Q95: -1 | R95: -1 | S95: 2 | T95: 9 | U95: 96 | V95: 5 | W95: 2
A96: US AB Messenger / M1 Garand | B96: 93 | C96: 19 | D96: 0 | E96: 0 | F96: 2 | G96: 0 | H96: 1 | I96: 28 | J96: 100 | K96: 3 | L96: 0 | M96: 0 | N96: 24 | O96: -1 | P96: -1 | Q96: -1 | R96: -1 | S96: 2 | T96: 9 | U96: 96 | V96: 5 | W96: 2
A97: US AB Platoon Cdr. / Carbine | B97: 94 | C97: 12 | D97: 0 | E97: 0 | F97: 2 | G97: 9 | H97: 10 | I97: 28 | J97: 100 | K97: 3 | L97: 0 | M97: 30 | N97: 26 | O97: 24 | P97: 48 | Q97: -1 | R97: -1 | S97: 4 | T97: 11 | U97: 75 | V97: 12 | W97: 21 | X97: 5 | Y97: 2 | Z97: 6 | AA97: 1
A98: US AB .30 MMG Gunner Cpl | B98: 95 | C98: 1 | D98: 0 | E98: 0 | F98: 2 | G98: 3 | H98: 3 | I98: 28 | J98: 100 | K98: 3 | L98: 0 | M98: 29 | N98: 26 | O98: -1 | P98: -1 | Q98: -1 | R98: -1 | S98: 2 | T98: 9 | U98: 2500 | V98: 12 | W98: 21
A99: US AB Rifleman / Carbine | B99: 96 | C99: 20 | D99: 0 | E99: 0 | F99: 2 | G99: 0 | H99: 1 | I99: 28 | J99: 100 | K99: 3 | L99: 0 | M99: 30 | N99: 24 | O99: -1 | P99: -1 | Q99: -1 | R99: -1 | S99: 2 | T99: 11 | U99: 75 | V99: 5 | W99: 2
A100: US AB M1A1 Bazooka Gunner | B100: 97 | C100: 1 | D100: 0 | E100: 0 | F100: 2 | G100: 0 | H100: 1 | I100: 28 | J100: 100 | K100: 3 | L100: 0 | M100: 66 | N100: 0 | O100: -1 | P100: -1 | Q100: -1 | R100: -1 | S100: 2 | T100: 21 | U100: 5 | V100: 9 | W100: 96
A101: US AB Asst. Gunner / Carbine | B101: 98 | C101: 5 | D101: 0 | E101: 0 | F101: 2 | G101: 0 | H101: 1 | I101: 28 | J101: 100 | K101: 3 | L101: 0 | M101: 30 | N101: -1 | O101: -1 | P101: -1 | Q101: -1 | R101: -1 | S101: 1 | T101: 11 | U101: 75
A102: US AB Rifleman / M1 Garand | B102: 99 | C102: 27 | D102: 0 | E102: 0 | F102: 2 | G102: 0 | H102: 1 | I102: 28 | J102: 100 | K102: 3 | L102: 0 | M102: 0 | N102: 24 | O102: -1 | P102: -1 | Q102: -1 | R102: -1 | S102: 2 | T102: 9 | U102: 96 | V102: 5 | W102: 2
A103: US AB SSG Squad Ldr / Garand | B103: 100 | C103: 14 | D103: 0 | E103: 0 | F103: 2 | G103: 5 | H103: 5 | I103: 28 | J103: 100 | K103: 3 | L103: 0 | M103: 0 | N103: 24 | O103: 48 | P103: -1 | Q103: -1 | R103: -1 | S103: 3 | T103: 9 | U103: 96 | V103: 5 | W103: 2 | X103: 6 | Y103: 1
A104: US AB Sgt Asst. Ldr. / SMG | B104: 101 | C104: 15 | D104: 0 | E104: 0 | F104: 2 | G104: 4 | H104: 4 | I104: 28 | J104: 100 | K104: 3 | L104: 0 | M104: 65 | N104: 24 | O104: -1 | P104: -1 | Q104: -1 | R104: -1 | S104: 2 | T104: 12 | U104: 300 | V104: 5 | W104: 2
A105: US AB Sgt Squad Ldr / Garand | B105: 102 | C105: 14 | D105: 0 | E105: 0 | F105: 2 | G105: 4 | H105: 4 | I105: 28 | J105: 100 | K105: 3 | L105: 0 | M105: 0 | N105: 48 | O105: 24 | P105: -1 | Q105: -1 | R105: -1 | S105: 3 | T105: 9 | U105: 96 | V105: 5 | W105: 2 | X105: 6 | Y105: 1
A106: US AB Automatic Rifleman / BAR | B106: 103 | C106: 26 | D106: 0 | E106: 0 | F106: 2 | G106: 0 | H106: 1 | I106: 28 | J106: 100 | K106: 3 | L106: 0 | M106: 1 | N106: 24 | O106: -1 | P106: -1 | Q106: -1 | R106: -1 | S106: 2 | T106: 9 | U106: 320 | V106: 5 | W106: 2
A107: US AB Asst. Auto Rifleman / Garand | B107: 104 | C107: 26 | D107: 0 | E107: 0 | F107: 2 | G107: 0 | H107: 1 | I107: 28 | J107: 100 | K107: 3 | L107: 0 | M107: 0 | N107: 24 | O107: -1 | P107: -1 | Q107: -1 | R107: -1 | S107: 2 | T107: 9 | U107: 96 | V107: 5 | W107: 2
A108: US AB Cpl Asst. Sqd. Ldr. / SMG | B108: 105 | C108: 15 | D108: 0 | E108: 0 | F108: 2 | G108: 3 | H108: 3 | I108: 28 | J108: 100 | K108: 3 | L108: 0 | M108: 65 | N108: 24 | O108: -1 | P108: -1 | Q108: -1 | R108: -1 | S108: 2 | T108: 12 | U108: 300 | V108: 5 | W108: 2
A109: US AB .30 MMG Gunner | B109: 106 | C109: 1 | D109: 0 | E109: 0 | F109: 2 | G109: 0 | H109: 1 | I109: 28 | J109: 100 | K109: 3 | L109: 0 | M109: 29 | N109: 26 | O109: -1 | P109: -1 | Q109: -1 | R109: -1 | S109: 2 | T109: 9 | U109: 2500 | V109: 12 | W109: 21
A110: US AB Ammo Bearer / Carbine | B110: 107 | C110: 8 | D110: 0 | E110: 0 | F110: 2 | G110: 0 | H110: 1 | I110: 28 | J110: 100 | K110: 3 | L110: 0 | M110: 30 | N110: 24 | O110: -1 | P110: -1 | Q110: -1 | R110: -1 | S110: 2 | T110: 11 | U110: 75 | V110: 5 | W110: 2
A111: US AB 60mm Mortar Gunner | B111: 108 | C111: 1 | D111: 0 | E111: 0 | F111: 2 | G111: 0 | H111: 1 | I111: 28 | J111: 100 | K111: 3 | L111: 0 | M111: 28 | N111: 26 | O111: -1 | P111: -1 | Q111: -1 | R111: -1 | S111: 2 | T111: 23 | U111: 30 | V111: 12 | W111: 21
A112: US AB Radioman / M1 Garand | B112: 109 | C112: 4 | D112: 0 | E112: 0 | F112: 2 | G112: 3 | H112: 3 | I112: 28 | J112: 100 | K112: 3 | L112: 0 | M112: 0 | N112: 24 | O112: -1 | P112: -1 | Q112: -1 | R112: -1 | S112: 2 | T112: 9 | U112: 96 | V112: 5 | W112: 2
A113: US AB Sgt Sqd. Ldr. / Thompson | B113: 110 | C113: 14 | D113: 0 | E113: 0 | F113: 2 | G113: 4 | H113: 4 | I113: 28 | J113: 100 | K113: 3 | L113: 0 | M113: 65 | N113: 24 | O113: 48 | P113: -1 | Q113: -1 | R113: -1 | S113: 3 | T113: 12 | U113: 300 | V113: 5 | W113: 2 | X113: 6 | Y113: 1
A114: US AB Co HQ Comms. SSG / Thompson | B114: 111 | C114: 30 | D114: 0 | E114: 0 | F114: 2 | G114: 5 | H114: 5 | I114: 28 | J114: 100 | K114: 3 | L114: 0 | M114: 65 | N114: 24 | O114: -1 | P114: -1 | Q114: -1 | R114: -1 | S114: 2 | T114: 12 | U114: 300 | V114: 5 | W114: 2
A115: US AB Platoon Sgt. / Thompson | B115: 112 | C115: 17 | D115: 0 | E115: 0 | F115: 2 | G115: 5 | H115: 5 | I115: 28 | J115: 100 | K115: 3 | L115: 0 | M115: 65 | N115: 24 | O115: -1 | P115: -1 | Q115: -1 | R115: -1 | S115: 2 | T115: 12 | U115: 300 | V115: 5 | W115: 2
A116: US AB Asst. Gunner / M1 Garand | B116: 113 | C116: 5 | D116: 0 | E116: 0 | F116: 2 | G116: 0 | H116: 1 | I116: 28 | J116: 100 | K116: 3 | L116: 0 | M116: 0 | N116: 24 | O116: -1 | P116: -1 | Q116: -1 | R116: -1 | S116: 2 | T116: 9 | U116: 96 | V116: 5 | W116: 2
A117: US AB Ammo Bearer / M1 Garand | B117: 114 | C117: 8 | D117: 0 | E117: 0 | F117: 2 | G117: 0 | H117: 1 | I117: 28 | J117: 100 | K117: 3 | L117: 0 | M117: 0 | N117: 24 | O117: -1 | P117: -1 | Q117: -1 | R117: -1 | S117: 2 | T117: 9 | U117: 96 | V117: 5 | W117: 2
A118: US AB Sniper / M1C Garand | B118: 115 | C118: 27 | D118: 0 | E118: 0 | F118: 2 | G118: 1 | H118: 1 | I118: 28 | J118: 100 | K118: 3 | L118: 0 | M118: 67 | N118: -1 | O118: -1 | P118: -1 | Q118: -1 | R118: -1 | S118: 1 | T118: 9 | U118: 96
A119: US Tank Crew Asst. Driver | B119: 116 | C119: 7 | D119: 0 | E119: 0 | F119: 1 | G119: 0 | H119: 1 | I119: 28 | J119: 100 | K119: 1 | L119: 0 | M119: 26 | N119: -1 | O119: -1 | P119: -1 | Q119: -1 | R119: -1 | S119: 1 | T119: 12 | U119: 21
A120: US Engineer / M1 Garand / Demo | B120: 117 | C120: 22 | D120: 0 | E120: 0 | F120: 0 | G120: 0 | H120: 1 | I120: 28 | J120: 100 | K120: 3 | L120: 0 | M120: 0 | N120: 24 | O120: 80 | P120: -1 | Q120: -1 | R120: -1 | S120: 3 | T120: 9 | U120: 96 | V120: 5 | W120: 2 | X120: 4 | Y120: 1
A121: US Cpl Pio Sqd. Ldr. / M1 Garand / Demo | B121: 118 | C121: 14 | D121: 0 | E121: 0 | F121: 0 | G121: 4 | H121: 4 | I121: 28 | J121: 100 | K121: 3 | L121: 0 | M121: 0 | N121: 24 | O121: 48 | P121: 80 | Q121: -1 | R121: -1 | S121: 4 | T121: 9 | U121: 96 | V121: 5 | W121: 2 | X121: 6 | Y121: 1 | Z121: 4 | AA121: 1
A122: US Engineer / M1 Garand GL | B122: 119 | C122: 22 | D122: 0 | E122: 0 | F122: 0 | G122: 0 | H122: 1 | I122: 28 | J122: 100 | K122: 3 | L122: 0 | M122: 21 | N122: 97 | O122: 24 | P122: -1 | Q122: -1 | R122: -1 | S122: 3 | T122: 9 | U122: 96 | V122: 7 | W122: 5 | X122: 5 | Y122: 2
A123: US Pioneer / Carbine / Demo | B123: 120 | C123: 21 | D123: 0 | E123: 0 | F123: 0 | G123: 0 | H123: 1 | I123: 28 | J123: 100 | K123: 3 | L123: 0 | M123: 30 | N123: 24 | O123: 80 | P123: -1 | Q123: -1 | R123: -1 | S123: 3 | T123: 11 | U123: 75 | V123: 5 | W123: 2 | X123: 4 | Y123: 1
A124: US Pioneer Platoon Cdr. / Carbine / Demo | B124: 121 | C124: 12 | D124: 0 | E124: 0 | F124: 0 | G124: 9 | H124: 10 | I124: 28 | J124: 100 | K124: 3 | L124: 0 | M124: 30 | N124: 26 | O124: 24 | P124: 48 | Q124: 80 | R124: -1 | S124: 5 | T124: 11 | U124: 75 | V124: 12 | W124: 21 | X124: 5 | Y124: 2 | Z124: 6 | AA124: 1 | AB124: 4 | AC124: 1
A125: US Pioneer Platoon Sgt. / Carbine / Demo | B125: 122 | C125: 17 | D125: 0 | E125: 0 | F125: 0 | G125: 5 | H125: 5 | I125: 28 | J125: 100 | K125: 3 | L125: 0 | M125: 30 | N125: 24 | O125: 80 | P125: -1 | Q125: -1 | R125: -1 | S125: 3 | T125: 11 | U125: 75 | V125: 5 | W125: 2 | X125: 4 | Y125: 1
A126: US Pioneer Sqd Ldr. Sgt / M1 Garand | B126: 123 | C126: 14 | D126: 0 | E126: 0 | F126: 0 | G126: 4 | H126: 4 | I126: 28 | J126: 100 | K126: 3 | L126: 0 | M126: 0 | N126: 24 | O126: 48 | P126: -1 | Q126: -1 | R126: -1 | S126: 3 | T126: 9 | U126: 96 | V126: 5 | W126: 2 | X126: 6 | Y126: 1
A127: US Pioneer Asst. Ldr. Cpl / Carbine | B127: 124 | C127: 16 | D127: 0 | E127: 0 | F127: 0 | G127: 3 | H127: 3 | I127: 28 | J127: 100 | K127: 3 | L127: 0 | M127: 30 | N127: -1 | O127: -1 | P127: -1 | Q127: -1 | R127: -1 | S127: 1 | T127: 11 | U127: 75
A128: US Pioneer / M1903A1 w/GL | B128: 125 | C128: 21 | D128: 0 | E128: 0 | F128: 0 | G128: 0 | H128: 1 | I128: 28 | J128: 100 | K128: 3 | L128: 0 | M128: 31 | N128: 32 | O128: 24 | P128: -1 | Q128: -1 | R128: -1 | S128: 3 | T128: 9 | U128: 96 | V128: 7 | W128: 5 | X128: 5 | Y128: 2
A129: US Engineer Sqd. Ldr. Sgt / Carbine | B129: 126 | C129: 14 | D129: 0 | E129: 0 | F129: 0 | G129: 4 | H129: 4 | I129: 28 | J129: 100 | K129: 3 | L129: 0 | M129: 30 | N129: 24 | O129: 48 | P129: -1 | Q129: -1 | R129: -1 | S129: 3 | T129: 11 | U129: 75 | V129: 5 | W129: 2 | X129: 6 | Y129: 1
A130: US Engineer Asst. Ldr. Cpl / M1 Garand | B130: 127 | C130: 15 | D130: 0 | E130: 0 | F130: 0 | G130: 3 | H130: 3 | I130: 28 | J130: 100 | K130: 3 | L130: 0 | M130: 21 | N130: 97 | O130: 24 | P130: 48 | Q130: -1 | R130: -1 | S130: 4 | T130: 9 | U130: 96 | V130: 7 | W130: 5 | X130: 5 | Y130: 2 | Z130: 6 | AA130: 1
A131: US Asst. Gunner / M1 Garand | B131: 128 | C131: 5 | D131: 0 | E131: 0 | F131: 0 | G131: 0 | H131: 1 | I131: 28 | J131: 100 | K131: 3 | L131: 0 | M131: 0 | N131: 24 | O131: -1 | P131: -1 | Q131: -1 | R131: -1 | S131: 2 | T131: 9 | U131: 96 | V131: 5 | W131: 2
A132: US M9 Bazooka Gunner | B132: 129 | C132: 1 | D132: 0 | E132: 0 | F132: 0 | G132: 0 | H132: 1 | I132: 28 | J132: 100 | K132: 3 | L132: 0 | M132: 87 | N132: 0 | O132: -1 | P132: -1 | Q132: -1 | R132: -1 | S132: 2 | T132: 22 | U132: 5 | V132: 9 | W132: 96
A133: US Pioneer / M1 Garand | B133: =B132+1 -> 130 | C133: 21 | D133: 0 | E133: 0 | F133: 0 | G133: 0 | H133: 1 | I133: 28 | J133: 100 | K133: 3 | L133: 0 | M133: 0 | N133: 24 | O133: -1 | P133: -1 | Q133: -1 | R133: -1 | S133: 2 | T133: 9 | U133: 96 | V133: 5 | W133: 2
A134: US Pioneer / Garand / Demo | B134: 131 | C134: 21 | D134: 0 | E134: 0 | F134: 0 | G134: 0 | H134: 1 | I134: 28 | J134: 100 | K134: 3 | L134: 0 | M134: 0 | N134: 24 | O134: 80 | P134: -1 | Q134: -1 | R134: -1 | S134: 3 | T134: 9 | U134: 96 | V134: 5 | W134: 2 | X134: 4 | Y134: 1
A135: US Engineer Sqd. Ldr. Sgt / Garand | B135: 132 | C135: 14 | D135: 0 | E135: 0 | F135: 0 | G135: 4 | H135: 4 | I135: 28 | J135: 100 | K135: 3 | L135: 0 | M135: 0 | N135: 24 | O135: 48 | P135: -1 | Q135: -1 | R135: -1 | S135: 3 | T135: 9 | U135: 96 | V135: 5 | W135: 2 | X135: 6 | Y135: 1
A136: US Messenger / SMG | B136: 133 | C136: 19 | D136: 0 | E136: 0 | F136: 0 | G136: 0 | H136: 1 | I136: 28 | J136: 100 | K136: 3 | L136: 0 | M136: 65 | N136: -1 | O136: -1 | P136: -1 | Q136: -1 | R136: -1 | S136: 1 | T136: 12 | U136: 100
A137: US Scout / Carbine | B137: 134 | C137: 24 | D137: 0 | E137: 0 | F137: 0 | G137: 0 | H137: 1 | I137: 28 | J137: 100 | K137: 3 | L137: 0 | M137: 30 | N137: 24 | O137: -1 | P137: -1 | Q137: -1 | R137: -1 | S137: 2 | T137: 11 | U137: 75 | V137: 5 | W137: 2
A138: US Scout / Rifle | B138: 135 | C138: 24 | D138: 0 | E138: 0 | F138: 0 | G138: 0 | H138: 1 | I138: 28 | J138: 100 | K138: 3 | L138: 0 | M138: 0 | N138: 24 | O138: -1 | P138: -1 | Q138: -1 | R138: -1 | S138: 2 | T138: 9 | U138: 96 | V138: 5 | W138: 2
A139: US Cpl Rcn Sqd Ldr / Rifle | B139: 136 | C139: 14 | D139: 0 | E139: 0 | F139: 0 | G139: 3 | H139: 3 | I139: 28 | J139: 100 | K139: 3 | L139: 0 | M139: 0 | N139: 24 | O139: 48 | P139: -1 | Q139: -1 | R139: -1 | S139: 3 | T139: 9 | U139: 96 | V139: 5 | W139: 2 | X139: 6 | Y139: 1
A140: US Sgt Rcn Sct Ldr / Rifle | B140: 137 | C140: 13 | D140: 0 | E140: 0 | F140: 0 | G140: 4 | H140: 4 | I140: 28 | J140: 100 | K140: 3 | L140: 0 | M140: 65 | N140: 24 | O140: 48 | P140: -1 | Q140: -1 | R140: -1 | S140: 3 | T140: 12 | U140: 300 | V140: 5 | W140: 2 | X140: 6 | Y140: 1
A141: US Rcn Mortar Team Leader / SMG | B141: 138 | C141: 16 | D141: 0 | E141: 0 | F141: 0 | G141: 1 | H141: 1 | I141: 28 | J141: 100 | K141: 3 | L141: 0 | M141: 65 | N141: 24 | O141: -1 | P141: -1 | Q141: -1 | R141: -1 | S141: 2 | T141: 12 | U141: 300 | V141: 5 | W141: 2
A142: US Rcn Asst. Leader / SMG | B142: 139 | C142: 15 | D142: 0 | E142: 0 | F142: 0 | G142: 1 | H142: 1 | I142: 28 | J142: 100 | K142: 3 | L142: 0 | M142: 65 | N142: 24 | O142: -1 | P142: -1 | Q142: -1 | R142: -1 | S142: 2 | T142: 12 | U142: 300 | V142: 5 | W142: 2
A143: US Cpl Team Leader / Carbine | B143: 140 | C143: 16 | D143: 0 | E143: 0 | F143: 0 | G143: 0 | H143: 1 | I143: 28 | J143: 100 | K143: 3 | L143: 0 | M143: 30 | N143: 24 | O143: -1 | P143: -1 | Q143: -1 | R143: -1 | S143: 2 | T143: 11 | U143: 75 | V143: 5 | W143: 2
A144: US Replacement | B144: 141 | C144: 27 | D144: 0 | E144: 0 | F144: 0 | G144: 0 | H144: 0 | I144: 28 | J144: 100 | K144: 0 | L144: 0 | M144: -1 | N144: -1 | O144: -1 | P144: -1 | Q144: -1 | R144: -1 | S144: 0
A145: (RESERVED) | B145: 142 | C145: 0 | D145: 0 | E145: 0 | F145: 0 | G145: 0 | H145: 0 | I145: 0 | J145: 0 | K145: 0 | L145: 0 | M145: -1 | N145: -1 | O145: -1 | P145: -1 | Q145: -1 | R145: -1 | S145: 0
A146: (RESERVED) | B146: 143 | C146: 0 | D146: 0 | E146: 0 | F146: 0 | G146: 0 | H146: 0 | I146: 0 | J146: 0 | K146: 0 | L146: 0 | M146: -1 | N146: -1 | O146: -1 | P146: -1 | Q146: -1 | R146: -1 | S146: 0
A147: (RESERVED) | B147: 144 | C147: 0 | D147: 0 | E147: 0 | F147: 0 | G147: 0 | H147: 0 | I147: 0 | J147: 0 | K147: 0 | L147: 0 | M147: -1 | N147: -1 | O147: -1 | P147: -1 | Q147: -1 | R147: -1 | S147: 0
A148: (RESERVED) | B148: 145 | C148: 0 | D148: 0 | E148: 0 | F148: 0 | G148: 0 | H148: 0 | I148: 0 | J148: 0 | K148: 0 | L148: 0 | M148: -1 | N148: -1 | O148: -1 | P148: -1 | Q148: -1 | R148: -1 | S148: 0
A149: (RESERVED) | B149: 146 | C149: 0 | D149: 0 | E149: 0 | F149: 0 | G149: 0 | H149: 0 | I149: 0 | J149: 0 | K149: 0 | L149: 0 | M149: -1 | N149: -1 | O149: -1 | P149: -1 | Q149: -1 | R149: -1 | S149: 0
A150: (RESERVED) | B150: 147 | C150: 0 | D150: 0 | E150: 0 | F150: 0 | G150: 0 | H150: 0 | I150: 0 | J150: 0 | K150: 0 | L150: 0 | M150: -1 | N150: -1 | O150: -1 | P150: -1 | Q150: -1 | R150: -1 | S150: 0
A151: (RESERVED) | B151: 148 | C151: 0 | D151: 0 | E151: 0 | F151: 0 | G151: 0 | H151: 0 | I151: 0 | J151: 0 | K151: 0 | L151: 0 | M151: -1 | N151: -1 | O151: -1 | P151: -1 | Q151: -1 | R151: -1 | S151: 0
A152: (RESERVED) | B152: 149 | C152: 0 | D152: 0 | E152: 0 | F152: 0 | G152: 0 | H152: 0 | I152: 0 | J152: 0 | K152: 0 | L152: 0 | M152: -1 | N152: -1 | O152: -1 | P152: -1 | Q152: -1 | R152: -1 | S152: 0
A153: (RESERVED) | B153: 150 | C153: 0 | D153: 0 | E153: 0 | F153: 0 | G153: 0 | H153: 0 | I153: 0 | J153: 0 | K153: 0 | L153: 0 | M153: -1 | N153: -1 | O153: -1 | P153: -1 | Q153: -1 | R153: -1 | S153: 0
A154: (RESERVED) | B154: 151 | C154: 0 | D154: 0 | E154: 0 | F154: 0 | G154: 0 | H154: 0 | I154: 0 | J154: 0 | K154: 0 | L154: 0 | M154: -1 | N154: -1 | O154: -1 | P154: -1 | Q154: -1 | R154: -1 | S154: 0
A155: (RESERVED) | B155: 152 | C155: 0 | D155: 0 | E155: 0 | F155: 0 | G155: 0 | H155: 0 | I155: 0 | J155: 0 | K155: 0 | L155: 0 | M155: -1 | N155: -1 | O155: -1 | P155: -1 | Q155: -1 | R155: -1 | S155: 0
A156: (RESERVED) | B156: 153 | C156: 0 | D156: 0 | E156: 0 | F156: 0 | G156: 0 | H156: 0 | I156: 0 | J156: 0 | K156: 0 | L156: 0 | M156: -1 | N156: -1 | O156: -1 | P156: -1 | Q156: -1 | R156: -1 | S156: 0
A157: (RESERVED) | B157: 154 | C157: 0 | D157: 0 | E157: 0 | F157: 0 | G157: 0 | H157: 0 | I157: 0 | J157: 0 | K157: 0 | L157: 0 | M157: -1 | N157: -1 | O157: -1 | P157: -1 | Q157: -1 | R157: -1 | S157: 0
A158: (RESERVED) | B158: 155 | C158: 0 | D158: 0 | E158: 0 | F158: 0 | G158: 0 | H158: 0 | I158: 0 | J158: 0 | K158: 0 | L158: 0 | M158: -1 | N158: -1 | O158: -1 | P158: -1 | Q158: -1 | R158: -1 | S158: 0
A159: Rifleman / 98k | B159: 156 | C159: 20 | D159: 1 | E159: 0 | F159: 8 | G159: 0 | H159: 1 | I159: 28 | J159: 100 | K159: 3 | L159: 0 | M159: 10 | N159: 25 | O159: -1 | P159: -1 | Q159: -1 | R159: -1 | S159: 2 | T159: 47 | U159: 80 | V159: 51 | W159: 2
A160: Rifle Grenadier / 98k w/GL | B160: 157 | C160: 29 | D160: 1 | E160: 0 | F160: 8 | G160: 0 | H160: 1 | I160: 28 | J160: 100 | K160: 3 | L160: 0 | M160: 49 | N160: 96 | O160: 25 | P160: -1 | Q160: -1 | R160: -1 | S160: 4 | T160: 47 | U160: 80 | V160: 51 | W160: 2 | X160: 54 | Y160: 3 | Z160: 53 | AA160: 2
A161: SMG / MP40 | B161: 158 | C161: 26 | D161: 1 | E161: 0 | F161: 8 | G161: 0 | H161: 1 | I161: 28 | J161: 100 | K161: 3 | L161: 0 | M161: 11 | N161: 25 | O161: -1 | P161: -1 | Q161: -1 | R161: -1 | S161: 2 | T161: 50 | U161: 192 | V161: 51 | W161: 2
A162: leMG34 Gunner | B162: 159 | C162: 1 | D162: 1 | E162: 0 | F162: 8 | G162: 0 | H162: 2 | I162: 28 | J162: 100 | K162: 3 | L162: 0 | M162: 12 | N162: 27 | O162: -1 | P162: -1 | Q162: -1 | R162: -1 | S162: 2 | T162: 47 | U162: 1250 | V162: 50 | W162: 24
A163: sMG34 Gunner | B163: 160 | C163: 1 | D163: 1 | E163: 0 | F163: 8 | G163: 0 | H163: 2 | I163: 28 | J163: 100 | K163: 3 | L163: 0 | M163: 33 | N163: 27 | O163: -1 | P163: -1 | Q163: -1 | R163: -1 | S163: 2 | T163: 47 | U163: 2000 | V163: 50 | W163: 24
A164: leMG42 Gunner | B164: 161 | C164: 1 | D164: 1 | E164: 0 | F164: 8 | G164: 0 | H164: 2 | I164: 28 | J164: 100 | K164: 3 | L164: 0 | M164: 76 | N164: 27 | O164: -1 | P164: -1 | Q164: -1 | R164: -1 | S164: 2 | T164: 47 | U164: 2000 | V164: 50 | W164: 24
A165: Sturm leMG42 Gunner | B165: 162 | C165: 1 | D165: 1 | E165: 0 | F165: 8 | G165: 0 | H165: 2 | I165: 28 | J165: 100 | K165: 3 | L165: 0 | M165: 78 | N165: 27 | O165: -1 | P165: -1 | Q165: -1 | R165: -1 | S165: 2 | T165: 47 | U165: 1200 | V165: 50 | W165: 24
A166: sMG42 Gunner | B166: 163 | C166: 1 | D166: 1 | E166: 0 | F166: 8 | G166: 0 | H166: 2 | I166: 28 | J166: 100 | K166: 3 | L166: 0 | M166: 70 | N166: 27 | O166: -1 | P166: -1 | Q166: -1 | R166: -1 | S166: 2 | T166: 47 | U166: 3000 | V166: 50 | W166: 24
A167: 5cm Mtr. Gunner / P38 | B167: 164 | C167: 1 | D167: 1 | E167: 0 | F167: 8 | G167: 0 | H167: 2 | I167: 28 | J167: 100 | K167: 3 | L167: 0 | M167: 74 | N167: 27 | O167: -1 | P167: -1 | Q167: -1 | R167: -1 | S167: 2 | T167: 67 | U167: 30 | V167: 50 | W167: 24
A168: 8cm Mtr. Gunner | B168: 165 | C168: 1 | D168: 1 | E168: 0 | F168: 8 | G168: 0 | H168: 2 | I168: 28 | J168: 100 | K168: 3 | L168: 0 | M168: 42 | N168: 27 | O168: -1 | P168: -1 | Q168: -1 | R168: -1 | S168: 3 | T168: 81 | U168: 21 | V168: 82 | W168: 3 | X168: 50 | Y168: 24
A169: Asst. Gunner / P38 | B169: 166 | C169: 5 | D169: 1 | E169: 0 | F169: 8 | G169: 0 | H169: 1 | I169: 28 | J169: 100 | K169: 3 | L169: 0 | M169: 27 | N169: -1 | O169: -1 | P169: -1 | Q169: -1 | R169: -1 | S169: 1 | T169: 50 | U169: 24
A170: Asst. Gunner / 98k | B170: 167 | C170: 5 | D170: 1 | E170: 0 | F170: 8 | G170: 0 | H170: 1 | I170: 28 | J170: 100 | K170: 3 | L170: 0 | M170: 10 | N170: 25 | O170: -1 | P170: -1 | Q170: -1 | R170: -1 | S170: 2 | T170: 47 | U170: 80 | V170: 51 | W170: 2
A171: Ammo Bearer / P38 | B171: 168 | C171: 8 | D171: 1 | E171: 0 | F171: 8 | G171: 0 | H171: 1 | I171: 28 | J171: 100 | K171: 3 | L171: 0 | M171: 27 | N171: -1 | O171: -1 | P171: -1 | Q171: -1 | R171: -1 | S171: 1 | T171: 50 | U171: 24
A172: Ammo Bearer / 98k | B172: 169 | C172: 8 | D172: 1 | E172: 0 | F172: 8 | G172: 0 | H172: 1 | I172: 28 | J172: 100 | K172: 3 | L172: 0 | M172: 10 | N172: -1 | O172: -1 | P172: -1 | Q172: -1 | R172: -1 | S172: 1 | T172: 47 | U172: 80
A173: Ammo Bearer / 98k + | B173: 170 | C173: 8 | D173: 1 | E173: 0 | F173: 8 | G173: 0 | H173: 1 | I173: 28 | J173: 100 | K173: 3 | L173: 0 | M173: 10 | N173: 25 | O173: -1 | P173: -1 | Q173: -1 | R173: -1 | S173: 2 | T173: 47 | U173: 80 | V173: 51 | W173: 2
A174: Messenger / 98k | B174: 171 | C174: 19 | D174: 1 | E174: 0 | F174: 8 | G174: 0 | H174: 1 | I174: 28 | J174: 100 | K174: 3 | L174: 0 | M174: 10 | N174: 25 | O174: -1 | P174: -1 | Q174: -1 | R174: -1 | S174: 2 | T174: 47 | U174: 80 | V174: 51 | W174: 2
A175: Driver / P38 | B175: 172 | C175: 0 | D175: 1 | E175: 0 | F175: 8 | G175: 0 | H175: 1 | I175: 28 | J175: 100 | K175: 3 | L175: 0 | M175: 27 | N175: -1 | O175: -1 | P175: -1 | Q175: -1 | R175: -1 | S175: 1 | T175: 50 | U175: 24
A176: Driver / 98k | B176: 173 | C176: 0 | D176: 1 | E176: 0 | F176: 8 | G176: 0 | H176: 1 | I176: 28 | J176: 100 | K176: 3 | L176: 0 | M176: 10 | N176: -1 | O176: -1 | P176: -1 | Q176: -1 | R176: -1 | S176: 1 | T176: 47 | U176: 80
A177: Driver / 98k + | B177: 174 | C177: 0 | D177: 1 | E177: 0 | F177: 8 | G177: 0 | H177: 1 | I177: 28 | J177: 100 | K177: 3 | L177: 0 | M177: 10 | N177: 25 | O177: -1 | P177: -1 | Q177: -1 | R177: -1 | S177: 2 | T177: 47 | U177: 80 | V177: 51 | W177: 2
A178: Asst. Driver / 98k | B178: 175 | C178: 0 | D178: 1 | E178: 0 | F178: 8 | G178: 0 | H178: 1 | I178: 28 | J178: 100 | K178: 3 | L178: 0 | M178: 10 | N178: -1 | O178: -1 | P178: -1 | Q178: -1 | R178: -1 | S178: 1 | T178: 47 | U178: 80
A179: Radioman / P38 | B179: 176 | C179: 4 | D179: 1 | E179: 0 | F179: 8 | G179: 0 | H179: 1 | I179: 28 | J179: 100 | K179: 3 | L179: 0 | M179: 27 | N179: -1 | O179: -1 | P179: -1 | Q179: -1 | R179: -1 | S179: 1 | T179: 50 | U179: 24
A180: Radioman / 98k | B180: 177 | C180: 4 | D180: 1 | E180: 0 | F180: 8 | G180: 0 | H180: 1 | I180: 28 | J180: 100 | K180: 3 | L180: 0 | M180: 10 | N180: -1 | O180: -1 | P180: -1 | Q180: -1 | R180: -1 | S180: 1 | T180: 47 | U180: 80
A181: Sniper / 98k w/scope | B181: 178 | C181: 28 | D181: 1 | E181: 0 | F181: 8 | G181: 0 | H181: 1 | I181: 28 | J181: 100 | K181: 3 | L181: 0 | M181: 50 | N181: -1 | O181: -1 | P181: -1 | Q181: -1 | R181: -1 | S181: 1 | T181: 47 | U181: 80
A182: Sniper / G43 w/scope | B182: 179 | C182: 28 | D182: 1 | E182: 0 | F182: 8 | G182: 0 | H182: 1 | I182: 28 | J182: 100 | K182: 3 | L182: 0 | M182: 75 | N182: -1 | O182: -1 | P182: -1 | Q182: -1 | R182: -1 | S182: 1 | T182: 47 | U182: 80
A183: Asst. Leader / 98k | B183: 180 | C183: 15 | D183: 1 | E183: 0 | F183: 8 | G183: 1 | H183: 2 | I183: 28 | J183: 100 | K183: 3 | L183: 0 | M183: 10 | N183: 25 | O183: -1 | P183: -1 | Q183: -1 | R183: -1 | S183: 2 | T183: 47 | U183: 80 | V183: 51 | W183: 2
A184: Asst. Ldr. / 98k PzF30 | B184: 181 | C184: 15 | D184: 1 | E184: 0 | F184: 8 | G184: 1 | H184: 2 | I184: 28 | J184: 100 | K184: 3 | L184: 0 | M184: 10 | N184: 25 | O184: 72 | P184: -1 | Q184: -1 | R184: -1 | S184: 3 | T184: 47 | U184: 80 | V184: 51 | W184: 2 | X184: 90 | Y184: 1
A185: Asst. Leader Ogefr / MP40 | B185: 182 | C185: 15 | D185: 1 | E185: 0 | F185: 8 | G185: 3 | H185: 3 | I185: 28 | J185: 100 | K185: 3 | L185: 0 | M185: 11 | N185: 25 | O185: -1 | P185: -1 | Q185: -1 | R185: -1 | S185: 2 | T185: 50 | U185: 192 | V185: 51 | W185: 2
A186: Asst. Leader / P38 | B186: 183 | C186: 15 | D186: 1 | E186: 0 | F186: 8 | G186: 1 | H186: 2 | I186: 28 | J186: 100 | K186: 3 | L186: 0 | M186: 27 | N186: 25 | O186: -1 | P186: -1 | Q186: -1 | R186: -1 | S186: 2 | T186: 50 | U186: 24 | V186: 51 | W186: 2
A187: Asst. Leader Ogefr / 98k | B187: 184 | C187: 15 | D187: 1 | E187: 0 | F187: 8 | G187: 3 | H187: 3 | I187: 28 | J187: 100 | K187: 3 | L187: 0 | M187: 10 | N187: 25 | O187: -1 | P187: -1 | Q187: -1 | R187: -1 | S187: 2 | T187: 47 | U187: 80 | V187: 51 | W187: 2
A188: Asst. Leader / 98k w/scope | B188: 185 | C188: 15 | D188: 1 | E188: 0 | F188: 8 | G188: 1 | H188: 2 | I188: 28 | J188: 100 | K188: 3 | L188: 0 | M188: 50 | N188: 25 | O188: -1 | P188: -1 | Q188: -1 | R188: -1 | S188: 2 | T188: 47 | U188: 80 | V188: 51 | W188: 2
A189: Asst. Leader Ufw / MP40 | B189: 186 | C189: 15 | D189: 1 | E189: 0 | F189: 8 | G189: 5 | H189: 5 | I189: 28 | J189: 100 | K189: 3 | L189: 0 | M189: 11 | N189: 25 | O189: -1 | P189: -1 | Q189: -1 | R189: -1 | S189: 2 | T189: 50 | U189: 192 | V189: 51 | W189: 2
A190: Asst. Ldr. Stabsfw / MP40 | B190: 187 | C190: 16 | D190: 1 | E190: 0 | F190: 8 | G190: 8 | H190: 8 | I190: 28 | J190: 100 | K190: 3 | L190: 0 | M190: 11 | N190: -1 | O190: -1 | P190: -1 | Q190: -1 | R190: -1 | S190: 1 | T190: 50 | U190: 192
A191: Team Ldr. / P38 | B191: 188 | C191: 16 | D191: 1 | E191: 0 | F191: 8 | G191: 3 | H191: 4 | I191: 28 | J191: 100 | K191: 3 | L191: 0 | M191: 27 | N191: -1 | O191: -1 | P191: -1 | Q191: -1 | R191: -1 | S191: 2 | T191: 50 | U191: 24 | V191: 52 | W191: 1
A192: Team Ldr. Pvt. / 98k | B192: 189 | C192: 16 | D192: 1 | E192: 0 | F192: 8 | G192: 1 | H192: 2 | I192: 28 | J192: 100 | K192: 3 | L192: 0 | M192: 10 | N192: 25 | O192: -1 | P192: -1 | Q192: -1 | R192: -1 | S192: 2 | T192: 47 | U192: 80 | V192: 51 | W192: 2
A193: Team Ldr. Cpl. / 98k | B193: 190 | C193: 16 | D193: 1 | E193: 0 | F193: 8 | G193: 3 | H193: 3 | I193: 28 | J193: 100 | K193: 3 | L193: 0 | M193: 10 | N193: 25 | O193: -1 | P193: -1 | Q193: -1 | R193: -1 | S193: 2 | T193: 47 | U193: 80 | V193: 51 | W193: 2
A194: Team Ldr. / MP40 | B194: 191 | C194: 16 | D194: 1 | E194: 0 | F194: 8 | G194: 3 | H194: 4 | I194: 28 | J194: 100 | K194: 3 | L194: 0 | M194: 11 | N194: 25 | O194: -1 | P194: -1 | Q194: -1 | R194: -1 | S194: 2 | T194: 50 | U194: 192 | V194: 51 | W194: 2
A195: Squad Leader Sgt. / 98k | B195: 192 | C195: 14 | D195: 1 | E195: 0 | F195: 8 | G195: 3 | H195: 4 | I195: 28 | J195: 100 | K195: 3 | L195: 0 | M195: 10 | N195: 25 | O195: 68 | P195: -1 | Q195: -1 | R195: -1 | S195: 3 | T195: 47 | U195: 80 | V195: 51 | W195: 2 | X195: 52 | Y195: 1
A196: Squad Leader S/Sgt. / 98k | B196: 193 | C196: 14 | D196: 1 | E196: 0 | F196: 8 | G196: 5 | H196: 5 | I196: 28 | J196: 100 | K196: 3 | L196: 0 | M196: 10 | N196: 25 | O196: 68 | P196: -1 | Q196: -1 | R196: -1 | S196: 3 | T196: 47 | U196: 80 | V196: 51 | W196: 2 | X196: 52 | Y196: 1
A197: Squad Leader / G43 | B197: =B196+1 -> 194 | C197: 14 | D197: 1 | E197: 0 | F197: 8 | G197: 3 | H197: 4 | I197: 28 | J197: 100 | K197: 3 | L197: 0 | M197: 79 | N197: 25 | O197: 68 | P197: -1 | Q197: -1 | R197: -1 | S197: 3 | T197: 47 | U197: 100 | V197: 51 | W197: 2 | X197: 52 | Y197: 1
A198: Squad Leader / MP40 | B198: 195 | C198: 14 | D198: 1 | E198: 0 | F198: 8 | G198: 3 | H198: 4 | I198: 28 | J198: 100 | K198: 3 | L198: 0 | M198: 11 | N198: 25 | O198: 68 | P198: -1 | Q198: -1 | R198: -1 | S198: 3 | T198: 50 | U198: 192 | V198: 51 | W198: 2 | X198: 52 | Y198: 1
A199: Platoon Commander / P38 | B199: 196 | C199: 12 | D199: 1 | E199: 0 | F199: 8 | G199: 9 | H199: 10 | I199: 28 | J199: 100 | K199: 3 | L199: 0 | M199: 27 | N199: 68 | O199: -1 | P199: -1 | Q199: -1 | R199: -1 | S199: 2 | T199: 50 | U199: 24 | V199: 52 | W199: 1
A200: Platoon Commander - / MP40 | B200: 197 | C200: 12 | D200: 1 | E200: 0 | F200: 8 | G200: 9 | H200: 10 | I200: 28 | J200: 100 | K200: 3 | L200: 0 | M200: 11 | N200: 25 | O200: 68 | P200: -1 | Q200: -1 | R200: -1 | S200: 3 | T200: 50 | U200: 192 | V200: 51 | W200: 2 | X200: 52 | Y200: 1
... 301 more rows

Sheet WEAPONS
A1: Index | B1: NAME | C1: Game Object Name | D1: ICON (index) | E1: SOUND NAME | F1: WEAPON TYPE (0=H2H, 1=THROWN, 2=PISTOL, 3=RIFLE, 4=SMG, 5=LMG, 6=AT, 7=FLAME, 8=SMOKE, 9=MG, 10=MORTAR, 11=LARGE GUN,12=Grenade Launcher) | G1: VALID TARGETS (0 = None, 1 = Personnel, 2 = Vehicle, 3 = Vehicle & Personnel, 4 = Terrain, 5 = Personnel & Terrain, 6 = Vehicle & Terrain, 7 = All) | H1: MOUNT | I1: SETUP TIME (s) | J1: WEAPON ACTION (0 = single shot, 1 = manual load, 2 = autoload, 3 = automatic) | K1: LOAD TIME (s) | L1: RELOAD TIME (s) | M1: FIRE TIME (s) Should match anim time | N1: ROUNDS PER CLIP | O1: WEAPON WEIGHT (kg) | P1: CALIBER (mm) | Q1: Min Range | R1: Max Range | S1: Lateral Dispersion (std.Dev.) Mils | T1: Vertical Dispersion (sd) mils | U1: VELOCITY MULTIPLIER | V1: CYCLICAL ROF (rnds/min) - use 0 for non-autofire weapons | W1: COOL RATE Reliability re-gain per second | X1: HEAT RATE Reliability decrease per round fired | Y1: RELIABILITY (0-1000) | Z1: ASSAULT FIRE? (0/1) | AA1: BAYONET? (0/1) | AB1: BACK BLAST? (0/1) | AC1: Secondary Weapon | AD1: AMMO Count (number of ammo index entries to follow) | AE1: AMMO TYPE 0 | AF1: AMMO TYPE 1 | AG1: AMMO TYPE 2 | AH1: AMMO TYPE 3 | AI1: AMMO TYPE 4 | AJ1: AMMO TYPE 5 | AK1: AMMO TYPE 6 | AL1: AMMO TYPE 7
A2: COUNT | B2: 109
A3: 0 | B3: .30 Cal. Rifle M1 "Garand" | C3: M1A1 Garand | D3: 14 | E3: M1Garand | F3: 3 | G3: 7 | H3: 0 | I3: 0 | J3: 2 | K3: 0 | L3: 8 | M3: 1 | N3: 8 | O3: 4.3 | P3: 7.6 | Q3: 2 | R3: 500 | S3: 1.2 | T3: 1.2 | U3: 1 | V3: 0 | W3: 0 | X3: 0 | Y3: 1000 | Z3: 1 | AA3: 1 | AB3: 0 | AC3: -1 | AD3: 2 | AE3: 9 | AF3: 10
A4: 1 | B4: .30 Cal. Automatic Rifle M1918A2 "BAR" | C4: BAR MG | D4: 5 | E4: BAR | F4: 5 | G4: 7 | H4: 0 | I4: 1 | J4: 3 | K4: 0 | L4: 10 | M4: 1 | N4: 20 | O4: 8.8 | P4: 7.6 | Q4: 2 | R4: 600 | S4: 1.2 | T4: 1.2 | U4: 1 | V4: 500 | W4: 1 | X4: 3 | Y4: 1000 | Z4: 1 | AA4: 0 | AB4: 0 | AC4: -1 | AD4: 2 | AE4: 9 | AF4: 10
A5: 2 | B5: .30 Cal. Machine Gun M1919A5 (Bow) | C5: (None) | D5: 35 | E5: MG1919A5Bow | F5: 9 | G5: 7 | H5: 0 | I5: 0 | J5: 3 | K5: 0 | L5: 15 | M5: 1 | N5: 250 | O5: 0 | P5: 7.6 | Q5: 3 | R5: 1200 | S5: 1 | T5: 1 | U5: 1 | V5: 500 | W5: 3 | X5: 3 | Y5: 1000 | Z5: 0 | AA5: 0 | AB5: 0 | AC5: -1 | AD5: 2 | AE5: 9 | AF5: 10
A6: 3 | B6: .30 Cal. Machine Gun M1919A5 (Coax) | C6: (None) | D6: 35 | E6: MG1919A5Coax | F6: 9 | G6: 7 | H6: 0 | I6: 0 | J6: 3 | K6: 0 | L6: 15 | M6: 1 | N6: 250 | O6: 0 | P6: 7.6 | Q6: 3 | R6: 1200 | S6: 1 | T6: 1 | U6: 1 | V6: 500 | W6: 3 | X6: 3 | Y6: 1000 | Z6: 0 | AA6: 0 | AB6: 0 | AC6: -1 | AD6: 2 | AE6: 9 | AF6: 10
A7: 4 | B7: 37mm Gun M6 | C7: (None) | D7: 22 | E7: Gun37mm | F7: 11 | G7: 7 | H7: 0 | I7: 0 | J7: 0 | K7: 0 | L7: 6 | M7: 1 | N7: 1 | O7: 0 | P7: 37 | Q7: 3 | R7: 2000 | S7: 0.23 | T7: 0.35 | U7: 1 | V7: 0 | W7: 0 | X7: 0 | Y7: 1000 | Z7: 0 | AA7: 0 | AB7: 0 | AC7: -1 | AD7: 3 | AE7: 15 | AF7: 16 | AG7: 17
A8: 5 | B8: 75mm Howitzer M1A1 | C8: (None) | D8: 27 | E8: Gun75mmShort | F8: 11 | G8: 7 | H8: 0 | I8: 0 | J8: 0 | K8: 0 | L8: 10 | M8: 1 | N8: 1 | O8: 0 | P8: 75 | Q8: 3 | R8: 9000 | S8: 0.35 | T8: 0.52 | U8: 1 | V8: 0 | W8: 0 | X8: 0 | Y8: 1000 | Z8: 0 | AA8: 0 | AB8: 0 | AC8: -1 | AD8: 4 | AE8: 26 | AF8: 27 | AG8: 28 | AH8: 29
A9: 6 | B9: 75mm Gun M3 | C9: (None) | D9: 26 | E9: Gun75mmM3 | F9: 11 | G9: 7 | H9: 0 | I9: 0 | J9: 0 | K9: 0 | L9: 9 | M9: 1 | N9: 1 | O9: 0 | P9: 75 | Q9: 3 | R9: 2000 | S9: 0.23 | T9: 0.35 | U9: 1 | V9: 0 | W9: 0 | X9: 0 | Y9: 1000 | Z9: 0 | AA9: 0 | AB9: 0 | AC9: -1 | AD9: 4 | AE9: 25 | AF9: 26 | AG9: 28 | AH9: 29
A10: 7 | B10: 3-inch Gun M7 | C10: (None) | D10: 24 | E10: Gun76mm | F10: 11 | G10: 7 | H10: 0 | I10: 0 | J10: 0 | K10: 0 | L10: 9 | M10: 1 | N10: 1 | O10: 0 | P10: 76.2 | Q10: 3 | R10: 3000 | S10: 0.23 | T10: 0.35 | U10: 1 | V10: 0 | W10: 0 | X10: 0 | Y10: 1000 | Z10: 0 | AA10: 0 | AB10: 0 | AC10: -1 | AD10: 3 | AE10: 30 | AF10: 31 | AG10: 32
A11: 8 | B11: 105mm Howitzer M3 | C11: (None) | D11: 20 | E11: Gun105mm | F11: 11 | G11: 7 | H11: 0 | I11: 0 | J11: 0 | K11: 0 | L11: 12 | M11: 1 | N11: 1 | O11: 0 | P11: 106 | Q11: 4 | R11: 10000 | S11: 0.35 | T11: 0.52 | U11: 1 | V11: 0 | W11: 0 | X11: 0 | Y11: 1000 | Z11: 0 | AA11: 0 | AB11: 0 | AC11: -1 | AD11: 3 | AE11: 39 | AF11: 40 | AG11: 41
A12: 9 | B12: 57mm Gun M1 | C12: (None) | D12: 23 | E12: Gun57mm | F12: 11 | G12: 7 | H12: 0 | I12: 0 | J12: 0 | K12: 0 | L12: 8 | M12: 1 | N12: 1 | O12: 0 | P12: 57 | Q12: 3 | R12: 2000 | S12: 0.23 | T12: 0.35 | U12: 1 | V12: 0 | W12: 0 | X12: 0 | Y12: 1000 | Z12: 0 | AA12: 0 | AB12: 0 | AC12: -1 | AD12: 2 | AE12: 19 | AF12: 20
A13: 10 | B13: 7.92mm Rifle K98k | C13: M1A1 Garand | D13: 29 | E13: Mauser98k | F13: 3 | G13: 7 | H13: 0 | I13: 0 | J13: 1 | K13: 1.5 | L13: 10 | M13: 1 | N13: 5 | O13: 4.1 | P13: 7.92 | Q13: 2 | R13: 600 | S13: 0.8 | T13: 0.8 | U13: 1 | V13: 0 | W13: 0 | X13: 0 | Y13: 1000 | Z13: 1 | AA13: 1 | AB13: 0 | AC13: -1 | AD13: 1 | AE13: 47
A14: 11 | B14: 9mm Submachine Gun MP40 | C14: MP40 | D14: 47 | E14: MP40 | F14: 4 | G14: 7 | H14: 0 | I14: 0 | J14: 3 | K14: 0 | L14: 10 | M14: 1 | N14: 32 | O14: 4 | P14: 9 | Q14: 1 | R14: 100 | S14: 1.5 | T14: 1.5 | U14: 1 | V14: 500 | W14: 1 | X14: 3 | Y14: 1000 | Z14: 1 | AA14: 0 | AB14: 0 | AC14: -1 | AD14: 1 | AE14: 50
A15: 12 | B15: 7.92mm Light Machine Gun leMG 34 | C15: MG34 | D15: 44 | E15: MG34 | F15: 5 | G15: 7 | H15: 0 | I15: 0 | J15: 3 | K15: 0 | L15: 15 | M15: 1 | N15: 50 | O15: 12.1 | P15: 7.92 | Q15: 3 | R15: 800 | S15: 1 | T15: 1 | U15: 1 | V15: 900 | W15: 3 | X15: 3 | Y15: 1000 | Z15: 0 | AA15: 0 | AB15: 0 | AC15: -1 | AD15: 2 | AE15: 47 | AF15: 48
A16: 13 | B16: 7.92mm Machine Gun MG34 (Bow) | C16: (None) | D16: 45 | E16: MG34Bow | F16: 9 | G16: 7 | H16: 0 | I16: 0 | J16: 3 | K16: 0 | L16: 15 | M16: 1 | N16: 250 | O16: 0 | P16: 7.92 | Q16: 3 | R16: 1200 | S16: 1 | T16: 1 | U16: 1 | V16: 900 | W16: 3 | X16: 3 | Y16: 1000 | Z16: 0 | AA16: 0 | AB16: 0 | AC16: -1 | AD16: 2 | AE16: 47 | AF16: 48
A17: 14 | B17: 7.92mm Machine Gun MG34 (Coax) | C17: (None) | D17: 45 | E17: MG34Coax | F17: 9 | G17: 7 | H17: 0 | I17: 0 | J17: 3 | K17: 0 | L17: 15 | M17: 1 | N17: 250 | O17: 0 | P17: 7.92 | Q17: 3 | R17: 1200 | S17: 1 | T17: 1 | U17: 1 | V17: 900 | W17: 3 | X17: 3 | Y17: 1000 | Z17: 0 | AA17: 0 | AB17: 0 | AC17: -1 | AD17: 2 | AE17: 47 | AF17: 48
A18: 15 | B18: 2cm Gun KwK 30 | C18: (None) | D18: 0 | E18: Gun20mmFlak | F18: 11 | G18: 7 | H18: 0 | I18: 0 | J18: 3 | K18: 0 | L18: 10 | M18: 1 | N18: 10 | O18: 0 | P18: 20 | Q18: 3 | R18: 2000 | S18: 0.23 | T18: 0.35 | U18: 1 | V18: 300 | W18: 2 | X18: 8 | Y18: 1000 | Z18: 0 | AA18: 0 | AB18: 0 | AC18: -1 | AD18: 2 | AE18: 59 | AF18: 60
A19: 16 | B19: 3.7cm Gun KwK 36 | C19: (None) | D19: 22 | E19: Gun37mm | F19: 11 | G19: 7 | H19: 0 | I19: 0 | J19: 0 | K19: 0 | L19: 6 | M19: 1 | N19: 1 | O19: 0 | P19: 37 | Q19: 3 | R19: 2000 | S19: 0.23 | T19: 0.35 | U19: 1 | V19: 0 | W19: 0 | X19: 0 | Y19: 1000 | Z19: 0 | AA19: 0 | AB19: 0 | AC19: -1 | AD19: 2 | AE19: 62 | AF19: 63
A20: 17 | B20: 7.5cm Gun KwK 37 | C20: (None) | D20: 27 | E20: Gun75mmShort | F20: 11 | G20: 7 | H20: 0 | I20: 0 | J20: 0 | K20: 0 | L20: 9 | M20: 1 | N20: 1 | O20: 0 | P20: 75 | Q20: 3 | R20: 2000 | S20: 0.35 | T20: 0.52 | U20: 1 | V20: 0 | W20: 0 | X20: 0 | Y20: 1000 | Z20: 0 | AA20: 0 | AB20: 0 | AC20: -1 | AD20: 4 | AE20: 70 | AF20: 71 | AG20: 72 | AH20: 73
A21: 18 | B21: 7.5cm Gun KwK 40 (L43) | C21: (None) | D21: 24 | E21: Gun75mmPak40 | F21: 11 | G21: 7 | H21: 0 | I21: 0 | J21: 0 | K21: 0 | L21: 9 | M21: 1 | N21: 1 | O21: 0 | P21: 75 | Q21: 4 | R21: 2000 | S21: 0.23 | T21: 0.35 | U21: 0.99 | V21: 0 | W21: 0 | X21: 0 | Y21: 1000 | Z21: 0 | AA21: 0 | AB21: 0 | AC21: -1 | AD21: 3 | AE21: 74 | AF21: 75 | AG21: 76
A22: 19 | B22: 7.5cm Gun KwK 42 | C22: (None) | D22: 25 | E22: Gun75mmL70 | F22: 11 | G22: 7 | H22: 0 | I22: 0 | J22: 0 | K22: 0 | L22: 10 | M22: 1 | N22: 1 | O22: 0 | P22: 75 | Q22: 4 | R22: 3000 | S22: 0.17 | T22: 0.26 | U22: 1 | V22: 0 | W22: 0 | X22: 0 | Y22: 1000 | Z22: 0 | AA22: 0 | AB22: 0 | AC22: -1 | AD22: 2 | AE22: 77 | AF22: 78
A23: 20 | B23: 8.8cm Gun KwK 36 | C23: (None) | D23: 28 | E23: Gun88mm | F23: 11 | G23: 7 | H23: 0 | I23: 0 | J23: 0 | K23: 0 | L23: 12 | M23: 1 | N23: 1 | O23: 0 | P23: 88 | Q23: 4 | R23: 3000 | S23: 0.17 | T23: 0.26 | U23: 1 | V23: 0 | W23: 0 | X23: 0 | Y23: 1000 | Z23: 0 | AA23: 0 | AB23: 0 | AC23: -1 | AD23: 2 | AE23: 83 | AF23: 84
A24: 21 | B24: .30 Cal. Rifle M1 w/ M7 Grenade Launcher | C24: M1A1 Garand | D24: 16 | E24: M1Garand | F24: 3 | G24: 7 | H24: 0 | I24: 0 | J24: 2 | K24: 0 | L24: 8 | M24: 1 | N24: 8 | O24: 4.3 | P24: 7.6 | Q24: 2 | R24: 500 | S24: 1.2 | T24: 1.2 | U24: 1 | V24: 0 | W24: 0 | X24: 0 | Y24: 1000 | Z24: 1 | AA24: 1 | AB24: 0 | AC24: 97 | AD24: 2 | AE24: 9 | AF24: 10
A25: 22 | B25: 8mm Machine Gun Breda Mod 38 (Bow) | C25: (None) | D25: 45 | E25: BredaMMG | F25: 9 | G25: 7 | H25: 0 | I25: 0 | J25: 3 | K25: 0 | L25: 10 | M25: 1 | N25: 24 | O25: 0 | P25: 8 | Q25: 3 | R25: 1200 | S25: 1 | T25: 1 | U25: 1 | V25: 450 | W25: 1 | X25: 3 | Y25: 1000 | Z25: 0 | AA25: 0 | AB25: 0 | AC25: -1 | AD25: 2 | AE25: 93 | AF25: 94
A26: 23 | B26: 47mm Gun 47/32 M35 | C26: (None) | D26: 23 | E26: Gun50mm | F26: 11 | G26: 7 | H26: 0 | I26: 0 | J26: 0 | K26: 0 | L26: 8 | M26: 1 | N26: 1 | O26: 0 | P26: 47 | Q26: 3 | R26: 2000 | S26: 0.23 | T26: 0.35 | U26: 1 | V26: 0 | W26: 0 | X26: 0 | Y26: 1000 | Z26: 0 | AA26: 0 | AB26: 0 | AC26: -1 | AD26: 2 | AE26: 103 | AF26: 104
A27: 24 | B27: Hand Grenade Mk.II | C27: (None) | D27: 64 | E27: GrenadeThrow | F27: 1 | G27: 6 | H27: 0 | I27: 0 | J27: 0 | K27: 0 | L27: 5 | M27: 2 | N27: 1 | O27: 0 | P27: 57 | Q27: 10 | R27: 30 | S27: 64 | T27: 64 | U27: 1 | V27: 0 | W27: 0 | X27: 0 | Y27: 1000 | Z27: 0 | AA27: 0 | AB27: 0 | AC27: -1 | AD27: 1 | AE27: 5
A28: 25 | B28: Hand Grenade StiHdgr 24 | C28: (None) | D28: 61 | E28: GrenadeThrow | F28: 1 | G28: 6 | H28: 0 | I28: 0 | J28: 0 | K28: 0 | L28: 5 | M28: 2 | N28: 1 | O28: 0 | P28: 57 | Q28: 10 | R28: 30 | S28: 64 | T28: 64 | U28: 1 | V28: 0 | W28: 0 | X28: 0 | Y28: 1000 | Z28: 0 | AA28: 0 | AB28: 0 | AC28: -1 | AD28: 1 | AE28: 51
A29: 26 | B29: .45 Cal. Pistol M1911A1 "Colt" | C29: PISTOL | D29: 49 | E29: M1911Pistol | F29: 2 | G29: 7 | H29: 0 | I29: 0 | J29: 2 | K29: 0 | L29: 6 | M29: 1 | N29: 7 | O29: 1.1 | P29: 11.4 | Q29: 1 | R29: 50 | S29: 3 | T29: 3 | U29: 0.88 | V29: 0 | W29: 0 | X29: 0 | Y29: 1000 | Z29: 1 | AA29: 0 | AB29: 0 | AC29: -1 | AD29: 1 | AE29: 12
A30: 27 | B30: 9mm Pistol Walther P38 | C30: PISTOL | D30: 66 | E30: WaltherP38 | F30: 2 | G30: 7 | H30: 0 | I30: 0 | J30: 2 | K30: 0 | L30: 6 | M30: 1 | N30: 8 | O30: 0.8 | P30: 9 | Q30: 1 | R30: 50 | S30: 3 | T30: 3 | U30: 0.94 | V30: 0 | W30: 0 | X30: 0 | Y30: 1000 | Z30: 1 | AA30: 0 | AB30: 0 | AC30: -1 | AD30: 1 | AE30: 50
A31: 28 | B31: 60mm Mortar M2 | C31: 81mm Mortar | D31: 3 | E31: MortarLight | F31: 10 | G31: 4 | H31: 4 | I31: 30 | J31: 0 | K31: 0 | L31: 3 | M31: 1 | N31: 1 | O31: 19 | P31: 60 | Q31: 70 | R31: 1800 | S31: 7 | T31: 14 | U31: 1 | V31: 0 | W31: 0 | X31: 0 | Y31: 1000 | Z31: 0 | AA31: 0 | AB31: 0 | AC31: -1 | AD31: 2 | AE31: 23 | AF31: 24
A32: 29 | B32: .30 Cal. Machine Gun M1919A4 | C32: 30 cal MMG | D32: 33 | E32: MG1919A4 | F32: 9 | G32: 7 | H32: 1 | I32: 10 | J32: 3 | K32: 0 | L32: 15 | M32: 1 | N32: 250 | O32: 20.5 | P32: 7.6 | Q32: 3 | R32: 1200 | S32: 1.2 | T32: 1.2 | U32: 1 | V32: 500 | W32: 3 | X32: 3 | Y32: 1000 | Z32: 0 | AA32: 0 | AB32: 0 | AC32: -1 | AD32: 2 | AE32: 9 | AF32: 10
A33: 30 | B33: .30 Cal. Carbine M1 | C33: M1A1 Garand | D33: 37 | E33: M1Carbine | F33: 3 | G33: 7 | H33: 0 | I33: 0 | J33: 2 | K33: 0 | L33: 8 | M33: 1 | N33: 15 | O33: 2.4 | P33: 7.6 | Q33: 2 | R33: 300 | S33: 1.8 | T33: 1.8 | U33: 1 | V33: 0 | W33: 0 | X33: 0 | Y33: 1000 | Z33: 1 | AA33: 0 | AB33: 0 | AC33: -1 | AD33: 1 | AE33: 11
A34: 31 | B34: .30 Cal. Rifle M1903 w/ M1 Spigot | C34: M1A1 Garand | D34: 60 | E34: M1903Rifle | F34: 3 | G34: 7 | H34: 0 | I34: 0 | J34: 1 | K34: 1.5 | L34: 10 | M34: 1 | N34: 5 | O34: 4.1 | P34: 7.6 | Q34: 2 | R34: 600 | S34: 0.8 | T34: 0.8 | U34: 1 | V34: 0 | W34: 0 | X34: 0 | Y34: 1000 | Z34: 1 | AA34: 1 | AB34: 0 | AC34: 32 | AD34: 2 | AE34: 9 | AF34: 10
A35: 32 | B35: Grenade Launcher M1 | C35: M1A1 Garand | D35: 60 | E35: GrenadeLauncher | F35: 12 | G35: 6 | H35: 0 | I35: 15 | J35: 0 | K35: 0 | L35: 10 | M35: 1 | N35: 1 | O35: 0 | P35: 50 | Q35: 5 | R35: 300 | S35: 6 | T35: 12 | U35: 1 | V35: 0 | W35: 0 | X35: 0 | Y35: 1000 | Z35: 0 | AA35: 0 | AB35: 0 | AC35: -1 | AD35: 2 | AE35: 7 | AF35: 8
A36: 33 | B36: 7.92mm Machine Gun sMG 34 | C36: 30 cal MMG | D36: 55 | E36: MG34 | F36: 9 | G36: 7 | H36: 30 | I36: 15 | J36: 3 | K36: 0 | L36: 15 | M36: 1 | N36: 250 | O36: 31.1 | P36: 7.92 | Q36: 3 | R36: 1600 | S36: 0.6 | T36: 0.8 | U36: 1 | V36: 900 | W36: 3 | X36: 3 | Y36: 1000 | Z36: 0 | AA36: 0 | AB36: 0 | AC36: -1 | AD36: 2 | AE36: 47 | AF36: 48
A37: =A36+1 -> 34 | B37: 5cm Gun KwK 38 | C37: (None) | D37: 23 | E37: Gun50mm | F37: 11 | G37: 7 | H37: 0 | I37: 0 | J37: 0 | K37: 0 | L37: 8 | M37: 1 | N37: 1 | O37: 0 | P37: 50 | Q37: 3 | R37: 2000 | S37: 0.23 | T37: 0.35 | U37: 1 | V37: 0 | W37: 0 | X37: 0 | Y37: 1000 | Z37: 0 | AA37: 0 | AB37: 0 | AC37: -1 | AD37: 3 | AE37: 64 | AF37: 65 | AG37: 66
A38: 35 | B38: .50 Cal. Machine Gun AN/M2 (Aircraft) | C38: (None) | D38: 35 | E38: M2HMG | F38: 9 | G38: 7 | H38: 0 | I38: 0 | J38: 3 | K38: 0 | L38: 0 | M38: 0 | N38: 100 | O38: 28 | P38: 12.7 | Q38: 3 | R38: 1800 | S38: 1 | T38: 1 | U38: 1 | V38: 750 | W38: 0 | X38: 0 | Y38: 1000 | Z38: 0 | AA38: 0 | AB38: 0 | AC38: -1 | AD38: 2 | AE38: 13 | AF38: 14
A39: 36 | B39: 5-inch Rocket Rails (Aircraft) | C39: (None) | D39: 63 | E39: Bazooka | F39: 6 | G39: 6 | H39: 0 | I39: 0 | J39: 3 | K39: 0 | L39: 0 | M39: 0 | N39: 5 | O39: 0 | P39: 127 | Q39: 20 | R39: 1000 | S39: 6 | T39: 9 | U39: 1 | V39: 120 | W39: 0 | X39: 0 | Y39: 1000 | Z39: 0 | AA39: 0 | AB39: 0 | AC39: -1 | AD39: 1 | AE39: 42
A40: 37 | B40: 500lb Aerial Bomb (Aircraft) | C40: (None) | D40: 63 | E40: GrenadeThrow | F40: 1 | G40: 4 | H40: 0 | I40: 0 | J40: 0 | K40: 0 | L40: 0 | M40: 0 | N40: 1 | O40: 0 | P40: 370 | Q40: 0 | R40: 10000 | S40: 8 | T40: 16 | U40: 1 | V40: 0 | W40: 0 | X40: 0 | Y40: 1000 | Z40: 0 | AA40: 0 | AB40: 0 | AC40: -1 | AD40: 1 | AE40: 43
A41: 38 | B41: 7.92mm MG17 (Aircraft) | C41: (None) | D41: 45 | E41: MG34Bow | F41: 9 | G41: 7 | H41: 0 | I41: 0 | J41: 3 | K41: 0 | L41: 15 | M41: 0 | N41: 250 | O41: 0 | P41: 7.92 | Q41: 3 | R41: 1200 | S41: 1 | T41: 1 | U41: 1 | V41: 1200 | W41: 0 | X41: 0 | Y41: 1000 | Z41: 0 | AA41: 0 | AB41: 0 | AC41: -1 | AD41: 2 | AE41: 47 | AF41: 48
A42: 39 | B42: 20mm MG151/20 (Aircraft) | C42: (None) | D42: 0 | E42: Gun20mmFlak | F42: 11 | G42: 7 | H42: 0 | I42: 0 | J42: 3 | K42: 0 | L42: 10 | M42: 0 | N42: 10 | O42: 0 | P42: 20 | Q42: 3 | R42: 2000 | S42: 1 | T42: 1 | U42: 1 | V42: 600 | W42: 0 | X42: 0 | Y42: 1000 | Z42: 0 | AA42: 0 | AB42: 0 | AC42: -1 | AD42: 1 | AE42: 58
A43: 40 | B43: SC 250 Aerial Bomb (Aircraft) | C43: (None) | D43: 63 | E43: GrenadeThrow | F43: 1 | G43: 4 | H43: 0 | I43: 0 | J43: 0 | K43: 0 | L43: 0 | M43: 0 | N43: 1 | O43: 0 | P43: 370 | Q43: 0 | R43: 10000 | S43: 8 | T43: 16 | U43: 1 | V43: 0 | W43: 0 | X43: 0 | Y43: 1000 | Z43: 0 | AA43: 0 | AB43: 0 | AC43: -1 | AD43: 1 | AE43: 88
A44: 41 | B44: 81mm Mortar M1 | C44: 81mm Mortar | D44: 4 | E44: MortarMedium | F44: 10 | G44: 4 | H44: 5 | I44: 60 | J44: 0 | K44: 0 | L44: 3.3 | M44: 1 | N44: 1 | O44: 62 | P44: 81 | Q44: 90 | R44: 3000 | S44: 5 | T44: 10 | U44: 1 | V44: 0 | W44: 0 | X44: 0 | Y44: 1000 | Z44: 0 | AA44: 0 | AB44: 0 | AC44: -1 | AD44: 3 | AE44: 36 | AF44: 37 | AG44: 38
A45: 42 | B45: 8cm Mortar GrW 34 | C45: 81mm Mortar | D45: 4 | E45: MortarMedium | F45: 10 | G45: 4 | H45: 32 | I45: 60 | J45: 0 | K45: 0 | L45: 3.3 | M45: 1 | N45: 1 | O45: 57 | P45: 81 | Q45: 60 | R45: 2400 | S45: 5 | T45: 10 | U45: 1 | V45: 0 | W45: 0 | X45: 0 | Y45: 1000 | Z45: 0 | AA45: 0 | AB45: 0 | AC45: -1 | AD45: 2 | AE45: 81 | AF45: 82
A46: 43 | B46: 81mm Mortar Mod 35 | C46: 81mm Mortar | D46: 4 | E46: MortarMedium | F46: 10 | G46: 4 | H46: 71 | I46: 60 | J46: 0 | K46: 0 | L46: 3.3 | M46: 1 | N46: 1 | O46: 59 | P46: 81 | Q46: 150 | R46: 3100 | S46: 4 | T46: 18 | U46: 1 | V46: 0 | W46: 0 | X46: 0 | Y46: 1000 | Z46: 0 | AA46: 0 | AB46: 0 | AC46: -1 | AD46: 3 | AE46: 109 | AF46: 110 | AG46: 111
A47: 44 | B47: 105mm Howitzer M2A1 | C47: (None) | D47: 20 | E47: Gun105mm | F47: 11 | G47: 7 | H47: 10 | I47: 0 | J47: 0 | K47: 0 | L47: 12 | M47: 1 | N47: 1 | O47: 0 | P47: 105 | Q47: 4 | R47: 10000 | S47: 0.35 | T47: 0.52 | U47: 1 | V47: 0 | W47: 0 | X47: 0 | Y47: 1000 | Z47: 0 | AA47: 0 | AB47: 0 | AC47: -1 | AD47: 3 | AE47: 39 | AF47: 40 | AG47: 41
A48: 45 | B48: 10.5cm Howitzer leFH18 | C48: (None) | D48: 20 | E48: Gun105mm | F48: 11 | G48: 7 | H48: 47 | I48: 0 | J48: 0 | K48: 0 | L48: 12 | M48: 1 | N48: 1 | O48: 0 | P48: 105 | Q48: 4 | R48: 10000 | S48: 0.35 | T48: 0.52 | U48: 1 | V48: 0 | W48: 0 | X48: 0 | Y48: 1000 | Z48: 0 | AA48: 0 | AB48: 0 | AC48: -1 | AD48: 3 | AE48: 85 | AF48: 86 | AG48: 87
A49: 46 | B49: 75mm Howitzer 75/27 Mod 06 | C49: (None) | D49: 27 | E49: Gun75mmShort | F49: 11 | G49: 7 | H49: 77 | I49: 0 | J49: 0 | K49: 0 | L49: 6 | M49: 1 | N49: 1 | O49: 1015 | P49: 75 | Q49: 4 | R49: 6000 | S49: 0.35 | T49: 0.52 | U49: 1 | V49: 0 | W49: 0 | X49: 0 | Y49: 1000 | Z49: 0 | AA49: 0 | AB49: 0 | AC49: -1 | AD49: 1 | AE49: 108
A50: 47 | B50: .30 Cal. Rifle M1903 "Springfield" | C50: M1A1 Garand | D50: 58 | E50: M1903Rifle | F50: 3 | G50: 7 | H50: 0 | I50: 0 | J50: 1 | K50: 1.5 | L50: 10 | M50: 1 | N50: 5 | O50: 4.1 | P50: 7.6 | Q50: 2 | R50: 600 | S50: 0.8 | T50: 0.8 | U50: 1 | V50: 0 | W50: 0 | X50: 0 | Y50: 1000 | Z50: 1 | AA50: 1 | AB50: 0 | AC50: -1 | AD50: 2 | AE50: 9 | AF50: 10
A51: 48 | B51: Smoke Grenade M8 | C51: (None) | D51: 65 | E51: GrenadeThrow | F51: 1 | G51: 4 | H51: 0 | I51: 0 | J51: 0 | K51: 0 | L51: 5 | M51: 2 | N51: 1 | O51: 0 | P51: 57 | Q51: 1 | R51: 30 | S51: 64 | T51: 64 | U51: 1 | V51: 0 | W51: 0 | X51: 0 | Y51: 1000 | Z51: 0 | AA51: 0 | AB51: 0 | AC51: -1 | AD51: 1 | AE51: 6
A52: 49 | B52: 7.92mm Rifle K98k w/Schiessbecher | C52: M1A1 Garand | D52: 30 | E52: Mauser98k | F52: 3 | G52: 7 | H52: 0 | I52: 0 | J52: 1 | K52: 1.5 | L52: 10 | M52: 1 | N52: 5 | O52: 4.1 | P52: 7.92 | Q52: 2 | R52: 600 | S52: 0.8 | T52: 0.8 | U52: 1 | V52: 0 | W52: 0 | X52: 0 | Y52: 1000 | Z52: 1 | AA52: 1 | AB52: 0 | AC52: 96 | AD52: 1 | AE52: 47
A53: 50 | B53: 7.92mm Rifle K98k ZF | C53: M1A1 Garand | D53: 31 | E53: Mauser98k | F53: 3 | G53: 7 | H53: 0 | I53: 0 | J53: 1 | K53: 1.5 | L53: 10 | M53: 1 | N53: 5 | O53: 4.1 | P53: 7.92 | Q53: 3 | R53: 800 | S53: 0.6 | T53: 0.6 | U53: 1 | V53: 0 | W53: 0 | X53: 0 | Y53: 1000 | Z53: 0 | AA53: 1 | AB53: 0 | AC53: -1 | AD53: 1 | AE53: 47
A54: =A53+1 -> 51 | B54: .30 Cal. Rifle M1903A4 | C54: M1A1 Garand | D54: 59 | E54: M1903Rifle | F54: 3 | G54: 7 | H54: 0 | I54: 0 | J54: 1 | K54: 1.5 | L54: 10 | M54: 1 | N54: 5 | O54: 4.1 | P54: 7.6 | Q54: 3 | R54: 800 | S54: 0.6 | T54: 0.6 | U54: 1 | V54: 0 | W54: 0 | X54: 0 | Y54: 1000 | Z54: 0 | AA54: 1 | AB54: 0 | AC54: -1 | AD54: 2 | AE54: 9 | AF54: 10
A55: 52 | B55: 6.5mm Rifle Mod 91 | C55: M1A1 Garand | D55: 42 | E55: CarcanoRifle | F55: 3 | G55: 7 | H55: 0 | I55: 0 | J55: 1 | K55: 1.5 | L55: 10 | M55: 1 | N55: 6 | O55: 3.8 | P55: 6.5 | Q55: 2 | R55: 500 | S55: 1.8 | T55: 1.8 | U55: 1 | V55: 0 | W55: 0 | X55: 0 | Y55: 1000 | Z55: 1 | AA55: 1 | AB55: 0 | AC55: -1 | AD55: 1 | AE55: 92
A56: 53 | B56: 6.5mm Carbine Mod 91TS | C56: M1A1 Garand | D56: 42 | E56: CarcanoRifle | F56: 3 | G56: 7 | H56: 0 | I56: 0 | J56: 1 | K56: 1.5 | L56: 10 | M56: 1 | N56: 6 | O56: 3 | P56: 6.5 | Q56: 2 | R56: 300 | S56: 1.8 | T56: 1.8 | U56: 1 | V56: 0 | W56: 0 | X56: 0 | Y56: 1000 | Z56: 1 | AA56: 1 | AB56: 0 | AC56: -1 | AD56: 1 | AE56: 92
A57: 54 | B57: 6.5mm Light Machine Gun Breda Mod 30 | C57: BAR MG | D57: 8 | E57: BredaLMG | F57: 5 | G57: 7 | H57: 0 | I57: 0 | J57: 3 | K57: 0 | L57: 15 | M57: 1 | N57: 20 | O57: 10.6 | P57: 6.5 | Q57: 3 | R57: 800 | S57: 1 | T57: 1 | U57: 1 | V57: 450 | W57: 1 | X57: 4 | Y57: 1000 | Z57: 0 | AA57: 0 | AB57: 0 | AC57: -1 | AD57: 1 | AE57: 92
A58: 55 | B58: 8mm Machine Gun Breda Mod 37 | C58: 30 cal MMG | D58: 9 | E58: BredaMMG | F58: 9 | G58: 7 | H58: 0 | I58: 0 | J58: 3 | K58: 0 | L58: 15 | M58: 1 | N58: 250 | O58: 38.2 | P58: 8 | Q58: 3 | R58: 1100 | S58: 1 | T58: 1 | U58: 1 | V58: 450 | W58: 1 | X58: 3 | Y58: 1000 | Z58: 0 | AA58: 0 | AB58: 0 | AC58: -1 | AD58: 2 | AE58: 93 | AF58: 94
A59: 56 | B59: .50 cal. Machine Gun M2 (AA) | C59: (None) | D59: 39 | E59: M2HMG | F59: 9 | G59: 7 | H59: 0 | I59: 0 | J59: 3 | K59: 0 | L59: 0 | M59: 1 | N59: 100 | O59: 58 | P59: 12.7 | Q59: 3 | R59: 1800 | S59: 1 | T59: 1 | U59: 1 | V59: 450 | W59: 1 | X59: 6 | Y59: 1000 | Z59: 0 | AA59: 0 | AB59: 0 | AC59: -1 | AD59: 2 | AE59: 13 | AF59: 14
A60: 57 | B60: 20mm Gun Breda Mod 35 | C60: (None) | D60: 0 | E60: Gun20mmFlak | F60: 11 | G60: 7 | H60: 0 | I60: 0 | J60: 3 | K60: 0 | L60: 10 | M60: 1 | N60: 12 | O60: 0 | P60: 20 | Q60: 3 | R60: 2000 | S60: 0.3 | T60: 0.4 | U60: 1 | V60: 240 | W60: 2 | X60: 8 | Y60: 1000 | Z60: 0 | AA60: 0 | AB60: 0 | AC60: -1 | AD60: 2 | AE60: 99 | AF60: 100
A61: 58 | B61: .30 Cal. Carbine M1A1 | C61: M1A1 Garand | D61: 36 | E61: M1Carbine | F61: 3 | G61: 7 | H61: 0 | I61: 0 | J61: 2 | K61: 0 | L61: 8 | M61: 1 | N61: 15 | O61: 2.4 | P61: 7.6 | Q61: 2 | R61: 300 | S61: 1.8 | T61: 1.8 | U61: 1 | V61: 0 | W61: 0 | X61: 0 | Y61: 1000 | Z61: 1 | AA61: 0 | AB61: 0 | AC61: -1 | AD61: 1 | AE61: 11
A62: 59 | B62: 75mm Howitzer 75/18 Mod 34 | C62: (None) | D62: 21 | E62: Gun75mmShort | F62: 11 | G62: 7 | H62: 0 | I62: 0 | J62: 0 | K62: 0 | L62: 12 | M62: 1 | N62: 1 | O62: 0 | P62: 75 | Q62: 4 | R62: 9500 | S62: 0.35 | T62: 0.52 | U62: 1 | V62: 0 | W62: 0 | X62: 0 | Y62: 1000 | Z62: 0 | AA62: 0 | AB62: 0 | AC62: -1 | AD62: 3 | AE62: 105 | AF62: 106 | AG62: 107
A63: 60 | B63: 20mm Anit-Tank Rifle "S" | C63: PzB 39 | D63: 1 | E63: ATR20mm | F63: 6 | G63: 6 | H63: 0 | I63: 0 | J63: 2 | K63: 0 | L63: 10 | M63: 1 | N63: 10 | O63: 53.5 | P63: 20 | Q63: 3 | R63: 1500 | S63: 0.3 | T63: 0.4 | U63: 1 | V63: 0 | W63: 0 | X63: 0 | Y63: 1000 | Z63: 0 | AA63: 0 | AB63: 0 | AC63: -1 | AD63: 1 | AE63: 99
A64: 61 | B64: 10.35mm Revolver Mod 89 | C64: PISTOL | D64: 6 | E64: WaltherP38 | F64: 2 | G64: 7 | H64: 0 | I64: 0 | J64: 2 | K64: 0 | L64: 24 | M64: 1 | N64: 6 | O64: 1 | P64: 10.35 | Q64: 1 | R64: 50 | S64: 64 | T64: 64 | U64: 1 | V64: 0 | W64: 0 | X64: 0 | Y64: 1000 | Z64: 1 | AA64: 0 | AB64: 0 | AC64: -1 | AD64: 1 | AE64: 96
A65: 62 | B65: 9mm Pistol Baretta 34 | C65: PISTOL | D65: 6 | E65: WaltherP38 | F65: 2 | G65: 7 | H65: 0 | I65: 0 | J65: 2 | K65: 0 | L65: 6 | M65: 1 | N65: 7 | O65: 0.66 | P65: 9 | Q65: 1 | R65: 50 | S65: 3 | T65: 3 | U65: 0.88 | V65: 0 | W65: 0 | X65: 0 | Y65: 1000 | Z65: 1 | AA65: 0 | AB65: 0 | AC65: -1 | AD65: 1 | AE65: 95
A66: 63 | B66: 45mm Mortar Brixia Mod 35 | C66: 81mm Mortar | D66: 2 | E66: MortarLight | F66: 10 | G66: 4 | H66: 70 | I66: 20 | J66: 1 | K66: 1 | L66: 10 | M66: 1 | N66: 10 | O66: 16 | P66: 45 | Q66: 20 | R66: 500 | S66: 7 | T66: 14 | U66: 1 | V66: 0 | W66: 0 | X66: 0 | Y66: 1000 | Z66: 0 | AA66: 0 | AB66: 0 | AC66: -1 | AD66: 2 | AE66: 101 | AF66: 102
A67: =A66+1 -> 64 | B67: .30 Cal. Machine Gun M1917A1 | C67: 30 cal MMG | D67: 32 | E67: MG1917A1 | F67: 9 | G67: 7 | H67: 2 | I67: 15 | J67: 3 | K67: 0 | L67: 15 | M67: 1 | N67: 250 | O67: 47 | P67: 7.6 | Q67: 3 | R67: 1200 | S67: 1.2 | T67: 1.2 | U67: 1 | V67: 600 | W67: 5 | X67: 4 | Y67: 1000 | Z67: 0 | AA67: 0 | AB67: 0 | AC67: -1 | AD67: 2 | AE67: 9 | AF67: 10
A68: =A67+1 -> 65 | B68: .45 Cal. Submachine Gun M1A1 Thompson | C68: MP40 | D68: 62 | E68: ThompsonSMG | F68: 4 | G68: 7 | H68: 0 | I68: 0 | J68: 3 | K68: 0 | L68: 8 | M68: 1 | N68: 30 | O68: 4.8 | P68: 11.4 | Q68: 1 | R68: 100 | S68: 1 | T68: 1 | U68: 1 | V68: 700 | W68: 1 | X68: 3 | Y68: 1000 | Z68: 1 | AA68: 0 | AB68: 0 | AC68: -1 | AD68: 1 | AE68: 12
A69: =A68+1 -> 66 | B69: 2.36-inch Rocket Launcher M1A1 Bazooka | C69: M1A1 Bazooka | D69: 7 | E69: Bazooka | F69: 6 | G69: 6 | H69: 0 | I69: 5 | J69: 0 | K69: 0 | L69: 20 | M69: 1 | N69: 1 | O69: 8 | P69: 57 | Q69: 8 | R69: 150 | S69: 8.5 | T69: 8.5 | U69: 1 | V69: 0 | W69: 0 | X69: 0 | Y69: 1000 | Z69: 0 | AA69: 0 | AB69: 1 | AC69: -1 | AD69: 2 | AE69: 21 | AF69: 22
A70: 67 | B70: .30 Cal. Rifle M1C | C70: M1A1 Garand | D70: 15 | E70: M1Garand | F70: 3 | G70: 7 | H70: 0 | I70: 0 | J70: 2 | K70: 0 | L70: 8 | M70: 1 | N70: 8 | O70: 4.3 | P70: 7.6 | Q70: 2 | R70: 700 | S70: 1 | T70: 1 | U70: 1 | V70: 0 | W70: 0 | X70: 0 | Y70: 1000 | Z70: 1 | AA70: 1 | AB70: 0 | AC70: -1 | AD70: 2 | AE70: 9 | AF70: 10
A71: 68 | B71: Smoke Grenade NbHdgr 24 | C71: (None) | D71: 54 | E71: GrenadeThrow | F71: 1 | G71: 4 | H71: 0 | I71: 0 | J71: 0 | K71: 0 | L71: 5 | M71: 2 | N71: 1 | O71: 0 | P71: 57 | Q71: 1 | R71: 30 | S71: 64 | T71: 64 | U71: 1 | V71: 0 | W71: 0 | X71: 0 | Y71: 1000 | Z71: 0 | AA71: 0 | AB71: 0 | AC71: -1 | AD71: 1 | AE71: 52
A72: =A71+1 -> 69 | B72: 7.92mm Anit-Tank Rifle sPzB 39 | C72: PzB 39 | D72: 50 | E72: ATRifle | F72: 6 | G72: 3 | H72: 0 | I72: 10 | J72: 2 | K72: 1 | L72: 10 | M72: 2 | N72: 10 | O72: 11.6 | P72: 7.92 | Q72: 3 | R72: 500 | S72: 0.43 | T72: 0.71 | U72: 1 | V72: 0 | W72: 0 | X72: 0 | Y72: 1000 | Z72: 0 | AA72: 0 | AB72: 0 | AC72: -1 | AD72: 1 | AE72: 49
A73: =A72+1 -> 70 | B73: 7.92mm Machine Gun sMG 42 | C73: 30 cal MMG | D73: 56 | E73: MG42 | F73: 9 | G73: 7 | H73: 30 | I73: 15 | J73: 3 | K73: 0 | L73: 15 | M73: 1 | N73: 250 | O73: 30.6 | P73: 7.92 | Q73: 3 | R73: 1200 | S73: 0.6 | T73: 0.8 | U73: 1 | V73: 1200 | W73: 3 | X73: 3 | Y73: 1000 | Z73: 0 | AA73: 0 | AB73: 0 | AC73: -1 | AD73: 2 | AE73: 47 | AF73: 48
A74: =A73+1 -> 71 | B74: Panzerfaust 30 kl | C74: Panzerfaust | D74: 51 | E74: Panzerfaust | F74: 6 | G74: 6 | H74: 0 | I74: 5 | J74: 0 | K74: 0 | L74: 20 | M74: 1 | N74: 1 | O74: 3.22 | P74: 100 | Q74: 3 | R74: 30 | S74: 8.5 | T74: 8.5 | U74: 1 | V74: 0 | W74: 0 | X74: 0 | Y74: 1000 | Z74: 0 | AA74: 0 | AB74: 0 | AC74: -1 | AD74: 1 | AE74: 89
A75: =A74+1 -> 72 | B75: Panzerfaust 30 | C75: Panzerfaust | D75: 51 | E75: Panzerfaust | F75: 6 | G75: 6 | H75: 0 | I75: 5 | J75: 0 | K75: 0 | L75: 20 | M75: 1 | N75: 1 | O75: 5.22 | P75: 149 | Q75: 3 | R75: 30 | S75: 8.5 | T75: 8.5 | U75: 1 | V75: 0 | W75: 0 | X75: 0 | Y75: 1000 | Z75: 0 | AA75: 0 | AB75: 0 | AC75: -1 | AD75: 1 | AE75: 90
A76: =A75+1 -> 73 | B76: 8.8cm Rocket Launcher RPzB 54 | C76: Panzerschreck | D76: 48 | E76: Panzerschreck | F76: 6 | G76: 6 | H76: 0 | I76: 5 | J76: 0 | K76: 0 | L76: 20 | M76: 1 | N76: 1 | O76: 11 | P76: 88 | Q76: 3 | R76: 150 | S76: 8.5 | T76: 8.5 | U76: 1 | V76: 0 | W76: 0 | X76: 0 | Y76: 1000 | Z76: 0 | AA76: 0 | AB76: 1 | AC76: -1 | AD76: 1 | AE76: 91
A77: 74 | B77: 5cm Mortar GrW 36 | C77: 81mm Mortar | D77: 3 | E77: MortarLight | F77: 10 | G77: 4 | H77: 31 | I77: 20 | J77: 0 | K77: 1 | L77: 10 | M77: 1 | N77: 1 | O77: 31 | P77: 50 | Q77: 20 | R77: 500 | S77: 6 | T77: 12 | U77: 1 | V77: 0 | W77: 0 | X77: 0 | Y77: 1000 | Z77: 0 | AA77: 0 | AB77: 0 | AC77: -1 | AD77: 1 | AE77: 67
A78: 75 | B78: 7.92mm Rifle Gewehr 43ZF | C78: M1A1 Garand | D78: 18 | E78: Gewehr43 | F78: 3 | G78: 7 | H78: 0 | I78: 0 | J78: 2 | K78: 1.5 | L78: 10 | M78: 1 | N78: 5 | O78: 4.1 | P78: 7.92 | Q78: 2 | R78: 800 | S78: 0.8 | T78: 0.8 | U78: 1 | V78: 0 | W78: 0 | X78: 0 | Y78: 1000 | Z78: 1 | AA78: 1 | AB78: 0 | AC78: -1 | AD78: 1 | AE78: 47
A79: =A78+1 -> 76 | B79: 7.92mm Light Machine Gun leMG 42 | C79: mg42 | D79: 46 | E79: MG42 | F79: 5 | G79: 7 | H79: 0 | I79: 0 | J79: 3 | K79: 0 | L79: 15 | M79: 1 | N79: 100 | O79: 11.57 | P79: 7.92 | Q79: 3 | R79: 800 | S79: 1 | T79: 1 | U79: 1 | V79: 1200 | W79: 3 | X79: 3 | Y79: 1000 | Z79: 0 | AA79: 0 | AB79: 0 | AC79: -1 | AD79: 2 | AE79: 47 | AF79: 48
A80: 77 | B80: 7.92mm Light Machine Gun leMG 15 | C80: mg34 | D80: 44 | E80: MG34 | F80: 5 | G80: 7 | H80: 0 | I80: 0 | J80: 3 | K80: 0 | L80: 20 | M80: 1 | N80: 100 | O80: 18 | P80: 7.92 | Q80: 1 | R80: 800 | S80: 1 | T80: 1 | U80: 1 | V80: 500 | W80: 3 | X80: 3 | Y80: 1000 | Z80: 0 | AA80: 0 | AB80: 0 | AC80: -1 | AD80: 1 | AE80: 47
A81: =A80+1 -> 78 | B81: 7.92mm Light Machine Gun leMG 42 (Sturm) | C81: mg42 | D81: 46 | E81: MG42 | F81: 5 | G81: 7 | H81: 0 | I81: 0 | J81: 3 | K81: 0 | L81: 10 | M81: 1 | N81: 75 | O81: 12.4 | P81: 7.92 | Q81: 1 | R81: 600 | S81: 1 | T81: 1 | U81: 1 | V81: 1200 | W81: 3 | X81: 3 | Y81: 1000 | Z81: 1 | AA81: 0 | AB81: 0 | AC81: -1 | AD81: 2 | AE81: 47 | AF81: 48
A82: 79 | B82: 7.92mm Rifle Gewehr 43 | C82: M1A1 Garand | D82: 17 | E82: Gewehr43 | F82: 3 | G82: 7 | H82: 0 | I82: 0 | J82: 2 | K82: 0 | L82: 6 | M82: 1 | N82: 10 | O82: 4.4 | P82: 7.92 | Q82: 2 | R82: 500 | S82: 0.8 | T82: 0.8 | U82: 1 | V82: 0 | W82: 0 | X82: 0 | Y82: 1000 | Z82: 1 | AA82: 1 | AB82: 0 | AC82: -1 | AD82: 1 | AE82: 47
A83: 80 | B83: Satchel Charge (US) | C83: (None) | D83: 63 | E83: GrenadeThrow | F83: 1 | G83: 6 | H83: 0 | I83: 10 | J83: 0 | K83: 0 | L83: 10 | M83: 1 | N83: 1 | O83: 4 | P83: 300 | Q83: 0 | R83: 20 | S83: 64 | T83: 64 | U83: 1 | V83: 0 | W83: 0 | X83: 0 | Y83: 1000 | Z83: 0 | AA83: 0 | AB83: 0 | AC83: -1 | AD83: 1 | AE83: 4
A84: 81 | B84: Satchel Charge (GE) | C84: (None) | D84: 63 | E84: GrenadeThrow | F84: 1 | G84: 6 | H84: 0 | I84: 10 | J84: 0 | K84: 0 | L84: 10 | M84: 1 | N84: 1 | O84: 4 | P84: 300 | Q84: 0 | R84: 20 | S84: 64 | T84: 64 | U84: 1 | V84: 0 | W84: 0 | X84: 0 | Y84: 1000 | Z84: 0 | AA84: 0 | AB84: 0 | AC84: -1 | AD84: 1 | AE84: 4
A85: 82 | B85: Flammenmwerfer 41 | C85: M1A1 Garand | D85: 13 | E85: Flamethrower | F85: 7 | G85: 7 | H85: 0 | I85: 5 | J85: 2 | K85: 0 | L85: 0 | M85: 1 | N85: 1 | O85: 21.77 | P85: 30 | Q85: 3 | R85: 30 | S85: 1 | T85: 1 | U85: 1 | V85: 0 | W85: 0 | X85: 0 | Y85: 1000 | Z85: 0 | AA85: 0 | AB85: 0 | AC85: -1 | AD85: 1 | AE85: 3
A86: 83 | B86: Flamethrower M2 | C86: M1A1 Garand | D86: 13 | E86: Flamethrower | F86: 7 | G86: 7 | H86: 0 | I86: 5 | J86: 2 | K86: 0 | L86: 0 | M86: 1 | N86: 1 | O86: 30.8 | P86: 30 | Q86: 3 | R86: 30 | S86: 1 | T86: 1 | U86: 1 | V86: 0 | W86: 0 | X86: 0 | Y86: 1000 | Z86: 0 | AA86: 0 | AB86: 0 | AC86: -1 | AD86: 1 | AE86: 3
A87: =A86+1 -> 84 | B87: 7.92mm Light Machine Gun FG 42 | C87: BAR MG | D87: 12 | E87: FG42 | F87: 5 | G87: 7 | H87: 0 | I87: 0 | J87: 3 | K87: 0 | L87: 10 | M87: 1 | N87: 20 | O87: 4.95 | P87: 7.92 | Q87: 3 | R87: 600 | S87: 1 | T87: 1 | U87: 1 | V87: 750 | W87: 1 | X87: 3 | Y87: 1000 | Z87: 1 | AA87: 0 | AB87: 0 | AC87: -1 | AD87: 1 | AE87: 47
A88: 85 | B88: Hand Grenade Breda Mod 35 | C88: (None) | D88: 40 | E88: GrenadeThrow | F88: 1 | G88: 6 | H88: 0 | I88: 0 | J88: 0 | K88: 0 | L88: 5 | M88: 2 | N88: 1 | O88: 0 | P88: 64 | Q88: 10 | R88: 30 | S88: 64 | T88: 64 | U88: 1 | V88: 0 | W88: 0 | X88: 0 | Y88: 1000 | Z88: 0 | AA88: 0 | AB88: 0 | AC88: -1 | AD88: 1 | AE88: 97
A89: 86 | B89: Smoke Grenade Breda Mod 35 F | C89: (None) | D89: 52 | E89: GrenadeThrow | F89: 1 | G89: 4 | H89: 0 | I89: 0 | J89: 0 | K89: 0 | L89: 5 | M89: 2 | N89: 1 | O89: 0 | P89: 64 | Q89: 10 | R89: 30 | S89: 64 | T89: 64 | U89: 1 | V89: 0 | W89: 0 | X89: 0 | Y89: 1000 | Z89: 0 | AA89: 0 | AB89: 0 | AC89: -1 | AD89: 1 | AE89: 98
A90: =A89+1 -> 87 | B90: 2.36-inch Rocket Launcher M9 Bazooka | C90: M1A1 Bazooka | D90: 7 | E90: Bazooka | F90: 6 | G90: 6 | H90: 0 | I90: 5 | J90: 0 | K90: 0 | L90: 15 | M90: 1 | N90: 1 | O90: 6.8 | P90: 57 | Q90: 8 | R90: 150 | S90: 6 | T90: 6 | U90: 1 | V90: 0 | W90: 0 | X90: 0 | Y90: 1000 | Z90: 0 | AA90: 0 | AB90: 1 | AC90: -1 | AD90: 2 | AE90: 21 | AF90: 22
A91: 88 | B91: 76mm Gun M1A1 | C91: (None) | D91: 24 | E91: Gun76mm | F91: 11 | G91: 7 | H91: 0 | I91: 0 | J91: 0 | K91: 0 | L91: 9 | M91: 1 | N91: 1 | O91: 0 | P91: 76.2 | Q91: 3 | R91: 2000 | S91: 0.23 | T91: 0.35 | U91: 1 | V91: 0 | W91: 0 | X91: 0 | Y91: 1000 | Z91: 0 | AA91: 0 | AB91: 0 | AC91: -1 | AD91: 3 | AE91: 33 | AF91: 34 | AG91: 35
A92: 89 | B92: 5cm Gun Kwk 39 | C92: (None) | D92: 23 | E92: Gun50mm | F92: 11 | G92: 7 | H92: 0 | I92: 0 | J92: 0 | K92: 0 | L92: 8 | M92: 1 | N92: 1 | O92: 0 | P92: 50 | Q92: 3 | R92: 2000 | S92: 0.23 | T92: 0.35 | U92: 0.82 | V92: 0 | W92: 0 | X92: 0 | Y92: 1000 | Z92: 0 | AA92: 0 | AB92: 0 | AC92: -1 | AD92: 3 | AE92: 64 | AF92: 65 | AG92: 66
A93: 90 | B93: .50 cal. Machine Gun M2 | C93: 50cal HMG | D93: 38 | E93: M2HMG | F93: 9 | G93: 7 | H93: 0 | I93: 0 | J93: 3 | K93: 0 | L93: 18 | M93: 1 | N93: 100 | O93: 58 | P93: 12.7 | Q93: 3 | R93: 1800 | S93: 1 | T93: 1 | U93: 1 | V93: 450 | W93: 1 | X93: 6 | Y93: 1000 | Z93: 0 | AA93: 0 | AB93: 0 | AC93: -1 | AD93: 2 | AE93: 13 | AF93: 14
A94: 91 | B94: 75mm Gun M1987 | C94: (None) | D94: 26 | E94: Gun75mmM3 | F94: 11 | G94: 7 | H94: 0 | I94: 0 | J94: 0 | K94: 0 | L94: 9 | M94: 1 | N94: 1 | O94: 0 | P94: 75 | Q94: 3 | R94: 2000 | S94: 0.23 | T94: 0.35 | U94: 0.98 | V94: 0 | W94: 0 | X94: 0 | Y94: 1000 | Z94: 0 | AA94: 0 | AB94: 0 | AC94: -1 | AD94: 3 | AE94: 25 | AF94: 26 | AG94: 28
A95: 92 | B95: 7.5cm Gun KwK 40 (L48) | C95: (None) | D95: 24 | E95: Gun75mmPak40 | F95: 11 | G95: 7 | H95: 0 | I95: 0 | J95: 0 | K95: 0 | L95: 9 | M95: 1 | N95: 1 | O95: 0 | P95: 75 | Q95: 4 | R95: 2000 | S95: 0.23 | T95: 0.35 | U95: 1 | V95: 0 | W95: 0 | X95: 0 | Y95: 1000 | Z95: 0 | AA95: 0 | AB95: 0 | AC95: -1 | AD95: 3 | AE95: 74 | AF95: 75 | AG95: 76
A96: 93 | B96: 7.5cm Howitzer leIG | C96: (None) | D96: 27 | E96: Gun75mmShort | F96: 11 | G96: 7 | H96: 0 | I96: 0 | J96: 0 | K96: 0 | L96: 9 | M96: 1 | N96: 1 | O96: 0 | P96: 75 | Q96: 3 | R96: 3500 | S96: 0.35 | T96: 0.52 | U96: 1 | V96: 0 | W96: 0 | X96: 0 | Y96: 1000 | Z96: 0 | AA96: 0 | AB96: 0 | AC96: -1 | AD96: 2 | AE96: 68 | AF96: 69
A97: 94 | B97: 37mm Gun SA/18 | C97: (None) | D97: 22 | E97: Gun37mm | F97: 11 | G97: 7 | H97: 0 | I97: 0 | J97: 0 | K97: 0 | L97: 6 | M97: 1 | N97: 1 | O97: 40.8 | P97: 37 | Q97: 3 | R97: 1500 | S97: 0.3 | T97: 0.5 | U97: 1 | V97: 0 | W97: 0 | X97: 0 | Y97: 1000 | Z97: 0 | AA97: 0 | AB97: 0 | AC97: -1 | AD97: 2 | AE97: 114 | AF97: 115
A98: 95 | B98: 7.5mm Machine Gun MAC31 | C98: (None) | D98: 45 | E98: MG34Coax | F98: 9 | G98: 7 | H98: 0 | I98: 0 | J98: 3 | K98: 0 | L98: 10 | M98: 1 | N98: 150 | O98: 11.8 | P98: 7.5 | Q98: 3 | R98: 1000 | S98: 1 | T98: 1 | U98: 1 | V98: 750 | W98: 3 | X98: 3 | Y98: 1000 | Z98: 0 | AA98: 0 | AB98: 0 | AC98: -1 | AD98: 1 | AE98: 113
A99: 96 | B99: Schiessbecher K98 | C99: (None) | D99: 30 | E99: GrenadeLauncher | F99: 12 | G99: 6 | H99: 0 | I99: 15 | J99: 0 | K99: 0 | L99: 10 | M99: 1 | N99: 1 | O99: 0 | P99: 30 | Q99: 3 | R99: 250 | S99: 6 | T99: 12 | U99: 1 | V99: 0 | W99: 0 | X99: 0 | Y99: 1000 | Z99: 0 | AA99: 0 | AB99: 0 | AC99: -1 | AD99: 3 | AE99: 53 | AF99: 54 | AG99: 55
A100: 97 | B100: Grenade Launcher M7 | C100: M1A1 Garand | D100: 16 | E100: GrenadeLauncher | F100: 12 | G100: 6 | H100: 0 | I100: 15 | J100: 0 | K100: 0 | L100: 10 | M100: 1 | N100: 1 | O100: 0 | P100: 50 | Q100: 5 | R100: 300 | S100: 6 | T100: 12 | U100: 1 | V100: 0 | W100: 0 | X100: 0 | Y100: 1000 | Z100: 0 | AA100: 0 | AB100: 0 | AC100: -1 | AD100: 2 | AE100: 7 | AF100: 8
A101: 98 | B101: .30 cal. Carbine M1 w/ M8 Grenade Launcher | C101: M1A1 Garand | D101: 10 | E101: M1Carbine | F101: 3 | G101: 7 | H101: 0 | I101: 0 | J101: 2 | K101: 0 | L101: 8 | M101: 1 | N101: 15 | O101: 2.4 | P101: 7.6 | Q101: 2 | R101: 300 | S101: 1.8 | T101: 1.8 | U101: 1 | V101: 0 | W101: 0 | X101: 0 | Y101: 1000 | Z101: 1 | AA101: 0 | AB101: 0 | AC101: 99 | AD101: 1 | AE101: 11
A102: 99 | B102: Grenade Launcher M8 | C102: M1A1 Garand | D102: 10 | E102: GrenadeLauncher | F102: 12 | G102: 6 | H102: 0 | I102: 15 | J102: 0 | K102: 0 | L102: 10 | M102: 1 | N102: 1 | O102: 0 | P102: 50 | Q102: 5 | R102: 250 | S102: 6 | T102: 12 | U102: 1 | V102: 0 | W102: 0 | X102: 0 | Y102: 1000 | Z102: 0 | AA102: 0 | AB102: 0 | AC102: -1 | AD102: 2 | AE102: 7 | AF102: 8
A103: 100 | B103: 2.8cm Anit-Tank Rifle sPzB 41 | C103: (None) | D103: 0 | E103: ATR20mm | F103: 11 | G103: 6 | H103: 0 | I103: 0 | J103: 0 | K103: 0 | L103: 10 | M103: 1 | N103: 1 | O103: 229 | P103: 20 | Q103: 3 | R103: 1000 | S103: 0.3 | T103: 0.4 | U103: 1 | V103: 0 | W103: 0 | X103: 0 | Y103: 1000 | Z103: 0 | AA103: 0 | AB103: 0 | AC103: -1 | AD103: 1 | AE103: 61
A104: 101 | B104: 8mm Machine Gun Fiat Mod 35 | C104: 30 cal MMG | D104: 9 | E104: BredaMMG | F104: 9 | G104: 7 | H104: 0 | I104: 0 | J104: 3 | K104: 0 | L104: 15 | M104: 1 | N104: 250 | O104: 38.2 | P104: 8 | Q104: 3 | R104: 1100 | S104: 1 | T104: 1 | U104: 0.96 | V104: 600 | W104: 3 | X104: 3 | Y104: 1000 | Z104: 0 | AA104: 0 | AB104: 0 | AC104: -1 | AD104: 2 | AE104: 93 | AF104: 94
A105: 102 | B105: Anti-Tank Grenade Geballte Ladung | C105: (None) | D105: 53 | E105: GrenadeThrow | F105: 1 | G105: 6 | H105: 0 | I105: 0 | J105: 0 | K105: 0 | L105: 10 | M105: 2 | N105: 1 | O105: 0 | P105: 57 | Q105: 10 | R105: 20 | S105: 64 | T105: 64 | U105: 1 | V105: 0 | W105: 0 | X105: 0 | Y105: 1000 | Z105: 0 | AA105: 0 | AB105: 0 | AC105: -1 | AD105: 1 | AE105: 56
A106: 103 | B106: .45 Cal. Submachine Gun M3 | C106: MP40 | D106: 11 | E106: M3SMG | F106: 4 | G106: 7 | H106: 0 | I106: 0 | J106: 3 | K106: 0 | L106: 8 | M106: 1 | N106: 30 | O106: 3.7 | P106: 11.4 | Q106: 1 | R106: 100 | S106: 1.5 | T106: 1.5 | U106: 1 | V106: 450 | W106: 1 | X106: 3 | Y106: 1000 | Z106: 1 | AA106: 0 | AB106: 0 | AC106: -1 | AD106: 1 | AE106: 12
A107: 104 | B107: .30 Cal. Machine Gun M1919A4 (AA) | C107: (None) | D107: 34 | E107: MG1919A5Bow | F107: 9 | G107: 7 | H107: 0 | I107: 0 | J107: 3 | K107: 0 | L107: 15 | M107: 1 | N107: 250 | O107: 0 | P107: 7.6 | Q107: 3 | R107: 1200 | S107: 1 | T107: 1 | U107: 1 | V107: 500 | W107: 3 | X107: 3 | Y107: 1000 | Z107: 0 | AA107: 0 | AB107: 0 | AC107: -1 | AD107: 2 | AE107: 9 | AF107: 10
A108: 105 | B108: Smoke Mortar NbK 39 | C108: (None) | D108: 57 | E108: SmokeDischarger | F108: 8 | G108: 4 | H108: 0 | I108: 0 | J108: 2 | K108: 0 | L108: 10 | M108: 1 | N108: 6 | O108: 0 | P108: 90 | Q108: 4 | R108: 40 | S108: 4 | T108: 8 | U108: 1 | V108: 0 | W108: 0 | X108: 0 | Y108: 1000 | Z108: 0 | AA108: 0 | AB108: 0 | AC108: -1 | AD108: 1 | AE108: 57
A109: 106 | B109: Smoke Mortar M3 | C109: (None) | D109: 57 | E109: SmokeDischarger | F109: 8 | G109: 4 | H109: 0 | I109: 0 | J109: 0 | K109: 0 | L109: 10 | M109: 1 | N109: 1 | O109: 0 | P109: 51 | Q109: 4 | R109: 40 | S109: 4 | T109: 8 | U109: 1 | V109: 0 | W109: 0 | X109: 0 | Y109: 1000 | Z109: 0 | AA109: 0 | AB109: 0 | AC109: -1 | AD109: 1 | AE109: 18
A110: 107 | B110: Melee | C110: (None) | D110: 43 | E110: Melee | F110: 0 | G110: 1 | H110: 0 | I110: 0 | J110: 2 | K110: 0 | L110: 0 | M110: 1 | N110: 0 | O110: 0 | P110: 1 | Q110: 0 | R110: 2 | S110: 0 | T110: 0 | U110: 1 | V110: 0 | W110: 0 | X110: 0 | Y110: 1000 | Z110: 0 | AA110: 0 | AB110: 0 | AC110: -1 | AD110: 2 | AE110: 0 | AF110: 1
A111: 108 | B111: 7.62cm Anti-Tank Gun Pak 36(r) | C111: (None) | D111: 24 | E111: Gun76mm | F111: 11 | G111: 7 | H111: 0 | I111: 0 | J111: 0 | K111: 0 | L111: 9 | M111: 1 | N111: 1 | O111: 0 | P111: 76.2 | Q111: 3 | R111: 3000 | S111: 0.23 | T111: 0.35 | U111: 1 | V111: 0 | W111: 0 | X111: 0 | Y111: 1000 | Z111: 0 | AA111: 0 | AB111: 0 | AC111: -1 | AD111: 2 | AE111: 79 | AF111: 80
A116: 0 | B116: Melee | C116: (None) | E116: Melee | F116: 0 | G116: 1 | H116: 0 | I116: 0 | J116: 2 | K116: 0 | L116: 0 | N116: 0 | O116: 0 | P116: 1 | Q116: 0 | R116: 2 | S116: 0 | T116: 0 | U116: 1 | V116: 0 | W116: 0 | X116: 0 | Y116: 511 | Z116: 0 | AA116: 0 | AB116: 0 | AC116: 0 | AD116: 0
A117: 1 | B117: Demo Charge (8lb TNT?) | C117: (None) | E117: None | F117: 1 | G117: 6 | H117: 0 | I117: 10 | J117: 0 | K117: 0 | L117: 10 | N117: 1 | O117: 4 | S117: 64 | T117: 64 | U117: 1 | V117: 0 | W117: 0 | X117: 0 | Z117: 0 | AA117: 0 | AB117: 0 | AC117: 0 | AD117: 1 | AE117: Demo
A118: 2 | B118: Hand Grenade Mk II | C118: (None) | E118: GrenadeThrow | F118: 1 | G118: 6 | H118: 0 | I118: 0 | J118: 0 | K118: 0 | L118: 5 | N118: 1 | O118: 0 | P118: 57 | Q118: 10 | R118: 30 | S118: 64 | T118: 64 | U118: 1 | V118: 0 | W118: 0 | X118: 0 | Y118: 511 | Z118: 0 | AA118: 0 | AB118: 0 | AC118: 0 | AD118: 1 | AE118: frag gren
A119: 3 | B119: Smoke Grenade M8 | C119: (None) | E119: GrenadeThrow | F119: 1 | G119: 4 | H119: 0 | I119: 0 | J119: 0 | K119: 0 | L119: 5 | N119: 1 | O119: 0 | P119: 57 | Q119: 1 | R119: 30 | S119: 64 | T119: 64 | U119: 1 | V119: 0 | W119: 0 | X119: 0 | Y119: 511 | Z119: 0 | AA119: 0 | AB119: 0 | AC119: 0 | AD119: 1 | AE119: smk gren
A120: 4 | B120: Grenade Launcher M1 | C120: (None) | E120: GrenadeLauncher | F120: 12 | G120: 6 | H120: 0 | I120: 15 | J120: 0 | K120: 0 | L120: 10 | N120: 1 | O120: 0 | U120: 1 | V120: 0 | W120: 0 | X120: 0 | Z120: 0 | AA120: 0 | AB120: 0 | AC120: 0 | AD120: 2 | AE120: AT Grenade | AF120: AP Grenade
A121: 5 | B121: Grenade Launcher M8 | C121: (None) | E121: GrenadeLauncher | F121: 12 | G121: 6 | H121: 0 | I121: 15 | J121: 0 | K121: 0 | L121: 10 | N121: 1 | O121: 0 | U121: 0.96 | V121: 0 | W121: 0 | X121: 0 | Z121: 0 | AA121: 0 | AB121: 0 | AC121: 0 | AD121: 2 | AE121: AT Grenade | AF121: AP Grenade
A122: 6 | B122: Grenade Launcher M7 | C122: (None) | E122: GrenadeLauncher | F122: 12 | G122: 6 | H122: 0 | I122: 15 | J122: 0 | K122: 0 | L122: 10 | N122: 1 | O122: 0 | U122: 1 | V122: 0 | W122: 0 | X122: 0 | Z122: 0 | AA122: 0 | AB122: 0 | AC122: 0 | AD122: 2 | AE122: AT Grenade | AF122: AP Grenade
A123: 7 | B123: .45 Cal. Pistol M1911A1 Colt | C123: (None) | E123: M1911Pistol | F123: 2 | G123: 7 | H123: 0 | I123: 0 | J123: 2 | K123: 0 | L123: 6 | N123: 7 | O123: 1.1 | P123: 11.4 | Q123: 1 | R123: 50 | S123: 3 | T123: 2.7 | U123: 0.88 | V123: 0 | W123: 0 | X123: 0 | Z123: 1 | AA123: 0 | AB123: 0 | AC123: 0 | AD123: 1 | AE123: 45
A124: =A123+1 -> 8 | B124: .30 Cal. Carbine M1 | C124: US M1 Garand | E124: M1Carbine | F124: 3 | G124: 7 | H124: 0 | I124: 0 | J124: 2 | K124: 0 | L124: 8 | N124: 15 | O124: 2.4 | P124: 7.6 | Q124: 2 | R124: 300 | S124: 1.8 | T124: 1.8 | U124: 1 | V124: 0 | W124: 0 | X124: 0 | Z124: 1 | AA124: 0 | AB124: 0 | AC124: 0 | AD124: 1 | AE124: 30car
A125: 9 | B125: .30 Cal. Carbine M1A1 | C125: US M1 Garand | E125: M1Carbine | F125: 3 | G125: 7 | H125: 0 | I125: 0 | J125: 2 | K125: 0 | L125: 8 | N125: 15 | O125: 2.2 | P125: 7.6 | Q125: 2 | R125: 300 | S125: 1.8 | T125: 1.8 | U125: 1 | V125: 0 | W125: 0 | X125: 0 | Z125: 1 | AA125: 0 | AB125: 0 | AC125: 0 | AD125: 1 | AE125: 30car
A126: 10 | B126: .30 Cal. Carbine M1 w/ M8 Spigot | C126: US M1 Garand | E126: M1Carbine | F126: 3 | G126: 7 | H126: 0 | I126: 0 | J126: 2 | K126: 0 | L126: 8 | N126: 15 | O126: 2.4 | P126: 7.6 | Q126: 2 | R126: 300 | S126: 1.8 | T126: 1.8 | U126: 1 | V126: 0 | W126: 0 | X126: 0 | Z126: 1 | AA126: 0 | AB126: 0 | AC126: 1 | AD126: 3 | AE126: 30car | AF126: gre | AG126: gre
A127: 11 | B127: .30 Cal. Rifle M1903A1 Springfield | C127: US M1 Garand | E127: M1903Rifle | F127: 3 | G127: 7 | H127: 0 | I127: 0 | J127: 1 | K127: 1.5 | L127: 10 | N127: 5 | O127: 4.1 | P127: 7.6 | Q127: 2 | R127: 600 | S127: 0.8 | T127: 0.8 | U127: 1 | V127: 0 | W127: 0 | X127: 0 | Z127: 0 | AA127: 1 | AB127: 0 | AC127: 0 | AD127: 2 | AE127: 30ball | AF127: 30ap
A128: 12 | B128: .30 Cal. Rifle M1903A1 w/ M1 Spigot | C128: US M1 Garand | E128: M1903Rifle | F128: 3 | G128: 7 | H128: 0 | I128: 0 | J128: 2 | K128: 1.5 | L128: 10 | N128: 5 | O128: 4.1 | P128: 7.6 | Q128: 2 | R128: 600 | S128: 0.8 | T128: 0.8 | U128: 1 | V128: 0 | W128: 0 | X128: 0 | Z128: 0 | AA128: 1 | AB128: 0 | AC128: 1 | AD128: 4 | AE128: 30ball | AF128: 30ap | AG128: gre | AH128: gre
A129: 13 | B129: .30 Cal. Rifle M1903A4 w/ Scope | C129: US M1 Garand | E129: M1903Rifle | F129: 3 | G129: 7 | H129: 0 | I129: 0 | J129: 2 | K129: 1.5 | L129: 10 | N129: 5 | O129: 4.1 | P129: 7.6 | Q129: 2 | R129: 800 | S129: 0.8 | T129: 0.8 | U129: 1 | V129: 0 | W129: 0 | X129: 0 | Z129: 0 | AA129: 0 | AB129: 0 | AC129: 0 | AD129: 2 | AE129: 30ball | AF129: 30ap
A130: 14 | B130: .30 Cal. Rifle M1 Garand | C130: US M1 Garand | E130: M1Garand | F130: 3 | G130: 7 | H130: 0 | I130: 0 | J130: 2 | K130: 0 | L130: 8 | N130: 8 | O130: 4.3 | P130: 7.6 | Q130: 2 | R130: 500 | S130: 1.2 | T130: 1.2 | U130: 1 | V130: 0 | W130: 0 | X130: 0 | Z130: 1 | AA130: 1 | AB130: 0 | AC130: 0 | AD130: 2 | AE130: 30ball | AF130: 30ap
A131: 15 | B131: .30 Cal. Rifle M1 w/ M7 Spigot | C131: US M1 Garand | E131: M1Garand | F131: 3 | G131: 7 | H131: 0 | I131: 0 | J131: 2 | K131: 0 | L131: 8 | N131: 8 | O131: 4.3 | P131: 7.6 | Q131: 2 | R131: 500 | S131: 1.2 | T131: 1.2 | U131: 1 | V131: 0 | W131: 0 | X131: 0 | Z131: 1 | AA131: 1 | AB131: 0 | AC131: 1 | AD131: 4 | AE131: 30ball | AF131: 30ap | AG131: gre | AH131: gre
A132: 16 | B132: .30 Cal. Rifle M1C w/ Scope | C132: US M1 Garand | E132: M1Garand | F132: 3 | G132: 7 | H132: 0 | I132: 0 | J132: 2 | K132: 0 | L132: 8 | N132: 8 | O132: 4.3 | P132: 7.6 | Q132: 2 | R132: 800 | S132: 1.2 | T132: 1.2 | U132: 1 | V132: 0 | W132: 0 | X132: 0 | Z132: 0 | AA132: 0 | AB132: 0 | AC132: 0 | AD132: 2 | AE132: 30ball | AF132: 30ap
A133: 17 | B133: .45 Cal. Submachine Gun M1A1 Thompson | C133: US M1 Garand | E133: ThompsonSMG | F133: 4 | G133: 7 | H133: 0 | I133: 0 | J133: 3 | K133: 0 | L133: 8 | N133: 30 | O133: 4.8 | P133: 11.4 | Q133: 1 | R133: 100 | U133: 1 | V133: 700 | Z133: 1 | AA133: 0 | AB133: 0 | AC133: 0 | AD133: 1 | AE133: 45
A134: 18 | B134: .45 Cal. Submachine Gun M3 Grease Gun | C134: US M1 Garand | E134: M3SMG | F134: 4 | G134: 7 | H134: 0 | I134: 0 | J134: 3 | K134: 0 | L134: 8 | N134: 30 | O134: 3.7 | P134: 11.4 | Q134: 1 | R134: 100 | U134: 1 | V134: 450 | Z134: 1 | AA134: 0 | AB134: 0 | AC134: 0 | AD134: 1 | AE134: 45
A135: 19 | B135: .30 Cal. Automatic Rifle M1918A2 BAR | C135: US M1 Garand | E135: BAR | F135: 5 | G135: 7 | H135: 0 | I135: 1 | J135: 3 | K135: 0 | L135: 10 | N135: 20 | O135: 8.8 | P135: 7.6 | Q135: 2 | R135: 600 | S135: 1.2 | T135: 1.2 | U135: 1 | V135: 500 | Z135: 1 | AA135: 0 | AB135: 0 | AC135: 0 | AD135: 2 | AE135: 30ball | AF135: 30ap
A136: 20 | B136: .30 Cal. Machine Gun M1919A4 | C136: US 30cal MMG | E136: MG1919A4 | F136: 9 | G136: 7 | H136: 1 | I136: 10 | J136: 3 | K136: 0 | L136: 15 | N136: 250 | O136: 20.5 | P136: 7.6 | Q136: 3 | R136: 1200 | S136: 1.2 | T136: 1.2 | U136: 1 | V136: 500 | W136: 150rpm for 10m, 60rpm for 30m
A137: 21 | B137: .30 Cal. Machine Gun M1919A5 (Bow) | C137: (None) | E137: MG1919A5Bow | F137: 9 | G137: 7 | H137: 0 | I137: 0 | J137: 3 | K137: 0 | L137: 15 | N137: 250 | O137: 14 | P137: 7.6 | Q137: 3 | R137: 1200 | S137: 1.2 | T137: 1.2 | U137: 1 | V137: 500
A138: 22 | B138: .30 Cal. Machine Gun M1919A5 (Coax) | C138: (None) | E138: MG1919A5Coax | F138: 9 | G138: 7 | H138: 0 | I138: 0 | J138: 3 | K138: 0 | L138: 15 | N138: 250 | O138: 14 | P138: 7.6 | Q138: 3 | R138: 1200 | S138: 1.2 | T138: 1.2 | U138: 1 | V138: 500
A139: 23 | B139: .30 Cal. Machine Gun M1919A4 (AA) | C139: (None) | E139: MG1919A4 | F139: 9 | G139: 7 | H139: 0 | I139: 0 | J139: 3 | K139: 0 | L139: 15 | N139: 250 | O139: 14 | P139: 7.6 | Q139: 3 | R139: 1200 | S139: 1.2 | T139: 1.2 | U139: 1 | V139: 500
A140: 24 | B140: .30 Cal. Machine Gun M1917A1 | C140: US 30cal MMG | E140: MG1917A1 | F140: 9 | G140: 7 | H140: 2 | I140: 15 | J140: 3 | K140: 0 | L140: 15 | N140: 250 | O140: 47 | P140: 7.6 | Q140: 3 | R140: 1200 | S140: 1.2 | T140: 1.2 | U140: 1 | V140: 600
A141: 25 | B141: .50 Cal. Machine Gun M2 HB | C141: US 30cal MMG | E141: M2HMG | F141: 9 | G141: 7 | H141: 3 | I141: 20 | J141: 3 | K141: 0 | L141: 18 | N141: 100 | O141: 58 | P141: 12.7 | Q141: 3 | R141: 1800 | U141: 1
A142: 26 | B142: .50 Cal. Machine Gun M2 HB (AA) | C142: (None) | E142: M2HMG | F142: 9 | G142: 7 | H142: 0 | I142: 0 | J142: 3 | K142: 0 | L142: 18 | N142: 100 | O142: 38 | P142: 12.7 | Q142: 3 | R142: 1800 | U142: 1
A143: 27 | B143: 2.36-inch Rocket Launcher M1 Bazooka | C143: US M1A1 Bazooka | E143: Bazooka | F143: 6 | G143: 6 | H143: 0 | I143: 5 | J143: 0 | K143: 0 | L143: 20 | N143: 1 | O143: 6 | P143: 57 | Q143: 8 | R143: 200 | S143: 8.5 | T143: 8.5 | U143: 265fps | AD143: 1 | AE143: M6 Rocket
A144: 28 | B144: 2.36-inch Rocket Launcher M1A1 Bazooka | C144: US M1A1 Bazooka | E144: Bazooka | F144: 6 | G144: 6 | H144: 0 | I144: 5 | J144: 0 | K144: 0 | L144: 20 | N144: 1 | O144: 6 | P144: 57 | Q144: 8 | R144: 200 | S144: 8.5 | T144: 8.5 | U144: 265fps | AD144: 1 | AE144: M6 Rocket
A145: 29 | B145: 2.36-inch Rocket Launcher M9 Bazooka | C145: US M1A1 Bazooka | E145: Bazooka | F145: 6 | G145: 6 | H145: 0 | I145: 5 | J145: 0 | K145: 0 | L145: 20 | N145: 1 | O145: 6.8 | P145: 57 | Q145: 8 | R145: 200 | S145: 6 | T145: 6 | AD145: 1 | AE145: M6A3 Rocket
A146: 30 | B146: 60mm Mortar M2 | C146: US 81mm Mortar | D146: 3 | E146: MortarLight | F146: 10 | G146: 4 | H146: 4 | I146: 30 | J146: 0 | K146: 0 | L146: 3 | N146: 1 | P146: 60 | Q146: 70 | R146: 1800 | S146: 5 | T146: 16 | U146: 1
A147: =A146+1 -> 31 | B147: 81mm Mortar M1 | C147: US 81mm Mortar | D147: 4 | E147: MortarMedium | F147: 10 | G147: 4 | H147: 5 | I147: 60 | J147: 0 | K147: 0 | L147: 3.3 | N147: 1 | P147: 81 | Q147: 90 | R147: 3000 | U147: 1
A148: 32 | B148: 37mm Gun M3 | C148: (None) | E148: Gun37mm | F148: 11 | G148: 7 | H148: 0 | U148: 1 | AD148: 3 | AE148: APC M51B1 | AF148: HE M63 | AG148: Can M2
A149: 33 | B149: 37mm Gun M5 | C149: (None) | E149: Gun37mm | F149: 11 | G149: 7 | H149: 0 | U149: 0.9 | AD149: 3 | AE149: APC M51B1 | AF149: HE M63 | AG149: Can M2
A150: 34 | B150: 37mm Gun M6 | C150: (None) | E150: Gun37mm | F150: 11 | G150: 7 | H150: 0 | U150: 1
A151: 35 | B151: 57mm Gun M1 | C151: (None) | E151: Gun57mm | F151: 11 | G151: 7 | H151: 0
A152: 36 | B152: 75mm Howitzer M1A1 | C152: (None) | E152: Gun75mmShort | F152: 11 | G152: 7 | H152: 0 | AD152: 3 | AE152: HEM48 | AF152: HEAT M66 | AG152: M64 Smoke
A153: 37 | B153: 75mm Gun M1897 | C153: (None) | E153: Gun75mm | F153: 11 | G153: 7 | H153: 0
A154: 38 | B154: 75mm Gun M2 | C154: (None) | E154: Gun75mmM3 | F154: 11 | G154: 7 | H154: 0 | S154: 0.24 | T154: 0.32 | U154: 0.95
A155: 39 | B155: 75mm Gun M3 | C155: (None) | E155: Gun75mmM3 | F155: 11 | G155: 7 | H155: 0 | S155: 0.24 | T155: 0.32 | U155: 1
A156: 40 | B156: 76mm Gun M1A1 | C156: (None) | E156: Gun76mm | F156: 11 | G156: 7 | H156: 0 | S156: 0.28 | T156: 0.25
A157: 41 | B157: 3-inch Gun M5 | C157: (None) | E157: Gun76mm | F157: 11 | G157: 7 | H157: 0 | AD157: 4 | AE157: AP | AF157: APC | AG157: HE | AH157: M88 Smoke
A158: 42 | B158: 3-inch Gun M7 | C158: (None) | E158: Gun76mm | F158: 11 | G158: 7 | H158: 0
A159: 43 | B159: 105mm Howitzer M2A1 | C159: (None) | E159: Gun105mm | F159: 11 | G159: 7 | H159: 0 | R159: 10000 | AD159: 3 | AE159: HE M1 | AF159: HEAT | AG159: Smoke M84
A160: 44 | B160: 105mm Howitzer M3 | C160: (None) | E160: Gun105mm | F160: 11 | G160: 7 | H160: 0
A161: 45 | B161: 155mm Howtizer M1 | C161: (None) | E161: Gun105mm | F161: 11 | G161: 7 | H161: 0 | AD161: 3 | AE161: HE M107 | AF161: HE M102 | AG161: M105 M110 Chemical
A162: 46 | B162: 2-Inch Smoke Mortar M3 | C162: (On mid-late Shermans)
A163: 47 | B163: (Reserved)
A164: 48 | B164: (Reserved)
A165: 49 | B165: (Reserved)
A166: 50 | B166: (Reserved)
A167: 51 | B167: (Reserved)
A168: 52 | B168: (Reserved)
A169: 53 | B169: (Reserved)
A170: 54 | B170: (Reserved)
A171: 55 | B171: (Reserved)
A172: 56 | B172: (Reserved)
A173: 57 | B173: (Reserved)
A174: 58 | B174: (Reserved)
A175: 59 | B175: (Reserved)
Q178: US 90mm HVAP | S178: 0.21 | T178: 0.25
Q179: US 90mm APCBC | S179: 0.53 | T179: 0.93
A180: 60 | B180: Hand Grenade St.Hgr.24 | C180: Grenade | E180: GrenadeThrow | F180: 1 | I180: 27.5m max range, 20m max frag radius
A181: =A180+1 -> 61 | B181: Smoke Grenade Nb.Hgr.39 | C181: Grenade | E181: GrenadeThrow | F181: 1
A182: 62 | B182: Grenade Gebalte Ladung | C182: Grenade | E182: GrenadeThrow
A183: 63 | B183: Schiessbecher | C183: (None) | D183: 0 | E183: GrenadeLauncher | F183: 12 | G183: 6 | H183: 0 | I183: 15 | J183: 0 | K183: 0 | L183: 10 | N183: 1 | O183: 0 | P183: 30 | R183: 250 | U183: 1 | V183: 0 | W183: 0 | X183: 0 | Z183: 0 | AA183: 0 | AB183: 0 | AC183: -1 | AD183: 3 | AE183: GSpr | AF183: GPzgr | AG183: GGPzgr
A184: 64 | B184: 9mm Pistol Walther P38 | C184: (None) | E184: WaltherP38 | S184: 3 | T184: 2.7 | U184: 320m/s
A185: 65 | B185: 7.92mm Rifle Mauser K98k | C185: US M1 Garand | E185: Mauser98k
A186: 66 | B186: 7.92mm Rifle K98 w/Schiessbecher | C186: US M1 Garand | E186: Mauser98k | AC186: 1
A187: 67 | B187: 7.92mm Rifle K98ZF | C187: US M1 Garand | E187: Mauser98k
A188: 68 | B188: 7.92mm Rifle Gewehr 43 | C188: US M1 Garand | E188: Gewehr43
A189: 69 | B189: 7.92mm Rifle Gewehr 43ZF | C189: US M1 Garand | E189: Gewehr43
A190: 70 | B190: 9mm Submachine Gun MP40 | C190: MP40 | E190: MP40 | U190: 390m/s
A191: 71 | B191: 7.92mm Rifle Sturmgewehr 44 | C191: US M1 Garand | E191: StG44
A192: 72 | B192: 7.92mm Light Machine Gun FG 42 | C192: US M1 Garand | E192: FG42
A193: 73 | B193: 7.92mm Machine Gun MG 15 | C193: (None) | E193: AircraftMG15
A194: 74 | B194: 7.92mm Light Machine Gun leMG 15 | C194: US M1 Garand | E194: MG15 | F194: LMG | H194: hand | K194: 0 | N194: 75 | O194: 12.4 | P194: 7.92 | U194: 1 | V194: 1000
A195: 75 | B195: 7.92mm Light Machine Gun leMG 34 | C195: US M1 Garand | E195: MG34 | F195: LMG | H195: hand | K195: 0 | N195: 50 | O195: 12.1 | P195: 7.92 | U195: 1 | V195: 900 | AN195: 7-10 round bursts, 15 bursts per minute as an LMG
A196: 76 | B196: 7.92mm Machine Gun sMG 34 | C196: US 30cal MMG | E196: MG34 | F196: MG | H196: lafette | K196: 0 | N196: 250 | O196: 31.1 | P196: 7.92 | U196: 1 | V196: 900
A197: 77 | B197: 7.92mm Light Machine Gun leMG 42 | C197: US M1 Garand | E197: MG42 | F197: LMG | H197: hand | K197: 0 | N197: 50 | O197: 11.6 | P197: 7.92 | U197: 1 | V197: 1200 | AN197: 5-7 round bursts with 22 bursts per minute (as an LMG)
A198: 78 | B198: 7.92mm Machine Gun sMG 42 | C198: US 30cal MMG | E198: MG42 | F198: MG | H198: lafette | K198: bolt | N198: 250 | O198: 30.6 | P198: 7.92 | U198: 1 | V198: 1200
A199: 79 | B199: 7.92mm Anti-Tank Rifle PzB 39 | C199: US M1 Garand | E199: ATRifle | O199: 12.5
A200: 80 | B200: Panzerfaust 30 kl | C200: GE Panzerfaust | E200: Panzerfaust
A201: 81 | B201: Panzerfaust 30 | C201: GE Panzerfaust | E201: Panzerfaust
A202: 82 | B202: 8.8cm Rocket Launcher RPzB 54 | C202: GE Panzerschreck | E202: Panzerschreck
A203: 83 | B203: 5cm Mortar leGrW 36 | C203: 81mm Mortar | E203: MortarLight | O203: 14 | Q203: 50 | R203: 500 | S203: 15 | T203: 30 | U203: 1
A204: 84 | B204: 8cm Mortar GrW 34 | C204: 81mm Mortar | E204: MortarMedium | O204: 56.7 | Q204: 60 | R204: 2000 | S204: 5 | T204: 10 | U204: 1
A205: 85 | B205: 8cm Mortar kz.GrW 42 | C205: 81mm Mortar | E205: MortarMedium | O205: 26.5 | Q205: 60 | R205: 1100 | T205: ?? | U205: 0.8
A206: 86 | B206: 2cm Anti-Aircraft Gun FlaK 38 | C206: (None) | E206: Gun20mmFlak | O206: 405
... 57 more rows

Sheet MOUNTS
B1: NAME | C1: Elevation MAX | D1: Elevation MIN | E1: Traverse LEFT | F1: Traverse RIGHT | G1: Travese Deg/sec | H1: Exposed To Fire?
A2: [COUNT] | B2: 80
A3: 0 | B3: None | C3: 80 | D3: -80 | E3: 22.5 | F3: 22.5 | G3: 128 | H3: 1
A4: =A3+1 -> 1 | B4: .30 M2 Tripod | C4: 21 | D4: -45 | E4: 30 | F4: 30 | G4: 64 | H4: 1
A5: 2 | B5: .30 M1917A1 Tripod | C5: 65 | D5: -28 | E5: 30 | F5: 30 | G5: 64 | H5: 1
A6: 3 | B6: .50 M3 Tripod | C6: 5 | D6: -15 | E6: 30 | F6: 30 | G6: 64 | H6: 1
A7: 4 | B7: 60mm Mortar Tripod | C7: 85 | D7: 40 | E7: 4 | F7: 4 | G7: 2 | H7: 1
A8: 5 | B8: 81mm Mortar Tripod | C8: 85 | D8: 40 | E8: 4 | F8: 4 | G8: 2 | H8: 1
A9: 6 | B9: 37mm Gun Carriage M4 | C9: 15 | D9: -10 | E9: 30 | F9: 30 | G9: 32 | H9: 1
A10: 7 | B10: 57mm Gun Carriage M1A3 | C10: 15 | D10: -5 | E10: 45 | F10: 45 | G10: 24 | H10: 1
A11: 8 | B11: 75mm Howitzer Carriage M8 | C11: 45 | D11: -5 | E11: 3 | F11: 3 | G11: 12 | H11: 1
A12: 9 | B12: 3 Inch Gun Carriage M6 | C12: 30 | D12: -5 | E12: 23 | F12: 23 | G12: 12 | H12: 1
A13: 10 | B13: 105mm Howitzer Carriage M2A1 | C13: 65 | D13: -5 | E13: 23 | F13: 23 | G13: 6 | H13: 1
A14: 11 | B14: 155mm Howitzer Carraige M1 | C14: 65 | D14: 0 | E14: 26 | F14: 26 | G14: 6 | H14: 1
A15: 12 | B15: 81mm Mortar M4 (SP) (Rear facing) | C15: 80 | D15: 40 | E15: 4 | F15: 4 | G15: 6 | H15: 0
A16: 13 | B16: 81mm Mortar M21 (SP) (front facing) | C16: 85 | D16: 40 | E16: 30 | F16: 30 | G16: 6 | H16: 0
A17: 14 | B17: 37mm Mount M22 (M3 Stuart) | C17: 20 | D17: -10 | E17: 10 | F17: 10 | G17: 12 | H17: 0
A18: 15 | B18: 37mm Mount M23 (M5 Stuart) | C18: 20 | D18: -10 | E18: 0 | F18: 0 | G18: 24 | H18: 0
A19: 16 | B19: 37mm Mount M23 (Greyhound) | C19: 20 | D19: -10 | E19: 0 | F19: 0 | G19: 24 | H19: 0
A20: 17 | B20: 75mm Bow Mount M1 (Lee) | C20: 20 | D20: -9 | E20: 15 | F20: 15 | G20: 12 | H20: 0
A21: 18 | B21: 37mm Mount M24 (Lee) | C21: 60 | D21: -7 | E21: 0 | F21: 0 | G21: 18 | H21: 0
A22: 19 | B22: 75mm Mount M3 (GMC) | C22: 29 | D22: -10 | E22: 19 | F22: 21 | G22: 12 | H22: 0
A23: 20 | B23: 75mm Mount T30 (HMC) | C23: 50 | D23: -9 | E23: 22 | F23: 22 | G23: 12 | H23: 0
A24: 21 | B24: 105mm Mount T19 (HMC) | C24: 35 | D24: -5 | E24: 20 | F24: 20 | G24: 6 | H24: 0
A25: 22 | B25: 75mm Mount M7 (M8 HMC) | C25: 40 | D25: -20 | E25: 0 | F25: 0 | G25: 24 | H25: 0
A26: 23 | B26: 75mm Mount M34A1 (Sherman) | C26: 25 | D26: -10 | E26: 0 | F26: 0 | G26: 24 | H26: 0
A27: 24 | B27: 76mm Mount M62 (Sherman) | C27: 25 | D27: -10 | E27: 0 | F27: 0 | G27: 24 | H27: 0
A28: 25 | B28: 105mm Mount M52 (Sherman) | C28: 35 | D28: -10 | E28: 0 | F28: 0 | G28: 6 | H28: 0
A29: 26 | B29: 3 Inch Mount (M10 GMC) | C29: 19 | D29: -10 | E29: 0 | F29: 0 | G29: 6 | H29: 0
A30: 27 | B30: US Ring Mount Machine Gun | C30: 85 | D30: -20 | E30: 180 | F30: 180 | G30: 64 | H30: 1
A31: 28 | B31: US Bow Machine Gun Mount | C31: 20 | D31: -10 | E31: 20 | F31: 25 | G31: 64 | H31: 0
A32: 29 | B32: US Pintel Machine Gun Mount | C32: 55 | D32: -35 | E32: 30 | F32: 30 | G32: 64 | H32: 1
A33: 30 | B33: German MG Lafette | C33: 40 | D33: -16 | E33: 30 | F33: 30 | G33: 64 | H33: 1
A34: 31 | B34: 5cm le.GrW 36 Mount | C34: 90 | D34: 45 | E34: 17 | F34: 17 | G34: 4 | H34: 1
A35: 32 | B35: 8cm GrW 34 Tripod | C35: 90 | D35: 40 | E35: 7 | F35: 7 | G35: 2 | H35: 1
A36: =A35+1 -> 33 | B36: Kz. 8cm GrW 42 Tripod | C36: 88 | D36: 47 | E36: 5 | F36: 5 | G36: 2 | H36: 1
A37: 34 | B37: 12cm GrW 42 Carriage | C37: 85 | D37: 45 | E37: 8 | F37: 8 | G37: 2 | H37: 1
A38: 35 | B38: 2cm Flak Carriage | C38: 90 | D38: -20 | E38: 180 | F38: 180 | G38: 32 | H38: 1
A39: 36 | B39: 3.7cm Flak Carriage | C39: 85 | D39: -5 | E39: 180 | F39: 180 | G39: 24 | H39: 1
A40: 37 | B40: 8.8cm Flak Carriage | C40: 85 | D40: -3 | E40: 180 | F40: 180 | G40: 12 | H40: 1
A41: 38 | B41: 2.8cm s.PzB. 41 Carriage | C41: 45 | D41: -5 | E41: 45 | F41: 45 | G41: 32 | H41: 1
A42: 39 | B42: 3.7cm Pak Carriage | C42: 25 | D42: -8 | E42: 30 | F42: 30 | G42: 32 | H42: 1
A43: 40 | B43: 4.2cm Pak Carriage | C43: 32 | D43: -8 | E43: 22 | F43: 22 | G43: 24 | H43: 1
A44: 41 | B44: 5cm Pak 38 Carriage | C44: 27 | D44: -18 | E44: 32 | F44: 32 | G44: 24 | H44: 1
A45: 42 | B45: 7.5cm Pak 40 Carriage | C45: 22 | D45: -5 | E45: 32 | F45: 32 | G45: 12 | H45: 1
A46: 43 | B46: 7.62cm Pak 36r Carriage | C46: 75 | D46: -5 | E46: 30 | F46: 30 | G46: 12 | H46: 1
A47: 44 | B47: 7.62cm Pak 39r Carriage | C47: 45 | D47: -6 | E47: 28 | F47: 28 | G47: 12 | H47: 1
A48: 45 | B48: 7.5cm le.IG 18 Carriage | C48: 73 | D48: -10 | E48: 6 | F48: 6 | G48: 12 | H48: 1
A49: 46 | B49: 15cm s.IG 33 Carriage | C49: 73 | D49: 0 | E49: 5 | F49: 5 | G49: 6 | H49: 1
A50: 47 | B50: 10.5cm le.F.H. 18 | C50: 40 | D50: -6 | E50: 28 | F50: 28 | G50: 6 | H50: 1
A51: 48 | B51: 15cm s.F.H. 18 | C51: 45 | D51: -1 | E51: 30 | F51: 30 | G51: 6 | H51: 1
A52: 49 | B52: GE Bow Mount MG | C52: 20 | D52: -10 | E52: 15 | F52: 15 | G52: 64 | H52: 0
A53: 50 | B53: GE AA Mount MG | C53: 60 | D53: -30 | E53: 30 | F53: 30 | G53: 64 | H53: 1
A54: 51 | B54: GE Halftrack MG Mount | C54: 20 | D54: -11 | E54: 30 | F54: 30 | G54: 64 | H54: 1
A55: 52 | B55: StuG III Main Gun (kz) | C55: 20 | D55: -10 | E55: 10 | F55: 10 | G55: 12 | H55: 0
A56: 53 | B56: StuG III Main Gun (lg) | C56: 20 | D56: -6 | E56: 10 | F56: 10 | G56: 12 | H56: 0
A57: 54 | B57: StuK 42 Main Gun | C57: 20 | D57: -6 | E57: 10 | F57: 10 | G57: 6 | H57: 0
A58: 55 | B58: JgdPz IV(48) Main Gun | C58: 15 | D58: -5 | E58: 10 | F58: 10 | G58: 12 | H58: 0
A59: 56 | B59: Pz IIF Main Gun | C59: 20 | D59: -9 | E59: 0 | F59: 0 | G59: 12 | H59: 0
A60: 57 | B60: Pz III Main Gun (50kz and lg) | C60: 20 | D60: -10 | E60: 0 | F60: 0 | G60: 10 | H60: 0
A61: 58 | B61: Pz III Main Gun (short 75) | C61: 20 | D61: -8 | E61: 0 | F61: 0 | G61: 10 | H61: 0
A62: 59 | B62: Pz IV Main Gun | C62: 20 | D62: -10 | E62: 0 | F62: 0 | G62: 10 | H62: 0
A63: 60 | B63: Panther Main Gun | C63: 18 | D63: -8 | E63: 0 | F63: 0 | G63: 20 | H63: 0
A64: 61 | B64: Tiger Main Gun | C64: 15 | D64: -8 | E64: 0 | F64: 0 | G64: 9 | H64: 0
A65: 62 | B65: PSW 222 2cm Mount | C65: 87 | D65: -4 | E65: 0 | F65: 0 | G65: 12 | H65: 0
A66: 63 | B66: PSW 232 2cm Mount | C66: 26 | D66: -10 | E66: 0 | F66: 0 | G66: 12 | H66: 0
A67: 64 | B67: Marder IIIH Main Gun | C67: 25 | D67: -10 | E67: 30 | F67: 30 | G67: 12 | H67: 0
A68: =A67+1 -> 65 | B68: (Reserved) | C68: 0 | D68: 0 | E68: 0 | F68: 0 | G68: 0 | H68: 0
A69: 66 | B69: (Reserved) | C69: 0 | D69: 0 | E69: 0 | F69: 0 | G69: 0 | H69: 0
A70: 67 | B70: (Reserved) | C70: 0 | D70: 0 | E70: 0 | F70: 0 | G70: 0 | H70: 0
A71: 68 | B71: R-35 Gun Mount | C71: 20 | D71: -16 | E71: 5 | F71: 5 | G71: 0 | H71: 0
A72: 69 | B72: Breda 37 MMG Mount | C72: 16 | D72: -24 | E72: 30 | F72: 30 | G72: 64 | H72: 1
A73: 70 | B73: Italian 45mm Mortar | C73: 90 | D73: -5 | E73: 6 | F73: 6 | G73: 2 | H73: 1
A74: 71 | B74: Italian 81mm Mortar | C74: 90 | D74: 40 | E74: 4.25 | F74: 4.25 | G74: 2 | H74: 1
A75: 72 | B75: Italian 20mm AA Carriage | C75: 80 | D75: -10 | E75: 180 | F75: 180 | G75: 32 | H75: 1
A76: 73 | B76: Italian 47mm ATG Carriage | C76: 58 | D76: -10 | E76: 30 | F76: 30 | G76: 45 | H76: 1
A77: 74 | B77: Italian Bow MG Mount | C77: 20 | D77: -10 | E77: 15 | F77: 15 | G77: 64 | H77: 0
A78: 75 | B78: M14/41 Main Gun | C78: 20 | D78: -10 | E78: 0 | F78: 0 | G78: 12 | H78: 0
A79: 76 | B79: Semovente 75 Main Gun | C79: 34 | D79: -12 | E79: 20 | F79: 20 | G79: 12 | H79: 0
A80: 77 | B80: Italian 75/27 Mod.11 | C80: 65 | D80: -15 | E80: 26 | F80: 26 | G80: 12 | H80: 1
A81: 78 | B81: Italian 100/17 Mod.14 | C81: 50 | D81: -8 | E81: 3 | F81: 3 | G81: 6 | H81: 1
A82: 79 | B82: US M3 Medium MG Cupola | C82: 60 | D82: -9 | E82: 0 | F82: 0 | G82: 64 | H82: 0

Sheet AMMUNITION
B1: NAME | C1: Ammo Type (0 = ball, 1 = AP, 2 = APC, 3 = APBC, 4 = APCR, 5 = HE, 6 = Shrapnel, 7 = HEAT, 8 = Canister, 9 = Smoke, 10 = WP, 11 = ILLUM | D1: Round Wt (kg) | E1: Muzzle Veloicty (m/s) | F1: Propelling Charges (2+ allows variable mv) | G1: Projectile Wt (kg) | H1: Projectile Diameter (mm) | I1: Base Penetration (mm RHA) | J1: Base Penetration (mm FHA) | K1: Tracer Color (ARGB) | L1: Charge Type (0 = DNB, 1 = TNT, 2 = AMATOL, 3 = COMPB, 4 = PETN, 5=HC, 6=WP, 7 = FLAMMABLE, -1 = NONE) | M1: Charge Wt (kg) | N1: Fuze Type (0 = None, 1 = Impact, 2 = Delay, 3 = Time, 4 = Proximity) | O1: Fuze Time (s) or distance (m) | P1: Lethal Blast (m) | Q1: Threat Blast (m) | R1: Knockdown Blast (m) | S1: Frag 99% (m) | T1: Frag 66% (m) | U1: Frag 33% (m) | V1: CHARGE 1 | W1: CHARGE 2 | X1: CHARGE 3 | Y1: etc. | Z1: Grains To KG | AA1: Oz To KG | AB1: Inches to mm | AC1: Miles to KMs | AD1: Feet to Meters | AE1: lbs to KG
A2: COUNT | B2: 116
A3: 0 | B3: Melee | C3: 0 | D3: 0 | E3: 8 | F3: 1 | G3: 0 | H3: 0 | I3: 0.1 | J3: 0.1 | K3: 0 | L3: -1 | M3: 0 | N3: 0 | O3: 0 | P3: 0 | Q3: 0 | R3: 0 | S3: 0 | T3: 0 | U3: 0
A4: =A3+1 -> 1 | B4: Bayonet | C4: 1 | D4: 0 | E4: 8 | F4: 1 | G4: 0 | H4: 0 | I4: 0.2 | J4: 0.2 | K4: 0 | L4: -1 | M4: 0 | N4: 0 | O4: 0 | P4: 0 | Q4: 0 | R4: 0 | S4: 0 | T4: 0 | U4: 0
A5: =A4+1 -> 2 | B5: Fragmentation | C5: 0 | D5: 0.5 | E5: 900 | F5: 1 | G5: 0.5 | H5: 25 | I5: 6 | J5: 5 | K5: 0 | L5: -1 | M5: 0 | N5: 0 | O5: 0 | P5: 0 | Q5: 0 | R5: 0 | S5: 0 | T5: 0 | U5: 0
A6: 3 | B6: Flammable Liquid | C6: 5 | D6: 2.8 | E6: 17 | F6: 1 | G6: 2.8 | H6: 25 | I6: 0 | J6: 0 | K6: 0 | L6: 7 | M6: 2.8 | N6: 1 | O6: 0 | P6: 1 | Q6: 3 | R6: 4 | S6: 0 | T6: 0 | U6: 0
A7: 4 | B7: Satchel charge | C7: 5 | D7: 9 | E7: 16 | F7: 1 | G7: 9 | H7: 256 | I7: 0 | J7: 0 | K7: 0 | L7: 1 | M7: 9 | N7: 3 | O7: 5 | P7: 2 | Q7: 9 | R7: 16 | S7: 0 | T7: 0 | U7: 0
A8: 5 | B8: Mk II Frag Grenade | C8: 5 | D8: 0.6 | E8: 18 | F8: 1 | G8: 0.6 | H8: 57 | I8: 0 | J8: 0 | K8: 0 | L8: 1 | M8: 0.02 | N8: 3 | O8: 4.5 | P8: 0 | Q8: 0 | R8: 2 | S8: 3 | T8: 6 | U8: 8
A9: 6 | B9: M8 Smoke Grenade | C9: 9 | D9: 0.7 | E9: 18 | F9: 1 | G9: 0.7 | H9: 60 | I9: 0 | J9: 0 | K9: 0 | L9: 5 | M9: 0.54 | N9: 3 | O9: 4.5 | P9: 0 | Q9: 0 | R9: 0 | S9: 0 | T9: 0 | U9: 0
A10: 7 | B10: M9 AT Grenade | C10: 7 | D10: 0.6 | E10: 50 | F10: 1 | G10: 0.6 | H10: 48 | I10: 50 | J10: 50 | K10: 0 | L10: 4 | M10: 0.11 | N10: 1 | O10: 0 | P10: 0 | Q10: 0 | R10: 1 | S10: 0 | T10: 0 | U10: 0
A11: 8 | B11: M17 AP Grenade | C11: 5 | D11: 0.6 | E11: 50 | F11: 1 | G11: 0.6 | H11: 57 | I11: 0 | J11: 0 | K11: 0 | L11: 1 | M11: 0.02 | N11: 1 | O11: 0 | P11: 0 | Q11: 0 | R11: 2 | S11: 3 | T11: 6 | U11: 8
A12: 9 | B12: .30 Ball M2 | C12: 0 | D12: 0.026 | E12: 855 | F12: 1 | G12: 0.01 | H12: 7.62 | I12: 8 | J12: 5 | K12: 0 | L12: -1 | M12: 0 | N12: 0 | O12: 0 | P12: 0 | Q12: 0 | R12: 0 | S12: 0 | T12: 0 | U12: 0
A13: 10 | B13: .30 AP M2 | C13: 1 | D13: 0.027 | E13: 843 | F13: 1 | G13: 0.01 | H13: 7.62 | I13: 17 | J13: 12 | K13: 0 | L13: -1 | M13: 0 | N13: 0 | O13: 0 | P13: 0 | Q13: 0 | R13: 0 | S13: 0 | T13: 0 | U13: 0
A14: 11 | B14: .30 Carbine M1 | C14: 0 | D14: 0.013 | E14: 602 | F14: 1 | G14: 0.007 | H14: 7.62 | I14: 4 | J14: 2 | K14: 0 | L14: -1 | M14: 0 | N14: 0 | O14: 0 | P14: 0 | Q14: 0 | R14: 0 | S14: 0 | T14: 0 | U14: 0
A15: 12 | B15: .45 Ball | C15: 0 | D15: 0.021 | E15: 285 | F15: 1 | G15: 0.015 | H15: 11.43 | I15: 1.5 | J15: 1.2 | K15: 0 | L15: -1 | M15: 0 | N15: 0 | O15: 0 | P15: 0 | Q15: 0 | R15: 0 | S15: 0 | T15: 0 | U15: 0
A16: 13 | B16: .50 Ball M2 | C16: 0 | D16: 0.12 | E16: 895 | F16: 1 | G16: 0.046 | H16: 12.7 | I16: 16 | J16: 9 | K16: #C0FB988F | L16: -1 | M16: 0 | N16: 0 | O16: 0 | P16: 0 | Q16: 0 | R16: 0 | S16: 0 | T16: 0 | U16: 0
A17: 14 | B17: .50 AP M2 | C17: 2 | D17: 0.12 | E17: 867 | F17: 1 | G17: 0.046 | H17: 12.7 | I17: 28 | J17: 26 | K17: 0 | L17: -1 | M17: 0 | N17: 0 | O17: 0 | P17: 0 | Q17: 0 | R17: 0 | S17: 0 | T17: 0 | U17: 0
A18: 15 | B18: 37mm APC M51 | C18: 2 | D18: 1.58 | E18: 884 | F18: 1 | G18: 0.87 | H18: 37 | I18: 78 | J18: 73 | K18: #C0FB988F | L18: -1 | M18: 0 | N18: 0 | O18: 0 | P18: 0 | Q18: 0 | R18: 0 | S18: 0 | T18: 0 | U18: 0
A19: 16 | B19: 37mm HE M63 | C19: 5 | D19: 1.42 | E19: 792 | F19: 1 | G19: 0.73 | H19: 37 | I19: 0 | J19: 0 | K19: 0 | L19: 1 | M19: 0.04 | N19: 1 | O19: 0 | P19: 0 | Q19: 0 | R19: 3 | S19: 4 | T19: 7 | U19: 10
